Workbook

Sheet START
A1: =muni -> FS193 Nketoana

Sheet Instructions
D2: 2020
X4: Yes
X5: No
W7: Type of Entities Range: | X7: Parent Municipality
X8: Consolidated Information
W10: Date of Adjustment | X10: 28/02/2018
W19: MTREF Range: | X19: 2008
X20: 2009
X21: 2010
X22: 2011
X23: 2012
X24: 2013
X25: 2014
X26: 2015
X27: 2016
X28: 2017
X29: 2018
X30: 2019
X31: 2020
X32: 2021
W33: MTREF Linked: | X33: 2022
W34: MTREF:
X35: 10
W36: Fin Year: | X36: =INDEX(X19:X33,X35,1) -> 2017
X38: =MTREF&"/"&RIGHT(MTREF,2)+1 -> 2017/18

Sheet Template names (hidden)
A1: Common sheet headings
A2: Head1 | B2: =HLOOKUP(MTREF,Headings,2) -> 2016/17 | C2: Prior year -1
A3: Head1A | B3: =HLOOKUP(MTREF,Headings,3) -> 2015/16 | C3: Prior year -2
A4: Head1B | B4: =HLOOKUP(MTREF,Headings,4) -> 2014/15 | C4: Prior year -3
A5: Head2 | B5: =HLOOKUP(MTREF,Headings,7) -> Budget Year 2017/18 | C5: Year of approved budget
A6: Head2A | B6: =HLOOKUP(MTREF,Headings,6) -> 2017/18 | C6: Approved budget year
A7: Head3 | B7: =HLOOKUP(MTREF,Headings,5) -> 2017/18 Medium Term Revenue & Expenditure Framework | C7: MTREF header name
A8: Head3A | B8: Medium Term Revenue and Expenditure Framework
A9: Head4 | B9: Current year
A10: Head5 | B10: Audited Outcome
A11: Head5A | B11: Outcome
A12: Head5B | B12: Pre-audit outcome
A13: Head6 | B13: Original Budget
A14: Head7 | B14: Adjusted Budget
A15: Head8 | B15: Full Year Forecast
A16: Head9 | B16: =HLOOKUP(MTREF,Headings,7) -> Budget Year 2017/18 | C16: 1st year of MTREF | D16: Year1
A17: Head10 | B17: =HLOOKUP(MTREF,Headings,8) -> Budget Year +1 2018/19 | C17: 2nd year of MTREF | D17: Year2
A18: Head11 | B18: =HLOOKUP(MTREF,Headings,9) -> Budget Year +2 2019/20 | C18: 3rd year of MTREF | D18: Year3
A19: Head24 | B19: Description | D19: Desc
A20: Head26 | B20: Vote Description | D20: VDesc
A21: Head27 | B21: Ref
A22: Head27a | B22: References
A23: Head28 | B23: Surplus/ (Deficit) for the year | D23: Result
A24: Head29 | B24: Annual target 2007/08
A25: Head30 | B25: Revised target 2007/08
A26: Head31 | B26: Quarter ended 30 September
A27: Head32 | B27: Quarter ended 31 December
A28: Head33 | B28: Quarter ended 31 March
A29: Head34 | B29: Quarter ended 30 June
A30: Head35 | B30: Variance explanation
A31: Head36 | B31: YTD Actual 31 Dec
A32: Head37 | B32: YTD Budget 31 Dec
A33: Head38 | B33: Monthly actual
A34: Head39 | B34: YearTD actual
A35: Head40 | B35: YearTD budget
A36: Head41 | B36: YTD variance
A37: Head42 | B37: Surplus/ (Deficit) for the yr/period
A38: Head43 | B38: =Head3&" Summary" -> 2017/18 Medium Term Revenue & Expenditure Framework Summary
A39: Head44 | B39: 2001 Census
A40: Head45 | B40: 2011 Census
A41: Head46 | B41: - Adjustments Budget - January 2007
A42: Head47 | B42: Previous target year to complete
A43: Head48 | B43: Present value
A44: Head49
A45: Head50 | B45: Other Adjusts.
A46: Head51 | B46: Accum. Funds
A47: Head52 | B47: Multi-year capital
A48: Head53 | B48: Unfore. Unavoid.
A49: Head54 | B49: Prior Adjusted
A50: Head55 | B50: Nat. or Prov. Govt
A51: Head56 | B51: Total Adjusts.
A52: Head57 | B52: Month DD, YYYY -
A53: Head58 | B53: Parent muni.
A54: Head59 | B54: Downward adjusts
A55: SFPerf1 | B55: Budgeted Financial Performance
A56: SFPerf2 | B56: Forecast Financial Performance
A57: SFPos1 | B57: Budgeted Financial Position
A58: SFPos2 | B58: Forecast Financial Position
A59: Cash1 | B59: Budget Cash Flow
A60: Cash2 | B60: Forecast Cash Flow
A61: RandM | B61: Expenditure includes repairs & maintenance of R'000
A62: Standard nomenclature
A63: Muni | B63: ='Lookup and lists'!B28 -> FS193 Nketoana
A64: Municipal Entities | B64: 2 | C64: Type of report: | D64: 1
A65: =IF((MuniEntities=1)*(MuniType=2),"YES","NO") -> NO | B65: Does this municipality have entities (consolidated budget and entity budgets required)? YES/NO
A66: Mid Year Review/Adjustment Budget schedules & tables | E66: Consolidated header | F66: Parent municipality header
A67: ADJSum | B67: =D67&IF(Consolques="YES",E67,F67) -> Table B1 Adjustments Budget Summary | D67: Table B1 | E67: ="Consolidated "&F67 -> Consolidated Adjustments Budget Summary | F67: ="Adjustments Budget Summary" -> Adjustments Budget Summary
A68: ADJ2 | B68: Table B3 Adjustments Budget Financial Performance (revenue and expenditure by municipal vote) | D68: Table B3 | E68: ="Consolidated "&F68 -> Consolidated Adjustments Budget Financial Performance (revenue and expenditure by municipal vote) | F68: ="Adjustments Budget Financial Performance (revenue and expenditure by municipal vote)" -> Adjustments Budget Financial Performance (revenue and expenditure by municipal vote)
A69: ADJ3 | B69: Table B2 Adjustments Budget Financial Performance (functional classification) | D69: Table B2 | E69: Consolidated Adjustments Budget Financial Performance (functional classification) | F69: ="Adjustments Budget Financial Performance (functional classification)" -> Adjustments Budget Financial Performance (functional classification)
A70: ADJ4 | B70: Table B4 Adjustments Budget Financial Performance (revenue and expenditure) | D70: Table B4 | E70: Consolidated Adjustments Budget Financial Performance (revenue and expenditure) | F70: ="Adjustments Budget Financial Performance (revenue and expenditure)" -> Adjustments Budget Financial Performance (revenue and expenditure)
A71: ADJ5 | B71: Table B5 Adjustments Capital Expenditure Budget by vote and funding | D71: Table B5 | E71: Consolidated Adjustments Capital Expenditure Budget by vote and funding | F71: ="Adjustments Capital Expenditure Budget by vote and funding" -> Adjustments Capital Expenditure Budget by vote and funding
A72: ADJ6 | B72: Table B6 Adjustments Budget Financial Position | D72: Table B6 | E72: Consolidated Adjustments Budget Financial Position | F72: ="Adjustments Budget Financial Position" -> Adjustments Budget Financial Position
A73: ADJ7 | B73: Table B7 Adjustments Budget Cash Flows | D73: Table B7 | E73: Consolidated Adjustments Budget Cash Flows | F73: ="Adjustments Budget Cash Flows" -> Adjustments Budget Cash Flows
A74: ADJ8 | B74: Table B8 Cash backed reserves/accumulated surplus reconciliation | D74: Table B8 | E74: Consolidated Cash backed reserves/accumulated surplus reconciliation | F74: ="Cash backed reserves/accumulated surplus reconciliation" -> Cash backed reserves/accumulated surplus reconciliation
A75: ADJ9 | B75: Table B9 Asset Management | D75: Table B9 | E75: Consolidated Asset Management | F75: ="Asset Management" -> Asset Management
A76: ADJ10 | B76: Table B10 Basic service delivery measurement | D76: Table B10 | E76: Consolidated Basic service delivery measurement | F76: ="Basic service delivery measurement" -> Basic service delivery measurement
A77: ADJB1 | B77: Supporting Table SB1 Supporting detail to 'Budgeted Financial Performance' | D77: =D101&"Table SB1 " -> Supporting Table SB1 | E77: Consolidated Supporting detail to 'Budgeted Financial Performance' | F77: ="Supporting detail to 'Budgeted Financial Performance'" -> Supporting detail to 'Budgeted Financial Performance'
A78: ADJB2 | B78: Supporting Table SB2 Supporting detail to 'Financial Position Budget' | D78: =D101&"Table SB2 " -> Supporting Table SB2 | E78: Consolidated Supporting detail to 'Financial Position Budget' | F78: ="Supporting detail to 'Financial Position Budget'" -> Supporting detail to 'Financial Position Budget'
A79: ADJB3 | B79: Supporting Table SB3 Adjustments to the SDBIP - performance objectives | D79: =D101&"Table SB3 " -> Supporting Table SB3 | E79: Consolidated Adjustments to the SDBIP - performance objectives | F79: ="Adjustments to the SDBIP - performance objectives" -> Adjustments to the SDBIP - performance objectives
A80: ADJB4 | B80: Supporting Table SB4 Adjustments to budgeted performance indicators and benchmarks | D80: =D101&"Table SB4 " -> Supporting Table SB4 | E80: Consolidated Adjustments to budgeted performance indicators and benchmarks | F80: ="Adjustments to budgeted performance indicators and benchmarks" -> Adjustments to budgeted performance indicators and benchmarks
A81: ADJB5 | B81: Supporting Table SB5 Adjustments Budget - social, economic and demographic statistics and assumptions | D81: =D101&"Table SB5 " -> Supporting Table SB5 | E81: Consolidated Adjustments Budget - social, economic and demographic statistics and assumptions | F81: ="Adjustments Budget - social, economic and demographic statistics and assumptions" -> Adjustments Budget - social, economic and demographic statistics and assumptions
A82: ADJB6 | B82: Supporting Table SB6 Adjustments Budget - funding measurement | D82: =D101&"Table SB6 " -> Supporting Table SB6 | E82: Consolidated Adjustments Budget - funding measurement | F82: ="Adjustments Budget - funding measurement" -> Adjustments Budget - funding measurement
A83: ADJB7 | B83: Supporting Table SB7 Adjustments Budget - transfers and grant receipts | D83: =D101&"Table SB7 " -> Supporting Table SB7 | E83: Consolidated Adjustments Budget - transfers and grant receipts | F83: ="Adjustments Budget - transfers and grant receipts" -> Adjustments Budget - transfers and grant receipts
A84: ADJB8 | B84: Supporting Table SB8 Adjustments Budget - expenditure on transfers and grant programme | D84: =D101&"Table SB8 " -> Supporting Table SB8 | E84: Consolidated Adjustments Budget - expenditure on transfers and grant programme | F84: ="Adjustments Budget - expenditure on transfers and grant programme" -> Adjustments Budget - expenditure on transfers and grant programme
A85: ADJB9 | B85: Supporting Table SB9 Adjustments Budget - reconciliation of transfers, grant receipts, and unspent funds | D85: =D101&"Table SB9 " -> Supporting Table SB9 | E85: Consolidated Adjustments Budget - reconciliation of transfers, grant receipts, and unspent funds | F85: ="Adjustments Budget - reconciliation of transfers, grant receipts, and unspent funds" -> Adjustments Budget - reconciliation of transfers, grant receipts, and unspent funds
A86: ADJB10 | B86: Supporting Table SB10 Adjustments Budget - transfers and grants made by the municipality | D86: =D101&"Table SB10 " -> Supporting Table SB10 | E86: Consolidated Adjustments Budget - transfers and grants made by the municipality | F86: ="Adjustments Budget - transfers and grants made by the municipality" -> Adjustments Budget - transfers and grants made by the municipality
A87: ADJB11 | B87: Supporting Table SB11 Adjustments Budget - councillor and staff benefits | D87: =D101&"Table SB11 " -> Supporting Table SB11 | E87: Consolidated Adjustments Budget - councillor and staff benefits | F87: ="Adjustments Budget - councillor and staff benefits" -> Adjustments Budget - councillor and staff benefits
A88: ADJB12 | B88: Supporting Table SB12 Adjustments Budget - monthly revenue and expenditure (municipal vote) | D88: =D101&"Table SB12 " -> Supporting Table SB12 | E88: Consolidated Adjustments Budget - monthly revenue and expenditure (municipal vote) | F88: ="Adjustments Budget - monthly revenue and expenditure (municipal vote)" -> Adjustments Budget - monthly revenue and expenditure (municipal vote)
A89: ADJB13 | B89: Supporting Table SB13 Adjustments Budget - monthly revenue and expenditure (functional classification) | D89: =D101&"Table SB13 " -> Supporting Table SB13 | E89: Consolidated Adjustments Budget - monthly revenue and expenditure (functional classification) | F89: ="Adjustments Budget - monthly revenue and expenditure (functional classification)" -> Adjustments Budget - monthly revenue and expenditure (functional classification)
A90: ADJB14 | B90: Supporting Table SB14 Adjustments Budget - monthly revenue and expenditure | D90: =D101&"Table SB14 " -> Supporting Table SB14 | E90: Consolidated Adjustments Budget - monthly revenue and expenditure | F90: ="Adjustments Budget - monthly revenue and expenditure" -> Adjustments Budget - monthly revenue and expenditure
A91: ADJB15 | B91: Supporting Table SB15 Adjustments Budget - monthly cash flow | D91: =D101&"Table SB15 " -> Supporting Table SB15 | E91: Consolidated Adjustments Budget - monthly cash flow | F91: ="Adjustments Budget - monthly cash flow" -> Adjustments Budget - monthly cash flow
A92: ADJB16 | B92: Supporting Table SB16 Adjustments Budget - monthly capital expenditure (municipal vote) | D92: =D101&"Table SB16 " -> Supporting Table SB16 | E92: Consolidated Adjustments Budget - monthly capital expenditure (municipal vote) | F92: ="Adjustments Budget - monthly capital expenditure (municipal vote)" -> Adjustments Budget - monthly capital expenditure (municipal vote)
A93: ADJB17 | B93: Supporting Table SB17 Adjustments Budget - monthly capital expenditure (functional classification) | D93: =D101&"Table SB17 " -> Supporting Table SB17 | E93: Consolidated Adjustments Budget - monthly capital expenditure (functional classification) | F93: ="Adjustments Budget - monthly capital expenditure (functional classification)" -> Adjustments Budget - monthly capital expenditure (functional classification)
A94: ADJB18a | B94: Supporting Table SB18a Adjustments Budget - capital expenditure on new assets by asset class | D94: =D101&"Table SB18a " -> Supporting Table SB18a | E94: Consolidated Adjustments Budget - capital expenditure on new assets by asset class | F94: ="Adjustments Budget - capital expenditure on new assets by asset class" -> Adjustments Budget - capital expenditure on new assets by asset class
A95: ADJB18b | B95: Supporting Table SB18b Adjustments Budget - capital expenditure on renewal of existing assets by asset class | D95: =D101&"Table SB18b " -> Supporting Table SB18b | E95: ="Consolidated "&F95 -> Consolidated Adjustments Budget - capital expenditure on renewal of existing assets by asset class | F95: ="Adjustments Budget - capital expenditure on renewal of existing assets by asset class" -> Adjustments Budget - capital expenditure on renewal of existing assets by asset class
A96: ADJB18c | B96: Supporting Table SB18c Adjustments Budget - expenditure on repairs and maintenance by asset class | D96: =D101&"Table SB18c " -> Supporting Table SB18c | E96: ="Consolidated "&F96 -> Consolidated Adjustments Budget - expenditure on repairs and maintenance by asset class | F96: ="Adjustments Budget - expenditure on repairs and maintenance by asset class" -> Adjustments Budget - expenditure on repairs and maintenance by asset class
A97: ADJB18d | B97: Supporting Table SB18d Adjustments Budget - depreciation by asset class | D97: =D101&"Table SB18d " -> Supporting Table SB18d | E97: ="Consolidated "&F97 -> Consolidated Adjustments Budget - depreciation by asset class | F97: ="Adjustments Budget - depreciation by asset class" -> Adjustments Budget - depreciation by asset class
A98: ADJB18e | B98: Supporting Table SB18d Adjustments Budget - capital expenditure on upgrading of existing assets by asset class | D98: =D101&"Table SB18d " -> Supporting Table SB18d | E98: ="Consolidated "&F98 -> Consolidated Adjustments Budget - capital expenditure on upgrading of existing assets by asset class | F98: ="Adjustments Budget - capital expenditure on upgrading of existing assets by asset class" -> Adjustments Budget - capital expenditure on upgrading of existing assets by asset class
A99: ADJB19 | B99: Supporting Table SB19 List of capital programmes and projects affected by Adjustments Budget | D99: =D101&"Table SB19 " -> Supporting Table SB19 | E99: Consolidated List of capital programmes and projects affected by Adjustments Budget | F99: ="List of capital programmes and projects affected by Adjustments Budget" -> List of capital programmes and projects affected by Adjustments Budget
A100: ADJB20 | B100: Supporting Table SB20 Not required | D100: =D101&"Table SB20 " -> Supporting Table SB20 | E100: ="Adjusted Budget Municipal Entity Performance Summary" -> Adjusted Budget Municipal Entity Performance Summary | F100: Not required
D101: Supporting

Sheet Lookup and lists (hidden)
A1: Description | B1: 2007 | C1: 2008 | D1: 2009 | E1: 2010 | F1: 2011 | G1: 2012 | H1: 2013 | I1: 2014 | J1: 2015 | K1: 2016 | L1: 2017 | M1: 2018 | N1: 2019 | O1: 2020 | Q1: Grants: | R1: National - opex | S1: Provincial - opex | T1: National - capex | U1: Provincial - capex | V1: YESNO
A2: ='Template names'!C2 -> Prior year -1 | B2: 2006/07 | C2: 2007/08 | D2: 2008/09 | E2: =E1-1&"/"&RIGHT(E1,2)-0 -> 2009/10 | F2: 2010/11 | G2: 2011/12 | H2: 2012/13 | I2: 2013/14 | J2: 2014/15 | K2: 2015/16 | L2: 2016/17 | M2: 2017/18 | N2: 2018/19 | O2: 2019/20 | R2: Local Government Equitable Share | S2: Health subsidy | T2: Municipal Infrastructure Grant (MIG) | U2: Agriculture | V2: Yes
A3: ='Template names'!C3 -> Prior year -2 | B3: 2005/06 | C3: 2006/07 | D3: 2007/08 | E3: =E1-2&"/"&RIGHT(E1,2)-1 -> 2008/9 | F3: 2009/10 | G3: 2010/11 | H3: 2011/12 | I3: 2012/13 | J3: 2013/14 | K3: 2014/15 | L3: 2015/16 | M3: 2016/17 | N3: 2017/18 | O3: 2018/19 | R3: RSC Levy Replacement | S3: Ambulance subsidy | T3: Public Transport and Systems | U3: Education | V3: No
A4: ='Template names'!C4 -> Prior year -3 | B4: 2004/05 | C4: 2005/06 | D4: 2006/07 | E4: =E1-3&"/"&RIGHT(E1,2)-2 -> 2007/8 | F4: 2008/9 | G4: 2009/10 | H4: 2010/11 | I4: 2011/12 | J4: 2012/13 | K4: 2013/14 | L4: 2014/15 | M4: 2015/16 | N4: 2016/17 | O4: 2017/18 | R4: Finance Management | S4: Housing | T4: Rural Transport Services and Infrastructure | U4: Health
A5: ='Template names'!C7 -> MTREF header name | B5: 2007/08 Medium Term Revenue & Expenditure Framework | C5: 2008/09 Medium Term Revenue & Expenditure Framework | D5: 2009/10 Medium Term Revenue & Expenditure Framework | E5: =E1&"/"&RIGHT(E1,2)+1&" Medium Term Revenue & Expenditure Framework" -> 2010/11 Medium Term Revenue & Expenditure Framework | F5: 2011/12 Medium Term Revenue & Expenditure Framework | G5: 2012/13 Medium Term Revenue & Expenditure Framework | H5: 2013/14 Medium Term Revenue & Expenditure Framework | I5: 2014/15 Medium Term Revenue & Expenditure Framework | J5: 2015/16 Medium Term Revenue & Expenditure Framework | K5: 2016/17 Medium Term Revenue & Expenditure Framework | L5: 2017/18 Medium Term Revenue & Expenditure Framework | M5: 2018/19 Medium Term Revenue & Expenditure Framework | N5: 2019/20 Medium Term Revenue & Expenditure Framework | O5: 2020/21 Medium Term Revenue & Expenditure Framework | R5: Municipal Systems Improvement | S5: Sport and Recreation | T5: Regional Bulk Infrastructure | U5: Housing and Local Government
A6: ='Template names'!C6 -> Approved budget year | B6: 2007/08 | C6: 2008/09 | D6: 2009/10 | E6: =E1&"/"&RIGHT(E1,2)+1 -> 2010/11 | F6: 2011/12 | G6: 2012/13 | H6: 2013/14 | I6: 2014/15 | J6: 2015/16 | K6: 2016/17 | L6: 2017/18 | M6: 2018/19 | N6: 2019/20 | O6: 2020/21 | R6: Water Services Operating Subsidy | T6: Rural Households Infrastructure | U6: Other Departments
A7: ='Template names'!C16 -> 1st year of MTREF | B7: Budget Year 2007/08 | C7: Budget Year 2008/09 | D7: Budget Year 2009/10 | E7: ="Budget Year "&E1&"/"&RIGHT(E1,2)+1 -> Budget Year 2010/11 | F7: Budget Year 2011/12 | G7: Budget Year 2012/13 | H7: Budget Year 2013/14 | I7: Budget Year 2014/15 | J7: Budget Year 2015/16 | K7: Budget Year 2016/17 | L7: Budget Year 2017/18 | M7: Budget Year 2018/19 | N7: Budget Year 2019/20 | O7: Budget Year 2020/21 | R7: Energy Efficiency and Demand Management | T7: Neighbourhood Development Partnership | U7: Public Works, Roads, Transport
A8: ='Template names'!C17 -> 2nd year of MTREF | B8: Budget Year +1 2008/09 | C8: Budget Year +1 2009/10 | D8: Budget Year +1 2010/11 | E8: ="Budget Year +1 "&E1+1&"/"&RIGHT(E1,2)+2 -> Budget Year +1 2011/12 | F8: Budget Year +1 2012/13 | G8: Budget Year +1 2013/14 | H8: Budget Year +1 2014/15 | I8: Budget Year +1 2015/16 | J8: Budget Year +1 2016/17 | K8: Budget Year +1 2017/18 | L8: Budget Year +1 2018/19 | M8: Budget Year +1 2019/20 | N8: Budget Year +1 2020/21 | O8: Budget Year +1 2021/22 | R8: Integrated National Electrification Programme | T8: 2010 FIFA World Cup Stadiums Development | U8: Sport and Recreation
A9: ='Template names'!C18 -> 3rd year of MTREF | B9: Budget Year +2 2009/10 | C9: Budget Year +2 2010/11 | D9: Budget Year +2 2011/12 | E9: ="Budget Year +2 "&E1+2&"/"&RIGHT(E1,2)+3 -> Budget Year +2 2012/13 | F9: Budget Year +2 2013/14 | G9: Budget Year +2 2014/15 | H9: Budget Year +2 2015/16 | I9: Budget Year +2 2016/17 | J9: Budget Year +2 2017/18 | K9: Budget Year +2 2018/19 | L9: Budget Year +2 2019/20 | M9: Budget Year +2 2020/21 | N9: Budget Year +2 2021/22 | O9: Budget Year +2 2022/23 | R9: Municipal Drought Relief
A10: Adjustments Budget | B10: Annual target 2007/08 | C10: Annual target 2008/09 | D10: Annual target 2009/10 | E10: ="Annual target " & E1&"/"&RIGHT(E1,2)+1 -> Annual target 2010/11 | F10: Annual target 2011/12 | G10: Annual target 2012/13 | H10: Annual target 2013/14 | I10: Annual target 2014/15 | J10: Annual target 2015/16 | K10: Annual target 2016/17 | L10: Annual target 2017/18 | M10: Annual target 2018/19 | N10: Annual target 2019/20 | O10: Annual target 2020/21 | R10: 2010 FIFA World Cup Operating
A11: NOTE: This sheet should not be directly amended - select headings from sheet 'S' | R11: Electricity Demand Side Management
R12: EPWP Incentive
R15: Asset Class | S15: Asset sub-class
R17: Infrastructure - Road transport | S17: Roads, Pavements & Bridges
R18: Infrastructure - Electricity | S18: Storm water
R19: Infrastructure - Water | S19: Generation
R20: Infrastructure - Sanitation | S20: Transmission & Reticulation
R21: Infrastructure - Other | S21: Street Lighting
R22: Community | S22: Dams & Reservoirs
R23: Heritage Assets | S23: Water purification
R24: Investment Properties | S24: Reticulation
R25: Other Assets | S25: Sewerage purification
R26: Agricultural assets | S26: Waste Management
A27: Name link | B27: 54 | R27: Biological assets | S27: Transportation
A28: Name of Muni | B28: =INDEX(B29:B312,B27,1) -> FS193 Nketoana | R28: Intangibles | S28: Gas
B29: Choose name from list | C29: Set name on 'Instructions' sheet | R29: Other | S29: Parks & gardens
B30: BUF Buffalo City | C30: Eastern Cape | S30: Sportsfields & stadia
B31: NMA Nelson Mandela Bay | C31: Eastern Cape | S31: Swimming pools
B32: EC101 Dr. Beyers Naude | C32: Eastern Cape | S32: Community halls
B33: EC102 Blue Crane Route | C33: Eastern Cape | S33: Libraries
B34: EC104 Makana | C34: Eastern Cape | S34: Recreational facilities
B35: EC105 Ndlambe | C35: Eastern Cape | S35: Fire, safety & emergency
B36: EC106 Sundays River Valley | C36: Eastern Cape | S36: Security and policing
B37: EC108 Kouga | C37: Eastern Cape | S37: Buses
B38: EC109 Kou-Kamma | C38: Eastern Cape | S38: Clinics
B39: DC10 Sarah Baartman | C39: Eastern Cape | S39: Museums & Art Galleries
B40: EC121 Mbhashe | C40: Eastern Cape | S40: Cemeteries
B41: EC122 Mnquma | C41: Eastern Cape | S41: Social rental housing
B42: EC123 Great Kei | C42: Eastern Cape | S42: Buildings
B43: EC124 Amahlathi | C43: Eastern Cape | S43: Housing development
B44: EC126 Ngqushwa | C44: Eastern Cape | S44: General vehicles
B45: EC129 Raymond Mhlaba | C45: Eastern Cape | S45: Specialised vehicles - Refuse
B46: DC12 Amathole | C46: Eastern Cape | S46: Specialised vehicles - Fire
B47: EC131 Inxuba Yethemba | C47: Eastern Cape | S47: Specialised vehicles - Conservancy
B48: EC135 Intsika Yethu | C48: Eastern Cape | S48: Specialised vehicles - Ambulances
B49: EC136 Emalahleni (Ec) | C49: Eastern Cape | S49: Plant & equipment
B50: EC137 Engcobo | C50: Eastern Cape | S50: Computers - hardware/equipment
B51: EC138 Sakhisizwe | C51: Eastern Cape | S51: Furniture and other office equipment
B52: EC139 Enoch Mgijima | C52: Eastern Cape | S52: Abattoirs
B53: DC13 Chris Hani | C53: Eastern Cape | S53: Markets
B54: EC141 Elundini | C54: Eastern Cape | S54: Civic Land and Buildings
B55: EC142 Senqu | C55: Eastern Cape | S55: Other Buildings
B56: EC145 Walter Sisulu | C56: Eastern Cape | S56: Other Land
B57: DC14 Joe Gqabi | C57: Eastern Cape | S57: Surplus Assets - (Investment or Inventory)
B58: EC153 Ngquza Hills | C58: Eastern Cape | S58: Computers - software & programming
B59: EC154 Port St Johns | C59: Eastern Cape | S59: Other
B60: EC155 Nyandeni | C60: Eastern Cape
B61: EC156 Mhlontlo | C61: Eastern Cape | R61: SB 19
B62: EC157 King Sabata Dalindyebo | C62: Eastern Cape | R62: Yes
B63: DC15 O .R. Tambo | C63: Eastern Cape | R63: No
B64: EC441 Matatiele | C64: Eastern Cape
B65: EC442 Umzimvubu | C65: Eastern Cape
B66: EC443 Mbizana | C66: Eastern Cape
B67: EC444 Ntabankulu | C67: Eastern Cape
B68: DC44 Alfred Nzo | C68: Eastern Cape
B69: MAN Mangaung | C69: Free State
B70: FS161 Letsemeng | C70: Free State
B71: FS162 Kopanong | C71: Free State
B72: FS163 Mohokare | C72: Free State
B73: DC16 Xhariep | C73: Free State
B74: FS181 Masilonyana | C74: Free State
B75: FS182 Tokologo | C75: Free State
B76: FS183 Tswelopele | C76: Free State
B77: FS184 Matjhabeng | C77: Free State
B78: FS185 Nala | C78: Free State
B79: DC18 Lejweleputswa | C79: Free State
B80: FS191 Setsoto | C80: Free State
B81: FS192 Dihlabeng | C81: Free State
B82: FS193 Nketoana | C82: Free State
B83: FS194 Maluti-a-Phofung | C83: Free State
B84: FS195 Phumelela | C84: Free State
B85: FS196 Mantsopa | C85: Free State
B86: DC19 Thabo Mofutsanyana | C86: Free State
B87: FS201 Moqhaka | C87: Free State
B88: FS203 Ngwathe | C88: Free State
B89: FS204 Metsimaholo | C89: Free State
B90: FS205 Mafube | C90: Free State
B91: DC20 Fezile Dabi | C91: Free State
B92: EKU Ekurhuleni Metro | C92: Gauteng
B93: JHB City Of Johannesburg | C93: Gauteng
B94: TSH City Of Tshwane | C94: Gauteng
B95: GT421 Emfuleni | C95: Gauteng
B96: GT422 Midvaal | C96: Gauteng
B97: GT423 Lesedi | C97: Gauteng
B98: DC42 Sedibeng | C98: Gauteng
B99: GT481 Mogale City | C99: Gauteng
B100: GT484 Merafong City | C100: Gauteng
B101: GT485 GT485 | C101: Gauteng
B102: DC48 West Rand | C102: Gauteng
B103: ETH eThekwini | C103: Kwazulu-Natal
B104: KZN212 Umdoni | C104: Kwazulu-Natal
B105: KZN213 Umzumbe | C105: Kwazulu-Natal
B106: KZN214 uMuziwabantu | C106: Kwazulu-Natal
B107: KZN216 Ray Nkonyeni | C107: Kwazulu-Natal
B108: DC21 Ugu | C108: Kwazulu-Natal
B109: KZN221 uMshwathi | C109: Kwazulu-Natal
B110: KZN222 uMngeni | C110: Kwazulu-Natal
B111: KZN223 Mpofana | C111: Kwazulu-Natal
B112: KZN224 Impendle | C112: Kwazulu-Natal
B113: KZN225 Msunduzi | C113: Kwazulu-Natal
B114: KZN226 Mkhambathini | C114: Kwazulu-Natal
B115: KZN227 Richmond | C115: Kwazulu-Natal
B116: DC22 uMgungundlovu | C116: Kwazulu-Natal
B117: KZN235 Okhahlamba | C117: Kwazulu-Natal
B118: KZN237 Inkosi Langalibalele | C118: Kwazulu-Natal
B119: KZN238 Alfred Duma | C119: Kwazulu-Natal
B120: DC23 Uthukela | C120: Kwazulu-Natal
B121: KZN241 Endumeni | C121: Kwazulu-Natal
B122: KZN242 Nquthu | C122: Kwazulu-Natal
B123: KZN244 Msinga | C123: Kwazulu-Natal
B124: KZN245 Umvoti | C124: Kwazulu-Natal
B125: DC24 Umzinyathi | C125: Kwazulu-Natal
B126: KZN252 Newcastle | C126: Kwazulu-Natal
B127: KZN253 eMadlangeni | C127: Kwazulu-Natal
B128: KZN254 Dannhauser | C128: Kwazulu-Natal
B129: DC25 Amajuba | C129: Kwazulu-Natal
B130: KZN261 eDumbe | C130: Kwazulu-Natal
B131: KZN262 uPhongolo | C131: Kwazulu-Natal
B132: KZN263 Abaqulusi | C132: Kwazulu-Natal
B133: KZN265 Nongoma | C133: Kwazulu-Natal
B134: KZN266 Ulundi | C134: Kwazulu-Natal
B135: DC26 Zululand | C135: Kwazulu-Natal
B136: KZN271 Umhlabuyalingana | C136: Kwazulu-Natal
B137: KZN272 Jozini | C137: Kwazulu-Natal
B138: KZN275 Mtubatuba | C138: Kwazulu-Natal
B139: KZN276 The New Big 5 False Bay | C139: Kwazulu-Natal
B140: DC27 Umkhanyakude | C140: Kwazulu-Natal
B141: KZN281 Mfolozi | C141: Kwazulu-Natal
B142: KZN282 uMhlathuze | C142: Kwazulu-Natal
B143: KZN284 uMlalazi | C143: Kwazulu-Natal
B144: KZN285 Mthonjaneni | C144: Kwazulu-Natal
B145: KZN286 Nkandla | C145: Kwazulu-Natal
B146: DC28 King Cetshwayo | C146: Kwazulu-Natal
B147: KZN291 Mandeni | C147: Kwazulu-Natal
B148: KZN292 KwaDukuza | C148: Kwazulu-Natal
B149: KZN293 Ndwedwe | C149: Kwazulu-Natal
B150: KZN294 Maphumulo | C150: Kwazulu-Natal
B151: DC29 iLembe | C151: Kwazulu-Natal
B152: KZN433 Greater Kokstad | C152: Kwazulu-Natal
B153: KZN434 Ubuhlebezwe | C153: Kwazulu-Natal
B154: KZN435 Umzimkhulu | C154: Kwazulu-Natal
B155: KZN436 Dr Nkosazana Dlamini Zuma | C155: Kwazulu-Natal
B156: DC43 Harry Gwala | C156: Kwazulu-Natal
B157: LIM331 Greater Giyani | C157: Limpopo
B158: LIM332 Greater Letaba | C158: Limpopo
B159: LIM333 Greater Tzaneen | C159: Limpopo
B160: LIM334 Ba-Phalaborwa | C160: Limpopo
B161: LIM335 Maruleng | C161: Limpopo
B162: DC33 Mopani | C162: Limpopo
B163: LIM341 Musina | C163: Limpopo
B164: LIM343 Thulamela | C164: Limpopo
B165: LIM344 Makhado | C165: Limpopo
B166: LIM345 LIM345 | C166: Limpopo
B167: DC34 Vhembe | C167: Limpopo
B168: LIM351 Blouberg | C168: Limpopo
B169: LIM353 Molemole | C169: Limpopo
B170: LIM354 Polokwane | C170: Limpopo
B171: LIM355 Lepelle-Nkumpi | C171: Limpopo
B172: DC35 Capricorn | C172: Limpopo
B173: LIM361 Thabazimbi | C173: Limpopo
B174: LIM362 Lephalale | C174: Limpopo
B175: LIM366 Bela Bela | C175: Limpopo
B176: LIM367 Mogalakwena | C176: Limpopo
B177: LIM368 LIM368 | C177: Limpopo
B178: DC36 Waterberg | C178: Limpopo
B179: LIM471 Ephraim Mogale | C179: Limpopo
B180: LIM472 Elias Motsoaledi | C180: Limpopo
B181: LIM473 Makhuduthamaga | C181: Limpopo
B182: LIM476 LIM476 | C182: Limpopo
B183: DC47 Sekhukhune | C183: Limpopo
B184: MP301 Albert Luthuli | C184: Mpumalanga
B185: MP302 Msukaligwa | C185: Mpumalanga
B186: MP303 Mkhondo | C186: Mpumalanga
B187: MP304 Pixley Ka Seme (MP) | C187: Mpumalanga
B188: MP305 Lekwa | C188: Mpumalanga
B189: MP306 Dipaleseng | C189: Mpumalanga
B190: MP307 Govan Mbeki | C190: Mpumalanga
B191: DC30 Gert Sibande | C191: Mpumalanga
B192: MP311 Victor Khanye | C192: Mpumalanga
B193: MP312 Emalahleni (Mp) | C193: Mpumalanga
B194: MP313 Steve Tshwete | C194: Mpumalanga
B195: MP314 Emakhazeni | C195: Mpumalanga
B196: MP315 Thembisile Hani | C196: Mpumalanga
B197: MP316 Dr J.S. Moroka | C197: Mpumalanga
B198: DC31 Nkangala | C198: Mpumalanga
B199: MP321 Thaba Chweu | C199: Mpumalanga
B200: MP324 Nkomazi | C200: Mpumalanga
B201: MP325 Bushbuckridge | C201: Mpumalanga
B202: MP326 City of Mbombela | C202: Mpumalanga
B203: DC32 Ehlanzeni | C203: Mpumalanga
... 84 more rows

Sheet Org structure
A1: Organisational Structure Votes | C1: Organisational Structure Sub-Votes | E1: Display Sub-Votes
A2: =B2&" - "&C2 -> Vote 1 - EXECUTIVE AND COUNCIL | B2: Vote 1 | C2: EXECUTIVE AND COUNCIL
A3: =B13&" - "& C13 -> Vote 2 - FINANCE AND ADMINISTRATION | B3: 1.1 | C3: Mayor's Office | D3: 1.1 - Mayor's Office | E3: 1.1 - Mayor's Office
A4: =B24&" - "&C24 -> Vote 3 - COMMUNITY SERVICES | B4: 1.2 | C4: Speaker's Office | D4: 1.2 - Speaker's Office | E4: 1.2 - Speaker's Office
A5: =B35&" - "&C35 -> Vote 4 - WASTE MANAGEMENT | B5: 1.3 | C5: Municipal Manager's Office | D5: 1.3 - Municipal Manager's Office | E5: 1.4 - Municipal Manager's Office
A6: =B46&" - "&C46 -> Vote 5 - LOCAL ECONOMIC DEVELOPMENT | B6: 1.4 | C6: Municipal Manager's Office | D6: 1.4 - Municipal Manager's Office | E6: 1.4 - IDP and PMS
A7: =B57&" - "&C57 -> Vote 6 - ROADS TRANSPORT | B7: 1.5 | C7: Internal Audit | D7: 1.5 - Internal Audit | E7: 1.5 - Internal Audit
A8: =B68&" - "&C68 -> Vote 7 - WATER | B8: 1.6 | C8: Special Programmes | D8: 1.6 - Special Programmes | E8: 1.6 - Special Programmes
A9: =B79&" - "&C79 -> Vote 8 - ELECTRICITY | B9: 1.7 | C9: [Name of sub-vote] | D9: 1.7 - [Name of sub-vote]
A10: =B90&" - "&C90 -> Vote 9 - WASTE WATER | B10: 1.8 | C10: [Name of sub-vote] | D10: 1.8 - [Name of sub-vote]
A11: =B101&" - "&C101 -> Vote 10 - HOUSING | B11: 1.9 | C11: [Name of sub-vote] | D11: 1.9 - [Name of sub-vote]
A12: =B112&" - "&C112 -> Vote 11 - [NAME OF VOTE 11] | B12: 1.10 | C12: [Name of sub-vote] | D12: 1.10 - [Name of sub-vote]
A13: =B123&" - "&C123 -> Vote 12 - [NAME OF VOTE 12] | B13: Vote 2 | C13: FINANCE AND ADMINISTRATION
A14: =B134&" - "&C134 -> Vote 13 - [NAME OF VOTE 13] | B14: 2.1 | C14: Human Resource | D14: 2.1 - Human Resource | E14: 2.1 - Human Resource
A15: =B145&" - "&C145 -> Vote 14 - [NAME OF VOTE 14] | B15: 2.2 | C15: Records Management | D15: 2.2 - Records Management | E15: 2.2 - Records Management
A16: =B156&" - "&C156 -> Vote 15 - [NAME OF VOTE 15] | B16: 2.3 | C16: Legal Services | D16: 2.3 - Legal Services | E16: 2.3 - Legal Services
B17: 2.4 | C17: Administration | D17: 2.4 - Administration | E17: 2.4 - Administration
B18: 2.5 | C18: Revenue Management | D18: 2.5 - Revenue Management | E18: 2.5 - Revenue Management
B19: 2.6 | C19: Supply Chain Management | D19: 2.6 - Supply Chain Management | E19: 2.6 - Supply Chain Management
B20: 2.7 | C20: CFO | D20: 2.7 - CFO | E20: 2.7 - CFO
B21: 2.8 | C21: Director Corporate Services | D21: 2.8 - Director Corporate Services | E21: 2.8 - Director Corporate Services
B22: 2.9 | C22: Budget and Treasury | D22: 2.9 - Budget and Treasury | E22: 2.9 - Budget and Treasury
B23: 2.10 | C23: Expenditure | D23: 2.10 - Expenditure | E23: 2.10 - Expenditure
B24: Vote 3 | C24: COMMUNITY SERVICES
B25: 3.1 | C25: Cementry | D25: 3.1 - Cementry | E25: 3.1 - Cementry
B26: 3.2 | C26: Parks | D26: 3.2 - Parks | E26: 3.2 - Parks
B27: 3.3 | C27: Director Community Services | D27: 3.3 - Director Community Services | E27: 3.3 - Director Community Services
B28: 3.4 | C28: Traffic Services | D28: 3.4 - Traffic Services | E28: 3.4 - Traffic Services
B29: 3.5 | C29: Fire Services | D29: 3.5 - Fire Services | E29: 3.5 - Fire Services
B30: 3.6 | C30: Sports and Recreation | D30: 3.6 - Sports and Recreation | E30: 3.6 - Sports and Recreation
B31: 3.7 | C31: Libraries | D31: 3.7 - Libraries | E31: 3.7 - Libraries
B32: 3.8 | C32: [Name of sub-vote] | D32: 3.8 - [Name of sub-vote]
B33: 3.9 | C33: [Name of sub-vote] | D33: 3.9 - [Name of sub-vote]
B34: 3.10 | C34: [Name of sub-vote] | D34: 3.10 - [Name of sub-vote]
B35: Vote 4 | C35: WASTE MANAGEMENT
B36: 4.1 | C36: Waste Collection | D36: 4.1 - Waste Collection | E36: 4.1 - Waste Collection
B37: 4.2 | C37: Solid Waste Disposal | D37: 4.2 - Solid Waste Disposal | E37: 4.2 - Solid Waste Disposal
B38: 4.3 | C38: Solid Waste Management | D38: 4.3 - Solid Waste Management | E38: 4.3 - Solid Waste Management
B39: 4.4 | C39: [Name of sub-vote] | D39: 4.4 - [Name of sub-vote]
B40: 4.5 | C40: [Name of sub-vote] | D40: 4.5 - [Name of sub-vote]
B41: 4.6 | C41: [Name of sub-vote] | D41: 4.6 - [Name of sub-vote]
B42: 4.7 | C42: [Name of sub-vote] | D42: 4.7 - [Name of sub-vote]
B43: 4.8 | C43: [Name of sub-vote] | D43: 4.8 - [Name of sub-vote]
B44: 4.9 | C44: [Name of sub-vote] | D44: 4.9 - [Name of sub-vote]
B45: 4.10 | C45: [Name of sub-vote] | D45: 4.10 - [Name of sub-vote]
B46: Vote 5 | C46: LOCAL ECONOMIC DEVELOPMENT
B47: 5.1 | C47: SMME Hub | D47: 5.1 - SMME Hub | E47: 5.1 - SMME Hub
B48: 5.2 | C48: Tourism | D48: 5.2 - Tourism | E48: 5.2 - Tourism
B49: 5.3 | C49: Economic Development | D49: 5.3 - Economic Development | E49: 5.3 - Economic Development
B50: 5.4 | C50: [Name of sub-vote] | D50: 5.4 - [Name of sub-vote]
B51: 5.5 | C51: [Name of sub-vote] | D51: 5.5 - [Name of sub-vote]
B52: 5.6 | C52: [Name of sub-vote] | D52: 5.6 - [Name of sub-vote]
B53: 5.7 | C53: [Name of sub-vote] | D53: 5.7 - [Name of sub-vote]
B54: 5.8 | C54: [Name of sub-vote] | D54: 5.8 - [Name of sub-vote]
B55: 5.9 | C55: [Name of sub-vote] | D55: 5.9 - [Name of sub-vote]
B56: 5.10 | C56: [Name of sub-vote] | D56: 5.10 - [Name of sub-vote]
B57: Vote 6 | C57: ROADS TRANSPORT
B58: 6.1 | C58: Roads | D58: 6.1 - Roads | E58: 6.1 - Roads
B59: 6.2 | C59: Storm Water | D59: 6.2 - Storm Water | E59: 6.2 - Storm Water
B60: 6.3 | C60: Director Technical | D60: 6.3 - Director Technical | E60: 6.3 - Director Technical
B61: 6.4 | C61: [Name of sub-vote] | D61: 6.4 - [Name of sub-vote]
B62: 6.5 | C62: [Name of sub-vote] | D62: 6.5 - [Name of sub-vote]
B63: 6.6 | C63: [Name of sub-vote] | D63: 6.6 - [Name of sub-vote]
B64: 6.7 | C64: [Name of sub-vote] | D64: 6.7 - [Name of sub-vote]
B65: 6.8 | C65: [Name of sub-vote] | D65: 6.8 - [Name of sub-vote]
B66: 6.9 | C66: [Name of sub-vote] | D66: 6.9 - [Name of sub-vote]
B67: 6.10 | C67: [Name of sub-vote] | D67: 6.10 - [Name of sub-vote]
B68: Vote 7 | C68: WATER
B69: 7.1 | C69: WTW Reitz | D69: 7.1 - WTW Reitz | E69: 7.1 - WTW Reitz
B70: 7.2 | C70: WTW Mamafubedu | D70: 7.2 - WTW Mamafubedu | E70: 7.2 - WTW Mamafubedu
B71: 7.3 | C71: WTW Lindley | D71: 7.3 - WTW Lindley | E71: 7.3 - WTW Lindley
B72: 7.4 | C72: WTW Arlington | D72: 7.4 - WTW Arlington | E72: 7.4 - WTW Arlington
B73: 7.5 | C73: Water Network Reitz | D73: 7.5 - Water Network Reitz | E73: 7.5 - Water Network Reitz
B74: 7.6 | C74: Water Network Mamafubedu | D74: 7.6 - Water Network Mamafubedu | E74: 7.6 - Water Network Mamafubedu
B75: 7.7 | C75: Water Network Lindley | D75: 7.7 - Water Network Lindley | E75: 7.7 - Water Network Lindley
B76: 7.8 | C76: Water Network Arlington | D76: 7.8 - Water Network Arlington | E76: 7.8 - Water Network Arlington
B77: 7.9 | C77: General Water Works | D77: 7.9 - General Water Works | E77: 7.9 - General Water Works
B78: 7.10 | C78: [Name of sub-vote] | D78: 7.10 - [Name of sub-vote]
B79: Vote 8 | C79: ELECTRICITY
B80: 8.1 | C80: Reitz Electricity | D80: 8.1 - Reitz Electricity | E80: 8.1 - Reitz Electricity
B81: 8.2 | C81: Mamafubedu Electricity | D81: 8.2 - Mamafubedu Electricity | E81: 8.2 - Mamafubedu Electricity
B82: 8.3 | C82: Lindley Electricity | D82: 8.3 - Lindley Electricity | E82: 8.3 - Lindley Electricity
B83: 8.4 | C83: General Electricity Works | D83: 8.4 - General Electricity Works | E83: 8.4 - General Electricity Works
B84: 8.5 | C84: [Name of sub-vote] | D84: 8.5 - [Name of sub-vote]
B85: 8.6 | C85: [Name of sub-vote] | D85: 8.6 - [Name of sub-vote]
B86: 8.7 | C86: [Name of sub-vote] | D86: 8.7 - [Name of sub-vote]
B87: 8.8 | C87: [Name of sub-vote] | D87: 8.8 - [Name of sub-vote]
B88: 8.9 | C88: [Name of sub-vote] | D88: 8.9 - [Name of sub-vote]
B89: 8.10 | C89: [Name of sub-vote] | D89: 8.10 - [Name of sub-vote]
B90: Vote 9 | C90: WASTE WATER
B91: 9.1 | C91: WWTW Reitz | D91: 9.1 - WWTW Reitz | E91: 9.1 - WWTW Reitz
B92: 9.2 | C92: Network Reitz | D92: 9.2 - Network Reitz | E92: 9.2 - Network Reitz
B93: 9.3 | C93: Network Mamafubedu | D93: 9.3 - Network Mamafubedu | E93: 9.3 - Network Mamafubedu
B94: 9.4 | C94: WWTW Mamafubedu | D94: 9.4 - WWTW Mamafubedu | E94: 9.4 - WWTW Mamafubedu
B95: 9.5 | C95: WWTW Lindley | D95: 9.5 - WWTW Lindley | E95: 9.5 - WWTW Lindley
B96: 9.6 | C96: Network Lindley | D96: 9.6 - Network Lindley | E96: 9.6 - Network Lindley
B97: 9.7 | C97: WWTW Arlington | D97: 9.7 - WWTW Arlington | E97: 9.7 - WWTW Arlington
B98: 9.8 | C98: Network Arlington | D98: 9.8 - Network Arlington | E98: 9.8 - Network Arlington
B99: 9.9 | C99: [Name of sub-vote] | D99: 9.9 - [Name of sub-vote]
B100: 9.10 | C100: [Name of sub-vote] | D100: 9.10 - [Name of sub-vote]
B101: Vote 10 | C101: HOUSING
B102: 10.1 | C102: Urban Planning | D102: 10.1 - Urban Planning | E102: 10.1 - Urban Planning
B103: 10.2 | C103: Housing | D103: 10.2 - Housing | E103: 10.2 - Housing
B104: 10.3 | C104: [Name of sub-vote] | D104: =CONCATENATE(B104, " - ", C104) -> 10.3 - [Name of sub-vote]
B105: 10.4 | C105: [Name of sub-vote] | D105: 10.4 - [Name of sub-vote]
B106: 10.5 | C106: [Name of sub-vote] | D106: 10.5 - [Name of sub-vote]
B107: 10.6 | C107: [Name of sub-vote] | D107: 10.6 - [Name of sub-vote]
B108: 10.7 | C108: [Name of sub-vote] | D108: 10.7 - [Name of sub-vote]
B109: 10.8 | C109: [Name of sub-vote] | D109: 10.8 - [Name of sub-vote]
B110: 10.9 | C110: [Name of sub-vote] | D110: 10.9 - [Name of sub-vote]
B111: 10.10 | C111: [Name of sub-vote] | D111: 10.10 - [Name of sub-vote]
B112: Vote 11 | C112: [NAME OF VOTE 11]
B113: 11.1 | C113: [Name of sub-vote] | D113: =CONCATENATE(B113, " - ", C113) -> 11.1 - [Name of sub-vote] | E113: 11.1 - [Name of sub-vote]
B114: 11.2 | C114: [Name of sub-vote] | D114: 11.2 - [Name of sub-vote]
B115: 11.3 | C115: [Name of sub-vote] | D115: 11.3 - [Name of sub-vote]
B116: 11.4 | C116: [Name of sub-vote] | D116: 11.4 - [Name of sub-vote]
B117: 11.5 | C117: [Name of sub-vote] | D117: 11.5 - [Name of sub-vote]
B118: 11.6 | C118: [Name of sub-vote] | D118: 11.6 - [Name of sub-vote]
B119: 11.7 | C119: [Name of sub-vote] | D119: 11.7 - [Name of sub-vote]
B120: 11.8 | C120: [Name of sub-vote] | D120: 11.8 - [Name of sub-vote]
B121: 11.9 | C121: [Name of sub-vote] | D121: 11.9 - [Name of sub-vote]
B122: 11.10 | C122: [Name of sub-vote] | D122: 11.10 - [Name of sub-vote]
B123: Vote 12 | C123: [NAME OF VOTE 12]
B124: 12.1 | C124: [Name of sub-vote] | D124: =CONCATENATE(B124, " - ", C124) -> 12.1 - [Name of sub-vote] | E124: 12.1 - [Name of sub-vote]
B125: 12.2 | C125: [Name of sub-vote] | D125: 12.2 - [Name of sub-vote]
B126: 12.3 | C126: [Name of sub-vote] | D126: 12.3 - [Name of sub-vote]
B127: 12.4 | C127: [Name of sub-vote] | D127: 12.4 - [Name of sub-vote]
B128: 12.5 | C128: [Name of sub-vote] | D128: 12.5 - [Name of sub-vote]
B129: 12.6 | C129: [Name of sub-vote] | D129: 12.6 - [Name of sub-vote]
B130: 12.7 | C130: [Name of sub-vote] | D130: 12.7 - [Name of sub-vote]
B131: 12.8 | C131: [Name of sub-vote] | D131: 12.8 - [Name of sub-vote]
B132: 12.9 | C132: [Name of sub-vote] | D132: 12.9 - [Name of sub-vote]
B133: 12.10 | C133: [Name of sub-vote] | D133: 12.10 - [Name of sub-vote]
B134: Vote 13 | C134: [NAME OF VOTE 13]
B135: 13.1 | C135: [Name of sub-vote] | D135: =CONCATENATE(B135, " - ", C135) -> 13.1 - [Name of sub-vote] | E135: 13.1 - [Name of sub-vote]
B136: 13.2 | C136: [Name of sub-vote] | D136: 13.2 - [Name of sub-vote]
B137: 13.3 | C137: [Name of sub-vote] | D137: 13.3 - [Name of sub-vote]
B138: 13.4 | C138: [Name of sub-vote] | D138: 13.4 - [Name of sub-vote]
B139: 13.5 | C139: [Name of sub-vote] | D139: 13.5 - [Name of sub-vote]
B140: 13.6 | C140: [Name of sub-vote] | D140: 13.6 - [Name of sub-vote]
B141: 13.7 | C141: [Name of sub-vote] | D141: 13.7 - [Name of sub-vote]
B142: 13.8 | C142: [Name of sub-vote] | D142: 13.8 - [Name of sub-vote]
B143: 13.9 | C143: [Name of sub-vote] | D143: 13.9 - [Name of sub-vote]
B144: 13.10 | C144: [Name of sub-vote] | D144: 13.10 - [Name of sub-vote]
B145: Vote 14 | C145: [NAME OF VOTE 14]
B146: 14.1 | C146: [Name of sub-vote] | D146: =CONCATENATE(B146, " - ", C146) -> 14.1 - [Name of sub-vote] | E146: 14.1 - [Name of sub-vote]
B147: 14.2 | C147: [Name of sub-vote] | D147: 14.2 - [Name of sub-vote]
B148: 14.3 | C148: [Name of sub-vote] | D148: 14.3 - [Name of sub-vote]
B149: 14.4 | C149: [Name of sub-vote] | D149: 14.4 - [Name of sub-vote]
B150: 14.5 | C150: [Name of sub-vote] | D150: 14.5 - [Name of sub-vote]
B151: 14.6 | C151: [Name of sub-vote] | D151: 14.6 - [Name of sub-vote]
B152: 14.7 | C152: [Name of sub-vote] | D152: 14.7 - [Name of sub-vote]
B153: 14.8 | C153: [Name of sub-vote] | D153: 14.8 - [Name of sub-vote]
B154: 14.9 | C154: [Name of sub-vote] | D154: 14.9 - [Name of sub-vote]
B155: 14.10 | C155: [Name of sub-vote] | D155: 14.10 - [Name of sub-vote]
B156: Vote 15 | C156: [NAME OF VOTE 15]
B157: 15.1 | C157: [Name of sub-vote] | D157: =CONCATENATE(B157, " - ", C157) -> 15.1 - [Name of sub-vote] | E157: 15.1 - [Name of sub-vote]
B158: 15.2 | C158: [Name of sub-vote] | D158: 15.2 - [Name of sub-vote]
B159: 15.3 | C159: [Name of sub-vote] | D159: 15.3 - [Name of sub-vote]
B160: 15.4 | C160: [Name of sub-vote] | D160: 15.4 - [Name of sub-vote]
B161: 15.5 | C161: [Name of sub-vote] | D161: 15.5 - [Name of sub-vote]
B162: 15.6 | C162: [Name of sub-vote] | D162: 15.6 - [Name of sub-vote]
B163: 15.7 | C163: [Name of sub-vote] | D163: 15.7 - [Name of sub-vote]
B164: 15.8 | C164: [Name of sub-vote] | D164: 15.8 - [Name of sub-vote]
B165: 15.9 | C165: [Name of sub-vote] | D165: 15.9 - [Name of sub-vote]
B166: 15.10 | C166: [Name of sub-vote] | D166: 15.10 - [Name of sub-vote]

Sheet Contacts
A1: ='Template names'!$B$63&" - "&" Contact Information" -> FS193 Nketoana - Contact Information
A3: A. GENERAL INFORMATION
A4: Municipality | B4: ='Template names'!$B$63 -> FS193 Nketoana | C4: Set name on 'Instructions' sheet
A6: Grade | B6: Grade 3 | C6: 1 Grade in terms of the Remuneration of Public Office Bearers Act.
A8: Province | B8: =IF(B4>" ",VLOOKUP(B4,'Lookup and lists'!B29:C312,2, FALSE)," ") -> Free State
A10: Web Address | B10: www.nketoanafs.gov.za
A12: e-mail Address | B12: www@info.co.za
A14: B. CONTACT INFORMATION
A15: Postal address:
A16: P.O. Box | B16: 26
A17: City / Town | B17: Reitz
A18: Postal Code | B18: 9810
A20: Street address
A21: Building | B21: Municipal Building
A22: Street No. & Name | B22: Corner Church and Voortrekker Street
A23: City / Town | B23: Reitz
A24: Postal Code | B24: 9810
A26: General Contacts
A27: Telephone number | B27: 058 863 2811
A28: Fax number | B28: 058 863 2523
A30: C. POLITICAL LEADERSHIP
A31: Speaker: | C31: Secretary/PA to the Speaker:
A32: ID Number | B32: 751206 5634 088 | C32: ID Number | D32: 870507 6283 080
A33: Title | B33: Mr | C33: Title | D33: Mr
A34: Name | B34: Kgaketla Abram Mokoena | C34: Name | D34: Sekwatle Motloung
A35: Telephone number | B35: 058 863 2811 Ext 239 | C35: Telephone number | D35: 058 863 2811 Ext 148
A36: Cell number | B36: 072 815 9227 | C36: Cell number | D36: 073 9790 765
A37: Fax number | B37: 058 863 2523 | C37: Fax number | D37: 058 863 2523
A38: E-mail address | B38: kamokoena@webmail.co.za | C38: E-mail address | D38: msekwatle@yahoo.com
A40: Mayor/Executive Mayor: | C40: Secretary/PA to the Mayor/Executive Mayor:
A41: ID Number | B41: 810629 0624 086 | C41: ID Number | D41: 851125 1178 081
A42: Title | B42: Mrs | C42: Title | D42: Mrs
A43: Name | B43: Maditswako Teresia Mokoena | C43: Name | D43: Dieketseng Thobeha
A44: Telephone number | B44: 058 863 2811 | C44: Telephone number | D44: 058 863 2811 Ext 238
A45: Cell number | B45: 078 259 7954 | C45: Cell number | D45: 078 707 7782
A46: Fax number | B46: 058 863 1129 | C46: Fax number | D46: 058 863 2523
A47: E-mail address | B47: tswaku.nakedi@webmail.co.za | C47: E-mail address | D47: baby.dee3362@yahoo.com
A49: Deputy Mayor/Executive Mayor: | C49: Secretary/PA to the Deputy Mayor/Executive Mayor:
A50: ID Number | C50: ID Number
A51: Title | C51: Title
A52: Name | C52: Name
A53: Telephone number | C53: Telephone number
A54: Cell number | C54: Cell number
A55: Fax number | C55: Fax number
A56: E-mail address | C56: E-mail address
A58: D. MANAGEMENT LEADERSHIP
A59: Municipal Manager: | C59: Secretary/PA to the Municipal Manager:
A60: ID Number | B60: 670302 5360 087 | C60: ID Number | D60: 85052 70596 083
A61: Title | B61: Mr | C61: Title | D61: Miss
A62: Name | B62: Mzwandile Penwell Manzi | C62: Name | D62: Mamonaheng Mokoena
A63: Telephone number | B63: 058 863 2811 EXT 236 | C63: Telephone number | D63: 058 863 2811 EXT 246
A64: Cell number | B64: 072 333 9115 | C64: Cell number | D64: 082 307 2640
A65: Fax number | B65: 058 863 2523 | C65: Fax number | D65: 058 863 2523
A66: E-mail address | B66: mmanzi@nketoanafs.co.za | C66: E-mail address | D66: mamnaheng.mokoena@nketoanafs.co.za
A68: Chief Financial Officer | C68: Secretary/PA to the Chief Financial Officer
A69: ID Number | B69: 871028 5769 085 | C69: ID Number | D69: 810326 0555 085
A70: Title | B70: Mr | C70: Title | D70: Miss
A71: Name | B71: Xolani Malindi | C71: Name | D71: Thobile Ndaba
A72: Telephone number | B72: 058 863 2811 | C72: Telephone number | D72: 058 863 2811 EXT 283
A73: Cell number | B73: 0782877306 | C73: Cell number | D73: 079 033 7171
A74: Fax number | B74: 058 863 25 23 | C74: Fax number | D74: 058 863 2523
A75: E-mail address | B75: xolani.malindi@nketoanafs.co.za | C75: E-mail address | D75: thobile@nketoanafs.co.za
A77: Official responsible for submitting financial information | C77: Official responsible for submitting financial information
A78: ID Number | B78: 871222 6247 080 | C78: ID Number | D78: 901101 0304 085
A79: Title | B79: Mr | C79: Title | D79: Miss
A80: Name | B80: Tumelo Moloi | C80: Name | D80: Bontle Mpotu
A81: Telephone number | B81: 058 863 2811 EXT 265 | C81: Telephone number | D81: 058 863 2811 EXT 249
A82: Cell number | B82: 073 219 8775 | C82: Cell number | D82: 073 065 9198
A83: Fax number | B83: 058 863 2523 | C83: Fax number | D83: 058 863 2523
A84: E-mail address | B84: Tumelo.Moloi@nketoanafs.co.za | C84: E-mail address | D84: Bontle.Mpotu@nketoanafs.co.za
A85: Official responsible for submitting financial information | C85: Official responsible for submitting financial information
A86: ID Number | B86: 900305 0692 081 | C86: ID Number | D86: 560724 0112 083
A87: Title | B87: Miss | C87: Title | D87: Mrs
A88: Name | B88: Duduzile Mbele | C88: Name | D88: Stephani Venter
A89: Telephone number | B89: 058 863 2811 EXT 255 | C89: Telephone number | D89: 058 863 2811 ext 220
A90: Cell number | B90: 073 655 0497 | C90: Cell number | D90: 079 047 0473
A91: Fax number | B91: 058 863 2523 | C91: Fax number | D91: 086 402 9244
A92: E-mail address | B92: duduzile@nketoanafs.co.za | C92: E-mail address | D92: stephani.venter@nketoanafs.co.za
A93: Official responsible for submitting financial information | C93: Official responsible for submitting financial information
A94: ID Number | C94: ID Number
A95: Title | C95: Title
A96: Name | C96: Name
A97: Telephone number | C97: Telephone number
A98: Cell number | C98: Cell number
A99: Fax number | C99: Fax number
A100: E-mail address | C100: E-mail address
A101: Official responsible for submitting financial information | C101: Official responsible for submitting financial information
A102: ID Number | C102: ID Number
A103: Title | C103: Title
A104: Name | C104: Name
A105: Telephone number | C105: Telephone number
A106: Cell number | C106: Cell number
A107: Fax number | C107: Fax number
A108: E-mail address | C108: E-mail address
A109: Official responsible for submitting financial information | C109: Official responsible for submitting financial information
A110: ID Number | C110: ID Number
A111: Title | C111: Title
A112: Name | C112: Name
A113: Telephone number | C113: Telephone number
A114: Cell number | C114: Cell number
A115: Fax number | C115: Fax number
A116: E-mail address | C116: E-mail address
A117: Official responsible for submitting financial information | C117: Official responsible for submitting financial information
A118: ID Number | C118: ID Number
A119: Title | C119: Title
A120: Name | C120: Name
A121: Telephone number | C121: Telephone number
A122: Cell number | C122: Cell number
A123: Fax number | C123: Fax number
A124: E-mail address | C124: E-mail address
A125: Official responsible for submitting financial information | C125: Official responsible for submitting financial information
A126: ID Number | C126: ID Number
A127: Title | C127: Title
A128: Name | C128: Name
A129: Telephone number | C129: Telephone number
A130: Cell number | C130: Cell number
A131: Fax number | C131: Fax number
A132: E-mail address | C132: E-mail address
A133: Official responsible for submitting financial information
A134: ID Number
A135: Title
A136: Name
A137: Telephone number
A138: Cell number
A139: Fax number
A140: E-mail address

Sheet B1-Sum
A1: =muni&" - "&adjsum&" - "&Date -> FS193 Nketoana - Table B1 Adjustments Budget Summary - 28/02/2018
A2: =desc -> Description | B2: =Head2 -> Budget Year 2017/18 | K2: =Head10 -> Budget Year +1 2018/19 | L2: =Head11 -> Budget Year +2 2019/20
B3: =Head6 -> Original Budget | C3: =Head54 -> Prior Adjusted | D3: =Head51 -> Accum. Funds | E3: =Head52 -> Multi-year capital | F3: =Head53 -> Unfore. Unavoid. | G3: =Head55 -> Nat. or Prov. Govt | H3: =Head50 -> Other Adjusts. | I3: =Head56 -> Total Adjusts. | J3: =Head7 -> Adjusted Budget | K3: =Head7 -> Adjusted Budget | L3: =Head7 -> Adjusted Budget
C4: 1 | D4: 2 | E4: 3 | F4: 4 | G4: 5 | H4: 6 | I4: 7 | J4: 8
A5: R thousands | B5: A | C5: A1 | D5: B | E5: C | F5: D | G5: E | H5: F | I5: G | J5: H
A6: Financial Performance
A7: Property rates | B7: =SUM('B4-FinPerf RE'!C7:C7) -> 20340678.09 | C7: =SUM('B4-FinPerf RE'!D7:D7) -> 0 | D7: =SUM('B4-FinPerf RE'!E7:E7) -> 0 | E7: =SUM('B4-FinPerf RE'!F7:F7) -> 0 | F7: =SUM('B4-FinPerf RE'!G7:G7) -> 0 | G7: =SUM('B4-FinPerf RE'!H7:H7) -> 0 | H7: =SUM('B4-FinPerf RE'!I7:I7) -> -464868.7029 | I7: =SUM(D7:H7) -> -464868.7029 | J7: =IF(C7=0,B7+I7,C7+I7) -> 19875809.39 | K7: =SUM('B4-FinPerf RE'!L7:L7) -> 21561118.77 | L7: =SUM('B4-FinPerf RE'!M7:M7) -> 22854785.9
A8: Service charges | B8: =SUM('B4-FinPerf RE'!C8:C12) -> 142569046.7 | C8: =SUM('B4-FinPerf RE'!D8:D12) -> 0 | D8: =SUM('B4-FinPerf RE'!E8:E12) -> 0 | E8: =SUM('B4-FinPerf RE'!F8:F12) -> 0 | F8: =SUM('B4-FinPerf RE'!G8:G12) -> 0 | G8: =SUM('B4-FinPerf RE'!H8:H12) -> 0 | H8: =SUM('B4-FinPerf RE'!I8:I12) -> 1896426.227 | I8: 1896426.227 | J8: 144465472.9 | K8: =SUM('B4-FinPerf RE'!L8:L12) -> 151123189.5 | L8: =SUM('B4-FinPerf RE'!M8:M12) -> 160190580.9
A9: Investment revenue | B9: ='B4-FinPerf RE'!C14 -> 1303833.357 | C9: ='B4-FinPerf RE'!D14 -> 0 | D9: ='B4-FinPerf RE'!E14 -> 0 | E9: ='B4-FinPerf RE'!F14 -> 0 | F9: ='B4-FinPerf RE'!G14 -> 0 | G9: ='B4-FinPerf RE'!H14 -> 0 | H9: ='B4-FinPerf RE'!I14 -> 0 | I9: 0 | J9: 1303833.357 | K9: ='B4-FinPerf RE'!L14 -> 1382063.358 | L9: ='B4-FinPerf RE'!M14 -> 1464987.16
A10: Transfers recognised - operational | B10: ='B4-FinPerf RE'!C20 -> 82580000 | C10: ='B4-FinPerf RE'!D20 -> 0 | D10: ='B4-FinPerf RE'!E20 -> 0 | E10: ='B4-FinPerf RE'!F20 -> 0 | F10: ='B4-FinPerf RE'!G20 -> 0 | G10: ='B4-FinPerf RE'!H20 -> 0 | H10: ='B4-FinPerf RE'!I20 -> 0 | I10: 0 | J10: 82580000 | K10: ='B4-FinPerf RE'!L20 -> 89385000 | L10: ='B4-FinPerf RE'!M20 -> 95923000
A11: Other own revenue | B11: ='B4-FinPerf RE'!C13+'B4-FinPerf RE'!C15+'B4-FinPerf RE'!C16+'B4-FinPerf RE'!C17+'B4-FinPerf RE'!C18+'B4-FinPerf RE'!C19+'B4-FinPerf RE'!C21+'B4-FinPerf RE'!C22 -> 56918116.57 | C11: ='B4-FinPerf RE'!D13+'B4-FinPerf RE'!D15+'B4-FinPerf RE'!D16+'B4-FinPerf RE'!D17+'B4-FinPerf RE'!D18+'B4-FinPerf RE'!D19+'B4-FinPerf RE'!D21+'B4-FinPerf RE'!D22 -> 0 | D11: ='B4-FinPerf RE'!E13+'B4-FinPerf RE'!E15+'B4-FinPerf RE'!E16+'B4-FinPerf RE'!E17+'B4-FinPerf RE'!E18+'B4-FinPerf RE'!E19+'B4-FinPerf RE'!E21+'B4-FinPerf RE'!E22 -> 0 | E11: ='B4-FinPerf RE'!F13+'B4-FinPerf RE'!F15+'B4-FinPerf RE'!F16+'B4-FinPerf RE'!F17+'B4-FinPerf RE'!F18+'B4-FinPerf RE'!F19+'B4-FinPerf RE'!F21+'B4-FinPerf RE'!F22 -> 0 | F11: ='B4-FinPerf RE'!G13+'B4-FinPerf RE'!G15+'B4-FinPerf RE'!G16+'B4-FinPerf RE'!G17+'B4-FinPerf RE'!G18+'B4-FinPerf RE'!G19+'B4-FinPerf RE'!G21+'B4-FinPerf RE'!G22 -> 0 | G11: ='B4-FinPerf RE'!H13+'B4-FinPerf RE'!H15+'B4-FinPerf RE'!H16+'B4-FinPerf RE'!H17+'B4-FinPerf RE'!H18+'B4-FinPerf RE'!H19+'B4-FinPerf RE'!H21+'B4-FinPerf RE'!H22 -> 0 | H11: ='B4-FinPerf RE'!I13+'B4-FinPerf RE'!I15+'B4-FinPerf RE'!I16+'B4-FinPerf RE'!I17+'B4-FinPerf RE'!I18+'B4-FinPerf RE'!I19+'B4-FinPerf RE'!I21+'B4-FinPerf RE'!I22 -> 3532205.745 | I11: 3532205.745 | J11: 60450322.32 | K11: ='B4-FinPerf RE'!L13+'B4-FinPerf RE'!L15+'B4-FinPerf RE'!L16+'B4-FinPerf RE'!L17+'B4-FinPerf RE'!L18+'B4-FinPerf RE'!L19+'B4-FinPerf RE'!L21+'B4-FinPerf RE'!L22 -> 60333203.57 | L11: ='B4-FinPerf RE'!M13+'B4-FinPerf RE'!M15+'B4-FinPerf RE'!M16+'B4-FinPerf RE'!M17+'B4-FinPerf RE'!M18+'B4-FinPerf RE'!M19+'B4-FinPerf RE'!M21+'B4-FinPerf RE'!M22 -> 63953195.78
A12: Total Revenue (excluding capital transfers and contributions) | B12: =SUM(B7:B11) -> 303711674.7 | C12: 0 | D12: 0 | E12: 0 | F12: 0 | G12: 0 | H12: 4963763.268 | I12: 4963763.268 | J12: 308675438 | K12: 323784575.2 | L12: 344386549.7
A13: Employee costs | B13: ='B4-FinPerf RE'!C26 -> 93590545.79 | C13: ='B4-FinPerf RE'!D26 -> 0 | D13: ='B4-FinPerf RE'!E26 -> 0 | E13: ='B4-FinPerf RE'!F26 -> 0 | F13: ='B4-FinPerf RE'!G26 -> 0 | G13: ='B4-FinPerf RE'!H26 -> 0 | H13: ='B4-FinPerf RE'!I26 -> 4372062.754 | I13: =SUM(D13:H13) -> 4372062.754 | J13: =IF(C13=0,B13+I13,C13+I13) -> 97962608.54 | K13: ='B4-FinPerf RE'!L26 -> 99205978.53 | L13: ='B4-FinPerf RE'!M26 -> 105158337.2
A14: Remuneration of councillors | B14: ='B4-FinPerf RE'!C27 -> 9083084.992 | C14: ='B4-FinPerf RE'!D27 -> 0 | D14: ='B4-FinPerf RE'!E27 -> 0 | E14: ='B4-FinPerf RE'!F27 -> 0 | F14: ='B4-FinPerf RE'!G27 -> 0 | G14: ='B4-FinPerf RE'!H27 -> 0 | H14: ='B4-FinPerf RE'!I27 -> 418624.2247 | I14: 418624.2247 | J14: 9501709.217 | K14: ='B4-FinPerf RE'!L27 -> 9628070.092 | L14: ='B4-FinPerf RE'!M27 -> 10205754.3
A15: Depreciation & asset impairment | B15: ='B4-FinPerf RE'!C29 -> 59672591.82 | C15: ='B4-FinPerf RE'!D29 -> 0 | D15: ='B4-FinPerf RE'!E29 -> 0 | E15: ='B4-FinPerf RE'!F29 -> 0 | F15: ='B4-FinPerf RE'!G29 -> 0 | G15: ='B4-FinPerf RE'!H29 -> 0 | H15: ='B4-FinPerf RE'!I29 -> -800000 | I15: -800000 | J15: 58872591.82 | K15: ='B4-FinPerf RE'!L29 -> 63252947.33 | L15: ='B4-FinPerf RE'!M29 -> 67048124.17
A16: Finance charges | B16: ='B4-FinPerf RE'!C30 -> 17835802.79 | C16: ='B4-FinPerf RE'!D30 -> 0 | D16: ='B4-FinPerf RE'!E30 -> 0 | E16: ='B4-FinPerf RE'!F30 -> 0 | F16: ='B4-FinPerf RE'!G30 -> 0 | G16: ='B4-FinPerf RE'!H30 -> 0 | H16: ='B4-FinPerf RE'!I30 -> 0 | I16: 0 | J16: 17835802.79 | K16: ='B4-FinPerf RE'!L30 -> 18905950.96 | L16: ='B4-FinPerf RE'!M30 -> 20040308.02
A17: Materials and bulk purchases | B17: =SUM('B4-FinPerf RE'!C31:C32) -> 60643387.47 | C17: =SUM('B4-FinPerf RE'!D31:D32) -> 0 | D17: =SUM('B4-FinPerf RE'!E31:E32) -> 0 | E17: =SUM('B4-FinPerf RE'!F31:F32) -> 0 | F17: =SUM('B4-FinPerf RE'!G31:G32) -> 0 | G17: =SUM('B4-FinPerf RE'!H31:H32) -> 0 | H17: =SUM('B4-FinPerf RE'!I31:I32) -> -1433114.56 | I17: -1433114.56 | J17: 59210272.91 | K17: =SUM('B4-FinPerf RE'!L31:L32) -> 64281990.72 | L17: =SUM('B4-FinPerf RE'!M31:M32) -> 68138910.16
A18: Transfers and grants | B18: ='B4-FinPerf RE'!C34 -> 0 | C18: ='B4-FinPerf RE'!D34 -> 0 | D18: ='B4-FinPerf RE'!E34 -> 0 | E18: ='B4-FinPerf RE'!F34 -> 0 | F18: ='B4-FinPerf RE'!G34 -> 0 | G18: ='B4-FinPerf RE'!H34 -> 0 | H18: ='B4-FinPerf RE'!I34 -> 0 | I18: 0 | J18: 0 | K18: ='B4-FinPerf RE'!L34 -> 0 | L18: ='B4-FinPerf RE'!M34 -> 0
A19: Other expenditure | B19: ='B4-FinPerf RE'!C37-SUM('B1-Sum'!B13:B18) -> 96093075.61 | C19: ='B4-FinPerf RE'!D37-SUM('B1-Sum'!C13:C18) -> 0 | D19: ='B4-FinPerf RE'!E37-SUM('B1-Sum'!D13:D18) -> 0 | E19: ='B4-FinPerf RE'!F37-SUM('B1-Sum'!E13:E18) -> 0 | F19: ='B4-FinPerf RE'!G37-SUM('B1-Sum'!F13:F18) -> 0 | G19: ='B4-FinPerf RE'!H37-SUM('B1-Sum'!G13:G18) -> 0 | H19: ='B4-FinPerf RE'!I37-SUM('B1-Sum'!H13:H18) -> 6731509.254 | I19: 6731509.254 | J19: 102824584.9 | K19: ='B4-FinPerf RE'!L37-SUM('B1-Sum'!K13:K18) -> 101858660.2 | L19: ='B4-FinPerf RE'!M37-SUM('B1-Sum'!L13:L18) -> 107970179.8
A20: Total Expenditure | B20: =SUM(B13:B19) -> 336918488.5 | C20: 0 | D20: 0 | E20: 0 | F20: 0 | G20: 0 | H20: 9289081.673 | I20: 9289081.673 | J20: 346207570.1 | K20: 357133597.8 | L20: 378561613.7
A21: Surplus/(Deficit) | B21: =B12-B20 -> -33206813.75 | C21: 0 | D21: 0 | E21: 0 | F21: 0 | G21: 0 | H21: -4325318.405 | I21: -4325318.405 | J21: -37532132.16 | K21: -33349022.58 | L21: -34175063.94
A22: Transfers recognised - capital | B22: ='B4-FinPerf RE'!C40 -> 98761000 | C22: ='B4-FinPerf RE'!D40 -> 0 | D22: ='B4-FinPerf RE'!E40 -> 0 | E22: ='B4-FinPerf RE'!F40 -> 0 | F22: ='B4-FinPerf RE'!G40 -> 0 | G22: ='B4-FinPerf RE'!H40 -> 0 | H22: ='B4-FinPerf RE'!I40 -> 0 | I22: =SUM(D22:H22) -> 0 | J22: =IF(C22=0,B22+I22,C22+I22) -> 98761000 | K22: ='B4-FinPerf RE'!L40 -> 104686660 | L22: ='B4-FinPerf RE'!M40 -> 110967859.6
A23: Contributions recognised - capital & contributed assets | B23: =SUM('B4-FinPerf RE'!C41:C42) -> 0 | C23: =SUM('B4-FinPerf RE'!D41:D42) -> 0 | D23: =SUM('B4-FinPerf RE'!E41:E42) -> 0 | E23: =SUM('B4-FinPerf RE'!F41:F42) -> 0 | F23: =SUM('B4-FinPerf RE'!G41:G42) -> 0 | G23: =SUM('B4-FinPerf RE'!H41:H42) -> 0 | H23: =SUM('B4-FinPerf RE'!I41:I42) -> 0 | I23: =SUM(D23:H23) -> 0 | J23: =IF(C23=0,B23+I23,C23+I23) -> 0 | K23: =SUM('B4-FinPerf RE'!L41:L42) -> 0 | L23: =SUM('B4-FinPerf RE'!M41:M42) -> 0
A24: Surplus/(Deficit) after capital transfers & contributions | B24: =B21+SUM(B22:B23) -> 65554186.25 | C24: 0 | D24: 0 | E24: 0 | F24: 0 | G24: 0 | H24: -4325318.405 | I24: =SUM(D24:H24) -> -4325318.405 | J24: =IF(C24=0,B24+I24,C24+I24) -> 61228867.84 | K24: 71337637.42 | L24: 76792795.66
A25: Share of surplus/ (deficit) of associate | B25: ='B4-FinPerf RE'!C48 -> 0 | C25: ='B4-FinPerf RE'!D48 -> 0 | D25: ='B4-FinPerf RE'!E48 -> 0 | E25: ='B4-FinPerf RE'!F48 -> 0 | F25: ='B4-FinPerf RE'!G48 -> 0 | G25: ='B4-FinPerf RE'!H48 -> 0 | H25: ='B4-FinPerf RE'!I48 -> 0 | I25: =SUM(D25:H25) -> 0 | J25: =IF(C25=0,B25+I25,C25+I25) -> 0 | K25: ='B4-FinPerf RE'!L48 -> 0 | L25: ='B4-FinPerf RE'!M48 -> 0
A26: Surplus/ (Deficit) for the year | B26: =B24+B25 -> 65554186.25 | C26: 0 | D26: 0 | E26: 0 | F26: 0 | G26: 0 | H26: -4325318.405 | I26: -4325318.405 | J26: 61228867.84 | K26: 71337637.42 | L26: 76792795.66
A28: Capital expenditure & funds sources
A29: Capital expenditure | B29: ='B5-Capex'!C42 -> 98761000 | C29: ='B5-Capex'!D42 -> 0 | D29: ='B5-Capex'!E42 -> 0 | E29: ='B5-Capex'!F42 -> 0 | F29: ='B5-Capex'!G42 -> 0 | G29: ='B5-Capex'!H42 -> 0 | H29: ='B5-Capex'!I42 -> 0.009999993257 | I29: =SUM(D29:H29) -> 0.009999993257 | J29: =IF(C29=0,B29+I29,C29+I29) -> 98761000.01 | K29: ='B5-Capex'!L42 -> 97042000 | L29: ='B5-Capex'!M42 -> 73400000
A30: Transfers recognised - capital | B30: ='B5-Capex'!C72 -> 98761000 | C30: ='B5-Capex'!D72 -> 0 | D30: ='B5-Capex'!E72 -> 0 | E30: ='B5-Capex'!F72 -> 0 | F30: ='B5-Capex'!G72 -> 0 | G30: ='B5-Capex'!H72 -> 0 | H30: ='B5-Capex'!I72 -> 0 | I30: =SUM(D30:H30) -> 0 | J30: =IF(C30=0,B30+I30,C30+I30) -> 98761000 | K30: ='B5-Capex'!L72 -> 97042000 | L30: ='B5-Capex'!M72 -> 73400000
A31: Public contributions & donations | B31: ='B5-Capex'!C73 -> 0 | C31: ='B5-Capex'!D73 -> 0 | D31: ='B5-Capex'!E73 -> 0 | E31: ='B5-Capex'!F73 -> 0 | F31: ='B5-Capex'!G73 -> 0 | G31: ='B5-Capex'!H73 -> 0 | H31: ='B5-Capex'!I73 -> 0 | I31: =SUM(D31:H31) -> 0 | J31: =IF(C31=0,B31+I31,C31+I31) -> 0 | K31: ='B5-Capex'!L73 -> 0 | L31: ='B5-Capex'!M73 -> 0
A32: Borrowing | B32: ='B5-Capex'!C74 -> 0 | C32: ='B5-Capex'!D74 -> 0 | D32: ='B5-Capex'!E74 -> 0 | E32: ='B5-Capex'!F74 -> 0 | F32: ='B5-Capex'!G74 -> 0 | G32: ='B5-Capex'!H74 -> 0 | H32: ='B5-Capex'!I74 -> 0 | I32: =SUM(D32:H32) -> 0 | J32: =IF(C32=0,B32+I32,C32+I32) -> 0 | K32: ='B5-Capex'!L74 -> 0 | L32: ='B5-Capex'!M74 -> 0
A33: Internally generated funds | B33: ='B5-Capex'!C75 -> 0 | C33: ='B5-Capex'!D75 -> 0 | D33: ='B5-Capex'!E75 -> 0 | E33: ='B5-Capex'!F75 -> 0 | F33: ='B5-Capex'!G75 -> 0 | G33: ='B5-Capex'!H75 -> 0 | H33: ='B5-Capex'!I75 -> 0 | I33: =SUM(D33:H33) -> 0 | J33: =IF(C33=0,B33+I33,C33+I33) -> 0 | K33: ='B5-Capex'!L75 -> 0 | L33: ='B5-Capex'!M75 -> 0
A34: Total sources of capital funds | B34: =SUM(B30:B33) -> 98761000 | C34: 0 | D34: 0 | E34: 0 | F34: 0 | G34: 0 | H34: 0 | I34: 0 | J34: 98761000 | K34: 97042000 | L34: 73400000
A36: Financial position
A37: Total current assets | B37: ='B6-FinPos'!C14 -> 369814253.2 | C37: ='B6-FinPos'!D14 -> 0 | D37: ='B6-FinPos'!E14 -> 0 | E37: ='B6-FinPos'!F14 -> 0 | F37: ='B6-FinPos'!G14 -> 0 | G37: ='B6-FinPos'!H14 -> 0 | H37: ='B6-FinPos'!I14 -> 0 | I37: =SUM(D37:H37) -> 0 | J37: =IF(C37=0,B37+I37,C37+I37) -> 369814253.2 | K37: ='B6-FinPos'!L14 -> 492082636.9 | L37: ='B6-FinPos'!M14 -> 521607595.1
A38: Total non current assets | B38: ='B6-FinPos'!C26 -> 1047427370 | C38: ='B6-FinPos'!D26 -> 0 | D38: ='B6-FinPos'!E26 -> 0 | E38: ='B6-FinPos'!F26 -> 0 | F38: ='B6-FinPos'!G26 -> 0 | G38: ='B6-FinPos'!H26 -> 0 | H38: ='B6-FinPos'!I26 -> 0 | I38: =SUM(D38:H38) -> 0 | J38: =IF(C38=0,B38+I38,C38+I38) -> 1047427370 | K38: ='B6-FinPos'!L26 -> 1068463123 | L38: ='B6-FinPos'!M26 -> 1089924931
A39: Total current liabilities | B39: ='B6-FinPos'!C36 -> 173147449.7 | C39: ='B6-FinPos'!D36 -> 0 | D39: ='B6-FinPos'!E36 -> 0 | E39: ='B6-FinPos'!F36 -> 0 | F39: ='B6-FinPos'!G36 -> 0 | G39: ='B6-FinPos'!H36 -> 0 | H39: ='B6-FinPos'!I36 -> 0 | I39: =SUM(D39:H39) -> 0 | J39: =IF(C39=0,B39+I39,C39+I39) -> 173147449.7 | K39: ='B6-FinPos'!L36 -> 183216855.9 | L39: ='B6-FinPos'!M36 -> 193884037.5
A40: Total non current liabilities | B40: ='B6-FinPos'!C41 -> 315435286.6 | C40: ='B6-FinPos'!D41 -> 0 | D40: ='B6-FinPos'!E41 -> 0 | E40: ='B6-FinPos'!F41 -> 0 | F40: ='B6-FinPos'!G41 -> 0 | G40: ='B6-FinPos'!H41 -> 0 | H40: ='B6-FinPos'!I41 -> 0 | I40: =SUM(D40:H40) -> 0 | J40: =IF(C40=0,B40+I40,C40+I40) -> 315435286.6 | K40: ='B6-FinPos'!L41 -> 321098250.3 | L40: ='B6-FinPos'!M41 -> 327070215.3
A41: Community wealth/Equity | B41: ='B6-FinPos'!C50 -> 928658886.5 | C41: ='B6-FinPos'!D50 -> 0 | D41: ='B6-FinPos'!E50 -> 0 | E41: ='B6-FinPos'!F50 -> 0 | F41: ='B6-FinPos'!G50 -> 0 | G41: ='B6-FinPos'!H50 -> 0 | H41: ='B6-FinPos'!I50 -> 0 | I41: =SUM(D41:H41) -> 0 | J41: =IF(C41=0,B41+I41,C41+I41) -> 928658886.5 | K41: ='B6-FinPos'!L50 -> 1056230653 | L41: ='B6-FinPos'!M50 -> 1090578273
A43: Cash flows
A44: Net cash from (used) operating | B44: ='B7-CFlow'!C19 -> 102988103.4 | C44: ='B7-CFlow'!D19 -> 0 | D44: ='B7-CFlow'!E19 -> 0 | E44: ='B7-CFlow'!F19 -> 0 | F44: ='B7-CFlow'!G19 -> 0 | G44: ='B7-CFlow'!H19 -> 0 | H44: ='B7-CFlow'!I19 -> -11740768.7 | I44: =SUM(D44:H44) -> -11740768.7 | J44: =IF(C44=0,B44+I44,C44+I44) -> 91247334.74 | K44: ='B7-CFlow'!L19 -> 101522729.7 | L44: ='B7-CFlow'!M19 -> 78149573.43
A45: Net cash from (used) investing | B45: ='B7-CFlow'!C29 -> -98761000 | C45: ='B7-CFlow'!D29 -> 0 | D45: ='B7-CFlow'!E29 -> 0 | E45: ='B7-CFlow'!F29 -> 0 | F45: ='B7-CFlow'!G29 -> 0 | G45: ='B7-CFlow'!H29 -> 0 | H45: ='B7-CFlow'!I29 -> 0 | I45: =SUM(D45:H45) -> 0 | J45: =IF(C45=0,B45+I45,C45+I45) -> -98761000 | K45: ='B7-CFlow'!L29 -> -97042000 | L45: ='B7-CFlow'!M29 -> -73400000
A46: Net cash from (used) financing | B46: ='B7-CFlow'!C38 -> -341109.66 | C46: ='B7-CFlow'!D38 -> 0 | D46: ='B7-CFlow'!E38 -> 0 | E46: ='B7-CFlow'!F38 -> 0 | F46: ='B7-CFlow'!G38 -> 0 | G46: ='B7-CFlow'!H38 -> 0 | H46: ='B7-CFlow'!I38 -> -3514000 | I46: =SUM(D46:H46) -> -3514000 | J46: =IF(C46=0,B46+I46,C46+I46) -> -3855109.66 | K46: ='B7-CFlow'!L38 -> -146416.2396 | L46: ='B7-CFlow'!M38 -> -7037201.214
A47: Cash/cash equivalents at the year end | B47: ='B7-CFlow'!C42 -> 6413014.784 | C47: ='B7-CFlow'!D42 -> 0 | D47: ='B7-CFlow'!E42 -> 0 | E47: ='B7-CFlow'!F42 -> 0 | F47: ='B7-CFlow'!G42 -> 0 | G47: ='B7-CFlow'!H42 -> 0 | H47: ='B7-CFlow'!I42 -> -5400438.701 | I47: =SUM(D47:H47) -> -5400438.701 | J47: =IF(C47=0,B47+I47,C47+I47) -> 1012576.083 | K47: ='B7-CFlow'!L42 -> 10747328.19 | L47: ='B7-CFlow'!M42 -> 8459700.409
A49: Cash backing/surplus reconciliation
A50: Cash and investments available | B50: ='B8-ResRecon'!C10 -> 16167241.27 | C50: ='B8-ResRecon'!D10 -> 0 | D50: ='B8-ResRecon'!E10 -> 0 | E50: ='B8-ResRecon'!F10 -> 0 | F50: ='B8-ResRecon'!G10 -> 0 | G50: ='B8-ResRecon'!H10 -> 0 | H50: ='B8-ResRecon'!I10 -> 0 | I50: =SUM(D50:H50) -> 0 | J50: =IF(C50=0,B50+I50,C50+I50) -> 16167241.27 | K50: ='B8-ResRecon'!L10 -> 18963708.44 | L50: ='B8-ResRecon'!M10 -> 20101530.95
A51: Application of cash and investments | B51: ='B8-ResRecon'!C20 -> -48269472.92 | C51: ='B8-ResRecon'!D20 -> 0 | D51: ='B8-ResRecon'!E20 -> 0 | E51: ='B8-ResRecon'!F20 -> 0 | F51: ='B8-ResRecon'!G20 -> 0 | G51: ='B8-ResRecon'!H20 -> 0 | H51: ='B8-ResRecon'!I20 -> 25241117 | I51: =SUM(D51:H51) -> 25241117 | J51: =IF(C51=0,B51+I51,C51+I51) -> -23028355.92 | K51: ='B8-ResRecon'!L20 -> -108404165.6 | L51: ='B8-ResRecon'!M20 -> -114908415.7
A52: Balance - surplus (shortfall) | B52: =B50-B51 -> 64436714.19 | C52: 0 | D52: 0 | E52: 0 | F52: 0 | G52: 0 | H52: -25241117 | I52: -25241117 | J52: 39195597.19 | K52: 127367874.1 | L52: 135009946.6
A54: Asset Management
A55: Asset register summary (WDV) | B55: ='B9-Asset'!C167 -> 1040469397 | C55: ='B9-Asset'!D167 -> 0 | D55: ='B9-Asset'!E167 -> 0 | E55: ='B9-Asset'!F167 -> 0 | F55: ='B9-Asset'!G167 -> 0 | G55: ='B9-Asset'!H167 -> 0 | H55: ='B9-Asset'!I167 -> 0 | I55: =SUM(D55:H55) -> 0 | J55: =IF(C55=0,B55+I55,C55+I55) -> 1040469397 | K55: ='B9-Asset'!L167 -> 1061276982 | L55: ='B9-Asset'!M167 -> 1082500720
A56: Depreciation & asset impairment | B56: ='B9-Asset'!C170 -> 59672591.82 | C56: ='B9-Asset'!D170 -> 0 | D56: ='B9-Asset'!E170 -> 0 | E56: ='B9-Asset'!F170 -> 0 | F56: ='B9-Asset'!G170 -> 0 | G56: ='B9-Asset'!H170 -> 0 | H56: ='B9-Asset'!I170 -> -800000 | I56: =SUM(D56:H56) -> -800000 | J56: =IF(C56=0,B56+I56,C56+I56) -> 58872591.82 | K56: ='B9-Asset'!L170 -> 63252947.33 | L56: ='B9-Asset'!M170 -> 67048124.17
A57: Renewal of Existing Assets | B57: ='B9-Asset'!C39 -> 46675138.24 | C57: ='B9-Asset'!D39 -> 0 | D57: ='B9-Asset'!E39 -> 0 | E57: ='B9-Asset'!F39 -> 0 | F57: ='B9-Asset'!G39 -> 0 | G57: ='B9-Asset'!H39 -> 0 | H57: ='B9-Asset'!I39 -> 7303785 | I57: =SUM(D57:H57) -> 7303785 | J57: =IF(C57=0,B57+I57,C57+I57) -> 53978923.24 | K57: ='B9-Asset'!L39 -> 49475646.53 | L57: ='B9-Asset'!M39 -> 52444185.33
A58: Repairs and Maintenance | B58: ='B9-Asset'!C171 -> 10187870 | C58: ='B9-Asset'!D171 -> 0 | D58: ='B9-Asset'!E171 -> 0 | E58: ='B9-Asset'!F171 -> 0 | F58: ='B9-Asset'!G171 -> 0 | G58: ='B9-Asset'!H171 -> 0 | H58: ='B9-Asset'!I171 -> -1433114.561 | I58: =SUM(D58:H58) -> -1433114.561 | J58: =IF(C58=0,B58+I58,C58+I58) -> 8754755.439 | K58: ='B9-Asset'!L171 -> 10799142.2 | L58: ='B9-Asset'!M171 -> 11447090.73
A60: Free services
A61: Cost of Free Basic Services provided | B61: ='B10-SerDel'!C61 -> 48219681.7 | C61: ='B10-SerDel'!D61 -> 0 | D61: ='B10-SerDel'!E61 -> 0 | E61: ='B10-SerDel'!F61 -> 0 | F61: ='B10-SerDel'!G61 -> 0 | G61: ='B10-SerDel'!H61 -> 0 | H61: ='B10-SerDel'!I61 -> 0 | I61: ='B10-SerDel'!J61 -> 0 | J61: ='B10-SerDel'!K61 -> 48219681.7 | K61: ='B10-SerDel'!L61 -> 51112862.6 | L61: ='B10-SerDel'!M61 -> 54179634.35
A62: Revenue cost of free services provided | B62: ='B10-SerDel'!C80 -> 22608224.16 | C62: ='B10-SerDel'!D80 -> 0 | D62: ='B10-SerDel'!E80 -> 0 | E62: ='B10-SerDel'!F80 -> 0 | F62: ='B10-SerDel'!G80 -> 0 | G62: ='B10-SerDel'!H80 -> 0 | H62: ='B10-SerDel'!I80 -> 0 | I62: ='B10-SerDel'!J80 -> 0 | J62: ='B10-SerDel'!K80 -> 22608224.16 | K62: ='B10-SerDel'!L80 -> 23964717.61 | L62: ='B10-SerDel'!M80 -> 25402600.67
A63: Households below minimum service level
A64: Water: | B64: ='B10-SerDel'!C16 -> 7145.1 | C64: ='B10-SerDel'!D16 -> 0 | D64: ='B10-SerDel'!E16 -> 0 | E64: ='B10-SerDel'!F16 -> 0 | F64: ='B10-SerDel'!G16 -> 0 | G64: ='B10-SerDel'!H16 -> 0 | H64: ='B10-SerDel'!I16 -> 0 | I64: =SUM(D64:H64) -> 0 | J64: =IF(C64=0,B64+I64,C64+I64) -> 7145.1 | K64: ='B10-SerDel'!L16 -> 7288.002 | L64: ='B10-SerDel'!M16 -> 7433.76204
A65: Sanitation/sewerage: | B65: ='B10-SerDel'!C28 -> 4274.82 | C65: ='B10-SerDel'!D28 -> 0 | D65: ='B10-SerDel'!E28 -> 0 | E65: ='B10-SerDel'!F28 -> 0 | F65: ='B10-SerDel'!G28 -> 0 | G65: ='B10-SerDel'!H28 -> 0 | H65: ='B10-SerDel'!I28 -> 0 | I65: =SUM(D65:H65) -> 0 | J65: =IF(C65=0,B65+I65,C65+I65) -> 4274.82 | K65: ='B10-SerDel'!L28 -> 4360.3164 | L65: ='B10-SerDel'!M28 -> 4447.522728
A66: Energy: | B66: ='B10-SerDel'!C37 -> 13091.7 | C66: ='B10-SerDel'!D37 -> 0 | D66: ='B10-SerDel'!E37 -> 0 | E66: ='B10-SerDel'!F37 -> 0 | F66: ='B10-SerDel'!G37 -> 0 | G66: ='B10-SerDel'!H37 -> 0 | H66: ='B10-SerDel'!I37 -> 0 | I66: =SUM(D66:H66) -> 0 | J66: =IF(C66=0,B66+I66,C66+I66) -> 13091.7 | K66: ='B10-SerDel'!L37 -> 13353.534 | L66: ='B10-SerDel'!M37 -> 13620.60468
A67: Refuse: | B67: ='B10-SerDel'!C47 -> 4795.02 | C67: ='B10-SerDel'!D47 -> 0 | D67: ='B10-SerDel'!E47 -> 0 | E67: ='B10-SerDel'!F47 -> 0 | F67: ='B10-SerDel'!G47 -> 0 | G67: ='B10-SerDel'!H47 -> 0 | H67: ='B10-SerDel'!I47 -> 0 | I67: =SUM(D67:H67) -> 0 | J67: =IF(C67=0,B67+I67,C67+I67) -> 4795.02 | K67: ='B10-SerDel'!L47 -> 4890.9204 | L67: ='B10-SerDel'!M47 -> 4988.738808
A69: References
A70: 1. Only complete if a previous adjusted budget has been approved in the same financial year. Reflect most recent adjusted budget.
A71: 2. Additional cash-backed accumulated funds/unspent funds (MFMA section 18(1)(b) and section 28(2)(e)) identified after the Original Budget approved and after annual financial statements audited (note: only where underspending could not reasonably have been foreseen)
A72: 3. Increases of funds approved under MFMA section 31
A73: 4. Adjustments approved in accordance with MFMA section 29
A74: 5. Adjustments to transfers from National or Provincial Government
A75: 6. Adjusts. = 'Other' Adjustments proposed to be approved; including revenue under-collection (MFMA section 28(2)(a)); additional revenue appropriation on existing programmes (section 28(2))(b); projected savings (section 28(2)(d)); error correction (section 28(2)(f))
A76: 7. G = B + C + D + E + F
A77: 8. Adjusted Budget H = (A or A1/2 etc) + G

Sheet B2-FinPerf SC
A1: =muni&" - "&_ADJ3&" - "&Date -> FS193 Nketoana - Table B2 Adjustments Budget Financial Performance (functional classification) - 28/02/2018
A2: ="Standard "&desc -> Standard Description | B2: =head27 -> Ref | C2: =Head2 -> Budget Year 2017/18 | L2: =Head10 -> Budget Year +1 2018/19 | M2: =Head11 -> Budget Year +2 2019/20
C3: =Head6 -> Original Budget | D3: =Head54 -> Prior Adjusted | E3: =Head51 -> Accum. Funds | F3: =Head52 -> Multi-year capital | G3: =Head53 -> Unfore. Unavoid. | H3: =Head55 -> Nat. or Prov. Govt | I3: =Head50 -> Other Adjusts. | J3: =Head56 -> Total Adjusts. | K3: =Head7 -> Adjusted Budget | L3: =Head7 -> Adjusted Budget | M3: =Head7 -> Adjusted Budget
D4: 5 | E4: =D4+1 -> 6 | F4: 7 | G4: 8 | H4: 9 | I4: 10 | J4: 11 | K4: 12
A5: R thousands | B5: 1, 4 | C5: A | D5: A1 | E5: B | F5: C | G5: D | H5: E | I5: F | J5: G | K5: H
A6: Revenue - Functional
A7: Governance and administration | C7: =SUM(C8:C10) -> 87219210.31 | D7: =SUM(D8:D10) -> 0 | E7: 0 | F7: 0 | G7: 0 | H7: 0 | I7: 2282699.71 | J7: =SUM(J8:J10) -> 2282699.71 | K7: =SUM(K8:K10) -> 89501910.02 | L7: =SUM(L8:L10) -> 94302562.91 | M7: =SUM(M8:M10) -> 101135616.7
A8: Executive and council | C8: =B2B!C8 -> 8546342.64 | D8: =B2B!D8 -> 0 | E8: =B2B!E8 -> 0 | F8: =B2B!F8 -> 0 | G8: =B2B!G8 -> 0 | H8: =B2B!H8 -> 0 | I8: =B2B!I8 -> 0 | J8: =SUM(E8:I8) -> 0 | K8: =IF(D8=0,C8+J8,D8+J8) -> 8546342.64 | L8: =B2B!L8 -> 9059123.198 | M8: =B2B!M8 -> 9602670.59
A9: Finance and administration | C9: =B2B!C11 -> 78672867.67 | D9: =B2B!D11 -> 0 | E9: =B2B!E11 -> 0 | F9: =B2B!F11 -> 0 | G9: =B2B!G11 -> 0 | H9: =B2B!H11 -> 0 | I9: =B2B!I11 -> 2282699.71 | J9: =SUM(E9:I9) -> 2282699.71 | K9: =IF(D9=0,C9+J9,D9+J9) -> 80955567.38 | L9: =B2B!L11 -> 85243439.72 | M9: =B2B!M11 -> 91532946.1
A10: Internal audit | C10: =B2B!C26 -> 0 | D10: =B2B!D26 -> 0 | E10: =B2B!E26 -> 0 | F10: =B2B!F26 -> 0 | G10: =B2B!G26 -> 0 | H10: =B2B!H26 -> 0 | I10: =B2B!I26 -> 0 | J10: =SUM(E10:I10) -> 0 | K10: =IF(D10=0,C10+J10,D10+J10) -> 0 | L10: =B2B!L26 -> 0 | M10: =B2B!M26 -> 0
A11: Community and public safety | C11: =SUM(C12:C16) -> 15252626 | D11: =SUM(D12:D16) -> 0 | E11: 0 | F11: 0 | G11: 0 | H11: 0 | I11: -4023643.9 | J11: =SUM(J12:J16) -> -4023643.9 | K11: =SUM(K12:K16) -> 11228982.1 | L11: =SUM(L12:L16) -> 16167783.56 | M11: =SUM(M12:M16) -> 17137850.58
A12: Community and social services | C12: =B2B!C29 -> 9209765.732 | D12: =B2B!D29 -> 0 | E12: =B2B!E29 -> 0 | F12: =B2B!F29 -> 0 | G12: =B2B!G29 -> 0 | H12: =B2B!H29 -> 0 | I12: =B2B!I29 -> -719020.91 | J12: =SUM(E12:I12) -> -719020.91 | K12: =IF(D12=0,C12+J12,D12+J12) -> 8490744.822 | L12: =B2B!L29 -> 9762351.676 | M12: =B2B!M29 -> 10348092.78
A13: Sport and recreation | C13: =B2B!C51 -> 5612860.27 | D13: =B2B!D51 -> 0 | E13: =B2B!E51 -> 0 | F13: =B2B!F51 -> 0 | G13: =B2B!G51 -> 0 | H13: =B2B!H51 -> 0 | I13: =B2B!I51 -> -3254622.99 | J13: =SUM(E13:I13) -> -3254622.99 | K13: =IF(D13=0,C13+J13,D13+J13) -> 2358237.28 | L13: =B2B!L51 -> 5949631.886 | M13: =B2B!M51 -> 6306609.799
A14: Public safety | C14: =B2B!C57 -> 430000 | D14: =B2B!D57 -> 0 | E14: =B2B!E57 -> 0 | F14: =B2B!F57 -> 0 | G14: =B2B!G57 -> 0 | H14: =B2B!H57 -> 0 | I14: =B2B!I57 -> -50000 | J14: =SUM(E14:I14) -> -50000 | K14: =IF(D14=0,C14+J14,D14+J14) -> 380000 | L14: =B2B!L57 -> 455800 | M14: =B2B!M57 -> 483148
A15: Housing | C15: =B2B!C64 -> 0 | D15: =B2B!D64 -> 0 | E15: =B2B!E64 -> 0 | F15: =B2B!F64 -> 0 | G15: =B2B!G64 -> 0 | H15: =B2B!H64 -> 0 | I15: =B2B!I64 -> 0 | J15: =SUM(E15:I15) -> 0 | K15: =IF(D15=0,C15+J15,D15+J15) -> 0 | L15: =B2B!L64 -> 0 | M15: =B2B!M64 -> 0
A16: Health | C16: =B2B!C67 -> 0 | D16: =B2B!D67 -> 0 | E16: =B2B!E67 -> 0 | F16: =B2B!F67 -> 0 | G16: =B2B!G67 -> 0 | H16: =B2B!H67 -> 0 | I16: =B2B!I67 -> 0 | J16: =SUM(E16:I16) -> 0 | K16: =IF(D16=0,C16+J16,D16+J16) -> 0 | L16: =B2B!L67 -> 0 | M16: =B2B!M67 -> 0
A17: Economic and environmental services | C17: =SUM(C18:C20) -> 25455738.13 | D17: =SUM(D18:D20) -> 0 | E17: 0 | F17: 0 | G17: 0 | H17: 0 | I17: -13791781.47 | J17: =SUM(J18:J20) -> -13791781.47 | K17: =SUM(K18:K20) -> 11663956.66 | L17: =SUM(L18:L20) -> 26983082.42 | M17: =SUM(M18:M20) -> 28602067.36
A18: Planning and development | C18: =B2B!C76 -> 4620581.46 | D18: =B2B!D76 -> 0 | E18: =B2B!E76 -> 0 | F18: =B2B!F76 -> 0 | G18: =B2B!G76 -> 0 | H18: =B2B!H76 -> 0 | I18: =B2B!I76 -> 41284.14857 | J18: =SUM(E18:I18) -> 41284.14857 | K18: =IF(D18=0,C18+J18,D18+J18) -> 4661865.609 | L18: =B2B!L76 -> 4897816.348 | M18: =B2B!M76 -> 5191685.328
A19: Road transport | C19: =B2B!C87 -> 20835156.67 | D19: =B2B!D87 -> 0 | E19: =B2B!E87 -> 0 | F19: =B2B!F87 -> 0 | G19: =B2B!G87 -> 0 | H19: =B2B!H87 -> 0 | I19: =B2B!I87 -> -13833065.62 | J19: =SUM(E19:I19) -> -13833065.62 | K19: =IF(D19=0,C19+J19,D19+J19) -> 7002091.05 | L19: =B2B!L87 -> 22085266.07 | M19: =B2B!M87 -> 23410382.03
A20: Environmental protection | C20: =B2B!C94 -> 0 | D20: =B2B!D94 -> 0 | E20: =B2B!E94 -> 0 | F20: =B2B!F94 -> 0 | G20: =B2B!G94 -> 0 | H20: =B2B!H94 -> 0 | I20: =B2B!I94 -> 0 | J20: =SUM(E20:I20) -> 0 | K20: =IF(D20=0,C20+J20,D20+J20) -> 0 | L20: =B2B!L94 -> 0 | M20: =B2B!M94 -> 0
A21: Trading services | C21: =SUM(C22:C25) -> 272843178 | D21: =SUM(D22:D25) -> 0 | E21: 0 | F21: 0 | G21: 0 | H21: 0 | I21: -26038188.12 | J21: -26038188.12 | K21: 246804989.9 | L21: 289213768.7 | M21: 306566594.8
A22: Energy sources | C22: =B2B!C102 -> 57572098.6 | D22: =B2B!D102 -> 0 | E22: =B2B!E102 -> 0 | F22: =B2B!F102 -> 0 | G22: =B2B!G102 -> 0 | H22: =B2B!H102 -> 0 | I22: =B2B!I102 -> -1909697.04 | J22: =SUM(E22:I22) -> -1909697.04 | K22: =IF(D22=0,C22+J22,D22+J22) -> 55662401.56 | L22: =B2B!L102 -> 61026424.52 | M22: =B2B!M102 -> 64688009.99
A23: Water management | C23: =B2B!C106 -> 130279857.6 | D23: =B2B!D106 -> 0 | E23: =B2B!E106 -> 0 | F23: =B2B!F106 -> 0 | G23: =B2B!G106 -> 0 | H23: =B2B!H106 -> 0 | I23: =B2B!I106 -> -13776800.67 | J23: =SUM(E23:I23) -> -13776800.67 | K23: =IF(D23=0,C23+J23,D23+J23) -> 116503056.9 | L23: =B2B!L106 -> 138096649 | M23: =B2B!M106 -> 146382448
A24: Waste water management | C24: =B2B!C110 -> 48227020.75 | D24: =B2B!D110 -> 0 | E24: =B2B!E110 -> 0 | F24: =B2B!F110 -> 0 | G24: =B2B!G110 -> 0 | H24: =B2B!H110 -> 0 | I24: =B2B!I110 -> -12825051.36 | J24: =SUM(E24:I24) -> -12825051.36 | K24: =IF(D24=0,C24+J24,D24+J24) -> 35401969.39 | L24: =B2B!L110 -> 51120642 | M24: =B2B!M110 -> 54187880.51
A25: Waste management | C25: =B2B!C115 -> 36764201.05 | D25: =B2B!D115 -> 0 | E25: =B2B!E115 -> 0 | F25: =B2B!F115 -> 0 | G25: =B2B!G115 -> 0 | H25: =B2B!H115 -> 0 | I25: =B2B!I115 -> 2473360.942 | J25: =SUM(E25:I25) -> 2473360.942 | K25: =IF(D25=0,C25+J25,D25+J25) -> 39237561.99 | L25: =B2B!L115 -> 38970053.11 | M25: =B2B!M115 -> 41308256.3
A26: Other | C26: =B2B!C120 -> 1701922.28 | D26: =B2B!D120 -> 0 | E26: =B2B!E120 -> 0 | F26: =B2B!F120 -> 0 | G26: =B2B!G120 -> 0 | H26: =B2B!H120 -> 0 | I26: =B2B!I120 -> 0 | J26: =SUM(E26:I26) -> 0 | K26: =IF(D26=0,C26+J26,D26+J26) -> 1701922.28 | L26: =B2B!L120 -> 1804037.617 | M26: =B2B!M120 -> 1912279.874
A27: ="Total "&A6 -> Total Revenue - Functional | B27: 2 | C27: =C7+C11+C17+C21+C26 -> 402472674.7 | D27: =D7+D11+D17+D21+D26 -> 0 | E27: 0 | F27: 0 | G27: 0 | H27: 0 | I27: -41570913.78 | J27: -41570913.78 | K27: 360901760.9 | L27: 428471235.2 | M27: 455354409.3
A29: Expenditure - Functional
A30: Governance and administration | C30: =SUM(C31:C33) -> 82707545.51 | D30: =SUM(D31:D33) -> 0 | E30: 0 | F30: 0 | G30: 0 | H30: 0 | I30: 11579301.24 | J30: =SUM(J31:J33) -> 11579301.24 | K30: =SUM(K31:K33) -> 94286846.75 | L30: =SUM(L31:L33) -> 87669998.24 | M30: =SUM(M31:M33) -> 92930198.14
A31: Executive and council | C31: =B2B!C131 -> 24701627.69 | D31: =B2B!D131 -> 0 | E31: =B2B!E131 -> 0 | F31: =B2B!F131 -> 0 | G31: =B2B!G131 -> 0 | H31: =B2B!H131 -> 0 | I31: =B2B!I131 -> 2587987.686 | J31: =SUM(E31:I31) -> 2587987.686 | K31: =IF(D31=0,C31+J31,D31+J31) -> 27289615.38 | L31: =B2B!L131 -> 26183725.35 | M31: =B2B!M131 -> 27754748.88
A32: Finance and administration | C32: =B2B!C134 -> 58005917.82 | D32: =B2B!D134 -> 0 | E32: =B2B!E134 -> 0 | F32: =B2B!F134 -> 0 | G32: =B2B!G134 -> 0 | H32: =B2B!H134 -> 0 | I32: =B2B!I134 -> 8991313.553 | J32: =SUM(E32:I32) -> 8991313.553 | K32: =IF(D32=0,C32+J32,D32+J32) -> 66997231.37 | L32: =B2B!L134 -> 61486272.89 | M32: =B2B!M134 -> 65175449.26
A33: Internal audit | C33: =B2B!C149 -> 0 | D33: =B2B!D149 -> 0 | E33: =B2B!E149 -> 0 | F33: =B2B!F149 -> 0 | G33: =B2B!G149 -> 0 | H33: =B2B!H149 -> 0 | I33: =B2B!I149 -> 0 | J33: =SUM(E33:I33) -> 0 | K33: =IF(D33=0,C33+J33,D33+J33) -> 0 | L33: =B2B!L149 -> 0 | M33: =B2B!M149 -> 0
A34: Community and public safety | C34: =SUM(C35:C39) -> 24183077 | D34: =SUM(D35:D39) -> 0 | E34: 0 | F34: 0 | G34: 0 | H34: 0 | I34: 4157691.546 | J34: =SUM(J35:J39) -> 4157691.546 | K34: =SUM(K35:K39) -> 28340768.54 | L34: =SUM(L35:L39) -> 25634061.62 | M34: =SUM(M35:M39) -> 27172105.32
A35: Community and social services | C35: =B2B!C152 -> 18202333.64 | D35: =B2B!D152 -> 0 | E35: =B2B!E152 -> 0 | F35: =B2B!F152 -> 0 | G35: =B2B!G152 -> 0 | H35: =B2B!H152 -> 0 | I35: =B2B!I152 -> 3677866.577 | J35: =SUM(E35:I35) -> 3677866.577 | K35: =IF(D35=0,C35+J35,D35+J35) -> 21880200.21 | L35: =B2B!L152 -> 19294473.66 | M35: =B2B!M152 -> 20452142.07
A36: Sport and recreation | C36: =B2B!C174 -> 595122.5345 | D36: =B2B!D174 -> 0 | E36: =B2B!E174 -> 0 | F36: =B2B!F174 -> 0 | G36: =B2B!G174 -> 0 | H36: =B2B!H174 -> 0 | I36: =B2B!I174 -> -176747.6667 | J36: =SUM(E36:I36) -> -176747.6667 | K36: =IF(D36=0,C36+J36,D36+J36) -> 418374.8678 | L36: =B2B!L174 -> 630829.8865 | M36: =B2B!M174 -> 668679.6797
A37: Public safety | C37: =B2B!C180 -> 5385620.827 | D37: =B2B!D180 -> 0 | E37: =B2B!E180 -> 0 | F37: =B2B!F180 -> 0 | G37: =B2B!G180 -> 0 | H37: =B2B!H180 -> 0 | I37: =B2B!I180 -> 656572.6359 | J37: =SUM(E37:I37) -> 656572.6359 | K37: =IF(D37=0,C37+J37,D37+J37) -> 6042193.463 | L37: =B2B!L180 -> 5708758.077 | M37: =B2B!M180 -> 6051283.561
A38: Housing | C38: =B2B!C187 -> 0 | D38: =B2B!D187 -> 0 | E38: =B2B!E187 -> 0 | F38: =B2B!F187 -> 0 | G38: =B2B!G187 -> 0 | H38: =B2B!H187 -> 0 | I38: =B2B!I187 -> 0 | J38: =SUM(E38:I38) -> 0 | K38: =IF(D38=0,C38+J38,D38+J38) -> 0 | L38: =B2B!L187 -> 0 | M38: =B2B!M187 -> 0
A39: Health | C39: =B2B!C190 -> 0 | D39: =B2B!D190 -> 0 | E39: =B2B!E190 -> 0 | F39: =B2B!F190 -> 0 | G39: =B2B!G190 -> 0 | H39: =B2B!H190 -> 0 | I39: =B2B!I190 -> 0 | J39: =SUM(E39:I39) -> 0 | K39: =IF(D39=0,C39+J39,D39+J39) -> 0 | L39: =B2B!L190 -> 0 | M39: =B2B!M190 -> 0
A40: Economic and environmental services | C40: =SUM(C41:C43) -> 51386087.11 | D40: =SUM(D41:D43) -> 0 | E40: 0 | F40: 0 | G40: 0 | H40: 0 | I40: -2498122.726 | J40: =SUM(J41:J43) -> -2498122.726 | K40: =SUM(K41:K43) -> 48887964.38 | L40: =SUM(L41:L43) -> 54469252.33 | M40: =SUM(M41:M43) -> 57737407.47
A41: Planning and development | C41: =B2B!C199 -> 3269809.343 | D41: =B2B!D199 -> 0 | E41: =B2B!E199 -> 0 | F41: =B2B!F199 -> 0 | G41: =B2B!G199 -> 0 | H41: =B2B!H199 -> 0 | I41: =B2B!I199 -> 218768.977 | J41: =SUM(E41:I41) -> 218768.977 | K41: =IF(D41=0,C41+J41,D41+J41) -> 3488578.32 | L41: =B2B!L199 -> 3465997.904 | M41: =B2B!M199 -> 3673957.778
A42: Road transport | C42: =B2B!C210 -> 48116277.76 | D42: =B2B!D210 -> 0 | E42: =B2B!E210 -> 0 | F42: =B2B!F210 -> 0 | G42: =B2B!G210 -> 0 | H42: =B2B!H210 -> 0 | I42: =B2B!I210 -> -2716891.703 | J42: =SUM(E42:I42) -> -2716891.703 | K42: =IF(D42=0,C42+J42,D42+J42) -> 45399386.06 | L42: =B2B!L210 -> 51003254.43 | M42: =B2B!M210 -> 54063449.7
A43: Environmental protection | C43: =B2B!C217 -> 0 | D43: =B2B!D217 -> 0 | E43: =B2B!E217 -> 0 | F43: =B2B!F217 -> 0 | G43: =B2B!G217 -> 0 | H43: =B2B!H217 -> 0 | I43: =B2B!I217 -> 0 | J43: =SUM(E43:I43) -> 0 | K43: =IF(D43=0,C43+J43,D43+J43) -> 0 | L43: =B2B!L217 -> 0 | M43: =B2B!M217 -> 0
A44: Trading services | C44: =SUM(C45:C48) -> 177518057.1 | D44: =SUM(D45:D48) -> 0 | E44: 0 | F44: 0 | G44: 0 | H44: 0 | I44: 48304046.82 | J44: 48304046.82 | K44: 225822103.9 | L44: 188169140.5 | M44: 199459288.9
A45: Energy sources | C45: =B2B!C225 -> 71959366.67 | D45: =B2B!D225 -> 0 | E45: =B2B!E225 -> 0 | F45: =B2B!F225 -> 0 | G45: =B2B!G225 -> 0 | H45: =B2B!H225 -> 0 | I45: =B2B!I225 -> 3035232.164 | J45: =SUM(E45:I45) -> 3035232.164 | K45: =IF(D45=0,C45+J45,D45+J45) -> 74994598.84 | L45: =B2B!L225 -> 76276928.68 | M45: =B2B!M225 -> 80853544.4
A46: Water management | C46: =B2B!C229 -> 56073206.11 | D46: =B2B!D229 -> 0 | E46: =B2B!E229 -> 0 | F46: =B2B!F229 -> 0 | G46: =B2B!G229 -> 0 | H46: =B2B!H229 -> 0 | I46: =B2B!I229 -> 28851497.71 | J46: =SUM(E46:I46) -> 28851497.71 | K46: =IF(D46=0,C46+J46,D46+J46) -> 84924703.83 | L46: =B2B!L229 -> 59437598.48 | M46: =B2B!M229 -> 63003854.39
A47: Waste water management | C47: =B2B!C233 -> 25743626.76 | D47: =B2B!D233 -> 0 | E47: =B2B!E233 -> 0 | F47: =B2B!F233 -> 0 | G47: =B2B!G233 -> 0 | H47: =B2B!H233 -> 0 | I47: =B2B!I233 -> 7595152.684 | J47: =SUM(E47:I47) -> 7595152.684 | K47: =IF(D47=0,C47+J47,D47+J47) -> 33338779.45 | L47: =B2B!L233 -> 27288244.37 | M47: =B2B!M233 -> 28925539.03
A48: Waste management | C48: =B2B!C238 -> 23741857.54 | D48: =B2B!D238 -> 0 | E48: =B2B!E238 -> 0 | F48: =B2B!F238 -> 0 | G48: =B2B!G238 -> 0 | H48: =B2B!H238 -> 0 | I48: =B2B!I238 -> 8822164.258 | J48: =SUM(E48:I48) -> 8822164.258 | K48: =IF(D48=0,C48+J48,D48+J48) -> 32564021.79 | L48: =B2B!L238 -> 25166368.99 | M48: =B2B!M238 -> 26676351.13
A49: Other | C49: =B2B!C243 -> 1123721.763 | D49: =B2B!D243 -> 0 | E49: =B2B!E243 -> 0 | F49: =B2B!F243 -> 0 | G49: =B2B!G243 -> 0 | H49: =B2B!H243 -> 0 | I49: =B2B!I243 -> -28104.93457 | J49: =SUM(E49:I49) -> -28104.93457 | K49: =IF(D49=0,C49+J49,D49+J49) -> 1095616.829 | L49: =B2B!L243 -> 1191145.069 | M49: =B2B!M243 -> 1262613.773
A50: ="Total "&A29 -> Total Expenditure - Functional | B50: 3 | C50: =C30+C34+C40+C44+C49 -> 336918488.5 | D50: =D30+D34+D40+D44+D49 -> 0 | E50: 0 | F50: 0 | G50: 0 | H50: 0 | I50: 61514811.94 | J50: 61514811.94 | K50: 398433300.4 | L50: 357133597.8 | M50: 378561613.6
A51: Surplus/ (Deficit) for the year | C51: =C27-C50 -> 65554186.24 | D51: 0 | E51: 0 | F51: 0 | G51: 0 | H51: 0 | I51: -103085725.7 | J51: -103085725.7 | K51: -37531539.48 | L51: 71337637.4 | M51: 76792795.65
A52: =head27a -> References
A53: 1. Government Finance Statistics Functions and Sub-functions are standardised to assist the compilation of national and international accounts for comparison purposes
A54: 2. Total Revenue by standard classification must reconcile to Total Operating Revenue shown in the Adjustments Budget Financial Performance (revenue and expenditure)
A55: 3. Total Operating Expenditure by standard classification must reconcile to Total Operating Expenditure shown in the Adjustments Budget Financial Performance (revenue and expenditure)
A56: 4. All amounts must be classified under a standard classification (modified GFS). The GFS function 'Other' is only for Abbatoirs, Air Transport, Markets and Tourism - and if used must be supported by footnotes. Nothing else may be placed under 'Other'. Assign associate share to relevant classification
A57: 5. Only complete if a previous adjusted budget has been approved in the same financial year. Reflect most recent adjusted budget.
A58: 6. Additional cash-backed accumulated funds/unspent funds (MFMA section 18(1)(b) and section 28(2)(e)) identified after the Original Budget approved and after annual financial statements audited (note: only where underspending could not reasonably have been foreseen)
A59: 7. Increases of funds approved under MFMA section 31
A60: 8. Adjustments approved in accordance with MFMA section 29
A61: 9. Adjustments to transfers from National or Provincial Government
A62: 10. Adjusts. = 'Other' Adjustments proposed to be approved; including revenue under-collection (MFMA section 28(2)(a)); additional revenue appropriation on existing programmes (section 28(2))(b); projected savings (section 28(2)(d)); error correction (section 28(2)(f))
A63: 11. G = B + C + D + E + F
A64: 12. Adjusted Budget H = (A or A1/2 etc) + G

Sheet B2B
A1: =muni&" - "&_ADJ3&" - B"&" - "&Date -> FS193 Nketoana - Table B2 Adjustments Budget Financial Performance (functional classification) - B - 28/02/2018
A2: ="Standard Classification "&desc -> Standard Classification Description | B2: =head27 -> Ref | C2: =Head2 -> Budget Year 2017/18 | L2: =Head10 -> Budget Year +1 2018/19 | M2: =Head11 -> Budget Year +2 2019/20
C3: =Head6 -> Original Budget | D3: =Head54 -> Prior Adjusted | E3: =Head51 -> Accum. Funds | F3: =Head52 -> Multi-year capital | G3: =Head53 -> Unfore. Unavoid. | H3: =Head55 -> Nat. or Prov. Govt | I3: =Head50 -> Other Adjusts. | J3: =Head56 -> Total Adjusts. | K3: =Head7 -> Adjusted Budget | L3: =Head7 -> Adjusted Budget | M3: =Head7 -> Adjusted Budget
D4: 5 | E4: =D4+1 -> 6 | F4: 7 | G4: 8 | H4: 9 | I4: 10 | J4: 11 | K4: 12
A5: R thousand | B5: 1 | C5: A | D5: A1 | E5: B | F5: C | G5: D | H5: E | I5: F | J5: G | K5: H
A6: Revenue - Functional
A7: Municipal governance and administration | C7: =C8+C11+C26 -> 87219210.31 | D7: 0 | E7: 0 | F7: 0 | G7: 0 | H7: 0 | I7: 2282699.71 | J7: =SUM(E7:I7) -> 2282699.71 | K7: =IF(D7=0,C7+J7,D7+J7) -> 89501910.02 | L7: 94302562.91 | M7: 101135616.7
A8: Executive and council | C8: =SUM(C9:C10) -> 8546342.64 | D8: =SUM(D9:D10) -> 0 | E8: 0 | F8: 0 | G8: 0 | H8: 0 | I8: 0 | J8: =SUM(E8:I8) -> 0 | K8: =IF(D8=0,C8+J8,D8+J8) -> 8546342.64 | L8: =SUM(L9:L10) -> 9059123.198 | M8: =SUM(M9:M10) -> 9602670.59
A9: Mayor and Council | C9: 4432366.36 | J9: =SUM(E9:I9) -> 0 | K9: =IF(D9=0,C9+J9,D9+J9) -> 4432366.36 | L9: 4698308.342 | M9: 4980206.842
A10: Municipal Manager, Town Secretary and Chief Executive | C10: 4113976.28 | J10: =SUM(E10:I10) -> 0 | K10: =IF(D10=0,C10+J10,D10+J10) -> 4113976.28 | L10: 4360814.857 | M10: 4622463.748
A11: Finance and administration | C11: =SUM(C12:C25) -> 78672867.67 | D11: =SUM(D12:D25) -> 0 | E11: 0 | F11: 0 | G11: 0 | H11: 0 | I11: 2282699.71 | J11: 2282699.71 | K11: 80955567.38 | L11: =SUM(L12:L25) -> 85243439.72 | M11: =SUM(M12:M25) -> 91532946.1
A12: Administrative and Corporate Support | J12: 0 | K12: 0
A13: Asset Management | J13: 0 | K13: 0
A14: Budget and Treasury Office | C14: 78308743.11 | I14: 2082142.822 | J14: 2082142.822 | K14: 80390885.93 | L14: 84857467.69 | M14: 91123815.75
A15: Finance | J15: 0 | K15: 0
A16: Fleet Management | J16: 0 | K16: 0
A17: Human Resources | C17: 364124.5564 | I17: 200556.8882 | J17: 200556.8882 | K17: 564681.4446 | L17: 385972.0298 | M17: 409130.3516
A18: Information Technology | J18: 0 | K18: 0
A19: Legal Services | J19: 0 | K19: 0
A20: Marketing, Customer Relations, Publicity and Media Co-ordination | J20: 0 | K20: 0
A21: Property Services | J21: 0 | K21: 0
A22: Risk Management | J22: 0 | K22: 0
A23: Security Services | J23: 0 | K23: 0
A24: Supply Chain Management | J24: 0 | K24: 0
A25: Valuation Service | J25: 0 | K25: 0
A26: Internal audit | C26: =SUM(C27:C27) -> 0 | D26: 0 | E26: 0 | F26: 0 | G26: 0 | H26: 0 | I26: 0 | J26: 0 | K26: 0 | L26: 0 | M26: 0
A27: Governance Function | J27: 0 | K27: 0
A28: Community and public safety | C28: =C29+C51+C57+C64+C67 -> 15252626 | D28: =D29+D51+D57+D64+D67 -> 0 | E28: 0 | F28: 0 | G28: 0 | H28: 0 | I28: -4023643.9 | J28: -4023643.9 | K28: 11228982.1 | L28: 16167783.56 | M28: 17137850.58
A29: Community and social services | C29: =SUM(C30:C50) -> 9209765.732 | D29: 0 | E29: 0 | F29: 0 | G29: 0 | H29: 0 | I29: -719020.91 | J29: -719020.91 | K29: 8490744.822 | L29: 9762351.676 | M29: 10348092.78
A30: Aged Care | J30: 0 | K30: 0
A31: Agricultural | J31: 0 | K31: 0
A32: Animal Care and Diseases | J32: 0 | K32: 0
A33: Cemeteries, Funeral Parlours and Crematoriums | C33: 5330343.31 | I33: -719020.91 | J33: -719020.91 | K33: 4611322.4 | L33: 5650163.909 | M33: 5989173.743
A34: Child Care Facilities | J34: 0 | K34: 0
A35: Community Halls and Facilities | C35: 3879422.422 | I35: 0 | J35: 0 | K35: 3879422.422 | L35: 4112187.768 | M35: 4358919.034
A36: Consumer Protection | J36: 0 | K36: 0
A37: Cultural Matters | J37: 0 | K37: 0
A38: Disaster Management | J38: 0 | K38: 0
A39: Education | J39: 0 | K39: 0
A40: Indigenous and Customary Law | J40: 0 | K40: 0
A41: Industrial Promotion | J41: 0 | K41: 0
A42: Language Policy | J42: 0 | K42: 0
A43: Libraries and Archives | J43: 0 | K43: 0
A44: Literacy Programmes | J44: 0 | K44: 0
A45: Media Services | J45: 0 | K45: 0
A46: Museums and Art Galleries | J46: 0 | K46: 0
A47: Population Development | J47: 0 | K47: 0
A48: Provincial Cultural Matters | J48: 0 | K48: 0
A49: Theatres | J49: 0 | K49: 0
A50: Zoo's | J50: 0 | K50: 0
A51: Sport and recreation | C51: =SUM(C52:C56) -> 5612860.27 | D51: 0 | E51: 0 | F51: 0 | G51: 0 | H51: 0 | I51: -3254622.99 | J51: -3254622.99 | K51: 2358237.28 | L51: 5949631.886 | M51: 6306609.799
A52: Beaches and Jetties | J52: 0 | K52: 0
A53: Casinos, Racing, Gambling, Wagering | J53: 0 | K53: 0
A54: Community Parks (including Nurseries) | J54: 0 | K54: 0
A55: Recreational Facilities | J55: 0 | K55: 0
A56: Sports Grounds and Stadiums | C56: 5612860.27 | I56: -3254622.99 | J56: -3254622.99 | K56: 2358237.28 | L56: 5949631.886 | M56: 6306609.799
A57: Public safety | C57: =SUM(C58:C63) -> 430000 | D57: 0 | E57: 0 | F57: 0 | G57: 0 | H57: 0 | I57: -50000 | J57: -50000 | K57: 380000 | L57: 455800 | M57: 483148
A58: Civil Defence | J58: 0 | K58: 0
A59: Cleansing | J59: 0 | K59: 0
A60: Control of Public Nuisances | J60: 0 | K60: 0
A61: Fencing and Fences | J61: 0 | K61: 0
A62: Fire Fighting and Protection | C62: 430000 | I62: -50000 | J62: -50000 | K62: 380000 | L62: 455800 | M62: 483148
A63: Licensing and Control of Animals | J63: 0 | K63: 0
A64: Housing | C64: =SUM(C65:C66) -> 0 | D64: =SUM(D65:D66) -> 0 | E64: 0 | F64: 0 | G64: 0 | H64: 0 | I64: 0 | J64: 0 | K64: 0 | L64: =SUM(L65:L66) -> 0 | M64: =SUM(M65:M66) -> 0
A65: Housing | J65: 0 | K65: 0
A66: Informal Settlements | J66: 0 | K66: 0
A67: Health | C67: =SUM(C68:C74) -> 0 | D67: =SUM(D68:D74) -> 0 | E67: 0 | F67: 0 | G67: 0 | H67: 0 | I67: 0 | J67: 0 | K67: 0 | L67: =SUM(L68:L74) -> 0 | M67: =SUM(M68:M74) -> 0
A68: Ambulance | J68: 0 | K68: 0
A69: Health Services | J69: 0 | K69: 0
A70: Laboratory Services | J70: 0 | K70: 0
A71: Food Control | J71: 0 | K71: 0
A72: Health Surveillance and Prevention of Communicable Diseases including immunizations | J72: 0 | K72: 0
A73: Vector Control | J73: 0 | K73: 0
A74: Chemical Safety | J74: =SUM(E74:I74) -> 0 | K74: =IF(D74=0,C74+J74,D74+J74) -> 0
A75: Economic and environmental services | C75: =C76+C87+C94 -> 25455738.13 | D75: =D76+D87+D94 -> 0 | E75: 0 | F75: 0 | G75: 0 | H75: 0 | I75: -13791781.47 | J75: -13791781.47 | K75: 11663956.66 | L75: =L76+L87+L94 -> 26983082.42 | M75: =M76+M87+M94 -> 28602067.36
A76: Planning and development | C76: =SUM(C77:C86) -> 4620581.46 | D76: =SUM(D77:D86) -> 0 | E76: 0 | F76: 0 | G76: 0 | H76: 0 | I76: 41284.14857 | J76: 41284.14857 | K76: 4661865.609 | L76: =SUM(L77:L86) -> 4897816.348 | M76: =SUM(M77:M86) -> 5191685.328
A77: Billboards | J77: 0 | K77: 0
A78: Corporate Wide Strategic Planning (IDPs, LEDs) | J78: 0 | K78: 0
A79: Central City Improvement District | J79: 0 | K79: 0
A80: Development Facilitation | J80: 0 | K80: 0
A81: Economic Development/Planning | C81: 2758237.28 | I81: 41284.14857 | J81: 41284.14857 | K81: 2799521.429 | L81: 2923731.517 | M81: 3099155.408
A82: Regional Planning and Development | J82: 0 | K82: 0
A83: Town Planning, Building Regulations and Enforcement, and City Engineer | C83: 1862344.18 | I83: 0 | J83: 0 | K83: 1862344.18 | L83: 1974084.831 | M83: 2092529.921
A84: Project Management Unit | J84: 0 | K84: 0
A85: Provincial Planning | J85: 0 | K85: 0
A86: Support to Local Municipalities | J86: 0 | K86: 0
A87: Road transport | C87: =SUM(C88:C93) -> 20835156.67 | D87: =SUM(D88:D93) -> 0 | E87: 0 | F87: 0 | G87: 0 | H87: 0 | I87: -13833065.62 | J87: -13833065.62 | K87: 7002091.05 | L87: =SUM(L88:L93) -> 22085266.07 | M87: =SUM(M88:M93) -> 23410382.03
A88: Police Forces, Traffic and Street Parking Control | J88: 0 | K88: 0
A89: Pounds | J89: 0 | K89: 0
A90: Public Transport | J90: 0 | K90: 0
A91: Road and Traffic Regulation | J91: 0 | K91: 0
A92: Roads | C92: 20835156.67 | I92: -13833065.62 | J92: -13833065.62 | K92: 7002091.05 | L92: 22085266.07 | M92: 23410382.03
A93: Taxi Ranks | J93: 0 | K93: 0
A94: Environmental protection | C94: =SUM(C95:C100) -> 0 | D94: =SUM(D95:D100) -> 0 | E94: 0 | F94: 0 | G94: 0 | H94: 0 | I94: 0 | J94: 0 | K94: 0 | L94: =SUM(L95:L100) -> 0 | M94: =SUM(M95:M100) -> 0
A95: Biodiversity and Landscape | J95: 0 | K95: 0
A96: Coastal Protection | J96: 0 | K96: 0
A97: Indigenous Forests | J97: 0 | K97: 0
A98: Nature Conservation | J98: 0 | K98: 0
A99: Pollution Control | J99: 0 | K99: 0
A100: Soil Conservation | J100: 0 | K100: 0
A101: Trading services | C101: =C102+C106+C110+C115 -> 272843178 | D101: =D102+D106+D110+D115 -> 0 | E101: 0 | F101: 0 | G101: 0 | H101: 0 | I101: -26038188.12 | J101: -26038188.12 | K101: 246804989.9 | L101: 289213768.7 | M101: 306566594.8
A102: Energy sources | C102: =SUM(C103:C105) -> 57572098.6 | D102: =SUM(D103:D105) -> 0 | E102: 0 | F102: 0 | G102: 0 | H102: 0 | I102: -1909697.04 | J102: -1909697.04 | K102: 55662401.56 | L102: =SUM(L103:L105) -> 61026424.52 | M102: =SUM(M103:M105) -> 64688009.99
A103: Electricity | C103: 57572098.6 | I103: -1909697.04 | J103: -1909697.04 | K103: 55662401.56 | L103: 61026424.52 | M103: 64688009.99
A104: Street Lighting and Signal Systems | J104: 0 | K104: 0
A105: Nonelectric Energy | J105: 0 | K105: 0
A106: Water management | C106: =SUM(C107:C109) -> 130279857.6 | D106: =SUM(D107:D109) -> 0 | E106: 0 | F106: 0 | G106: 0 | H106: 0 | I106: -13776800.67 | J106: -13776800.67 | K106: 116503056.9 | L106: =SUM(L107:L109) -> 138096649 | M106: =SUM(M107:M109) -> 146382448
A107: Water Treatment | C107: 130279857.6 | I107: -13776800.67 | J107: -13776800.67 | K107: 116503056.9 | L107: 138096649 | M107: 146382448
A108: Water Distribution | J108: 0 | K108: 0
A109: Water Storage | J109: 0 | K109: 0
A110: Waste water management | C110: =SUM(C111:C114) -> 48227020.75 | D110: =SUM(D111:D114) -> 0 | E110: 0 | F110: 0 | G110: 0 | H110: 0 | I110: -12825051.36 | J110: -12825051.36 | K110: 35401969.39 | L110: =SUM(L111:L114) -> 51120642 | M110: =SUM(M111:M114) -> 54187880.51
A111: Public Toilets | C111: 48227020.75 | I111: -12825051.36 | J111: -12825051.36 | K111: 35401969.39 | L111: 51120642 | M111: 54187880.51
A112: Sewerage | J112: 0 | K112: 0
A113: Storm Water Management | J113: 0 | K113: 0
A114: Waste Water Treatment | J114: 0 | K114: 0
A115: Waste management | C115: =SUM(C116:C119) -> 36764201.05 | D115: =SUM(D116:D119) -> 0 | E115: 0 | F115: 0 | G115: 0 | H115: 0 | I115: 2473360.942 | J115: 2473360.942 | K115: 39237561.99 | L115: 38970053.11 | M115: =SUM(M116:M119) -> 41308256.3
A116: Recycling | J116: 0 | K116: 0
A117: Solid Waste Disposal (Landfill Sites) | C117: 36764201.05 | I117: 2473360.942 | J117: 2473360.942 | K117: 39237561.99 | L117: 38970053.11 | M117: 41308256.3
A118: Solid Waste Removal | J118: 0 | K118: 0
A119: Street Cleaning | J119: 0 | K119: 0
A120: Other | C120: =SUM(C121:C126) -> 1701922.28 | D120: 0 | E120: 0 | F120: 0 | G120: 0 | H120: 0 | I120: 0 | J120: 0 | K120: 1701922.28 | L120: 1804037.617 | M120: 1912279.874
A121: Abattoirs | J121: 0 | K121: 0
A122: Air Transport | J122: 0 | K122: 0
A123: Forestry | J123: 0 | K123: 0
A124: Licensing and Regulation | J124: 0 | K124: 0
A125: Markets | J125: 0 | K125: 0
A126: Tourism | C126: 1701922.28 | I126: 0 | J126: 0 | K126: 1701922.28 | L126: 1804037.617 | M126: 1912279.874
A127: ="Total "&A6 -> Total Revenue - Functional | B127: 2 | C127: =C7+C28+C75+C101+C120 -> 402472674.7 | D127: =D7+D28+D75+D101+D120 -> 0 | E127: 0 | F127: 0 | G127: 0 | H127: 0 | I127: -41570913.78 | J127: -41570913.78 | K127: 360901760.9 | L127: 428471235.2 | M127: 455354409.3
J128: 0 | K128: 0
A129: Expenditure - Functional | J129: 0 | K129: 0
A130: =A7 -> Municipal governance and administration | C130: =C131+C134+C149 -> 82707545.51 | D130: 0 | E130: 0 | F130: 0 | G130: 0 | H130: 0 | I130: 11579301.24 | J130: 11579301.24 | K130: 94286846.75 | L130: =L131+L134+L149 -> 87669998.24 | M130: =M131+M134+M149 -> 92930198.14
A131: =A8 -> Executive and council | C131: =SUM(C132:C133) -> 24701627.69 | D131: 0 | E131: 0 | F131: 0 | G131: 0 | H131: 0 | I131: 2587987.686 | J131: 2587987.686 | K131: 27289615.38 | L131: =SUM(L132:L133) -> 26183725.35 | M131: =SUM(M132:M133) -> 27754748.88
A132: =A9 -> Mayor and Council | C132: 14048812.01 | I132: -55677.85557 | J132: -55677.85557 | K132: 13993134.15 | L132: 14891740.73 | M132: 15785245.17
A133: =A10 -> Municipal Manager, Town Secretary and Chief Executive | C133: 10652815.68 | I133: 2643665.542 | J133: 2643665.542 | K133: 13296481.22 | L133: 11291984.62 | M133: 11969503.7
A134: =A11 -> Finance and administration | C134: =SUM(C135:C148) -> 58005917.82 | D134: 0 | E134: 0 | F134: 0 | G134: 0 | H134: 0 | I134: 8991313.553 | J134: 8991313.553 | K134: 66997231.37 | L134: =SUM(L135:L148) -> 61486272.89 | M134: =SUM(M135:M148) -> 65175449.26
A135: Administrative and Corporate Support | J135: 0 | K135: 0
A136: Asset Management | J136: 0 | K136: 0
A137: Budget and Treasury Office | C137: 30795580.54 | I137: 9847297.152 | J137: 9847297.152 | K137: 40642877.69 | L137: 32643315.37 | M137: 34601914.29
A138: Finance | J138: =SUM(E138:I138) -> 0 | K138: =IF(D138=0,C138+J138,D138+J138) -> 0
A139: Fleet Management | J139: 0 | K139: 0
A140: Human Resources | C140: 27210337.28 | I140: -855983.5992 | J140: -855983.5992 | K140: 26354353.68 | L140: 28842957.52 | M140: 30573534.97
A141: Information Technology | J141: 0 | K141: 0
A142: Legal Services | J142: 0 | K142: 0
A143: Marketing, Customer Relations, Publicity and Media Co-ordination | J143: 0 | K143: 0
A144: Property Services | J144: 0 | K144: 0
A145: Risk Management | J145: 0 | K145: 0
A146: Security Services | J146: 0 | K146: 0
A147: Supply Chain Management | J147: 0 | K147: 0
A148: Valuation Service | J148: 0 | K148: 0
A149: =A26 -> Internal audit | C149: =SUM(C150:C150) -> 0 | D149: 0 | E149: 0 | F149: 0 | G149: 0 | H149: 0 | I149: 0 | J149: 0 | K149: 0 | L149: 0 | M149: 0
A150: =A27 -> Governance Function | J150: 0 | K150: 0
A151: =A28 -> Community and public safety | C151: =C152+C174+C180+C187+C190 -> 24183077 | D151: 0 | E151: 0 | F151: 0 | G151: 0 | H151: 0 | I151: 4157691.546 | J151: 4157691.546 | K151: 28340768.54 | L151: =L152+L174+L180+L187+L190 -> 25634061.62 | M151: =M152+M174+M180+M187+M190 -> 27172105.32
A152: =A29 -> Community and social services | C152: =SUM(C153:C173) -> 18202333.64 | D152: 0 | E152: 0 | F152: 0 | G152: 0 | H152: 0 | I152: 3677866.577 | J152: 3677866.577 | K152: 21880200.21 | L152: =SUM(L153:L173) -> 19294473.66 | M152: =SUM(M153:M173) -> 20452142.07
A153: =A30 -> Aged Care | J153: 0 | K153: 0
A154: =A31 -> Agricultural | J154: 0 | K154: 0
A155: Animal Care and Diseases | J155: 0 | K155: 0
A156: Cemeteries, Funeral Parlours and Crematoriums | C156: 15316716.13 | I156: 2739639.142 | J156: 2739639.142 | K156: 18056355.27 | L156: 16235719.1 | M156: 17209862.25
A157: Child Care Facilities | J157: 0 | K157: 0
A158: Community Halls and Facilities | C158: 2885617.505 | I158: 938227.4348 | J158: 938227.4348 | K158: 3823844.94 | L158: 3058754.556 | M158: 3242279.829
A159: Consumer Protection | J159: 0 | K159: 0
A160: Cultural Matters | J160: 0 | K160: 0
A161: Disaster Management | J161: 0 | K161: 0
A162: Education | J162: 0 | K162: 0
A163: Indigenous and Customary Law | J163: 0 | K163: 0
A164: Industrial Promotion | J164: 0 | K164: 0
A165: Language Policy | J165: 0 | K165: 0
A166: Libraries and Archives | J166: 0 | K166: 0
A167: Literacy Programmes | J167: 0 | K167: 0
A168: Media Services | J168: 0 | K168: 0
A169: Museums and Art Galleries | J169: 0 | K169: 0
A170: Population Development | J170: 0 | K170: 0
A171: Provincial Cultural Matters | J171: 0 | K171: 0
A172: Theatres | J172: 0 | K172: 0
A173: Zoo's | J173: 0 | K173: 0
A174: Sport and recreation | C174: =SUM(C175:C179) -> 595122.5345 | D174: 0 | E174: 0 | F174: 0 | G174: 0 | H174: 0 | I174: -176747.6667 | J174: -176747.6667 | K174: 418374.8678 | L174: =SUM(L175:L179) -> 630829.8865 | M174: =SUM(M175:M179) -> 668679.6797
A175: Beaches and Jetties | J175: 0 | K175: 0
A176: Casinos, Racing, Gambling, Wagering | J176: 0 | K176: 0
A177: Community Parks (including Nurseries) | J177: 0 | K177: 0
A178: Recreational Facilities | C178: 595122.5345 | I178: -176747.6667 | J178: -176747.6667 | K178: 418374.8678 | L178: 630829.8865 | M178: 668679.6797
A179: Sports Grounds and Stadiums | J179: 0 | K179: 0
A180: Public safety | C180: =SUM(C181:C186) -> 5385620.827 | D180: 0 | E180: 0 | F180: 0 | G180: 0 | H180: 0 | I180: 656572.6359 | J180: 656572.6359 | K180: 6042193.463 | L180: =SUM(L181:L186) -> 5708758.077 | M180: =SUM(M181:M186) -> 6051283.561
A181: Civil Defence | J181: 0 | K181: 0
A182: Cleansing | J182: 0 | K182: 0
A183: Control of Public Nuisances | J183: 0 | K183: 0
A184: Fencing and Fences | J184: 0 | K184: 0
A185: Fire Fighting and Protection | C185: 5385620.827 | I185: 656572.6359 | J185: 656572.6359 | K185: 6042193.463 | L185: 5708758.077 | M185: 6051283.561
A186: Licensing and Control of Animals | J186: 0 | K186: 0
A187: =A64 -> Housing | C187: =SUM(C188:C189) -> 0 | D187: =SUM(D188:D189) -> 0 | E187: 0 | F187: 0 | G187: 0 | H187: 0 | I187: 0 | J187: 0 | K187: 0 | L187: 0 | M187: 0
A188: =A65 -> Housing | J188: 0 | K188: 0
A189: =A66 -> Informal Settlements | J189: 0 | K189: 0
A190: Health | C190: =SUM(C191:C197) -> 0 | D190: 0 | E190: 0 | F190: 0 | G190: 0 | H190: 0 | I190: 0 | J190: 0 | K190: 0 | L190: =SUM(L191:L197) -> 0 | M190: =SUM(M191:M197) -> 0
A191: Ambulance | J191: 0 | K191: 0
A192: Health Services | J192: 0 | K192: 0
A193: Laboratory Services | J193: 0 | K193: 0
A194: Food Control | J194: 0 | K194: 0
A195: Health Surveillance and Prevention of Communicable Diseases including immunizations | J195: 0 | K195: 0
A196: Vector Control | J196: 0 | K196: 0
A197: Chemical Safety | J197: 0 | K197: 0
A198: =A75 -> Economic and environmental services | C198: =C199+C210+C217 -> 51386087.11 | D198: 0 | E198: 0 | F198: 0 | G198: 0 | H198: 0 | I198: -2498122.726 | J198: -2498122.726 | K198: 48887964.38 | L198: =L199+L210+L217 -> 54469252.33 | M198: =M199+M210+M217 -> 57737407.47
A199: =A76 -> Planning and development | C199: =SUM(C200:C209) -> 3269809.343 | D199: 0 | E199: 0 | F199: 0 | G199: 0 | H199: 0 | I199: 218768.977 | J199: 218768.977 | K199: 3488578.32 | L199: =SUM(L200:L209) -> 3465997.904 | M199: =SUM(M200:M209) -> 3673957.778
A200: =A77 -> Billboards | J200: 0 | K200: 0
... 56 more rows

Sheet B3-FinPerf V
A1: =muni&" - "&_ADJ2&" - "&Date -> FS193 Nketoana - Table B3 Adjustments Budget Financial Performance (revenue and expenditure by municipal vote) - 28/02/2018
A2: =Vdesc -> Vote Description | B2: =head27 -> Ref | C2: =Head2 -> Budget Year 2017/18 | L2: =Head10 -> Budget Year +1 2018/19 | M2: =Head11 -> Budget Year +2 2019/20
C3: =Head6 -> Original Budget | D3: =Head54 -> Prior Adjusted | E3: =Head51 -> Accum. Funds | F3: =Head52 -> Multi-year capital | G3: =Head53 -> Unfore. Unavoid. | H3: =Head55 -> Nat. or Prov. Govt | I3: =Head50 -> Other Adjusts. | J3: =Head56 -> Total Adjusts. | K3: =Head7 -> Adjusted Budget | L3: =Head7 -> Adjusted Budget | M3: =Head7 -> Adjusted Budget
A4: [Insert departmental structure etc] | D4: 3 | E4: 4 | F4: 5 | G4: 6 | H4: 7 | I4: 8 | J4: 9 | K4: 10
A5: R thousands | C5: A | D5: A1 | E5: B | F5: C | G5: D | H5: E | I5: F | J5: G | K5: H
A6: Revenue by Vote | B6: 1
A7: =B3B!A7 -> Vote 1 - EXECUTIVE AND COUNCIL | C7: =B3B!C7 -> 8546342.64 | D7: =B3B!D7 -> 0 | E7: =B3B!E7 -> 0 | F7: =B3B!F7 -> 0 | G7: =B3B!G7 -> 0 | H7: =B3B!H7 -> 0 | I7: =B3B!I7 -> 0 | J7: =SUM(E7:I7) -> 0 | K7: =IF(D7=0,C7+J7,D7+J7) -> 8546342.64 | L7: =B3B!L7 -> 9059123.198 | M7: =B3B!M7 -> 9602670.59
A8: =B3B!A18 -> Vote 2 - FINANCE AND ADMINISTRATION | C8: =B3B!C18 -> 78672867.67 | D8: =B3B!D18 -> 0 | E8: =B3B!E18 -> 0 | F8: =B3B!F18 -> 0 | G8: =B3B!G18 -> 0 | H8: =B3B!H18 -> 0 | I8: =B3B!I18 -> 2282699.71 | J8: 2282699.71 | K8: 80955567.38 | L8: =B3B!L18 -> 85243439.72 | M8: =B3B!M18 -> 91532946.1
A9: =B3B!A29 -> Vote 3 - COMMUNITY SERVICES | C9: =B3B!C29 -> 15252626 | D9: =B3B!D29 -> 0 | E9: =B3B!E29 -> 0 | F9: =B3B!F29 -> 0 | G9: =B3B!G29 -> 0 | H9: =B3B!H29 -> 0 | I9: =B3B!I29 -> 1841131.33 | J9: 1841131.33 | K9: 17093757.33 | L9: =B3B!L29 -> 16167783.56 | M9: =B3B!M29 -> 17137850.58
A10: =B3B!A40 -> Vote 4 - WASTE MANAGEMENT | C10: =B3B!C40 -> 36764201.05 | D10: =B3B!D40 -> 0 | E10: =B3B!E40 -> 0 | F10: =B3B!F40 -> 0 | G10: =B3B!G40 -> 0 | H10: =B3B!H40 -> 0 | I10: =B3B!I40 -> 2859730.952 | J10: 2859730.952 | K10: 39623932 | L10: =B3B!L40 -> 38970053.11 | M10: =B3B!M40 -> 41308256.3
A11: =B3B!A51 -> Vote 5 - LOCAL ECONOMIC DEVELOPMENT | C11: =B3B!C51 -> 4460159.56 | D11: =B3B!D51 -> 0 | E11: =B3B!E51 -> 0 | F11: =B3B!F51 -> 0 | G11: =B3B!G51 -> 0 | H11: =B3B!H51 -> 0 | I11: =B3B!I51 -> 41284.14857 | J11: 41284.14857 | K11: 4501443.709 | L11: =B3B!L51 -> 4727769.134 | M11: =B3B!M51 -> 5011435.282
A12: =B3B!A62 -> Vote 6 - ROADS TRANSPORT | C12: =B3B!C62 -> 20835156.67 | D12: =B3B!D62 -> 0 | E12: =B3B!E62 -> 0 | F12: =B3B!F62 -> 0 | G12: =B3B!G62 -> 0 | H12: =B3B!H62 -> 0 | I12: =B3B!I62 -> 3325075.86 | J12: 3325075.86 | K12: 24160232.53 | L12: =B3B!L62 -> 22085266.07 | M12: =B3B!M62 -> 23410382.03
A13: =B3B!A73 -> Vote 7 - WATER | C13: =B3B!C73 -> 130279857.6 | D13: =B3B!D73 -> 0 | E13: =B3B!E73 -> 0 | F13: =B3B!F73 -> 0 | G13: =B3B!G73 -> 0 | H13: =B3B!H73 -> 0 | I13: =B3B!I73 -> 8725426.884 | J13: 8725426.884 | K13: 139005284.5 | L13: =B3B!L73 -> 138096649 | M13: =B3B!M73 -> 146382448
A14: =B3B!A84 -> Vote 8 - ELECTRICITY | C14: =B3B!C84 -> 57572098.6 | D14: =B3B!D84 -> 0 | E14: =B3B!E84 -> 0 | F14: =B3B!F84 -> 0 | G14: =B3B!G84 -> 0 | H14: =B3B!H84 -> 0 | I14: =B3B!I84 -> 3090302.96 | J14: 3090302.96 | K14: 60662401.56 | L14: =B3B!L84 -> 61026424.52 | M14: =B3B!M84 -> 64688009.99
A15: =B3B!A95 -> Vote 9 - WASTE WATER | C15: =B3B!C95 -> 48227020.75 | D15: =B3B!D95 -> 0 | E15: =B3B!E95 -> 0 | F15: =B3B!F95 -> 0 | G15: =B3B!G95 -> 0 | H15: =B3B!H95 -> 0 | I15: =B3B!I95 -> 35024434.38 | J15: 35024434.38 | K15: 83251455.13 | L15: =B3B!L95 -> 51120642 | M15: =B3B!M95 -> 54187880.51
A16: =B3B!A106 -> Vote 10 - HOUSING | C16: =B3B!C106 -> 1862344.18 | D16: =B3B!D106 -> 0 | E16: =B3B!E106 -> 0 | F16: =B3B!F106 -> 0 | G16: =B3B!G106 -> 0 | H16: =B3B!H106 -> 0 | I16: =B3B!I106 -> 0 | J16: 0 | K16: 1862344.18 | L16: =B3B!L106 -> 1974084.831 | M16: =B3B!M106 -> 2092529.921
A17: =B3B!A117 -> Vote 11 - [NAME OF VOTE 11] | C17: =B3B!C117 -> 0 | D17: =B3B!D117 -> 0 | E17: =B3B!E117 -> 0 | F17: =B3B!F117 -> 0 | G17: =B3B!G117 -> 0 | H17: =B3B!H117 -> 0 | I17: =B3B!I117 -> 0 | J17: 0 | K17: 0 | L17: =B3B!L117 -> 0 | M17: =B3B!M117 -> 0
A18: =B3B!A128 -> Vote 12 - [NAME OF VOTE 12] | C18: =B3B!C128 -> 0 | D18: =B3B!D128 -> 0 | E18: =B3B!E128 -> 0 | F18: =B3B!F128 -> 0 | G18: =B3B!G128 -> 0 | H18: =B3B!H128 -> 0 | I18: =B3B!I128 -> 0 | J18: 0 | K18: 0 | L18: =B3B!L128 -> 0 | M18: =B3B!M128 -> 0
A19: =B3B!A139 -> Vote 13 - [NAME OF VOTE 13] | C19: =B3B!C139 -> 0 | D19: =B3B!D139 -> 0 | E19: =B3B!E139 -> 0 | F19: =B3B!F139 -> 0 | G19: =B3B!G139 -> 0 | H19: =B3B!H139 -> 0 | I19: =B3B!I139 -> 0 | J19: 0 | K19: 0 | L19: =B3B!L139 -> 0 | M19: =B3B!M139 -> 0
A20: =B3B!A150 -> Vote 14 - [NAME OF VOTE 14] | C20: =B3B!C150 -> 0 | D20: =B3B!D150 -> 0 | E20: =B3B!E150 -> 0 | F20: =B3B!F150 -> 0 | G20: =B3B!G150 -> 0 | H20: =B3B!H150 -> 0 | I20: =B3B!I150 -> 0 | J20: 0 | K20: 0 | L20: =B3B!L150 -> 0 | M20: =B3B!M150 -> 0
A21: =B3B!A161 -> Vote 15 - [NAME OF VOTE 15] | C21: =B3B!C161 -> 0 | D21: =B3B!D161 -> 0 | E21: =B3B!E161 -> 0 | F21: =B3B!F161 -> 0 | G21: =B3B!G161 -> 0 | H21: =B3B!H161 -> 0 | I21: =B3B!I161 -> 0 | J21: 0 | K21: 0 | L21: =B3B!L161 -> 0 | M21: =B3B!M161 -> 0
A22: Total Revenue by Vote | B22: 2 | C22: =SUM(C7:C21) -> 402472674.7 | D22: =SUM(D7:D21) -> 0 | E22: 0 | F22: 0 | G22: 0 | H22: 0 | I22: 57190086.23 | J22: =SUM(J7:J21) -> 57190086.23 | K22: 459662760.9 | L22: =SUM(L7:L21) -> 428471235.2 | M22: =SUM(M7:M21) -> 455354409.3
A24: Expenditure by Vote | B24: 1
A25: =B3B!A175 -> Vote 1 - EXECUTIVE AND COUNCIL | C25: =B3B!C175 -> 24701627.69 | D25: =B3B!D175 -> 0 | E25: =B3B!E175 -> 0 | F25: =B3B!F175 -> 0 | G25: =B3B!G175 -> 0 | H25: =B3B!H175 -> 0 | I25: =B3B!I175 -> 2587987.684 | J25: =SUM(E25:I25) -> 2587987.684 | K25: =IF(D25=0,C25+J25,D25+J25) -> 27289615.38 | L25: =B3B!L175 -> 26183725.36 | M25: =B3B!M175 -> 27754748.88
A26: =B3B!A186 -> Vote 2 - FINANCE AND ADMINISTRATION | C26: =B3B!C186 -> 58005917.82 | D26: =B3B!D186 -> 0 | E26: =B3B!E186 -> 0 | F26: =B3B!F186 -> 0 | G26: =B3B!G186 -> 0 | H26: =B3B!H186 -> 0 | I26: =B3B!I186 -> 8991313.553 | J26: 8991313.553 | K26: 66997231.38 | L26: =B3B!L186 -> 61486272.89 | M26: =B3B!M186 -> 65175449.27
A27: =B3B!A197 -> Vote 3 - COMMUNITY SERVICES | C27: =B3B!C197 -> 24183077 | D27: =B3B!D197 -> 0 | E27: =B3B!E197 -> 0 | F27: =B3B!F197 -> 0 | G27: =B3B!G197 -> 0 | H27: =B3B!H197 -> 0 | I27: =B3B!I197 -> 4157691.546 | J27: 4157691.546 | K27: 28340768.54 | L27: =B3B!L197 -> 25634061.62 | M27: =B3B!M197 -> 27172105.32
A28: =B3B!A208 -> Vote 4 - WASTE MANAGEMENT | C28: =B3B!C208 -> 23741857.54 | D28: =B3B!D208 -> 0 | E28: =B3B!E208 -> 0 | F28: =B3B!F208 -> 0 | G28: =B3B!G208 -> 0 | H28: =B3B!H208 -> 0 | I28: =B3B!I208 -> 8822164.258 | J28: 8822164.258 | K28: 32564021.8 | L28: =B3B!L208 -> 25166368.99 | M28: =B3B!M208 -> 26676351.13
A29: =B3B!A219 -> Vote 5 - LOCAL ECONOMIC DEVELOPMENT | C29: =B3B!C219 -> 2336215.518 | D29: =B3B!D219 -> 0 | E29: =B3B!E219 -> 0 | F29: =B3B!F219 -> 0 | G29: =B3B!G219 -> 0 | H29: =B3B!H219 -> 0 | I29: =B3B!I219 -> -76372.20082 | J29: -76372.20082 | K29: 2259843.317 | L29: =B3B!L219 -> 2476388.449 | M29: =B3B!M219 -> 2624971.756
A30: =B3B!A230 -> Vote 6 - ROADS TRANSPORT | C30: =B3B!C230 -> 48116277.76 | D30: =B3B!D230 -> 0 | E30: =B3B!E230 -> 0 | F30: =B3B!F230 -> 0 | G30: =B3B!G230 -> 0 | H30: =B3B!H230 -> 0 | I30: =B3B!I230 -> -2716891.703 | J30: -2716891.703 | K30: 45399386.06 | L30: =B3B!L230 -> 51003254.43 | M30: =B3B!M230 -> 54063449.7
A31: =B3B!A241 -> Vote 7 - WATER | C31: =B3B!C241 -> 56073206.11 | D31: =B3B!D241 -> 0 | E31: =B3B!E241 -> 0 | F31: =B3B!F241 -> 0 | G31: =B3B!G241 -> 0 | H31: =B3B!H241 -> 0 | I31: =B3B!I241 -> 28851497.71 | J31: 28851497.71 | K31: 84924703.82 | L31: =B3B!L241 -> 59437598.48 | M31: =B3B!M241 -> 63003854.39
A32: =B3B!A252 -> Vote 8 - ELECTRICITY | C32: =B3B!C252 -> 71959366.67 | D32: =B3B!D252 -> 0 | E32: =B3B!E252 -> 0 | F32: =B3B!F252 -> 0 | G32: =B3B!G252 -> 0 | H32: =B3B!H252 -> 0 | I32: =B3B!I252 -> 3035232.164 | J32: 3035232.164 | K32: 74994598.83 | L32: =B3B!L252 -> 76276928.67 | M32: =B3B!M252 -> 80853544.39
A33: =B3B!A263 -> Vote 9 - WASTE WATER | C33: =B3B!C263 -> 25743626.76 | D33: =B3B!D263 -> 0 | E33: =B3B!E263 -> 0 | F33: =B3B!F263 -> 0 | G33: =B3B!G263 -> 0 | H33: =B3B!H263 -> 0 | I33: =B3B!I263 -> 7595152.684 | J33: 7595152.684 | K33: 33338779.44 | L33: =B3B!L263 -> 27288244.37 | M33: =B3B!M263 -> 28925539.03
A34: =B3B!A274 -> Vote 10 - HOUSING | C34: =B3B!C274 -> 2057315.588 | D34: =B3B!D274 -> 0 | E34: =B3B!E274 -> 0 | F34: =B3B!F274 -> 0 | G34: =B3B!G274 -> 0 | H34: =B3B!H274 -> 0 | I34: =B3B!I274 -> 267036.2432 | J34: 267036.2432 | K34: 2324351.831 | L34: =B3B!L274 -> 2180754.524 | M34: =B3B!M274 -> 2311599.795
A35: =B3B!A285 -> Vote 11 - [NAME OF VOTE 11] | C35: =B3B!C285 -> 0 | D35: =B3B!D285 -> 0 | E35: =B3B!E285 -> 0 | F35: =B3B!F285 -> 0 | G35: =B3B!G285 -> 0 | H35: =B3B!H285 -> 0 | I35: =B3B!I285 -> 0 | J35: 0 | K35: 0 | L35: =B3B!L285 -> 0 | M35: =B3B!M285 -> 0
A36: =B3B!A296 -> Vote 12 - [NAME OF VOTE 12] | C36: =B3B!C296 -> 0 | D36: =B3B!D296 -> 0 | E36: =B3B!E296 -> 0 | F36: =B3B!F296 -> 0 | G36: =B3B!G296 -> 0 | H36: =B3B!H296 -> 0 | I36: =B3B!I296 -> 0 | J36: 0 | K36: 0 | L36: =B3B!L296 -> 0 | M36: =B3B!M296 -> 0
A37: =B3B!A307 -> Vote 13 - [NAME OF VOTE 13] | C37: =B3B!C307 -> 0 | D37: =B3B!D307 -> 0 | E37: =B3B!E307 -> 0 | F37: =B3B!F307 -> 0 | G37: =B3B!G307 -> 0 | H37: =B3B!H307 -> 0 | I37: =B3B!I307 -> 0 | J37: 0 | K37: 0 | L37: =B3B!L307 -> 0 | M37: =B3B!M307 -> 0
A38: =B3B!A318 -> Vote 14 - [NAME OF VOTE 14] | C38: =B3B!C318 -> 0 | D38: =B3B!D318 -> 0 | E38: =B3B!E318 -> 0 | F38: =B3B!F318 -> 0 | G38: =B3B!G318 -> 0 | H38: =B3B!H318 -> 0 | I38: =B3B!I318 -> 0 | J38: 0 | K38: 0 | L38: =B3B!L318 -> 0 | M38: =B3B!M318 -> 0
A39: =B3B!A329 -> Vote 15 - [NAME OF VOTE 15] | C39: =B3B!C329 -> 0 | D39: =B3B!D329 -> 0 | E39: =B3B!E329 -> 0 | F39: =B3B!F329 -> 0 | G39: =B3B!G329 -> 0 | H39: =B3B!H329 -> 0 | I39: =B3B!I329 -> 0 | J39: 0 | K39: 0 | L39: =B3B!L329 -> 0 | M39: =B3B!M329 -> 0
A40: Total Expenditure by Vote | B40: 2 | C40: =SUM(C25:C39) -> 336918488.5 | D40: =SUM(D25:D39) -> 0 | E40: 0 | F40: 0 | G40: 0 | H40: 0 | I40: 61514811.94 | J40: =SUM(J25:J39) -> 61514811.94 | K40: =SUM(K25:K39) -> 398433300.4 | L40: =SUM(L25:L39) -> 357133597.8 | M40: =SUM(M25:M39) -> 378561613.6
A41: =result -> Surplus/ (Deficit) for the year | B41: 2 | C41: =C22-C40 -> 65554186.24 | D41: =D22-D40 -> 0 | E41: 0 | F41: 0 | G41: 0 | H41: 0 | I41: -4324725.711 | J41: -4324725.711 | K41: 61229460.53 | L41: 71337637.41 | M41: 76792795.65
A42: =head27a -> References
A43: 1. Insert 'Vote'; e.g. Department, if different to standard classification structure
A44: 2. Must reconcile to Budgeted Financial Performance (revenue and expenditure)
A45: 3. Only complete if a previous adjusted budget has been approved in the same financial year. Reflect most recent adjusted budget.
A46: 4. Additional cash-backed accumulated funds/unspent funds (MFMA section 18(1)(b) and section 28(2)(e)) identified after the Original Budget approved and after annual financial statements audited (note: only where underspending could not reasonably have been foreseen)
A47: 5. Increases of funds approved under MFMA section 31
A48: 6. Adjustments approved in accordance with MFMA section 29
A49: 7. Adjustments to transfers from National or Provincial Government
A50: 8. Adjusts. = 'Other' Adjustments proposed to be approved; including revenue under-collection (MFMA section 28(2)(a)); additional revenue appropriation on existing programmes (section 28(2))(b); projected savings (section 28(2)(d)); error correction (section 28(2)(f))
A51: 9. G = B + C + D + E + F
A52: 10. Adjusted Budget H = (A or A1/2 etc) + G
A54: check revenue | C54: =C22-'B4-FinPerf RE'!C62 -> -0.01358383894 | D54: =D22-'B4-FinPerf RE'!D62 -> 0 | E54: =E22-'B4-FinPerf RE'!E62 -> 0 | F54: =F22-'B4-FinPerf RE'!F62 -> 0 | G54: =G22-'B4-FinPerf RE'!G62 -> 0 | H54: =H22-'B4-FinPerf RE'!H62 -> 0 | I54: =I22-'B4-FinPerf RE'!I62 -> 52226322.96 | J54: =J22-'B4-FinPerf RE'!J62 -> 52226322.96 | K54: =K22-'B4-FinPerf RE'!K62 -> 52226322.95 | L54: =L22-'B4-FinPerf RE'!L62 -> -0.01810342073 | M54: =M22-'B4-FinPerf RE'!M62 -> -0.01855367422
A55: check expenditure | C55: =C40-'B4-FinPerf RE'!C37 -> -0.007135272026 | D55: =D40-'B4-FinPerf RE'!D37 -> 0 | E55: =E40-'B4-FinPerf RE'!E37 -> 0 | F55: =F40-'B4-FinPerf RE'!F37 -> 0 | G55: =G40-'B4-FinPerf RE'!G37 -> 0 | H55: =H40-'B4-FinPerf RE'!H37 -> 0 | I55: =I40-'B4-FinPerf RE'!I37 -> 52225730.27 | J55: =J40-'B4-FinPerf RE'!J37 -> 52225730.27 | K55: =K40-'B4-FinPerf RE'!K37 -> 52225730.26 | L55: =L40-'B4-FinPerf RE'!L37 -> -0.007563471794 | M55: =M40-'B4-FinPerf RE'!M37 -> -0.008017361164

Sheet B3B
A1: =muni&" - "&_ADJ2&" - B"&" - "&Date -> FS193 Nketoana - Table B3 Adjustments Budget Financial Performance (revenue and expenditure by municipal vote) - B - 28/02/2018
A2: =Vdesc -> Vote Description | B2: =head27 -> Ref | C2: =Head2 -> Budget Year 2017/18 | L2: =Head10 -> Budget Year +1 2018/19 | M2: =Head11 -> Budget Year +2 2019/20
C3: =Head6 -> Original Budget | D3: =Head54 -> Prior Adjusted | E3: =Head51 -> Accum. Funds | F3: =Head52 -> Multi-year capital | G3: =Head53 -> Unfore. Unavoid. | H3: =Head55 -> Nat. or Prov. Govt | I3: =Head50 -> Other Adjusts. | J3: =Head56 -> Total Adjusts. | K3: =Head7 -> Adjusted Budget | L3: =Head7 -> Adjusted Budget | M3: =Head7 -> Adjusted Budget
A4: [Insert departmental structure etc] | D4: 3 | E4: 4 | F4: 5 | G4: 6 | H4: 7 | I4: 8 | J4: 9 | K4: 10
A5: R thousands | C5: A | D5: A1 | E5: B | F5: C | G5: D | H5: E | I5: F | J5: G | K5: H
A6: Revenue by Vote | B6: 1
A7: ='Org structure'!A2 -> Vote 1 - EXECUTIVE AND COUNCIL | C7: =SUM(C8:C17) -> 8546342.64 | D7: =SUM(D8:D17) -> 0 | E7: 0 | F7: 0 | G7: 0 | H7: 0 | I7: 0 | J7: =SUM(E7:I7) -> 0 | K7: =IF(D7=0,C7+J7,D7+J7) -> 8546342.64 | L7: =SUM(L8:L17) -> 9059123.198 | M7: =SUM(M8:M17) -> 9602670.59
A8: ='Org structure'!E3 -> 1.1 - Mayor's Office | C8: 2217237.29 | I8: 0 | J8: =SUM(E8:I8) -> 0 | K8: =IF(D8=0,C8+J8,D8+J8) -> 2217237.29 | L8: 2350271.527 | M8: 2491287.819
A9: ='Org structure'!E4 -> 1.2 - Speaker's Office | C9: 2215129.07 | I9: 0 | J9: 0 | K9: 2215129.07 | L9: 2348036.814 | M9: 2488919.023
A10: ='Org structure'!E5 -> 1.4 - Municipal Manager's Office | C10: 4113976.28 | I10: 0 | J10: 0 | K10: 4113976.28 | L10: 4360814.857 | M10: 4622463.748
A11: ='Org structure'!E6 -> 1.4 - IDP and PMS | J11: 0 | K11: 0
A12: ='Org structure'!E7 -> 1.5 - Internal Audit | J12: 0 | K12: 0
A13: ='Org structure'!E8 -> 1.6 - Special Programmes | J13: 0 | K13: 0
A14: ='Org structure'!E9 -> 0 | J14: 0 | K14: 0
A15: ='Org structure'!E10 -> 0 | J15: 0 | K15: 0
A16: ='Org structure'!E11 -> 0 | J16: 0 | K16: 0
A17: ='Org structure'!E12 -> 0 | J17: 0 | K17: 0
A18: ='Org structure'!A3 -> Vote 2 - FINANCE AND ADMINISTRATION | C18: =SUM(C19:C28) -> 78672867.67 | D18: =SUM(D19:D28) -> 0 | E18: 0 | F18: 0 | G18: 0 | H18: 0 | I18: 2282699.71 | J18: 2282699.71 | K18: 80955567.38 | L18: =SUM(L19:L28) -> 85243439.72 | M18: =SUM(M19:M28) -> 91532946.1
A19: ='Org structure'!E14 -> 2.1 - Human Resource | J19: 0 | K19: 0
A20: ='Org structure'!E15 -> 2.2 - Records Management | J20: 0 | K20: 0
A21: ='Org structure'!E16 -> 2.3 - Legal Services | J21: 0 | K21: 0
A22: ='Org structure'!E17 -> 2.4 - Administration | C22: 364124.5564 | I22: 200556.8882 | J22: 200556.8882 | K22: 564681.4446 | L22: 385972.0298 | M22: 409130.3516
A23: ='Org structure'!E18 -> 2.5 - Revenue Management | J23: 0 | K23: 0
A24: ='Org structure'!E19 -> 2.6 - Supply Chain Management | J24: 0 | K24: 0
A25: ='Org structure'!E20 -> 2.7 - CFO | C25: 78308743.11 | I25: 2082142.822 | J25: 2082142.822 | K25: 80390885.93 | L25: 84857467.69 | M25: 91123815.75
A26: ='Org structure'!E21 -> 2.8 - Director Corporate Services | J26: 0 | K26: 0
A27: ='Org structure'!E22 -> 2.9 - Budget and Treasury | J27: 0 | K27: 0
A28: ='Org structure'!E23 -> 2.10 - Expenditure | J28: 0 | K28: 0
A29: ='Org structure'!A4 -> Vote 3 - COMMUNITY SERVICES | C29: =SUM(C30:C39) -> 15252626 | D29: 0 | E29: 0 | F29: 0 | G29: 0 | H29: 0 | I29: 1841131.33 | J29: 1841131.33 | K29: 17093757.33 | L29: =SUM(L30:L39) -> 16167783.56 | M29: =SUM(M30:M39) -> 17137850.58
A30: ='Org structure'!E25 -> 3.1 - Cementry | C30: 5330343.31 | I30: 135546.7 | J30: 135546.7 | K30: 5465890.01 | L30: 5650163.909 | M30: 5989173.743
A31: ='Org structure'!E26 -> 3.2 - Parks | J31: 0 | K31: 0
A32: ='Org structure'!E27 -> 3.3 - Director Community Services | C32: 3879422.422 | I32: 0 | J32: 0 | K32: 3879422.422 | L32: 4112187.768 | M32: 4358919.034
A33: ='Org structure'!E28 -> 3.4 - Traffic Services | C33: 430000 | I33: -50000 | J33: -50000 | K33: 380000 | L33: 455800 | M33: 483148
A34: ='Org structure'!E29 -> 3.5 - Fire Services | J34: 0 | K34: 0
A35: ='Org structure'!E30 -> 3.6 - Sports and Recreation | C35: 5612860.27 | I35: 1755584.63 | J35: 1755584.63 | K35: 7368444.9 | L35: 5949631.886 | M35: 6306609.799
A36: ='Org structure'!E31 -> 3.7 - Libraries | J36: 0 | K36: 0
A37: ='Org structure'!E32 -> 0 | J37: 0 | K37: 0
A38: ='Org structure'!E33 -> 0 | J38: 0 | K38: 0
A39: ='Org structure'!E34 -> 0 | J39: 0 | K39: 0
A40: ='Org structure'!A5 -> Vote 4 - WASTE MANAGEMENT | C40: =SUM(C41:C50) -> 36764201.05 | D40: 0 | E40: 0 | F40: 0 | G40: 0 | H40: 0 | I40: 2859730.952 | J40: 2859730.952 | K40: 39623932 | L40: =SUM(L41:L50) -> 38970053.11 | M40: =SUM(M41:M50) -> 41308256.3
A41: ='Org structure'!E36 -> 4.1 - Waste Collection | J41: 0 | K41: 0
A42: ='Org structure'!E37 -> 4.2 - Solid Waste Disposal | C42: 36764201.05 | I42: 2859730.952 | J42: 2859730.952 | K42: 39623932 | L42: 38970053.11 | M42: 41308256.3
A43: ='Org structure'!E38 -> 4.3 - Solid Waste Management | J43: 0 | K43: 0
A44: ='Org structure'!E39 -> 0 | J44: 0 | K44: 0
A45: ='Org structure'!E40 -> 0 | J45: 0 | K45: 0
A46: ='Org structure'!E41 -> 0 | J46: 0 | K46: 0
A47: ='Org structure'!E42 -> 0 | J47: 0 | K47: 0
A48: ='Org structure'!E43 -> 0 | J48: 0 | K48: 0
A49: ='Org structure'!E44 -> 0 | J49: 0 | K49: 0
A50: ='Org structure'!E45 -> 0 | J50: 0 | K50: 0
A51: ='Org structure'!A6 -> Vote 5 - LOCAL ECONOMIC DEVELOPMENT | C51: =SUM(C52:C61) -> 4460159.56 | D51: =SUM(D52:D61) -> 0 | E51: 0 | F51: 0 | G51: 0 | H51: 0 | I51: 41284.14857 | J51: 41284.14857 | K51: 4501443.709 | L51: =SUM(L52:L61) -> 4727769.134 | M51: =SUM(M52:M61) -> 5011435.282
A52: ='Org structure'!E47 -> 5.1 - SMME Hub | J52: 0 | K52: 0
A53: ='Org structure'!E48 -> 5.2 - Tourism | C53: 1701922.28 | I53: 0 | J53: 0 | K53: 1701922.28 | L53: 1804037.617 | M53: 1912279.874
A54: ='Org structure'!E49 -> 5.3 - Economic Development | C54: 2758237.28 | I54: 41284.14857 | J54: 41284.14857 | K54: 2799521.429 | L54: 2923731.517 | M54: 3099155.408
A55: ='Org structure'!E50 -> 0 | J55: 0 | K55: 0
A56: ='Org structure'!E51 -> 0 | J56: 0 | K56: 0
A57: ='Org structure'!E52 -> 0 | J57: 0 | K57: 0
A58: ='Org structure'!E53 -> 0 | J58: 0 | K58: 0
A59: ='Org structure'!E54 -> 0 | J59: 0 | K59: 0
A60: ='Org structure'!E55 -> 0 | J60: 0 | K60: 0
A61: ='Org structure'!E56 -> 0 | J61: 0 | K61: 0
A62: ='Org structure'!A7 -> Vote 6 - ROADS TRANSPORT | C62: =SUM(C63:C72) -> 20835156.67 | D62: =SUM(D63:D72) -> 0 | E62: 0 | F62: 0 | G62: 0 | H62: 0 | I62: 3325075.86 | J62: 3325075.86 | K62: 24160232.53 | L62: =SUM(L63:L72) -> 22085266.07 | M62: =SUM(M63:M72) -> 23410382.03
A63: ='Org structure'!E58 -> 6.1 - Roads | C63: 20835156.67 | I63: 3325075.86 | J63: 3325075.86 | K63: 24160232.53 | L63: 22085266.07 | M63: 23410382.03
A64: ='Org structure'!E59 -> 6.2 - Storm Water | J64: 0 | K64: 0
A65: ='Org structure'!E60 -> 6.3 - Director Technical | J65: 0 | K65: 0
A66: ='Org structure'!E61 -> 0 | J66: 0 | K66: 0
A67: ='Org structure'!E62 -> 0 | J67: 0 | K67: 0
A68: ='Org structure'!E63 -> 0 | J68: 0 | K68: 0
A69: ='Org structure'!E64 -> 0 | J69: 0 | K69: 0
A70: ='Org structure'!E65 -> 0 | J70: 0 | K70: 0
A71: ='Org structure'!E66 -> 0 | J71: 0 | K71: 0
A72: ='Org structure'!E67 -> 0 | J72: =SUM(E72:I72) -> 0 | K72: =IF(D72=0,C72+J72,D72+J72) -> 0
A73: ='Org structure'!A8 -> Vote 7 - WATER | C73: =SUM(C74:C83) -> 130279857.6 | D73: 0 | E73: 0 | F73: 0 | G73: 0 | H73: 0 | I73: 8725426.884 | J73: 8725426.884 | K73: 139005284.5 | L73: =SUM(L74:L83) -> 138096649 | M73: =SUM(M74:M83) -> 146382448
A74: ='Org structure'!E69 -> 7.1 - WTW Reitz | J74: 0 | K74: 0
A75: ='Org structure'!E70 -> 7.2 - WTW Mamafubedu | J75: 0 | K75: 0
A76: ='Org structure'!E71 -> 7.3 - WTW Lindley | J76: 0 | K76: 0
A77: ='Org structure'!E72 -> 7.4 - WTW Arlington | J77: 0 | K77: 0
A78: ='Org structure'!E73 -> 7.5 - Water Network Reitz | J78: 0 | K78: 0
A79: ='Org structure'!E74 -> 7.6 - Water Network Mamafubedu | J79: 0 | K79: 0
A80: ='Org structure'!E75 -> 7.7 - Water Network Lindley | J80: 0 | K80: 0
A81: ='Org structure'!E76 -> 7.8 - Water Network Arlington | J81: 0 | K81: 0
A82: ='Org structure'!E77 -> 7.9 - General Water Works | C82: 130279857.6 | I82: 8725426.884 | J82: 8725426.884 | K82: 139005284.5 | L82: 138096649 | M82: 146382448
A83: ='Org structure'!E78 -> 0 | J83: 0 | K83: 0
A84: ='Org structure'!A9 -> Vote 8 - ELECTRICITY | C84: =SUM(C85:C94) -> 57572098.6 | D84: =SUM(D85:D94) -> 0 | E84: 0 | F84: 0 | G84: 0 | H84: 0 | I84: 3090302.96 | J84: 3090302.96 | K84: 60662401.56 | L84: =SUM(L85:L94) -> 61026424.52 | M84: =SUM(M85:M94) -> 64688009.99
A85: ='Org structure'!E80 -> 8.1 - Reitz Electricity | J85: 0 | K85: 0
A86: ='Org structure'!E81 -> 8.2 - Mamafubedu Electricity | J86: 0 | K86: 0
A87: ='Org structure'!E82 -> 8.3 - Lindley Electricity | J87: 0 | K87: 0
A88: ='Org structure'!E83 -> 8.4 - General Electricity Works | C88: 57572098.6 | I88: 3090302.96 | J88: 3090302.96 | K88: 60662401.56 | L88: 61026424.52 | M88: 64688009.99
A89: ='Org structure'!E84 -> 0 | J89: 0 | K89: 0
A90: ='Org structure'!E85 -> 0 | J90: 0 | K90: 0
A91: ='Org structure'!E86 -> 0 | J91: 0 | K91: 0
A92: ='Org structure'!E87 -> 0 | J92: 0 | K92: 0
A93: ='Org structure'!E88 -> 0 | J93: 0 | K93: 0
A94: ='Org structure'!E89 -> 0 | J94: 0 | K94: 0
A95: ='Org structure'!A10 -> Vote 9 - WASTE WATER | C95: =SUM(C96:C105) -> 48227020.75 | D95: =SUM(D96:D105) -> 0 | E95: 0 | F95: 0 | G95: 0 | H95: 0 | I95: 35024434.38 | J95: 35024434.38 | K95: 83251455.13 | L95: =SUM(L96:L105) -> 51120642 | M95: =SUM(M96:M105) -> 54187880.51
A96: ='Org structure'!E91 -> 9.1 - WWTW Reitz | C96: 48227020.75 | I96: 35024434.38 | J96: 35024434.38 | K96: 83251455.13 | L96: 51120642 | M96: 54187880.51
A97: ='Org structure'!E92 -> 9.2 - Network Reitz | J97: 0 | K97: 0
A98: ='Org structure'!E93 -> 9.3 - Network Mamafubedu | J98: 0 | K98: 0
A99: ='Org structure'!E94 -> 9.4 - WWTW Mamafubedu | J99: 0 | K99: 0
A100: ='Org structure'!E95 -> 9.5 - WWTW Lindley | J100: 0 | K100: 0
A101: ='Org structure'!E96 -> 9.6 - Network Lindley | J101: 0 | K101: 0
A102: ='Org structure'!E97 -> 9.7 - WWTW Arlington | J102: 0 | K102: 0
A103: ='Org structure'!E98 -> 9.8 - Network Arlington | J103: 0 | K103: 0
A104: ='Org structure'!E99 -> 0 | J104: 0 | K104: 0
A105: ='Org structure'!E100 -> 0 | J105: 0 | K105: 0
A106: ='Org structure'!A11 -> Vote 10 - HOUSING | C106: =SUM(C107:C116) -> 1862344.18 | D106: =SUM(D107:D116) -> 0 | E106: 0 | F106: 0 | G106: 0 | H106: 0 | I106: 0 | J106: 0 | K106: 1862344.18 | L106: =SUM(L107:L116) -> 1974084.831 | M106: =SUM(M107:M116) -> 2092529.921
A107: ='Org structure'!E102 -> 10.1 - Urban Planning | C107: 1862344.18 | I107: 0 | J107: 0 | K107: 1862344.18 | L107: 1974084.831 | M107: 2092529.921
A108: ='Org structure'!E103 -> 10.2 - Housing | J108: 0 | K108: 0
A109: ='Org structure'!E104 -> 0 | J109: 0 | K109: 0
A110: ='Org structure'!E105 -> 0 | J110: 0 | K110: 0
A111: ='Org structure'!E106 -> 0 | J111: 0 | K111: 0
A112: ='Org structure'!E107 -> 0 | J112: 0 | K112: 0
A113: ='Org structure'!E108 -> 0 | J113: 0 | K113: 0
A114: ='Org structure'!E109 -> 0 | J114: 0 | K114: 0
A115: ='Org structure'!E110 -> 0 | J115: 0 | K115: 0
A116: ='Org structure'!E111 -> 0 | J116: 0 | K116: 0
A117: ='Org structure'!A12 -> Vote 11 - [NAME OF VOTE 11] | C117: =SUM(C118:C127) -> 0 | D117: =SUM(D118:D127) -> 0 | E117: 0 | F117: 0 | G117: 0 | H117: 0 | I117: 0 | J117: 0 | K117: 0 | L117: =SUM(L118:L127) -> 0 | M117: =SUM(M118:M127) -> 0
A118: ='Org structure'!E113 -> 11.1 - [Name of sub-vote] | J118: 0 | K118: 0
A119: ='Org structure'!E114 -> 0 | J119: 0 | K119: 0
A120: ='Org structure'!E115 -> 0 | J120: 0 | K120: 0
A121: ='Org structure'!E116 -> 0 | J121: 0 | K121: 0
A122: ='Org structure'!E117 -> 0 | J122: 0 | K122: 0
A123: ='Org structure'!E118 -> 0 | J123: 0 | K123: 0
A124: ='Org structure'!E119 -> 0 | J124: 0 | K124: 0
A125: ='Org structure'!E120 -> 0 | J125: 0 | K125: 0
A126: ='Org structure'!E121 -> 0 | J126: 0 | K126: 0
A127: ='Org structure'!E122 -> 0 | J127: 0 | K127: 0
A128: ='Org structure'!A13 -> Vote 12 - [NAME OF VOTE 12] | C128: =SUM(C129:C138) -> 0 | D128: =SUM(D129:D138) -> 0 | E128: 0 | F128: 0 | G128: 0 | H128: 0 | I128: 0 | J128: 0 | K128: 0 | L128: =SUM(L129:L138) -> 0 | M128: =SUM(M129:M138) -> 0
A129: ='Org structure'!E124 -> 12.1 - [Name of sub-vote] | J129: 0 | K129: 0
A130: ='Org structure'!E125 -> 0 | J130: 0 | K130: 0
A131: ='Org structure'!E126 -> 0 | J131: 0 | K131: 0
A132: ='Org structure'!E127 -> 0 | J132: 0 | K132: 0
A133: ='Org structure'!E128 -> 0 | J133: 0 | K133: 0
A134: ='Org structure'!E129 -> 0 | J134: 0 | K134: 0
A135: ='Org structure'!E130 -> 0 | J135: 0 | K135: 0
A136: ='Org structure'!E131 -> 0 | J136: =SUM(E136:I136) -> 0 | K136: =IF(D136=0,C136+J136,D136+J136) -> 0
A137: ='Org structure'!E132 -> 0 | J137: 0 | K137: 0
A138: ='Org structure'!E133 -> 0 | J138: 0 | K138: 0
A139: ='Org structure'!A14 -> Vote 13 - [NAME OF VOTE 13] | C139: =SUM(C140:C149) -> 0 | D139: =SUM(D140:D149) -> 0 | E139: 0 | F139: 0 | G139: 0 | H139: 0 | I139: 0 | J139: 0 | K139: 0 | L139: =SUM(L140:L149) -> 0 | M139: =SUM(M140:M149) -> 0
A140: ='Org structure'!E135 -> 13.1 - [Name of sub-vote] | J140: 0 | K140: 0
A141: ='Org structure'!E136 -> 0 | J141: 0 | K141: 0
A142: ='Org structure'!E137 -> 0 | J142: 0 | K142: 0
A143: ='Org structure'!E138 -> 0 | J143: 0 | K143: 0
A144: ='Org structure'!E139 -> 0 | J144: 0 | K144: 0
A145: ='Org structure'!E140 -> 0 | J145: 0 | K145: 0
A146: ='Org structure'!E141 -> 0 | J146: 0 | K146: 0
A147: ='Org structure'!E142 -> 0 | J147: 0 | K147: 0
A148: ='Org structure'!E143 -> 0 | J148: 0 | K148: 0
A149: ='Org structure'!E144 -> 0 | J149: 0 | K149: 0
A150: ='Org structure'!A15 -> Vote 14 - [NAME OF VOTE 14] | C150: =SUM(C151:C160) -> 0 | D150: =SUM(D151:D160) -> 0 | E150: 0 | F150: 0 | G150: 0 | H150: 0 | I150: 0 | J150: 0 | K150: 0 | L150: =SUM(L151:L160) -> 0 | M150: =SUM(M151:M160) -> 0
A151: ='Org structure'!E146 -> 14.1 - [Name of sub-vote] | J151: 0 | K151: 0
A152: ='Org structure'!E147 -> 0 | J152: 0 | K152: 0
A153: ='Org structure'!E148 -> 0 | J153: 0 | K153: 0
A154: ='Org structure'!E149 -> 0 | J154: 0 | K154: 0
A155: ='Org structure'!E150 -> 0 | J155: 0 | K155: 0
A156: ='Org structure'!E151 -> 0 | J156: 0 | K156: 0
A157: ='Org structure'!E152 -> 0 | J157: 0 | K157: 0
A158: ='Org structure'!E153 -> 0 | J158: 0 | K158: 0
A159: ='Org structure'!E154 -> 0 | J159: 0 | K159: 0
A160: ='Org structure'!E155 -> 0 | J160: 0 | K160: 0
A161: ='Org structure'!A16 -> Vote 15 - [NAME OF VOTE 15] | C161: =SUM(C162:C171) -> 0 | D161: =SUM(D162:D171) -> 0 | E161: 0 | F161: 0 | G161: 0 | H161: 0 | I161: 0 | J161: 0 | K161: 0 | L161: =SUM(L162:L171) -> 0 | M161: =SUM(M162:M171) -> 0
A162: ='Org structure'!E157 -> 15.1 - [Name of sub-vote] | J162: 0 | K162: 0
A163: ='Org structure'!E158 -> 0 | J163: 0 | K163: 0
A164: ='Org structure'!E159 -> 0 | J164: 0 | K164: 0
A165: ='Org structure'!E160 -> 0 | J165: 0 | K165: 0
A166: ='Org structure'!E161 -> 0 | J166: 0 | K166: 0
A167: ='Org structure'!E162 -> 0 | J167: 0 | K167: 0
A168: ='Org structure'!E163 -> 0 | J168: 0 | K168: 0
A169: ='Org structure'!E164 -> 0 | J169: 0 | K169: 0
A170: ='Org structure'!E165 -> 0 | J170: 0 | K170: 0
A171: ='Org structure'!E166 -> 0 | J171: 0 | K171: 0
A172: Total Revenue by Vote | B172: 2 | C172: =C7+C18+C29+C40+C51+C62+C73+C84+C95+C106+C117+C128+C139+C150+C161 -> 402472674.7 | D172: =D7+D18+D29+D40+D51+D62+D73+D84+D95+D106+D117+D128+D139+D150+D161 -> 0 | E172: 0 | F172: 0 | G172: 0 | H172: 0 | I172: 57190086.23 | J172: =SUM(E172:I172) -> 57190086.23 | K172: =IF(D172=0,C172+J172,D172+J172) -> 459662760.9 | L172: =L7+L18+L29+L40+L51+L62+L73+L84+L95+L106+L117+L128+L139+L150+L161 -> 428471235.2 | M172: =M7+M18+M29+M40+M51+M62+M73+M84+M95+M106+M117+M128+M139+M150+M161 -> 455354409.3
A174: Expenditure by Vote | B174: 1
A175: =A7 -> Vote 1 - EXECUTIVE AND COUNCIL | C175: =SUM(C176:C185) -> 24701627.69 | D175: 0 | E175: 0 | F175: 0 | G175: 0 | H175: 0 | I175: 2587987.684 | J175: =SUM(E175:I175) -> 2587987.684 | K175: =IF(D175=0,C175+J175,D175+J175) -> 27289615.38 | L175: =SUM(L176:L185) -> 26183725.36 | M175: =SUM(M176:M185) -> 27754748.88
A176: =A8 -> 1.1 - Mayor's Office | C176: 3859738.837 | I176: -420072.3415 | J176: =SUM(E176:I176) -> -420072.3415 | K176: =IF(D176=0,C176+J176,D176+J176) -> 3439666.495 | L176: 4091323.167 | M176: 4336802.557
A177: 1.2 - Speaker's Office | C177: 10189073.18 | I177: 364394.4838 | J177: 364394.4838 | K177: 10553467.66 | L177: 10800417.57 | M177: 11448442.62
A178: 1.4 - Municipal Manager's Office | C178: 10652815.68 | I178: 2643665.542 | J178: 2643665.542 | K178: 13296481.22 | L178: 11291984.62 | M178: 11969503.7
A179: 1.4 - IDP and PMS | J179: 0 | K179: 0
A180: 1.5 - Internal Audit | J180: 0 | K180: 0
A181: 1.6 - Special Programmes | J181: 0 | K181: 0
A182: 0 | J182: 0 | K182: 0
A183: 0 | J183: 0 | K183: 0
A184: 0 | J184: 0 | K184: 0
A185: 0 | J185: 0 | K185: 0
A186: =A18 -> Vote 2 - FINANCE AND ADMINISTRATION | C186: =SUM(C187:C196) -> 58005917.82 | D186: 0 | E186: 0 | F186: 0 | G186: 0 | H186: 0 | I186: 8991313.553 | J186: 8991313.553 | K186: 66997231.38 | L186: =SUM(L187:L196) -> 61486272.89 | M186: =SUM(M187:M196) -> 65175449.27
A187: =A19 -> 2.1 - Human Resource | J187: 0 | K187: 0
A188: 2.2 - Records Management | J188: 0 | K188: 0
A189: 2.3 - Legal Services | J189: 0 | K189: 0
A190: 2.4 - Administration | C190: 27210337.28 | I190: -855983.5992 | J190: -855983.5992 | K190: 26354353.68 | L190: 28842957.52 | M190: 30573534.97
A191: 2.5 - Revenue Management | J191: 0 | K191: 0
A192: 2.6 - Supply Chain Management | I192: 9847297.152 | J192: 9847297.152 | K192: 9847297.152
A193: 2.7 - CFO | C193: 30795580.54 | J193: 0 | K193: 30795580.54 | L193: 32643315.37 | M193: 34601914.29
A194: 2.8 - Director Corporate Services | J194: 0 | K194: 0
A195: 2.9 - Budget and Treasury | J195: 0 | K195: 0
A196: 2.10 - Expenditure | J196: 0 | K196: 0
A197: Vote 3 - COMMUNITY SERVICES | C197: =SUM(C198:C207) -> 24183077 | D197: 0 | E197: 0 | F197: 0 | G197: 0 | H197: 0 | I197: 4157691.546 | J197: 4157691.546 | K197: 28340768.54 | L197: =SUM(L198:L207) -> 25634061.62 | M197: =SUM(M198:M207) -> 27172105.32
A198: 3.1 - Cementry | C198: 15316716.13 | I198: 2739639.142 | J198: 2739639.142 | K198: 18056355.27 | L198: 16235719.1 | M198: 17209862.25
A199: 3.2 - Parks | J199: 0 | K199: 0
A200: 3.3 - Director Community Services | C200: 2885617.505 | I200: 938227.4348 | J200: 938227.4348 | K200: 3823844.94 | L200: 3058754.556 | M200: 3242279.829
A201: 3.4 - Traffic Services | C201: 5385620.827 | I201: 656572.6359 | J201: 656572.6359 | K201: 6042193.463 | L201: 5708758.077 | M201: 6051283.561
... 144 more rows

Sheet B4-FinPerf RE
A1: =muni&" - "&_ADJ4&" - "&Date -> FS193 Nketoana - Table B4 Adjustments Budget Financial Performance (revenue and expenditure) - 28/02/2018
A2: =desc -> Description | B2: =head27 -> Ref | C2: =Head2 -> Budget Year 2017/18 | L2: =Head10 -> Budget Year +1 2018/19 | M2: =Head11 -> Budget Year +2 2019/20
C3: =Head6 -> Original Budget | D3: =Head54 -> Prior Adjusted | E3: =Head51 -> Accum. Funds | F3: =Head52 -> Multi-year capital | G3: =Head53 -> Unfore. Unavoid. | H3: =Head55 -> Nat. or Prov. Govt | I3: =Head50 -> Other Adjusts. | J3: =Head56 -> Total Adjusts. | K3: =Head7 -> Adjusted Budget | L3: =Head7 -> Adjusted Budget | M3: =Head7 -> Adjusted Budget
D4: 3 | E4: 4 | F4: 5 | G4: 6 | H4: 7 | I4: 8 | J4: 9 | K4: 10
A5: R thousands | B5: 1 | C5: A | D5: A1 | E5: B | F5: C | G5: D | H5: E | I5: F | J5: G | K5: H
A6: Revenue By Source
A7: Property rates | B7: 2 | C7: ='SB1'!C10 -> 20340678.09 | D7: ='SB1'!D10 -> 0 | E7: ='SB1'!E10 -> 0 | F7: ='SB1'!F10 -> 0 | G7: ='SB1'!G10 -> 0 | H7: ='SB1'!H10 -> 0 | I7: ='SB1'!I10 -> -464868.7029 | J7: =SUM(E7:I7) -> -464868.7029 | K7: =IF(D7=0,C7+J7,D7+J7) -> 19875809.39 | L7: ='SB1'!L10 -> 21561118.77 | M7: ='SB1'!M10 -> 22854785.9
A8: Service charges - electricity revenue | B8: 2 | C8: ='SB1'!C15 -> 49940173.37 | D8: ='SB1'!D15 -> 0 | E8: ='SB1'!E15 -> 0 | F8: ='SB1'!F15 -> 0 | G8: ='SB1'!G15 -> 0 | H8: ='SB1'!H15 -> 0 | I8: ='SB1'!I15 -> 622614.951 | J8: 622614.951 | K8: 50562788.32 | L8: ='SB1'!L15 -> 52936583.77 | M8: ='SB1'!M15 -> 56112778.8
A9: Service charges - water revenue | B9: 2 | C9: ='SB1'!C20 -> 51324389.06 | D9: ='SB1'!D20 -> 0 | E9: ='SB1'!E20 -> 0 | F9: ='SB1'!F20 -> 0 | G9: ='SB1'!G20 -> 0 | H9: ='SB1'!H20 -> 0 | I9: ='SB1'!I20 -> 739794.6116 | J9: 739794.6116 | K9: 52064183.67 | L9: ='SB1'!L20 -> 54403852.41 | M9: ='SB1'!M20 -> 57668083.55
A10: Service charges - sanitation revenue | B10: 2 | C10: ='SB1'!C25 -> 21134998.3 | D10: ='SB1'!D25 -> 0 | E10: ='SB1'!E25 -> 0 | F10: ='SB1'!F25 -> 0 | G10: ='SB1'!G25 -> 0 | H10: ='SB1'!H25 -> 0 | I10: ='SB1'!I25 -> 44681.15893 | J10: 44681.15893 | K10: 21179679.46 | L10: ='SB1'!L25 -> 22403098.2 | M10: ='SB1'!M25 -> 23747284.09
A11: Service charges - refuse revenue | B11: 2 | C11: ='SB1'!C31 -> 20169485.96 | D11: ='SB1'!D31 -> 0 | E11: ='SB1'!E31 -> 0 | F11: ='SB1'!F31 -> 0 | G11: ='SB1'!G31 -> 0 | H11: ='SB1'!H31 -> 0 | I11: ='SB1'!I31 -> 489335.5051 | J11: 489335.5051 | K11: 20658821.47 | L11: ='SB1'!L31 -> 21379655.12 | M11: ='SB1'!M31 -> 22662434.43
A12: Service charges - other | J12: 0 | K12: 0
A13: Rental of facilities and equipment | C13: 393185.597 | I13: 184589.6841 | J13: 184589.6841 | K13: 577775.2812 | L13: 416776.7328 | M13: 441783.3368
A14: Interest earned - external investments | C14: 1303833.357 | I14: 0 | J14: 0 | K14: 1303833.357 | L14: 1382063.358 | M14: 1464987.16
A15: Interest earned - outstanding debtors | C15: 39421351.63 | I15: 18911.00184 | J15: 18911.00184 | K15: 39440262.63 | L15: 41786632.73 | M15: 44293830.69
A16: Dividends received | J16: 0 | K16: 0
A17: Fines, penalties and forfeits | C17: 330000 | I17: 0 | J17: 0 | K17: 330000 | L17: 349800 | M17: 370788
A18: Licences and permits | J18: 0 | K18: 0
A19: Agency services | J19: 0 | K19: 0
A20: Transfers and subsidies | C20: 82580000 | J20: 0 | K20: 82580000 | L20: 89385000 | M20: 95923000
A21: Other revenue | B21: 2 | C21: ='SB1'!C46 -> 16773579.34 | D21: ='SB1'!D46 -> 0 | E21: ='SB1'!E46 -> 0 | F21: ='SB1'!F46 -> 0 | G21: ='SB1'!G46 -> 0 | H21: ='SB1'!H46 -> 0 | I21: ='SB1'!I46 -> 3328705.059 | J21: 3328705.059 | K21: 20102284.4 | L21: ='SB1'!L46 -> 17779994.1 | M21: ='SB1'!M46 -> 18846793.75
A22: Gains on disposal of PPE | J22: 0 | K22: 0
A23: Total Revenue (excluding capital transfers and contributions) | C23: =SUM(C7:C22) -> 303711674.7 | D23: 0 | E23: 0 | F23: 0 | G23: 0 | H23: 0 | I23: 4963763.268 | J23: 4963763.268 | K23: 308675438 | L23: 323784575.2 | M23: 344386549.7
A25: Expenditure By Type
A26: Employee related costs | C26: ='SB1'!C64 -> 93590545.79 | D26: ='SB1'!D64 -> 0 | E26: ='SB1'!E64 -> 0 | F26: ='SB1'!F64 -> 0 | G26: ='SB1'!G64 -> 0 | H26: ='SB1'!H64 -> 0 | I26: ='SB1'!I64 -> 4372062.754 | J26: =SUM(E26:I26) -> 4372062.754 | K26: =IF(D26=0,C26+J26,D26+J26) -> 97962608.54 | L26: ='SB1'!L64 -> 99205978.53 | M26: ='SB1'!M64 -> 105158337.2
A27: Remuneration of councillors | C27: 9083084.992 | I27: 418624.2247 | J27: 418624.2247 | K27: 9501709.217 | L27: 9628070.092 | M27: 10205754.3
A28: Debt impairment | C28: 49930820.36 | I28: 5035116.893 | J28: 5035116.893 | K28: 54965937.25 | L28: 52926669.58 | M28: 56102269.76
A29: Depreciation & asset impairment | C29: ='SB1'!C80 -> 59672591.82 | D29: ='SB1'!D80 -> 0 | E29: ='SB1'!E80 -> 0 | F29: ='SB1'!F80 -> 0 | G29: ='SB1'!G80 -> 0 | H29: ='SB1'!H80 -> 0 | I29: ='SB1'!I80 -> -800000 | J29: -800000 | K29: 58872591.82 | L29: ='SB1'!L80 -> 63252947.33 | M29: ='SB1'!M80 -> 67048124.17
A30: Finance charges | C30: 17835802.79 | J30: 0 | K30: 17835802.79 | L30: 18905950.96 | M30: 20040308.02
A31: Bulk purchases | C31: ='SB1'!C85 -> 50455517.47 | D31: ='SB1'!D85 -> 0 | E31: ='SB1'!E85 -> 0 | F31: ='SB1'!F85 -> 0 | G31: ='SB1'!G85 -> 0 | H31: ='SB1'!H85 -> 0 | I31: ='SB1'!I85 -> 0 | J31: 0 | K31: 50455517.47 | L31: ='SB1'!L85 -> 53482848.52 | M31: ='SB1'!M85 -> 56691819.43
A32: Other materials | C32: 10187870 | I32: -1433114.56 | J32: -1433114.56 | K32: 8754755.44 | L32: 10799142.2 | M32: 11447090.73
A33: Contracted services | C33: ='SB1'!C124 -> 9163485.61 | D33: ='SB1'!D124 -> 0 | E33: ='SB1'!E124 -> 0 | F33: ='SB1'!F124 -> 0 | G33: ='SB1'!G124 -> 0 | H33: ='SB1'!H124 -> 0 | I33: ='SB1'!I124 -> -2389990.92 | J33: -2389990.92 | K33: 6773494.69 | L33: ='SB1'!L124 -> 9713294.747 | M33: ='SB1'!M124 -> 10296092.43
A34: Transfers and subsidies | J34: 0 | K34: 0
A35: Other expenditure | C35: ='SB1'!C154 -> 36998769.65 | D35: ='SB1'!D154 -> 0 | E35: ='SB1'!E154 -> 0 | F35: ='SB1'!F154 -> 0 | G35: ='SB1'!G154 -> 0 | H35: ='SB1'!H154 -> 0 | I35: ='SB1'!I154 -> 4086383.281 | J35: 4086383.281 | K35: 41085152.93 | L35: ='SB1'!L154 -> 39218695.82 | M35: ='SB1'!M154 -> 41571817.57
A36: Loss on disposal of PPE | J36: 0 | K36: 0
A37: Total Expenditure | C37: =SUM(C26:C36) -> 336918488.5 | D37: 0 | E37: 0 | F37: 0 | G37: 0 | H37: 0 | I37: 9289081.673 | J37: 9289081.673 | K37: 346207570.1 | L37: 357133597.8 | M37: 378561613.7
A39: Surplus/(Deficit) | C39: =C23-C37 -> -33206813.75 | D39: 0 | E39: 0 | F39: 0 | G39: 0 | H39: 0 | I39: -4325318.405 | J39: -4325318.405 | K39: -37532132.16 | L39: -33349022.58 | M39: -34175063.94
A40: Transfers and subsidies - capital (monetary allocations) (National / Provincial and District) | C40: 98761000 | I40: 0 | J40: =SUM(E40:I40) -> 0 | K40: =IF(D40=0,C40+J40,D40+J40) -> 98761000 | L40: 104686660 | M40: 110967859.6
A41: Transfers and subsidies - capital (monetary allocations) (National / Provincial Departmental Agencies, Households, Non-profit Institutions, Private Enterprises, Public Corporatons, Higher Educational Institutions) | J41: =SUM(E41:I41) -> 0 | K41: =IF(D41=0,C41+J41,D41+J41) -> 0
A42: Transfers and subsidies - capital (in-kind - all) | J42: =SUM(E42:I42) -> 0 | K42: =IF(D42=0,C42+J42,D42+J42) -> 0
A43: Surplus/(Deficit) before taxation | C43: =SUM(C39:C42) -> 65554186.25 | D43: 0 | E43: 0 | F43: 0 | G43: 0 | H43: 0 | I43: -4325318.405 | J43: -4325318.405 | K43: 61228867.84 | L43: 71337637.42 | M43: 76792795.66
A44: Taxation | J44: =SUM(E44:I44) -> 0 | K44: =IF(D44=0,C44+J44,D44+J44) -> 0
A45: Surplus/(Deficit) after taxation | C45: =C43-C44 -> 65554186.25 | D45: 0 | E45: 0 | F45: 0 | G45: 0 | H45: 0 | I45: -4325318.405 | J45: -4325318.405 | K45: 61228867.84 | L45: 71337637.42 | M45: 76792795.66
A46: Attributable to minorities | J46: =SUM(E46:I46) -> 0 | K46: =IF(D46=0,C46+J46,D46+J46) -> 0
A47: Surplus/(Deficit) attributable to municipality | C47: =SUM(C45:C46) -> 65554186.25 | D47: 0 | E47: 0 | F47: 0 | G47: 0 | H47: 0 | I47: -4325318.405 | J47: -4325318.405 | K47: 61228867.84 | L47: 71337637.42 | M47: 76792795.66
A48: Share of surplus/ (deficit) of associate | J48: =SUM(E48:I48) -> 0 | K48: =IF(D48=0,C48+J48,D48+J48) -> 0
A49: Surplus/ (Deficit) for the year | C49: =C47+C48 -> 65554186.25 | D49: 0 | E49: 0 | F49: 0 | G49: 0 | H49: 0 | I49: -4325318.405 | J49: -4325318.405 | K49: 61228867.84 | L49: 71337637.42 | M49: 76792795.66
A50: =head27a -> References
A51: 1. Classifications are revenue sources and expenditure type
A52: 2. Detail to be provided in Table SB1
A53: 3. Only complete if a previous adjusted budget has been approved in the same financial year. Reflect most recent adjusted budget.
A54: 4. Additional cash-backed accumulated funds/unspent funds (MFMA section 18(1)(b) and section 28(2)(e)) identified after the Original Budget approved and after annual financial statements audited (note: only where underspending could not reasonably have been foreseen)
A55: 5. Increases of funds approved under MFMA section 31
A56: 6. Adjustments approved in accordance with MFMA section 29
A57: 7. Adjustments to transfers from National or Provincial Government
A58: 8. Adjusts. = 'Other' Adjustments proposed to be approved; including revenue under-collection (MFMA section 28(2)(a)); additional revenue appropriation on existing programmes (section 28(2))(b); projected savings (section 28(2)(d)); error correction (section 28(2)(f))
A59: 9. G = B + C + D + E + F
A60: 10. Adjusted Budget H = (A or A1/2 etc) + G
A62: Revenue total | C62: =C23+C40+C41+C42 -> 402472674.7 | D62: 0 | E62: 0 | F62: 0 | G62: 0 | H62: 0 | I62: 4963763.268 | J62: 4963763.268 | K62: 407436438 | L62: 428471235.2 | M62: 455354409.3

Sheet B5-Capex
A1: =muni&" - "&_ADJ5&" - "&Date -> FS193 Nketoana - Table B5 Adjustments Capital Expenditure Budget by vote and funding - 28/02/2018
A2: =desc -> Description | B2: =head27 -> Ref | C2: =Head2 -> Budget Year 2017/18 | L2: =Head10 -> Budget Year +1 2018/19 | M2: =Head11 -> Budget Year +2 2019/20
C3: =Head6 -> Original Budget | D3: =Head54 -> Prior Adjusted | E3: =Head51 -> Accum. Funds | F3: =Head52 -> Multi-year capital | G3: =Head53 -> Unfore. Unavoid. | H3: =Head55 -> Nat. or Prov. Govt | I3: =Head50 -> Other Adjusts. | J3: =Head56 -> Total Adjusts. | K3: =Head7 -> Adjusted Budget | L3: =Head7 -> Adjusted Budget | M3: =Head7 -> Adjusted Budget
D4: 5 | E4: 6 | F4: 7 | G4: 8 | H4: 9 | I4: 10 | J4: 11 | K4: 12
A5: R thousands | C5: A | D5: A1 | E5: B | F5: C | G5: D | H5: E | I5: F | J5: G | K5: H
A6: Capital expenditure - Vote
A7: Multi-year expenditure to be adjusted | B7: 2
A8: =B5B!A8 -> Vote 1 - EXECUTIVE AND COUNCIL | C8: =B5B!C8 -> 0 | D8: =B5B!D8 -> 0 | E8: =B5B!E8 -> 0 | F8: =B5B!F8 -> 0 | G8: =B5B!G8 -> 0 | H8: =B5B!H8 -> 0 | I8: =B5B!I8 -> 0 | J8: =SUM(E8:I8) -> 0 | K8: =IF(D8=0,C8+J8,D8+J8) -> 0 | L8: =B5B!L8 -> 0 | M8: =B5B!M8 -> 0
A9: =B5B!A19 -> Vote 2 - FINANCE AND ADMINISTRATION | C9: =B5B!C19 -> 0 | D9: =B5B!D19 -> 0 | E9: =B5B!E19 -> 0 | F9: =B5B!F19 -> 0 | G9: =B5B!G19 -> 0 | H9: =B5B!H19 -> 0 | I9: =B5B!I19 -> 0 | J9: =SUM(E9:I9) -> 0 | K9: 0 | L9: =B5B!L19 -> 0 | M9: =B5B!M19 -> 0
A10: =B5B!A30 -> Vote 3 - COMMUNITY SERVICES | C10: =B5B!C30 -> 0 | D10: =B5B!D30 -> 0 | E10: =B5B!E30 -> 0 | F10: =B5B!F30 -> 0 | G10: =B5B!G30 -> 0 | H10: =B5B!H30 -> 0 | I10: =B5B!I30 -> 0 | J10: 0 | K10: 0 | L10: =B5B!L30 -> 0 | M10: =B5B!M30 -> 0
A11: =B5B!A41 -> Vote 4 - WASTE MANAGEMENT | C11: =B5B!C41 -> 0 | D11: =B5B!D41 -> 0 | E11: =B5B!E41 -> 0 | F11: =B5B!F41 -> 0 | G11: =B5B!G41 -> 0 | H11: =B5B!H41 -> 0 | I11: =B5B!I41 -> 0 | J11: 0 | K11: 0 | L11: =B5B!L41 -> 0 | M11: =B5B!M41 -> 0
A12: =B5B!A52 -> Vote 5 - LOCAL ECONOMIC DEVELOPMENT | C12: =B5B!C52 -> 0 | D12: =B5B!D52 -> 0 | E12: =B5B!E52 -> 0 | F12: =B5B!F52 -> 0 | G12: =B5B!G52 -> 0 | H12: =B5B!H52 -> 0 | I12: =B5B!I52 -> 0 | J12: 0 | K12: 0 | L12: =B5B!L52 -> 0 | M12: =B5B!M52 -> 0
A13: =B5B!A63 -> Vote 6 - ROADS TRANSPORT | C13: =B5B!C63 -> 0 | D13: =B5B!D63 -> 0 | E13: =B5B!E63 -> 0 | F13: =B5B!F63 -> 0 | G13: =B5B!G63 -> 0 | H13: =B5B!H63 -> 0 | I13: =B5B!I63 -> 0 | J13: 0 | K13: 0 | L13: =B5B!L63 -> 0 | M13: =B5B!M63 -> 0
A14: =B5B!A74 -> Vote 7 - WATER | C14: =B5B!C74 -> 0 | D14: =B5B!D74 -> 0 | E14: =B5B!E74 -> 0 | F14: =B5B!F74 -> 0 | G14: =B5B!G74 -> 0 | H14: =B5B!H74 -> 0 | I14: =B5B!I74 -> 0 | J14: 0 | K14: 0 | L14: =B5B!L74 -> 0 | M14: =B5B!M74 -> 0
A15: =B5B!A85 -> Vote 8 - ELECTRICITY | C15: =B5B!C85 -> 0 | D15: =B5B!D85 -> 0 | E15: =B5B!E85 -> 0 | F15: =B5B!F85 -> 0 | G15: =B5B!G85 -> 0 | H15: =B5B!H85 -> 0 | I15: =B5B!I85 -> 0 | J15: 0 | K15: 0 | L15: =B5B!L85 -> 0 | M15: =B5B!M85 -> 0
A16: =B5B!A96 -> Vote 9 - WASTE WATER | C16: =B5B!C96 -> 0 | D16: =B5B!D96 -> 0 | E16: =B5B!E96 -> 0 | F16: =B5B!F96 -> 0 | G16: =B5B!G96 -> 0 | H16: =B5B!H96 -> 0 | I16: =B5B!I96 -> 0 | J16: 0 | K16: 0 | L16: =B5B!L96 -> 0 | M16: =B5B!M96 -> 0
A17: =B5B!A107 -> Vote 10 - HOUSING | C17: =B5B!C107 -> 0 | D17: =B5B!D107 -> 0 | E17: =B5B!E107 -> 0 | F17: =B5B!F107 -> 0 | G17: =B5B!G107 -> 0 | H17: =B5B!H107 -> 0 | I17: =B5B!I107 -> 0 | J17: 0 | K17: 0 | L17: =B5B!L107 -> 0 | M17: =B5B!M107 -> 0
A18: =B5B!A118 -> Vote 11 - [NAME OF VOTE 11] | C18: =B5B!C118 -> 0 | D18: =B5B!D118 -> 0 | E18: =B5B!E118 -> 0 | F18: =B5B!F118 -> 0 | G18: =B5B!G118 -> 0 | H18: =B5B!H118 -> 0 | I18: =B5B!I118 -> 0 | J18: 0 | K18: 0 | L18: =B5B!L118 -> 0 | M18: =B5B!M118 -> 0
A19: =B5B!A129 -> Vote 12 - [NAME OF VOTE 12] | C19: =B5B!C129 -> 0 | D19: =B5B!D129 -> 0 | E19: =B5B!E129 -> 0 | F19: =B5B!F129 -> 0 | G19: =B5B!G129 -> 0 | H19: =B5B!H129 -> 0 | I19: =B5B!I129 -> 0 | J19: 0 | K19: 0 | L19: =B5B!L129 -> 0 | M19: =B5B!M129 -> 0
A20: =B5B!A140 -> Vote 13 - [NAME OF VOTE 13] | C20: =B5B!C140 -> 0 | D20: =B5B!D140 -> 0 | E20: =B5B!E140 -> 0 | F20: =B5B!F140 -> 0 | G20: =B5B!G140 -> 0 | H20: =B5B!H140 -> 0 | I20: =B5B!I140 -> 0 | J20: 0 | K20: 0 | L20: =B5B!L140 -> 0 | M20: =B5B!M140 -> 0
A21: =B5B!A151 -> Vote 14 - [NAME OF VOTE 14] | C21: =B5B!C151 -> 0 | D21: =B5B!D151 -> 0 | E21: =B5B!E151 -> 0 | F21: =B5B!F151 -> 0 | G21: =B5B!G151 -> 0 | H21: =B5B!H151 -> 0 | I21: =B5B!I151 -> 0 | J21: 0 | K21: 0 | L21: =B5B!L151 -> 0 | M21: =B5B!M151 -> 0
A22: =B5B!A162 -> Vote 15 - [NAME OF VOTE 15] | C22: =B5B!C162 -> 0 | D22: =B5B!D162 -> 0 | E22: =B5B!E162 -> 0 | F22: =B5B!F162 -> 0 | G22: =B5B!G162 -> 0 | H22: =B5B!H162 -> 0 | I22: =B5B!I162 -> 0 | J22: 0 | K22: 0 | L22: =B5B!L162 -> 0 | M22: =B5B!M162 -> 0
A23: Capital multi-year expenditure sub-total | B23: 3 | C23: =SUM(C8:C22) -> 0 | D23: =SUM(D8:D22) -> 0 | E23: 0 | F23: 0 | G23: 0 | H23: 0 | I23: 0 | J23: =SUM(J8:J22) -> 0 | K23: =SUM(K8:K22) -> 0 | L23: =SUM(L8:L22) -> 0 | M23: =SUM(M8:M22) -> 0
A25: Single-year expenditure to be adjusted | B25: 2
A26: =B5B!A177 -> Vote 1 - EXECUTIVE AND COUNCIL | C26: =B5B!C177 -> 0 | D26: =B5B!D177 -> 0 | E26: =B5B!E177 -> 0 | F26: =B5B!F177 -> 0 | G26: =B5B!G177 -> 0 | H26: =B5B!H177 -> 0 | I26: =B5B!I177 -> 0 | J26: =SUM(E26:I26) -> 0 | K26: =IF(D26=0,C26+J26,D26+J26) -> 0 | L26: =B5B!L177 -> 0 | M26: =B5B!M177 -> 0
A27: =B5B!A188 -> Vote 2 - FINANCE AND ADMINISTRATION | C27: =B5B!C188 -> 0 | D27: =B5B!D188 -> 0 | E27: =B5B!E188 -> 0 | F27: =B5B!F188 -> 0 | G27: =B5B!G188 -> 0 | H27: =B5B!H188 -> 0 | I27: =B5B!I188 -> 0 | J27: 0 | K27: 0 | L27: =B5B!L188 -> 0 | M27: =B5B!M188 -> 0
A28: =B5B!A199 -> Vote 3 - COMMUNITY SERVICES | C28: =B5B!C199 -> 4109190.6 | D28: =B5B!D199 -> 0 | E28: =B5B!E199 -> 0 | F28: =B5B!F199 -> 0 | G28: =B5B!G199 -> 0 | H28: =B5B!H199 -> 0 | I28: =B5B!I199 -> 1755584.63 | J28: 1755584.63 | K28: 5864775.23 | L28: =B5B!L199 -> 4355742.036 | M28: =B5B!M199 -> 4617086.558
A29: =B5B!A210 -> Vote 4 - WASTE MANAGEMENT | C29: =B5B!C210 -> 7690155 | D29: =B5B!D210 -> 0 | E29: =B5B!E210 -> 0 | F29: =B5B!F210 -> 0 | G29: =B5B!G210 -> 0 | H29: =B5B!H210 -> 0 | I29: =B5B!I210 -> -7303784.99 | J29: -7303784.99 | K29: 386370.01 | L29: =B5B!L210 -> 8151564.3 | M29: =B5B!M210 -> 8640658.158
A30: =B5B!A221 -> Vote 5 - LOCAL ECONOMIC DEVELOPMENT | C30: =B5B!C221 -> 0 | D30: =B5B!D221 -> 0 | E30: =B5B!E221 -> 0 | F30: =B5B!F221 -> 0 | G30: =B5B!G221 -> 0 | H30: =B5B!H221 -> 0 | I30: =B5B!I221 -> 0 | J30: 0 | K30: 0 | L30: =B5B!L221 -> 0 | M30: =B5B!M221 -> 0
A31: =B5B!A232 -> Vote 6 - ROADS TRANSPORT | C31: =B5B!C232 -> 13833065.62 | D31: =B5B!D232 -> 0 | E31: =B5B!E232 -> 0 | F31: =B5B!F232 -> 0 | G31: =B5B!G232 -> 0 | H31: =B5B!H232 -> 0 | I31: =B5B!I232 -> 3325075.86 | J31: 3325075.86 | K31: 17158141.48 | L31: =B5B!L232 -> 14663049.56 | M31: =B5B!M232 -> 15542832.53
A32: =B5B!A243 -> Vote 7 - WATER | C32: =B5B!C243 -> 47849485.74 | D32: =B5B!D243 -> 0 | E32: =B5B!E243 -> 0 | F32: =B5B!F243 -> 0 | G32: =B5B!G243 -> 0 | H32: =B5B!H243 -> 0 | I32: =B5B!I243 -> 0 | J32: 0 | K32: 47849485.74 | L32: =B5B!L243 -> 43075794.88 | M32: =B5B!M243 -> 16195822.58
A33: =B5B!A254 -> Vote 8 - ELECTRICITY | C33: =B5B!C254 -> 5000000 | D33: =B5B!D254 -> 0 | E33: =B5B!E254 -> 0 | F33: =B5B!F254 -> 0 | G33: =B5B!G254 -> 0 | H33: =B5B!H254 -> 0 | I33: =B5B!I254 -> 0 | J33: 0 | K33: 5000000 | L33: =B5B!L254 -> 5300000 | M33: =B5B!M254 -> 5618000
A34: =B5B!A265 -> Vote 9 - WASTE WATER | C34: =B5B!C265 -> 20279103.04 | D34: =B5B!D265 -> 0 | E34: =B5B!E265 -> 0 | F34: =B5B!F265 -> 0 | G34: =B5B!G265 -> 0 | H34: =B5B!H265 -> 0 | I34: =B5B!I265 -> 2223124.51 | J34: 2223124.51 | K34: 22502227.55 | L34: =B5B!L265 -> 21495849.22 | M34: =B5B!M265 -> 22785600.18
A35: =B5B!A276 -> Vote 10 - HOUSING | C35: =B5B!C276 -> 0 | D35: =B5B!D276 -> 0 | E35: =B5B!E276 -> 0 | F35: =B5B!F276 -> 0 | G35: =B5B!G276 -> 0 | H35: =B5B!H276 -> 0 | I35: =B5B!I276 -> 0 | J35: 0 | K35: 0 | L35: =B5B!L276 -> 0 | M35: =B5B!M276 -> 0
A36: =B5B!A287 -> Vote 11 - [NAME OF VOTE 11] | C36: =B5B!C287 -> 0 | D36: =B5B!D287 -> 0 | E36: =B5B!E287 -> 0 | F36: =B5B!F287 -> 0 | G36: =B5B!G287 -> 0 | H36: =B5B!H287 -> 0 | I36: =B5B!I287 -> 0 | J36: 0 | K36: 0 | L36: =B5B!L287 -> 0 | M36: =B5B!M287 -> 0
A37: =B5B!A298 -> Vote 12 - [NAME OF VOTE 12] | C37: =B5B!C298 -> 0 | D37: =B5B!D298 -> 0 | E37: =B5B!E298 -> 0 | F37: =B5B!F298 -> 0 | G37: =B5B!G298 -> 0 | H37: =B5B!H298 -> 0 | I37: =B5B!I298 -> 0 | J37: 0 | K37: =IF(D37=0,C37+J37,D37+J37) -> 0 | L37: =B5B!L298 -> 0 | M37: =B5B!M298 -> 0
A38: =B5B!A309 -> Vote 13 - [NAME OF VOTE 13] | C38: =B5B!C309 -> 0 | D38: =B5B!D309 -> 0 | E38: =B5B!E309 -> 0 | F38: =B5B!F309 -> 0 | G38: =B5B!G309 -> 0 | H38: =B5B!H309 -> 0 | I38: =B5B!I309 -> 0 | J38: 0 | K38: 0 | L38: =B5B!L309 -> 0 | M38: =B5B!M309 -> 0
A39: =B5B!A320 -> Vote 14 - [NAME OF VOTE 14] | C39: =B5B!C320 -> 0 | D39: =B5B!D320 -> 0 | E39: =B5B!E320 -> 0 | F39: =B5B!F320 -> 0 | G39: =B5B!G320 -> 0 | H39: =B5B!H320 -> 0 | I39: =B5B!I320 -> 0 | J39: 0 | K39: 0 | L39: =B5B!L320 -> 0 | M39: =B5B!M320 -> 0
A40: =B5B!A331 -> Vote 15 - [NAME OF VOTE 15] | C40: =B5B!C331 -> 0 | D40: =B5B!D331 -> 0 | E40: =B5B!E331 -> 0 | F40: =B5B!F331 -> 0 | G40: =B5B!G331 -> 0 | H40: =B5B!H331 -> 0 | I40: =B5B!I331 -> 0 | J40: 0 | K40: 0 | L40: =B5B!L331 -> 0 | M40: =B5B!M331 -> 0
A41: Capital single-year expenditure sub-total | C41: =SUM(C26:C40) -> 98761000 | D41: =SUM(D26:D40) -> 0 | E41: 0 | F41: 0 | G41: 0 | H41: 0 | I41: 0.009999993257 | J41: =SUM(J26:J40) -> 0.009999993257 | K41: =SUM(K26:K40) -> 98761000.01 | L41: =SUM(L26:L40) -> 97042000 | M41: =SUM(M26:M40) -> 73400000
A42: Total Capital Expenditure - Vote | C42: =C41+C23 -> 98761000 | D42: =D41+D23 -> 0 | E42: 0 | F42: 0 | G42: 0 | H42: 0 | I42: 0.009999993257 | J42: =J23+J41 -> 0.009999993257 | K42: =K23+K41 -> 98761000.01 | L42: =L41+L23 -> 97042000 | M42: =M41+M23 -> 73400000
A44: Capital Expenditure - Functional
A45: Governance and administration | C45: =SUM(C46:C48) -> 0 | D45: 0 | E45: 0 | F45: 0 | G45: 0 | H45: 0 | I45: 0 | J45: =SUM(J46:J48) -> 0 | K45: 0 | L45: 0 | M45: 0
A46: Executive and council | J46: =SUM(E46:I46) -> 0 | K46: =IF(D46=0,C46+J46,D46+J46) -> 0
A47: Finance and administration | J47: =SUM(E47:I47) -> 0 | K47: =IF(D47=0,C47+J47,D47+J47) -> 0
A48: Internal audit | J48: =SUM(E48:I48) -> 0 | K48: =IF(D48=0,C48+J48,D48+J48) -> 0
A49: Community and public safety | C49: =SUM(C50:C54) -> 4109190.6 | D49: 0 | E49: 0 | F49: 0 | G49: 0 | H49: 0 | I49: 1755584.63 | J49: =SUM(J50:J54) -> 1755584.63 | K49: 5864775.23 | L49: 4355742.036 | M49: 4617086.558
A50: Community and social services | C50: 854567.61 | I50: 0 | J50: =SUM(E50:I50) -> 0 | K50: =IF(D50=0,C50+J50,D50+J50) -> 854567.61 | L50: 905841.6666 | M50: 960192.1666
A51: Sport and recreation | C51: 3254622.99 | I51: 1755584.63 | J51: =SUM(E51:I51) -> 1755584.63 | K51: =IF(D51=0,C51+J51,D51+J51) -> 5010207.62 | L51: 3449900.369 | M51: 3656894.392
A52: Public safety | J52: =SUM(E52:I52) -> 0 | K52: =IF(D52=0,C52+J52,D52+J52) -> 0
A53: Housing | J53: =SUM(E53:I53) -> 0 | K53: =IF(D53=0,C53+J53,D53+J53) -> 0
A54: Health | J54: =SUM(E54:I54) -> 0 | K54: =IF(D54=0,C54+J54,D54+J54) -> 0
A55: Economic and environmental services | C55: =SUM(C56:C58) -> 13833065.62 | D55: 0 | E55: 0 | F55: 0 | G55: 0 | H55: 0 | I55: 3325075.86 | J55: 3325075.86 | K55: 17158141.48 | L55: 14663049.56 | M55: 15542832.53
A56: Planning and development | J56: =SUM(E56:I56) -> 0 | K56: =IF(D56=0,C56+J56,D56+J56) -> 0
A57: Road transport | C57: 13833065.62 | I57: 3325075.86 | J57: =SUM(E57:I57) -> 3325075.86 | K57: =IF(D57=0,C57+J57,D57+J57) -> 17158141.48 | L57: 14663049.56 | M57: 15542832.53
A58: Environmental protection | J58: =SUM(E58:I58) -> 0 | K58: =IF(D58=0,C58+J58,D58+J58) -> 0
A59: Trading services | C59: =SUM(C60:C63) -> 80818743.78 | D59: =SUM(D60:D63) -> 0 | E59: 0 | F59: 0 | G59: 0 | H59: 0 | I59: =SUM(I60:I63) -> -5080660.48 | J59: =SUM(J60:J63) -> -5080660.48 | K59: 75738083.3 | L59: 78023208.41 | M59: 53240080.91
A60: Energy sources | C60: 5000000 | J60: =SUM(E60:I60) -> 0 | K60: =IF(D60=0,C60+J60,D60+J60) -> 5000000 | L60: 5300000 | M60: 5618000
A61: Water management | C61: 47849485.74 | J61: =SUM(E61:I61) -> 0 | K61: =IF(D61=0,C61+J61,D61+J61) -> 47849485.74 | L61: 43075794.88 | M61: 16195822.58
A62: Waste water management | C62: 20279103.04 | I62: 2223124.51 | J62: =SUM(E62:I62) -> 2223124.51 | K62: =IF(D62=0,C62+J62,D62+J62) -> 22502227.55 | L62: 21495849.22 | M62: 22785600.18
A63: Waste management | C63: 7690155 | I63: -7303784.99 | J63: =SUM(E63:I63) -> -7303784.99 | K63: =IF(D63=0,C63+J63,D63+J63) -> 386370.01 | L63: 8151564.3 | M63: 8640658.158
A64: Other | J64: =SUM(E64:I64) -> 0 | K64: =IF(D64=0,C64+J64,D64+J64) -> 0
A65: Total Capital Expenditure - Functional | B65: 3 | C65: =C45+C49+C55+C59+C64 -> 98761000 | D65: =D45+D49+D55+D59+D64 -> 0 | E65: 0 | F65: 0 | G65: 0 | H65: 0 | I65: =I45+I49+I55+I59+I64 -> 0.009999993257 | J65: 0.009999993257 | K65: 98761000.01 | L65: 97042000 | M65: 73400000
A67: Funded by:
A68: National Government | C68: 98761000 | J68: =SUM(E68:I68) -> 0 | K68: =IF(D68=0,C68+J68,D68+J68) -> 98761000 | L68: 97042000 | M68: 73400000
A69: Provincial Government | J69: =SUM(E69:I69) -> 0 | K69: =IF(D69=0,C69+J69,D69+J69) -> 0
A70: District Municipality | J70: =SUM(E70:I70) -> 0 | K70: =IF(D70=0,C70+J70,D70+J70) -> 0
A71: Other transfers and grants | J71: =SUM(E71:I71) -> 0 | K71: =IF(D71=0,C71+J71,D71+J71) -> 0
A72: Transfers recognised - capital | B72: 4 | C72: =SUM(C68:C71) -> 98761000 | D72: 0 | E72: 0 | F72: 0 | G72: 0 | H72: 0 | I72: 0 | J72: 0 | K72: 98761000 | L72: 97042000 | M72: 73400000
A73: Public contributions & donations | J73: =SUM(E73:I73) -> 0 | K73: =IF(D73=0,C73+J73,D73+J73) -> 0
A74: Borrowing | J74: =SUM(E74:I74) -> 0 | K74: =IF(D74=0,C74+J74,D74+J74) -> 0
A75: Internally generated funds | J75: =SUM(E75:I75) -> 0 | K75: =IF(D75=0,C75+J75,D75+J75) -> 0
A76: Total Capital Funding | C76: =SUM(C72:C75) -> 98761000 | D76: 0 | E76: 0 | F76: 0 | G76: 0 | H76: 0 | I76: 0 | J76: 0 | K76: 98761000 | L76: 97042000 | M76: 73400000
A77: =head27a -> References
A78: 1. Municipalities may choose to appropriate for capital expenditure for three years or for one year (if one year appropriation projected expenditure required for yr2 and yr3).
A79: 2. Include capital component of PPP unitary payment. Note that capital transfers are only appropriated to municipalities for the budget year
A80: 3. Capital expenditure by standard classification must reconcile to the appropriations by vote
A81: 4. Must reconcile to supporting table SB7 and to Adjustments Budget Financial Performance (revenue and expenditure)
A82: 5. Only complete if a previous adjusted budget has been approved in the same financial year. Reflect most recent adjusted budget.
A83: 6. Additional cash-backed accumulated funds/unspent funds (MFMA section 18(1)(b) and section 28(2)(e)) identified after the Original Budget approved and after annual financial statements audited (note: only where underspending could not reasonably have been foreseen)
A84: 7. Increases of funds approved under MFMA section 31
A85: 8. Adjustments approved in accordance with MFMA section 29
A86: 9. Adjustments to transfers from National or Provincial Government
A87: 10. Adjusts. = 'Other' Adjustments proposed to be approved; including revenue under-collection (MFMA section 28(2)(a)); additional revenue appropriation on existing programmes (section 28(2))(b); projected savings (section 28(2)(d)); error correction (section 28(2)(f))
A88: 11. G = B + C + D + E + F
A89: 12. Adjusted Budget H = (A or A1/2 etc) + G
A91: check balance | C91: =C65-C76 -> 0 | D91: =D65-D76 -> 0 | E91: =E65-E76 -> 0 | H91: =H65-H76 -> 0 | I91: =I65-I76 -> 0.009999993257 | J91: =J65-J76 -> 0.009999993257 | K91: =K65-K76 -> 0.009999990463 | L91: =L65-L76 -> 0 | M91: =K23-K76 -> -98761000

Sheet B5B
A1: =muni&" - "&_ADJ5&" - B"&" - "&Date -> FS193 Nketoana - Table B5 Adjustments Capital Expenditure Budget by vote and funding - B - 28/02/2018
A2: =Vdesc -> Vote Description | B2: =head27 -> Ref | C2: =Head2 -> Budget Year 2017/18 | L2: =Head10 -> Budget Year +1 2018/19 | M2: =Head11 -> Budget Year +2 2019/20
C3: =Head6 -> Original Budget | D3: =Head54 -> Prior Adjusted | E3: =Head51 -> Accum. Funds | F3: =Head52 -> Multi-year capital | G3: =Head53 -> Unfore. Unavoid. | H3: =Head55 -> Nat. or Prov. Govt | I3: =Head50 -> Other Adjusts. | J3: =Head56 -> Total Adjusts. | K3: =Head7 -> Adjusted Budget | L3: =Head7 -> Adjusted Budget | M3: =Head7 -> Adjusted Budget
A4: [Insert departmental structure etc] | D4: 3 | E4: 4 | F4: 5 | G4: 6 | H4: 7 | I4: 8 | J4: 9 | K4: 10
A5: R thousands | C5: A | D5: A1 | E5: B | F5: C | G5: D | H5: E | I5: F | J5: G | K5: H
A6: Capital expenditure - Municipal Vote
A7: Multi-year expenditure appropriation | B7: 2
A8: ='Org structure'!A2 -> Vote 1 - EXECUTIVE AND COUNCIL | C8: =SUM(C9:C18) -> 0 | D8: =SUM(D9:D18) -> 0 | E8: 0 | F8: 0 | G8: 0 | H8: 0 | I8: 0 | J8: =SUM(E8:I8) -> 0 | K8: =IF(D8=0,C8+J8,D8+J8) -> 0 | L8: =SUM(L9:L18) -> 0 | M8: =SUM(M9:M18) -> 0
A9: ='Org structure'!E3 -> 1.1 - Mayor's Office | J9: 0 | K9: 0
A10: ='Org structure'!E4 -> 1.2 - Speaker's Office | J10: 0 | K10: 0
A11: ='Org structure'!E5 -> 1.4 - Municipal Manager's Office | J11: 0 | K11: 0
A12: ='Org structure'!E6 -> 1.4 - IDP and PMS | J12: 0 | K12: 0
A13: ='Org structure'!E7 -> 1.5 - Internal Audit | J13: 0 | K13: 0
A14: ='Org structure'!E8 -> 1.6 - Special Programmes | J14: 0 | K14: 0
A15: ='Org structure'!E9 -> 0 | J15: 0 | K15: 0
A16: ='Org structure'!E10 -> 0 | J16: 0 | K16: 0
A17: ='Org structure'!E11 -> 0 | J17: 0 | K17: 0
A18: ='Org structure'!E12 -> 0 | J18: 0 | K18: 0
A19: ='Org structure'!A3 -> Vote 2 - FINANCE AND ADMINISTRATION | C19: =SUM(C20:C29) -> 0 | D19: =SUM(D20:D29) -> 0 | E19: 0 | F19: 0 | G19: 0 | H19: 0 | I19: 0 | J19: 0 | K19: 0 | L19: =SUM(L20:L29) -> 0 | M19: =SUM(M20:M29) -> 0
A20: ='Org structure'!E14 -> 2.1 - Human Resource | J20: 0 | K20: 0
A21: ='Org structure'!E15 -> 2.2 - Records Management | J21: 0 | K21: 0
A22: ='Org structure'!E16 -> 2.3 - Legal Services | J22: 0 | K22: 0
A23: ='Org structure'!E17 -> 2.4 - Administration | J23: 0 | K23: 0
A24: ='Org structure'!E18 -> 2.5 - Revenue Management | J24: 0 | K24: 0
A25: ='Org structure'!E19 -> 2.6 - Supply Chain Management | J25: 0 | K25: 0
A26: ='Org structure'!E20 -> 2.7 - CFO | J26: 0 | K26: 0
A27: ='Org structure'!E21 -> 2.8 - Director Corporate Services | J27: 0 | K27: 0
A28: ='Org structure'!E22 -> 2.9 - Budget and Treasury | J28: 0 | K28: 0
A29: ='Org structure'!E23 -> 2.10 - Expenditure | J29: 0 | K29: 0
A30: ='Org structure'!A4 -> Vote 3 - COMMUNITY SERVICES | C30: =SUM(C31:C40) -> 0 | D30: =SUM(D31:D40) -> 0 | E30: 0 | F30: 0 | G30: 0 | H30: 0 | I30: 0 | J30: 0 | K30: 0 | L30: =SUM(L31:L40) -> 0 | M30: =SUM(M31:M40) -> 0
A31: ='Org structure'!E25 -> 3.1 - Cementry | J31: 0 | K31: 0
A32: ='Org structure'!E26 -> 3.2 - Parks | J32: 0 | K32: 0
A33: ='Org structure'!E27 -> 3.3 - Director Community Services | J33: 0 | K33: 0
A34: ='Org structure'!E28 -> 3.4 - Traffic Services | J34: 0 | K34: 0
A35: ='Org structure'!E29 -> 3.5 - Fire Services | J35: 0 | K35: 0
A36: ='Org structure'!E30 -> 3.6 - Sports and Recreation | J36: 0 | K36: 0
A37: ='Org structure'!E31 -> 3.7 - Libraries | J37: 0 | K37: 0
A38: ='Org structure'!E32 -> 0 | J38: 0 | K38: 0
A39: ='Org structure'!E33 -> 0 | J39: 0 | K39: 0
A40: ='Org structure'!E34 -> 0 | J40: 0 | K40: 0
A41: ='Org structure'!A5 -> Vote 4 - WASTE MANAGEMENT | C41: =SUM(C42:C51) -> 0 | D41: =SUM(D42:D51) -> 0 | E41: 0 | F41: 0 | G41: 0 | H41: 0 | I41: 0 | J41: 0 | K41: 0 | L41: =SUM(L42:L51) -> 0 | M41: =SUM(M42:M51) -> 0
A42: ='Org structure'!E36 -> 4.1 - Waste Collection | J42: 0 | K42: 0
A43: ='Org structure'!E37 -> 4.2 - Solid Waste Disposal | J43: 0 | K43: 0
A44: ='Org structure'!E38 -> 4.3 - Solid Waste Management | J44: 0 | K44: 0
A45: ='Org structure'!E39 -> 0 | J45: 0 | K45: 0
A46: ='Org structure'!E40 -> 0 | J46: 0 | K46: 0
A47: ='Org structure'!E41 -> 0 | J47: 0 | K47: 0
A48: ='Org structure'!E42 -> 0 | J48: 0 | K48: 0
A49: ='Org structure'!E43 -> 0 | J49: 0 | K49: 0
A50: ='Org structure'!E44 -> 0 | J50: 0 | K50: 0
A51: ='Org structure'!E45 -> 0 | J51: 0 | K51: 0
A52: ='Org structure'!A6 -> Vote 5 - LOCAL ECONOMIC DEVELOPMENT | C52: =SUM(C53:C62) -> 0 | D52: =SUM(D53:D62) -> 0 | E52: 0 | F52: 0 | G52: 0 | H52: 0 | I52: 0 | J52: 0 | K52: 0 | L52: =SUM(L53:L62) -> 0 | M52: =SUM(M53:M62) -> 0
A53: ='Org structure'!E47 -> 5.1 - SMME Hub | J53: 0 | K53: 0
A54: ='Org structure'!E48 -> 5.2 - Tourism | J54: 0 | K54: 0
A55: ='Org structure'!E49 -> 5.3 - Economic Development | J55: 0 | K55: 0
A56: ='Org structure'!E50 -> 0 | J56: 0 | K56: 0
A57: ='Org structure'!E51 -> 0 | J57: 0 | K57: 0
A58: ='Org structure'!E52 -> 0 | J58: 0 | K58: 0
A59: ='Org structure'!E53 -> 0 | J59: 0 | K59: 0
A60: ='Org structure'!E54 -> 0 | J60: 0 | K60: 0
A61: ='Org structure'!E55 -> 0 | J61: 0 | K61: 0
A62: ='Org structure'!E56 -> 0 | J62: 0 | K62: 0
A63: ='Org structure'!A7 -> Vote 6 - ROADS TRANSPORT | C63: =SUM(C64:C73) -> 0 | D63: =SUM(D64:D73) -> 0 | E63: 0 | F63: 0 | G63: 0 | H63: 0 | I63: 0 | J63: 0 | K63: 0 | L63: =SUM(L64:L73) -> 0 | M63: =SUM(M64:M73) -> 0
A64: ='Org structure'!E58 -> 6.1 - Roads | J64: 0 | K64: 0
A65: ='Org structure'!E59 -> 6.2 - Storm Water | J65: 0 | K65: 0
A66: ='Org structure'!E60 -> 6.3 - Director Technical | J66: 0 | K66: 0
A67: ='Org structure'!E61 -> 0 | J67: 0 | K67: 0
A68: ='Org structure'!E62 -> 0 | J68: 0 | K68: 0
A69: ='Org structure'!E63 -> 0 | J69: 0 | K69: 0
A70: ='Org structure'!E64 -> 0 | J70: 0 | K70: 0
A71: ='Org structure'!E65 -> 0 | J71: 0 | K71: 0
A72: ='Org structure'!E66 -> 0 | J72: =SUM(E72:I72) -> 0 | K72: =IF(D72=0,C72+J72,D72+J72) -> 0
A73: ='Org structure'!E67 -> 0 | J73: 0 | K73: 0
A74: ='Org structure'!A8 -> Vote 7 - WATER | C74: =SUM(C75:C84) -> 0 | D74: =SUM(D75:D84) -> 0 | E74: 0 | F74: 0 | G74: 0 | H74: 0 | I74: 0 | J74: 0 | K74: 0 | L74: =SUM(L75:L84) -> 0 | M74: =SUM(M75:M84) -> 0
A75: ='Org structure'!E69 -> 7.1 - WTW Reitz | J75: 0 | K75: 0
A76: ='Org structure'!E70 -> 7.2 - WTW Mamafubedu | J76: 0 | K76: 0
A77: ='Org structure'!E71 -> 7.3 - WTW Lindley | J77: 0 | K77: 0
A78: ='Org structure'!E72 -> 7.4 - WTW Arlington | J78: 0 | K78: 0
A79: ='Org structure'!E73 -> 7.5 - Water Network Reitz | J79: 0 | K79: 0
A80: ='Org structure'!E74 -> 7.6 - Water Network Mamafubedu | J80: 0 | K80: 0
A81: ='Org structure'!E75 -> 7.7 - Water Network Lindley | J81: 0 | K81: 0
A82: ='Org structure'!E76 -> 7.8 - Water Network Arlington | J82: 0 | K82: 0
A83: ='Org structure'!E77 -> 7.9 - General Water Works | J83: 0 | K83: 0
A84: ='Org structure'!E78 -> 0 | J84: 0 | K84: 0
A85: ='Org structure'!A9 -> Vote 8 - ELECTRICITY | C85: =SUM(C86:C95) -> 0 | D85: =SUM(D86:D95) -> 0 | E85: 0 | F85: 0 | G85: 0 | H85: 0 | I85: 0 | J85: 0 | K85: 0 | L85: =SUM(L86:L95) -> 0 | M85: =SUM(M86:M95) -> 0
A86: ='Org structure'!E80 -> 8.1 - Reitz Electricity | J86: 0 | K86: 0
A87: ='Org structure'!E81 -> 8.2 - Mamafubedu Electricity | J87: 0 | K87: 0
A88: ='Org structure'!E82 -> 8.3 - Lindley Electricity | J88: 0 | K88: 0
A89: ='Org structure'!E83 -> 8.4 - General Electricity Works | J89: 0 | K89: 0
A90: ='Org structure'!E84 -> 0 | J90: 0 | K90: 0
A91: ='Org structure'!E85 -> 0 | J91: 0 | K91: 0
A92: ='Org structure'!E86 -> 0 | J92: 0 | K92: 0
A93: ='Org structure'!E87 -> 0 | J93: 0 | K93: 0
A94: ='Org structure'!E88 -> 0 | J94: 0 | K94: 0
A95: ='Org structure'!E89 -> 0 | J95: 0 | K95: 0
A96: ='Org structure'!A10 -> Vote 9 - WASTE WATER | C96: =SUM(C97:C106) -> 0 | D96: =SUM(D97:D106) -> 0 | E96: 0 | F96: 0 | G96: 0 | H96: 0 | I96: 0 | J96: 0 | K96: 0 | L96: =SUM(L97:L106) -> 0 | M96: =SUM(M97:M106) -> 0
A97: ='Org structure'!E91 -> 9.1 - WWTW Reitz | J97: 0 | K97: 0
A98: ='Org structure'!E92 -> 9.2 - Network Reitz | J98: 0 | K98: 0
A99: ='Org structure'!E93 -> 9.3 - Network Mamafubedu | J99: 0 | K99: 0
A100: ='Org structure'!E94 -> 9.4 - WWTW Mamafubedu | J100: 0 | K100: 0
A101: ='Org structure'!E95 -> 9.5 - WWTW Lindley | J101: 0 | K101: 0
A102: ='Org structure'!E96 -> 9.6 - Network Lindley | J102: 0 | K102: 0
A103: ='Org structure'!E97 -> 9.7 - WWTW Arlington | J103: 0 | K103: 0
A104: ='Org structure'!E98 -> 9.8 - Network Arlington | J104: 0 | K104: 0
A105: ='Org structure'!E99 -> 0 | J105: 0 | K105: 0
A106: ='Org structure'!E100 -> 0 | J106: 0 | K106: 0
A107: ='Org structure'!A11 -> Vote 10 - HOUSING | C107: =SUM(C108:C117) -> 0 | D107: =SUM(D108:D117) -> 0 | E107: 0 | F107: 0 | G107: 0 | H107: 0 | I107: 0 | J107: 0 | K107: 0 | L107: =SUM(L108:L117) -> 0 | M107: =SUM(M108:M117) -> 0
A108: ='Org structure'!E102 -> 10.1 - Urban Planning | J108: 0 | K108: 0
A109: ='Org structure'!E103 -> 10.2 - Housing | J109: 0 | K109: 0
A110: ='Org structure'!E104 -> 0 | J110: 0 | K110: 0
A111: ='Org structure'!E105 -> 0 | J111: 0 | K111: 0
A112: ='Org structure'!E106 -> 0 | J112: 0 | K112: 0
A113: ='Org structure'!E107 -> 0 | J113: 0 | K113: 0
A114: ='Org structure'!E108 -> 0 | J114: 0 | K114: 0
A115: ='Org structure'!E109 -> 0 | J115: 0 | K115: 0
A116: ='Org structure'!E110 -> 0 | J116: 0 | K116: 0
A117: ='Org structure'!E111 -> 0 | J117: 0 | K117: 0
A118: ='Org structure'!A12 -> Vote 11 - [NAME OF VOTE 11] | C118: =SUM(C119:C128) -> 0 | D118: =SUM(D119:D128) -> 0 | E118: 0 | F118: 0 | G118: 0 | H118: 0 | I118: 0 | J118: 0 | K118: 0 | L118: =SUM(L119:L128) -> 0 | M118: =SUM(M119:M128) -> 0
A119: ='Org structure'!E113 -> 11.1 - [Name of sub-vote] | J119: 0 | K119: 0
A120: ='Org structure'!E114 -> 0 | J120: 0 | K120: 0
A121: ='Org structure'!E115 -> 0 | J121: 0 | K121: 0
A122: ='Org structure'!E116 -> 0 | J122: 0 | K122: 0
A123: ='Org structure'!E117 -> 0 | J123: 0 | K123: 0
A124: ='Org structure'!E118 -> 0 | J124: 0 | K124: 0
A125: ='Org structure'!E119 -> 0 | J125: 0 | K125: 0
A126: ='Org structure'!E120 -> 0 | J126: 0 | K126: 0
A127: ='Org structure'!E121 -> 0 | J127: 0 | K127: 0
A128: ='Org structure'!E122 -> 0 | J128: 0 | K128: 0
A129: ='Org structure'!A13 -> Vote 12 - [NAME OF VOTE 12] | C129: =SUM(C130:C139) -> 0 | D129: =SUM(D130:D139) -> 0 | E129: 0 | F129: 0 | G129: 0 | H129: 0 | I129: 0 | J129: 0 | K129: 0 | L129: =SUM(L130:L139) -> 0 | M129: =SUM(M130:M139) -> 0
A130: ='Org structure'!E124 -> 12.1 - [Name of sub-vote] | J130: 0 | K130: 0
A131: ='Org structure'!E125 -> 0 | J131: 0 | K131: 0
A132: ='Org structure'!E126 -> 0 | J132: 0 | K132: 0
A133: ='Org structure'!E127 -> 0 | J133: 0 | K133: 0
A134: ='Org structure'!E128 -> 0 | J134: 0 | K134: 0
A135: ='Org structure'!E129 -> 0 | J135: 0 | K135: 0
A136: ='Org structure'!E130 -> 0 | J136: =SUM(E136:I136) -> 0 | K136: =IF(D136=0,C136+J136,D136+J136) -> 0
A137: ='Org structure'!E131 -> 0 | J137: 0 | K137: 0
A138: ='Org structure'!E132 -> 0 | J138: 0 | K138: 0
A139: ='Org structure'!E133 -> 0 | J139: 0 | K139: 0
A140: ='Org structure'!A14 -> Vote 13 - [NAME OF VOTE 13] | C140: =SUM(C141:C150) -> 0 | D140: =SUM(D141:D150) -> 0 | E140: 0 | F140: 0 | G140: 0 | H140: 0 | I140: 0 | J140: 0 | K140: 0 | L140: =SUM(L141:L150) -> 0 | M140: =SUM(M141:M150) -> 0
A141: ='Org structure'!E135 -> 13.1 - [Name of sub-vote] | J141: 0 | K141: 0
A142: ='Org structure'!E136 -> 0 | J142: 0 | K142: 0
A143: ='Org structure'!E137 -> 0 | J143: 0 | K143: 0
A144: ='Org structure'!E138 -> 0 | J144: 0 | K144: 0
A145: ='Org structure'!E139 -> 0 | J145: 0 | K145: 0
A146: ='Org structure'!E140 -> 0 | J146: 0 | K146: 0
A147: ='Org structure'!E141 -> 0 | J147: 0 | K147: 0
A148: ='Org structure'!E142 -> 0 | J148: 0 | K148: 0
A149: ='Org structure'!E143 -> 0 | J149: 0 | K149: 0
A150: ='Org structure'!E144 -> 0 | J150: 0 | K150: 0
A151: ='Org structure'!A15 -> Vote 14 - [NAME OF VOTE 14] | C151: =SUM(C152:C161) -> 0 | D151: =SUM(D152:D161) -> 0 | E151: 0 | F151: 0 | G151: 0 | H151: 0 | I151: 0 | J151: 0 | K151: 0 | L151: =SUM(L152:L161) -> 0 | M151: =SUM(M152:M161) -> 0
A152: ='Org structure'!E146 -> 14.1 - [Name of sub-vote] | J152: 0 | K152: 0
A153: ='Org structure'!E147 -> 0 | J153: 0 | K153: 0
A154: ='Org structure'!E148 -> 0 | J154: 0 | K154: 0
A155: ='Org structure'!E149 -> 0 | J155: 0 | K155: 0
A156: ='Org structure'!E150 -> 0 | J156: 0 | K156: 0
A157: ='Org structure'!E151 -> 0 | J157: 0 | K157: 0
A158: ='Org structure'!E152 -> 0 | J158: 0 | K158: 0
A159: ='Org structure'!E153 -> 0 | J159: 0 | K159: 0
A160: ='Org structure'!E154 -> 0 | J160: 0 | K160: 0
A161: ='Org structure'!E155 -> 0 | J161: 0 | K161: 0
A162: ='Org structure'!A16 -> Vote 15 - [NAME OF VOTE 15] | C162: =SUM(C163:C172) -> 0 | D162: =SUM(D163:D172) -> 0 | E162: 0 | F162: 0 | G162: 0 | H162: 0 | I162: 0 | J162: 0 | K162: 0 | L162: =SUM(L163:L172) -> 0 | M162: =SUM(M163:M172) -> 0
A163: ='Org structure'!E157 -> 15.1 - [Name of sub-vote] | J163: 0 | K163: 0
A164: ='Org structure'!E158 -> 0 | J164: 0 | K164: 0
A165: ='Org structure'!E159 -> 0 | J165: 0 | K165: 0
A166: ='Org structure'!E160 -> 0 | J166: 0 | K166: 0
A167: ='Org structure'!E161 -> 0 | J167: 0 | K167: 0
A168: ='Org structure'!E162 -> 0 | J168: 0 | K168: 0
A169: ='Org structure'!E163 -> 0 | J169: 0 | K169: 0
A170: ='Org structure'!E164 -> 0 | J170: 0 | K170: 0
A171: ='Org structure'!E165 -> 0 | J171: 0 | K171: 0
A172: ='Org structure'!E166 -> 0 | J172: 0 | K172: 0
A173: Capital multi-year expenditure sub-total | C173: =C8+C19+C30+C41+C52+C63+C74+C85+C96+C107+C118+C129+C140+C151+C162 -> 0 | D173: =D8+D19+D30+D41+D52+D63+D74+D85+D96+D107+D118+D129+D140+D151+D162 -> 0 | E173: 0 | F173: 0 | G173: 0 | H173: 0 | I173: 0 | J173: 0 | K173: 0 | L173: =L8+L19+L30+L41+L52+L63+L74+L85+L96+L107+L118+L129+L140+L151+L162 -> 0 | M173: =M8+M19+M30+M41+M52+M63+M74+M85+M96+M107+M118+M129+M140+M151+M162 -> 0
A175: Capital expenditure - Municipal Vote | B175: 2
A176: Single-year expenditure appropriation
A177: =B5B!A8 -> Vote 1 - EXECUTIVE AND COUNCIL | C177: =SUM(C178:C187) -> 0 | D177: =SUM(D178:D187) -> 0 | E177: 0 | F177: 0 | G177: 0 | H177: 0 | I177: 0 | J177: =SUM(E177:I177) -> 0 | K177: =IF(D177=0,C177+J177,D177+J177) -> 0 | L177: =SUM(L178:L187) -> 0 | M177: =SUM(M178:M187) -> 0
A178: =B5B!A9 -> 1.1 - Mayor's Office | J178: 0 | K178: 0
A179: =B5B!A10 -> 1.2 - Speaker's Office | J179: 0 | K179: 0
A180: =B5B!A11 -> 1.4 - Municipal Manager's Office | J180: 0 | K180: 0
A181: =B5B!A12 -> 1.4 - IDP and PMS | J181: 0 | K181: 0
A182: =B5B!A13 -> 1.5 - Internal Audit | J182: 0 | K182: 0
A183: =B5B!A14 -> 1.6 - Special Programmes | J183: 0 | K183: 0
A184: =B5B!A15 -> 0 | J184: 0 | K184: 0
A185: =B5B!A16 -> 0 | J185: 0 | K185: 0
A186: =B5B!A17 -> 0 | J186: 0 | K186: 0
A187: =B5B!A18 -> 0 | J187: 0 | K187: 0
A188: =B5B!A19 -> Vote 2 - FINANCE AND ADMINISTRATION | C188: =SUM(C189:C198) -> 0 | D188: =SUM(D189:D198) -> 0 | E188: 0 | F188: 0 | G188: 0 | H188: 0 | I188: 0 | J188: 0 | K188: 0 | L188: =SUM(L189:L198) -> 0 | M188: =SUM(M189:M198) -> 0
A189: =B5B!A20 -> 2.1 - Human Resource | J189: 0 | K189: 0
A190: =B5B!A21 -> 2.2 - Records Management | J190: 0 | K190: 0
A191: =B5B!A22 -> 2.3 - Legal Services | J191: 0 | K191: 0
A192: =B5B!A23 -> 2.4 - Administration | J192: 0 | K192: 0
A193: =B5B!A24 -> 2.5 - Revenue Management | J193: 0 | K193: 0
A194: =B5B!A25 -> 2.6 - Supply Chain Management | J194: 0 | K194: 0
A195: =B5B!A26 -> 2.7 - CFO | J195: 0 | K195: 0
A196: =B5B!A27 -> 2.8 - Director Corporate Services | J196: 0 | K196: 0
A197: =B5B!A28 -> 2.9 - Budget and Treasury | J197: 0 | K197: 0
A198: =B5B!A29 -> 2.10 - Expenditure | J198: 0 | K198: 0
A199: =B5B!A30 -> Vote 3 - COMMUNITY SERVICES | C199: =SUM(C200:C209) -> 4109190.6 | D199: =SUM(D200:D209) -> 0 | E199: 0 | F199: 0 | G199: 0 | H199: 0 | I199: 1755584.63 | J199: 1755584.63 | K199: 5864775.23 | L199: =SUM(L200:L209) -> 4355742.036 | M199: =SUM(M200:M209) -> 4617086.558
A200: =B5B!A31 -> 3.1 - Cementry | C200: 854567.61 | J200: 0 | K200: 854567.61 | L200: 905841.6666 | M200: 960192.1666
A201: =B5B!A32 -> 3.2 - Parks | J201: 0 | K201: 0
... 146 more rows

Sheet B6-FinPos
A1: =muni&" - "&_ADJ6&" - "&Date -> FS193 Nketoana - Table B6 Adjustments Budget Financial Position - 28/02/2018
A2: =desc -> Description | B2: =head27 -> Ref | C2: =Head2 -> Budget Year 2017/18 | L2: =Head10 -> Budget Year +1 2018/19 | M2: =Head11 -> Budget Year +2 2019/20
C3: =Head6 -> Original Budget | D3: =Head54 -> Prior Adjusted | E3: =Head51 -> Accum. Funds | F3: =Head52 -> Multi-year capital | G3: =Head53 -> Unfore. Unavoid. | H3: =Head55 -> Nat. or Prov. Govt | I3: =Head50 -> Other Adjusts. | J3: =Head56 -> Total Adjusts. | K3: =Head7 -> Adjusted Budget | L3: =Head7 -> Adjusted Budget | M3: =Head7 -> Adjusted Budget
D4: 3 | E4: 4 | F4: 5 | G4: 6 | H4: 7 | I4: 8 | J4: 9 | K4: 10
A5: R thousands | C5: A | D5: A1 | E5: B | F5: C | G5: D | H5: E | I5: F | J5: G | K5: H
A6: ASSETS
A7: Current assets
A8: Cash | J8: =SUM(E8:I8) -> 0 | K8: =IF(D8=0,C8+J8,D8+J8) -> 0
A9: Call investment deposits | B9: 1 | C9: ='SB2'!C10 -> 16167241.27 | D9: ='SB2'!D10 -> 0 | E9: ='SB2'!E10 -> 0 | F9: ='SB2'!F10 -> 0 | G9: ='SB2'!G10 -> 0 | H9: ='SB2'!H10 -> 0 | I9: ='SB2'!I10 -> 0 | J9: 0 | K9: 16167241.27 | L9: ='SB2'!L10 -> 18963708.44 | M9: ='SB2'!M10 -> 20101530.95
A10: Consumer debtors | B10: 1 | C10: ='SB2'!C14 -> 317271373.5 | D10: ='SB2'!D14 -> 0 | E10: ='SB2'!E14 -> 0 | F10: ='SB2'!F14 -> 0 | G10: ='SB2'!G14 -> 0 | H10: ='SB2'!H14 -> 0 | I10: ='SB2'!I14 -> 0 | J10: 0 | K10: 317271373.5 | L10: ='SB2'!L14 -> 434560751.8 | M10: ='SB2'!M14 -> 460634396.9
A11: Other debtors | C11: 14142077.98 | J11: 0 | K11: 14142077.98 | L11: 14990602.66 | M11: 15890038.82
A12: Current portion of long-term receivables | C12: 21530644.74 | J12: 0 | K12: 21530644.74 | L12: 22822483.42 | M12: 24191832.43
A13: Inventory | C13: 702915.68 | J13: 0 | K13: 702915.68 | L13: 745090.6208 | M13: 789796.058
A14: Total current assets | C14: =SUM(C8:C13) -> 369814253.2 | D14: 0 | E14: 0 | F14: 0 | G14: 0 | H14: 0 | I14: 0 | J14: 0 | K14: 369814253.2 | L14: 492082636.9 | M14: 521607595.1
A16: Non current assets
A17: Long-term receivables | C17: 2225194.4 | J17: =SUM(E17:I17) -> 0 | K17: =IF(D17=0,C17+J17,D17+J17) -> 2225194.4 | L17: 2358706.064 | M17: 2500228.428
A18: Investments | J18: 0 | K18: 0
A19: Investment property | C19: 14155462.08 | J19: 0 | K19: 14155462.08 | L19: 14438571.32 | M19: 14727342.75
A20: Investment in Associate | C20: 4567597.944 | J20: 0 | K20: 4567597.944 | L20: 4658949.903 | M20: 4752128.901
A21: Property, plant and equipment | B21: 1 | C21: ='SB2'!C24 -> 1026223823 | D21: ='SB2'!D24 -> 0 | E21: ='SB2'!E24 -> 0 | F21: ='SB2'!F24 -> 0 | G21: ='SB2'!G24 -> 0 | H21: ='SB2'!H24 -> 0 | I21: ='SB2'!I24 -> 0 | J21: 0 | K21: 1026223823 | L21: ='SB2'!L24 -> 1046748300 | M21: ='SB2'!M24 -> 1067683266
A22: Agricultural | J22: 0 | K22: 0
A23: Biological | C23: 24513 | J23: 0 | K23: 24513 | L23: 24513 | M23: 24513
A24: Intangible | C24: 65598 | J24: 0 | K24: 65598 | L24: 65598 | M24: 65598
A25: Other non-current assets | C25: 165180.84 | J25: 0 | K25: 165180.84 | L25: 168484.4568 | M25: 171854.1459
A26: Total non current assets | C26: =SUM(C17:C25) -> 1047427370 | D26: 0 | E26: 0 | F26: 0 | G26: 0 | H26: 0 | I26: 0 | J26: 0 | K26: 1047427370 | L26: 1068463123 | M26: 1089924931
A27: TOTAL ASSETS | C27: =C14+C26 -> 1417241623 | D27: 0 | E27: 0 | F27: 0 | G27: 0 | H27: 0 | I27: 0 | J27: 0 | K27: 1417241623 | L27: 1560545760 | M27: 1611532526
A29: LIABILITIES
A30: Current liabilities
A31: Bank overdraft | J31: =SUM(E31:I31) -> 0 | K31: =IF(D31=0,C31+J31,D31+J31) -> 0
A32: Borrowing | C32: ='SB2'!C30 -> 7986021.66 | D32: ='SB2'!D30 -> 0 | E32: ='SB2'!E30 -> 0 | F32: ='SB2'!F30 -> 0 | G32: ='SB2'!G30 -> 0 | H32: ='SB2'!H30 -> 0 | I32: ='SB2'!I30 -> 0 | J32: =SUM(E32:I32) -> 0 | K32: =IF(D32=0,C32+J32,D32+J32) -> 7986021.66 | L32: ='SB2'!L30 -> 8145742.093 | M32: ='SB2'!M30 -> 8308656.935
A33: Consumer deposits | C33: 1508708.6 | J33: =SUM(E33:I33) -> 0 | K33: =IF(D33=0,C33+J33,D33+J33) -> 1508708.6 | L33: 1599231.116 | M33: 1695184.983
A34: Trade and other payables | C34: ='SB2'!C35 -> 163652719.5 | D34: ='SB2'!D35 -> 0 | E34: ='SB2'!E35 -> 0 | F34: ='SB2'!F35 -> 0 | G34: ='SB2'!G35 -> 0 | H34: ='SB2'!H35 -> 0 | I34: ='SB2'!I35 -> 0 | J34: =SUM(E34:I34) -> 0 | K34: =IF(D34=0,C34+J34,D34+J34) -> 163652719.5 | L34: ='SB2'!L35 -> 173471882.6 | M34: ='SB2'!M35 -> 183880195.6
A35: Provisions | J35: =SUM(E35:I35) -> 0 | K35: =IF(D35=0,C35+J35,D35+J35) -> 0
A36: Total current liabilities | C36: =SUM(C31:C35) -> 173147449.7 | D36: 0 | E36: 0 | F36: 0 | G36: 0 | H36: 0 | I36: 0 | J36: 0 | K36: 173147449.7 | L36: 183216855.9 | M36: 193884037.5
A38: Non current liabilities
A39: Borrowing | B39: 1 | C39: ='SB2'!C39 -> 7986021.66 | D39: ='SB2'!D39 -> 0 | E39: ='SB2'!E39 -> 0 | F39: ='SB2'!F39 -> 0 | G39: ='SB2'!G39 -> 0 | H39: ='SB2'!H39 -> 0 | I39: ='SB2'!I39 -> 0 | J39: =SUM(E39:I39) -> 0 | K39: =IF(D39=0,C39+J39,D39+J39) -> 7986021.66 | L39: ='SB2'!L39 -> 7500000 | M39: ='SB2'!M39 -> 7200000
A40: Provisions | B40: 1 | C40: ='SB2'!C45 -> 307449265 | D40: ='SB2'!D45 -> 0 | E40: ='SB2'!E45 -> 0 | F40: ='SB2'!F45 -> 0 | G40: ='SB2'!G45 -> 0 | H40: ='SB2'!H45 -> 0 | I40: ='SB2'!I45 -> 0 | J40: =SUM(E40:I40) -> 0 | K40: =IF(D40=0,C40+J40,D40+J40) -> 307449265 | L40: ='SB2'!L45 -> 313598250.3 | M40: ='SB2'!M45 -> 319870215.3
A41: Total non current liabilities | C41: =SUM(C39:C40) -> 315435286.6 | D41: 0 | E41: 0 | F41: 0 | G41: 0 | H41: 0 | I41: 0 | J41: 0 | K41: 315435286.6 | L41: 321098250.3 | M41: 327070215.3
A42: TOTAL LIABILITIES | C42: =C36+C41 -> 488582736.4 | D42: 0 | E42: 0 | F42: 0 | G42: 0 | H42: 0 | I42: 0 | J42: 0 | K42: 488582736.4 | L42: 504315106.1 | M42: 520954252.8
A44: NET ASSETS | B44: 2 | C44: =C27-C42 -> 928658886.5 | D44: 0 | E44: 0 | F44: 0 | G44: 0 | H44: 0 | I44: 0 | J44: 0 | K44: 928658886.5 | L44: 1056230653 | M44: 1090578273
A46: COMMUNITY WEALTH/EQUITY
A47: Accumulated Surplus/(Deficit) | C47: ='SB2'!C54 -> 928658886.5 | D47: ='SB2'!D54 -> 0 | E47: ='SB2'!E54 -> 0 | F47: ='SB2'!F54 -> 0 | G47: ='SB2'!G54 -> 0 | H47: ='SB2'!H54 -> 0 | I47: ='SB2'!I54 -> 0 | J47: =SUM(E47:I47) -> 0 | K47: =IF(D47=0,C47+J47,D47+J47) -> 928658886.5 | L47: ='SB2'!L54 -> 1056230653 | M47: ='SB2'!M54 -> 1090578273
A48: Reserves | C48: ='SB2'!C61 -> 0 | D48: ='SB2'!D61 -> 0 | E48: ='SB2'!E61 -> 0 | F48: ='SB2'!F61 -> 0 | G48: ='SB2'!G61 -> 0 | H48: ='SB2'!H61 -> 0 | I48: ='SB2'!I61 -> 0 | J48: =SUM(E48:I48) -> 0 | K48: =IF(D48=0,C48+J48,D48+J48) -> 0 | L48: ='SB2'!L61 -> 0 | M48: ='SB2'!M61 -> 0
A49: Minorities' interests | C49: 0 | J49: =SUM(E49:I49) -> 0 | K49: =IF(D49=0,C49+J49,D49+J49) -> 0
A50: TOTAL COMMUNITY WEALTH/EQUITY | C50: =SUM(C47:C49) -> 928658886.5 | D50: =SUM(D47:D49) -> 0 | E50: 0 | F50: 0 | G50: 0 | H50: 0 | I50: 0 | J50: 0 | K50: 928658886.5 | L50: 1056230653 | M50: 1090578273
A51: =head27a -> References
A52: 1. Detail to be provided in Table SA3
A53: 2. Net assets must balance with Total Community Wealth/Equity
A54: 3. Only complete if a previous adjusted budget has been approved in the same financial year. Reflect most recent adjusted budget.
A55: 4. Additional cash-backed accumulated funds/unspent funds (MFMA section 18(1)(b) and section 28(2)(e)) identified after the Original Budget approved and after annual financial statements audited (note: only where underspending could not reasonably have been foreseen)
A56: 5. Increases of funds approved under MFMA section 31
A57: 6. Adjustments approved in accordance with MFMA section 29
A58: 7. Adjustments to transfers from National or Provincial Government
A59: 8. Adjusts. = 'Other' Adjustments proposed to be approved; including revenue under-collection (MFMA section 28(2)(a)); additional revenue appropriation on existing programmes (section 28(2))(b); projected savings (section 28(2)(d)); error correction (section 28(2)(f))
A60: 9. G = B + C + D + E + F
A61: 10. Adjusted Budget H = (A or A1/2 etc) + G
A63: check balance | C63: =C44-C50 -> 0 | D63: 0 | E63: 0 | F63: 0 | G63: 0 | H63: 0 | I63: 0 | J63: 0 | K63: 0 | L63: -0.002508163452 | M63: 0.001082897186

Sheet B7-CFlow
A1: =muni&" - "&_ADJ7&" - "&Date -> FS193 Nketoana - Table B7 Adjustments Budget Cash Flows - 28/02/2018
A2: =desc -> Description | B2: =head27 -> Ref | C2: =Head2 -> Budget Year 2017/18 | L2: =Head10 -> Budget Year +1 2018/19 | M2: =Head11 -> Budget Year +2 2019/20
C3: =Head6 -> Original Budget | D3: =Head54 -> Prior Adjusted | E3: =Head51 -> Accum. Funds | F3: =Head52 -> Multi-year capital | G3: =Head53 -> Unfore. Unavoid. | H3: =Head55 -> Nat. or Prov. Govt | I3: =Head50 -> Other Adjusts. | J3: =Head56 -> Total Adjusts. | K3: =Head7 -> Adjusted Budget | L3: =Head7 -> Adjusted Budget | M3: =Head7 -> Adjusted Budget
D4: 3 | E4: 4 | F4: 5 | G4: 6 | H4: 7 | I4: 8 | J4: 9 | K4: 10
A5: R thousands | C5: A | D5: A1 | E5: B | F5: C | G5: D | H5: E | I5: F | J5: G | K5: H
A6: CASH FLOW FROM OPERATING ACTIVITIES
A7: Receipts
A8: Property rates | C8: 14238474.66 | I8: -4943822.762 | J8: =SUM(E8:I8) -> -4943822.762 | K8: =IF(D8=0,C8+J8,D8+J8) -> 9294651.9 | L8: 15092783.14 | M8: 15998350.13
A9: Service charges | C9: 99798332.69 | I9: -11248000 | J9: =SUM(E9:I9) -> -11248000 | K9: =IF(D9=0,C9+J9,D9+J9) -> 88550332.69 | L9: 105786232.7 | M9: 112133406.6
A10: Other revenue | C10: 14026549.07 | I10: 2077126.211 | J10: 2077126.211 | K10: 16103675.28 | L10: 14868142.01 | M10: 15760230.54
A11: Government - operating | B11: 1 | C11: 82580000 | I11: 0 | J11: 0 | K11: 82580000 | L11: 87534800 | M11: 92786888
A12: Government - capital | B12: 1 | C12: 98761000 | I12: 0 | J12: 0 | K12: 98761000 | L12: 97042000 | M12: 73400000
A13: Interest | C13: 28898779.5 | I13: -26562324.34 | J13: -26562324.34 | K13: 2336455.157 | L13: 30632706.27 | M13: 32470668.65
A14: Dividends | J14: 0 | K14: 0
A15: Payments
A16: Suppliers and employees | C16: -217479756 | I16: 20018613.97 | J16: =SUM(E16:I16) -> 20018613.97 | K16: =IF(D16=0,C16+J16,D16+J16) -> -197461142.1 | L16: -230528541.4 | M16: -244360253.9
A17: Finance charges | C17: -17835276.45 | I17: 8917638.225 | J17: =SUM(E17:I17) -> 8917638.225 | K17: =IF(D17=0,C17+J17,D17+J17) -> -8917638.225 | L17: -18905393.04 | M17: -20039716.62
A18: Transfers and Grants | B18: 1 | J18: =SUM(E18:I18) -> 0 | K18: =IF(D18=0,C18+J18,D18+J18) -> 0
A19: NET CASH FROM/(USED) OPERATING ACTIVITIES | C19: =SUM(C8:C14)+SUM(C16:C18) -> 102988103.4 | D19: =SUM(D8:D14)+SUM(D16:D18) -> 0 | E19: 0 | F19: 0 | G19: 0 | H19: 0 | I19: -11740768.7 | J19: =SUM(J8:J18) -> -11740768.7 | K19: =SUM(K8:K18) -> 91247334.74 | L19: =SUM(L8:L14)+SUM(L16:L18) -> 101522729.7 | M19: =SUM(M8:M14)+SUM(M16:M18) -> 78149573.43
A21: CASH FLOWS FROM INVESTING ACTIVITIES
A22: Receipts
A23: Proceeds on disposal of PPE | J23: =SUM(E23:I23) -> 0 | K23: =IF(D23=0,C23+J23,D23+J23) -> 0
A24: Decrease (Increase) in non-current debtors | J24: =SUM(E24:I24) -> 0 | K24: =IF(D24=0,C24+J24,D24+J24) -> 0
A25: Decrease (increase) other non-current receivables | J25: =SUM(E25:I25) -> 0 | K25: =IF(D25=0,C25+J25,D25+J25) -> 0
A26: Decrease (increase) in non-current investments | J26: =SUM(E26:I26) -> 0 | K26: =IF(D26=0,C26+J26,D26+J26) -> 0
A27: Payments
A28: Capital assets | C28: -98761000 | J28: =SUM(E28:I28) -> 0 | K28: =IF(D28=0,C28+J28,D28+J28) -> -98761000 | L28: -97042000 | M28: -73400000
A29: NET CASH FROM/(USED) INVESTING ACTIVITIES | C29: =SUM(C23:C26)+C28 -> -98761000 | D29: =SUM(D23:D26)+D28 -> 0 | E29: 0 | F29: 0 | G29: 0 | H29: 0 | I29: 0 | J29: =SUM(J23:J28) -> 0 | K29: =SUM(K23:K28) -> -98761000 | L29: =SUM(L23:L26)+L28 -> -97042000 | M29: =SUM(M23:M26)+M28 -> -73400000
A31: CASH FLOWS FROM FINANCING ACTIVITIES
A32: Receipts
A33: Short term loans | J33: =SUM(E33:I33) -> 0 | K33: =IF(D33=0,C33+J33,D33+J33) -> 0 | L33: 0 | M33: 0
A34: Borrowing long term/refinancing | J34: =SUM(E34:I34) -> 0 | K34: =IF(D34=0,C34+J34,D34+J34) -> 0 | L34: 0 | M34: 0
A35: Increase (decrease) in consumer deposits | C35: 144890.34 | J35: =SUM(E35:I35) -> 0 | K35: =IF(D35=0,C35+J35,D35+J35) -> 144890.34 | L35: 153583.7604 | M35: 162798.786
A36: Payments
A37: Repayment of borrowing | C37: -486000 | I37: -3514000 | J37: =SUM(E37:I37) -> -3514000 | K37: =IF(D37=0,C37+J37,D37+J37) -> -4000000 | L37: -300000 | M37: -7200000
A38: NET CASH FROM/(USED) FINANCING ACTIVITIES | C38: =SUM(C33:C35)+C37 -> -341109.66 | D38: =SUM(D33:D35)+D37 -> 0 | E38: 0 | F38: 0 | G38: 0 | H38: 0 | I38: -3514000 | J38: =SUM(J33:J37) -> -3514000 | K38: =SUM(K33:K37) -> -3855109.66 | L38: =SUM(L33:L35)+L37 -> -146416.2396 | M38: =SUM(M33:M35)+M37 -> -7037201.214
A40: NET INCREASE/ (DECREASE) IN CASH HELD | C40: =C19+C29+C38 -> 3885993.784 | D40: =D19+D29+D38 -> 0 | E40: 0 | F40: 0 | G40: 0 | H40: 0 | I40: -15254768.7 | J40: -15254768.7 | K40: -11368774.92 | L40: 4334313.411 | M40: -2287627.785
A41: Cash/cash equivalents at the year begin: | B41: 2 | C41: 2527021 | I41: 9854330 | J41: =SUM(E41:I41) -> 9854330 | K41: =IF(D41=0,C41+J41,D41+J41) -> 12381351 | L41: 6413014.784 | M41: 10747328.19
A42: Cash/cash equivalents at the year end: | B42: 2 | C42: =C40+C41 -> 6413014.784 | D42: =D40+D41 -> 0 | E42: 0 | F42: 0 | G42: 0 | H42: 0 | I42: -5400438.701 | J42: -5400438.701 | K42: =K40+K41 -> 1012576.083 | L42: =L40+L41 -> 10747328.19 | M42: =M40+M41 -> 8459700.409
A43: =head27a -> References
A44: 1. Local/District municipalities to include transfers from/to District/Local Municipalities
A45: 2. Cash equivalents includes investments with maturities of 3 months or less
A46: 3. Only complete if a previous adjusted budget has been approved in the same financial year. Reflect most recent adjusted budget.
A47: 4. Additional cash-backed accumulated funds/unspent funds (MFMA section 18(1)(b) and section 28(2)(e)) identified after the Original Budget approved and after annual financial statements audited (note: only where underspending could not reasonably have been foreseen)
A48: 5. Increases of funds approved under MFMA section 31
A49: 6. Adjustments approved in accordance with MFMA section 29
A50: 7. Adjustments to transfers from National or Provincial Government
A51: 8. Adjusts. = 'Other' Adjustments proposed to be approved; including revenue under-collection (MFMA section 28(2)(a)); additional revenue appropriation on existing programmes (section 28(2))(b); projected savings (section 28(2)(d)); error correction (section 28(2)(f))
A52: 9. G = B + C + D + E + F
A53: 10. Adjusted Budget H = (A or A1/2 etc) + G

Sheet B8-ResRecon
A1: =muni&" - "&_ADJ8&" - "&Date -> FS193 Nketoana - Table B8 Cash backed reserves/accumulated surplus reconciliation - 28/02/2018
A2: =desc -> Description | B2: =head27 -> Ref | C2: =Head2 -> Budget Year 2017/18 | L2: =Head10 -> Budget Year +1 2018/19 | M2: =Head11 -> Budget Year +2 2019/20
C3: =Head6 -> Original Budget | D3: =Head54 -> Prior Adjusted | E3: =Head51 -> Accum. Funds | F3: =Head52 -> Multi-year capital | G3: =Head53 -> Unfore. Unavoid. | H3: =Head55 -> Nat. or Prov. Govt | I3: =Head50 -> Other Adjusts. | J3: =Head56 -> Total Adjusts. | K3: =Head7 -> Adjusted Budget | L3: =Head7 -> Adjusted Budget | M3: =Head7 -> Adjusted Budget
D4: 3 | E4: 4 | F4: 5 | G4: 6 | H4: 7 | I4: 8 | J4: 9 | K4: 10
A5: R thousands | C5: A | D5: A1 | E5: B | F5: C | G5: D | H5: E | I5: F | J5: G | K5: H
A6: Cash and investments available
A7: Cash/cash equivalents at the year end | B7: 1 | C7: ='B7-CFlow'!C42 -> 6413014.784 | D7: ='B7-CFlow'!D42 -> 0 | E7: ='B7-CFlow'!E42 -> 0 | F7: ='B7-CFlow'!F42 -> 0 | G7: ='B7-CFlow'!G42 -> 0 | H7: ='B7-CFlow'!H42 -> 0 | I7: ='B7-CFlow'!I42 -> -5400438.701 | J7: =SUM(E7:I7) -> -5400438.701 | K7: =IF(D7=0,C7+J7,D7+J7) -> 1012576.083 | L7: ='B7-CFlow'!L42 -> 10747328.19 | M7: ='B7-CFlow'!M42 -> 8459700.409
A8: Other current investments > 90 days | C8: ='B6-FinPos'!C8+'B6-FinPos'!C9-'B6-FinPos'!C31-'B8-ResRecon'!C7 -> 9754226.486 | D8: ='B6-FinPos'!D8+'B6-FinPos'!D9-'B6-FinPos'!D31-'B8-ResRecon'!D7 -> 0 | E8: ='B6-FinPos'!E8+'B6-FinPos'!E9-'B6-FinPos'!E31-'B8-ResRecon'!E7 -> 0 | F8: ='B6-FinPos'!F8+'B6-FinPos'!F9-'B6-FinPos'!F31-'B8-ResRecon'!F7 -> 0 | G8: ='B6-FinPos'!G8+'B6-FinPos'!G9-'B6-FinPos'!G31-'B8-ResRecon'!G7 -> 0 | H8: ='B6-FinPos'!H8+'B6-FinPos'!H9-'B6-FinPos'!H31-'B8-ResRecon'!H7 -> 0 | I8: ='B6-FinPos'!I8+'B6-FinPos'!I9-'B6-FinPos'!I31-'B8-ResRecon'!I7 -> 5400438.701 | J8: =SUM(E8:I8) -> 5400438.701 | K8: =IF(D8=0,C8+J8,D8+J8) -> 15154665.19 | L8: ='B6-FinPos'!L8+'B6-FinPos'!L9-'B6-FinPos'!L31-'B8-ResRecon'!L7 -> 8216380.245 | M8: ='B6-FinPos'!M8+'B6-FinPos'!M9-'B6-FinPos'!M31-'B8-ResRecon'!M7 -> 11641830.54
A9: Non current assets - Investments | B9: 1 | C9: ='B6-FinPos'!C18 -> 0 | D9: ='B6-FinPos'!D18 -> 0 | E9: ='B6-FinPos'!E18 -> 0 | F9: ='B6-FinPos'!F18 -> 0 | G9: ='B6-FinPos'!G18 -> 0 | H9: ='B6-FinPos'!H18 -> 0 | I9: ='B6-FinPos'!I18 -> 0 | J9: =SUM(E9:I9) -> 0 | K9: =IF(D9=0,C9+J9,D9+J9) -> 0 | L9: ='B6-FinPos'!L18 -> 0 | M9: ='B6-FinPos'!M18 -> 0
A10: Cash and investments available: | C10: =SUM(C7:C9) -> 16167241.27 | D10: 0 | E10: 0 | F10: 0 | G10: 0 | H10: 0 | I10: 0 | J10: 0 | K10: 16167241.27 | L10: 18963708.44 | M10: 20101530.95
A12: Applications of cash and investments
A13: Unspent conditional transfers | C13: ='SB2'!C33 -> 0 | D13: ='SB2'!D33 -> 0 | E13: ='SB2'!E33 -> 0 | F13: ='SB2'!F33 -> 0 | G13: ='SB2'!G33 -> 0 | H13: ='SB2'!H33 -> 0 | I13: ='SB2'!I33 -> 0 | J13: =SUM(E13:I13) -> 0 | K13: =IF(D13=0,C13+J13,D13+J13) -> 0 | L13: ='SB2'!L33 -> 0 | M13: ='SB2'!M33 -> 0
A14: Unspent borrowing | J14: 0 | K14: =IF(D14=0,C14+J14,D14+J14) -> 0
A15: Statutory requirements | J15: 0 | K15: =IF(D15=0,C15+J15,D15+J15) -> 0
A16: Other working capital requirements | B16: 2 | C16: =-C40 -> -48269472.92 | D16: =-D40 -> 0 | I16: =IF(D16=0,(K16-C16)-SUM(E16:H16),(K16-D16)-SUM(E16:H16)) -> 25241117 | J16: 25241117 | K16: =-K40 -> -23028355.92 | L16: =-L40 -> -108404165.6 | M16: =-M40 -> -114908415.7
A17: Other provisions | J17: 0 | K17: =IF(D17=0,C17+J17,D17+J17) -> 0
A18: Long term investments committed | C18: =C50 -> 0 | D18: =D50 -> 0 | I18: =IF(D18=0,(K18-C18)-SUM(E18:H18),(K18-D18)-SUM(E18:H18)) -> 0 | J18: 0 | K18: =K50 -> 0 | L18: =L50 -> 0 | M18: =M50 -> 0
A19: Reserves to be backed by cash/investments | C19: =C57 -> 0 | D19: =D57 -> 0 | I19: =IF(D19=0,(K19-C19)-SUM(E19:H19),(K19-D19)-SUM(E19:H19)) -> 0 | J19: 0 | K19: =K57 -> 0 | L19: =L57 -> 0 | M19: =M57 -> 0
A20: Total Application of cash and investments: | C20: =SUM(C13:C19) -> -48269472.92 | D20: 0 | E20: 0 | F20: 0 | G20: 0 | H20: 0 | I20: 25241117 | J20: 25241117 | K20: -23028355.92 | L20: -108404165.6 | M20: -114908415.7
A21: Surplus(shortfall) | C21: =C10-C20 -> 64436714.19 | D21: 0 | E21: 0 | F21: 0 | G21: 0 | H21: 0 | I21: -25241117 | J21: -25241117 | K21: 39195597.19 | L21: 127367874.1 | M21: 135009946.6
A22: =head27a -> References
A23: 1. Must reconcile with the Adjustments Budget Cash Flow and Adjustements Budget Financial Position
A24: 2. Council approval for policy required - include sufficient working capital (e.g. allowing for a % of current debtors > 90 days as uncollectable)
A25: 3. Only complete if a previous adjusted budget has been approved in the same financial year. Reflect most recent adjusted budget.
A26: 4. Additional cash-backed accumulated funds/unspent funds (MFMA section 18(1)(b) and section 28(2)(e)) identified after the Original Budget approved and after annual financial statements audited (note: only where underspending could not reasonably have been foreseen)
A27: 5. Increases of funds approved under MFMA section 31
A28: 6. Adjustments approved in accordance with MFMA section 29
A29: 7. Adjustments to transfers from National or Provincial Government
A30: 8. Adjusts. = 'Other' Adjustments proposed to be approved; including revenue under-collection (MFMA section 28(2)(a)); additional revenue appropriation on existing programmes (section 28(2))(b); projected savings (section 28(2)(d)); error correction (section 28(2)(f))
A31: 9. G = B + C + D + E + F
A32: 10. Adjusted Budget H = (A or A1/2 etc) + G
A37: =A16 -> Other working capital requirements
A38: Debtors | C38: =IF(ISERROR(ROUND(C43*C44,0)),0,(ROUND(C43*C44,0))) -> 194365211 | D38: =IF(ISERROR(ROUND(D43*D44,0)),0,(ROUND(D43*D44,0))) -> 0 | K38: =IF(ISERROR(ROUND(K43*K44,0)),0,(ROUND(K43*K44,0))) -> 169124094 | L38: =IF(ISERROR(ROUND(L43*L44,0)),0,(ROUND(L43*L44,0))) -> 263265648 | M38: =IF(ISERROR(ROUND(M43*M44,0)),0,(ROUND(M43*M44,0))) -> 279061587
A39: Creditors due | C39: ='SB2'!C32 -> 146095738.1 | D39: ='SB2'!D32 -> 0 | K39: ='SB2'!K32 -> 146095738.1 | L39: ='SB2'!L32 -> 154861482.4 | M39: ='SB2'!M32 -> 164153171.3
A40: Total | C40: =C38-C39 -> 48269472.92 | D40: =D38-D39 -> 0 | K40: =K38-K39 -> 23028355.92 | L40: =L38-L39 -> 108404165.6 | M40: =M38-M39 -> 114908415.7
A42: Debtors collection assumptions:
A43: Balance outstanding - debtors | C43: ='B6-FinPos'!C10+'B6-FinPos'!C11+'B6-FinPos'!C17 -> 333638645.9 | D43: ='B6-FinPos'!D10+'B6-FinPos'!D11+'B6-FinPos'!D17 -> 0 | K43: ='B6-FinPos'!K10+'B6-FinPos'!K11+'B6-FinPos'!K17 -> 333638645.9 | L43: ='B6-FinPos'!L10+'B6-FinPos'!L11+'B6-FinPos'!L17 -> 451910060.5 | M43: ='B6-FinPos'!M10+'B6-FinPos'!M11+'B6-FinPos'!M17 -> 479024664.1
A44: Estimate of debtors collection rate | C44: =IF(ISERROR('SB6'!G10),0,('SB6'!G10)) -> 0.5825620432 | D44: =IF(ISERROR('SB6'!H10),0,('SB6'!H10)) -> 0 | K44: =IF(ISERROR('SB6'!I10),0,('SB6'!I10)) -> 0.5069079873 | L44: =IF(ISERROR('SB6'!J10),0,('SB6'!J10)) -> 0.5825620432 | M44: =IF(ISERROR('SB6'!K10),0,('SB6'!K10)) -> 0.5825620432
A46: =A18 -> Long term investments committed
A47: (Insert description; eg sinking fund)
C50: =SUM(C47:C49) -> 0 | D50: =SUM(D47:D49) -> 0 | K50: =SUM(K47:K49) -> 0 | L50: =SUM(L47:L49) -> 0 | M50: =SUM(M47:M49) -> 0
A52: =A19 -> Reserves to be backed by cash/investments
A53: ='SB2'!A56 -> Housing Development Fund | C53: ='SB2'!C56 -> 0 | D53: ='SB2'!D56 -> 0 | K53: ='SB2'!K56 -> 0 | L53: ='SB2'!L56 -> 0 | M53: ='SB2'!M56 -> 0
A54: ='SB2'!A57 -> Capital replacement | C54: ='SB2'!C57 -> 0 | D54: ='SB2'!D57 -> 0 | K54: ='SB2'!K57 -> 0 | L54: ='SB2'!L57 -> 0 | M54: ='SB2'!M57 -> 0
A55: ='SB2'!A58 -> Self-insurance | C55: ='SB2'!C58 -> 0 | D55: ='SB2'!D58 -> 0 | K55: ='SB2'!K58 -> 0 | L55: ='SB2'!L58 -> 0 | M55: ='SB2'!M58 -> 0
A56: ='SB2'!A59 -> Other reserves (list) | C56: ='SB2'!C59 -> 0 | D56: ='SB2'!D59 -> 0 | K56: ='SB2'!K59 -> 0 | L56: ='SB2'!L59 -> 0 | M56: ='SB2'!M59 -> 0
C57: =SUM(C53:C56) -> 0 | D57: =SUM(D53:D56) -> 0 | K57: =SUM(K53:K56) -> 0 | L57: =SUM(L53:L56) -> 0 | M57: =SUM(M53:M56) -> 0

Sheet B9-Asset
A1: =muni&" - "&_ADJ9&" - "&Date -> FS193 Nketoana - Table B9 Asset Management - 28/02/2018
A2: =desc -> Description | B2: =head27 -> Ref | C2: =Head2 -> Budget Year 2017/18 | L2: =Head10 -> Budget Year +1 2018/19 | M2: =Head11 -> Budget Year +2 2019/20
C3: =Head6 -> Original Budget | D3: =Head54 -> Prior Adjusted | E3: =Head51 -> Accum. Funds | F3: =Head52 -> Multi-year capital | G3: =Head53 -> Unfore. Unavoid. | H3: =Head55 -> Nat. or Prov. Govt | I3: =Head50 -> Other Adjusts. | J3: =Head56 -> Total Adjusts. | K3: =Head7 -> Adjusted Budget | L3: =Head7 -> Adjusted Budget | M3: =Head7 -> Adjusted Budget
D4: 7 | E4: 8 | F4: 9 | G4: 10 | H4: 11 | I4: 12 | J4: 13 | K4: 14
A5: R thousands | C5: A | D5: A1 | E5: B | F5: C | G5: D | H5: E | I5: F | J5: G | K5: H
A6: CAPITAL EXPENDITURE
A7: Total New Assets to be adjusted | B7: 1 | C7: =C17+C20+C21+C24+C27+C28+SUM(C31:C37) -> 52085861.76 | D7: =D17+D20+D21+D24+D27+D28+SUM(D31:D37) -> 0 | E7: 0 | F7: 0 | G7: 0 | H7: 0 | I7: -7303784.99 | J7: -7303784.99 | K7: 44782076.77 | L7: 47566353.47 | M7: 20955814.67
A8: Roads Infrastructure | C8: =SB18a!C9 -> 1287750 | D8: =SB18a!D9 -> 0 | E8: =SB18a!E9 -> 0 | F8: =SB18a!F9 -> 0 | G8: =SB18a!G9 -> 0 | H8: =SB18a!H9 -> 0 | I8: =SB18a!I9 -> 0 | J8: =SB18a!J9 -> 0 | K8: =SB18a!K9 -> 1287750 | L8: =SB18a!L9 -> 1365015 | M8: =SB18a!M9 -> 1446915.9
A9: Storm water Infrastructure | C9: =SB18a!C14 -> 0 | D9: =SB18a!D14 -> 0 | E9: =SB18a!E14 -> 0 | F9: =SB18a!F14 -> 0 | G9: =SB18a!G14 -> 0 | H9: =SB18a!H14 -> 0 | I9: =SB18a!I14 -> 0 | J9: =SB18a!J14 -> 0 | K9: =SB18a!K14 -> 0 | L9: =SB18a!L14 -> 0 | M9: =SB18a!M14 -> 0
A10: Electrical Infrastructure | C10: =SB18a!C18 -> 0 | D10: =SB18a!D18 -> 0 | E10: =SB18a!E18 -> 0 | F10: =SB18a!F18 -> 0 | G10: =SB18a!G18 -> 0 | H10: =SB18a!H18 -> 0 | I10: =SB18a!I18 -> 0 | J10: =SB18a!J18 -> 0 | K10: =SB18a!K18 -> 0 | L10: =SB18a!L18 -> 0 | M10: =SB18a!M18 -> 0
A11: Water Supply Infrastructure | C11: =SB18a!C28 -> 42253389.15 | D11: =SB18a!D28 -> 0 | E11: =SB18a!E28 -> 0 | F11: =SB18a!F28 -> 0 | G11: =SB18a!G28 -> 0 | H11: =SB18a!H28 -> 0 | I11: =SB18a!I28 -> 0 | J11: =SB18a!J28 -> 0 | K11: =SB18a!K28 -> 42253389.15 | L11: =SB18a!L28 -> 37143932.5 | M11: =SB18a!M28 -> 9908048.449
A12: Sanitation Infrastructure | C12: =SB18a!C39 -> 0 | D12: =SB18a!D39 -> 0 | E12: =SB18a!E39 -> 0 | F12: =SB18a!F39 -> 0 | G12: =SB18a!G39 -> 0 | H12: =SB18a!H39 -> 0 | I12: =SB18a!I39 -> 0 | J12: =SB18a!J39 -> 0 | K12: =SB18a!K39 -> 0 | L12: =SB18a!L39 -> 0 | M12: =SB18a!M39 -> 0
A13: Solid Waste Infrastructure | C13: =SB18a!C46 -> 7690155 | D13: =SB18a!D46 -> 0 | E13: =SB18a!E46 -> 0 | F13: =SB18a!F46 -> 0 | G13: =SB18a!G46 -> 0 | H13: =SB18a!H46 -> 0 | I13: =SB18a!I46 -> -7303784.99 | J13: =SB18a!J46 -> -7303784.99 | K13: =SB18a!K46 -> 386370.01 | L13: =SB18a!L46 -> 8151564.3 | M13: =SB18a!M46 -> 8640658.158
A14: Rail Infrastructure | C14: =SB18a!C54 -> 0 | D14: =SB18a!D54 -> 0 | E14: =SB18a!E54 -> 0 | F14: =SB18a!F54 -> 0 | G14: =SB18a!G54 -> 0 | H14: =SB18a!H54 -> 0 | I14: =SB18a!I54 -> 0 | J14: =SB18a!J54 -> 0 | K14: =SB18a!K54 -> 0 | L14: =SB18a!L54 -> 0 | M14: =SB18a!M54 -> 0
A15: Coastal Infrastructure | C15: =SB18a!C64 -> 0 | D15: =SB18a!D64 -> 0 | E15: =SB18a!E64 -> 0 | F15: =SB18a!F64 -> 0 | G15: =SB18a!G64 -> 0 | H15: =SB18a!H64 -> 0 | I15: =SB18a!I64 -> 0 | J15: =SB18a!J64 -> 0 | K15: =SB18a!K64 -> 0 | L15: =SB18a!L64 -> 0 | M15: =SB18a!M64 -> 0
A16: Information and Communication Infrastructure | C16: =SB18a!C70 -> 0 | D16: =SB18a!D70 -> 0 | E16: =SB18a!E70 -> 0 | F16: =SB18a!F70 -> 0 | G16: =SB18a!G70 -> 0 | H16: =SB18a!H70 -> 0 | I16: =SB18a!I70 -> 0 | J16: =SB18a!J70 -> 0 | K16: =SB18a!K70 -> 0 | L16: =SB18a!L70 -> 0 | M16: =SB18a!M70 -> 0
A17: Infrastructure | C17: =SUM(C8:C16) -> 51231294.15 | D17: =SUM(D8:D16) -> 0 | E17: 0 | F17: 0 | G17: 0 | H17: 0 | I17: -7303784.99 | J17: -7303784.99 | K17: 43927509.16 | L17: 46660511.8 | M17: 19995622.51
A18: Community Facilities | C18: =SB18a!C77 -> 854567.61 | D18: =SB18a!D77 -> 0 | E18: =SB18a!E77 -> 0 | F18: =SB18a!F77 -> 0 | G18: =SB18a!G77 -> 0 | H18: =SB18a!H77 -> 0 | I18: =SB18a!I77 -> 0 | J18: =SB18a!J77 -> 0 | K18: =SB18a!K77 -> 854567.61 | L18: =SB18a!L77 -> 905841.6666 | M18: =SB18a!M77 -> 960192.1666
A19: Sport and Recreation Facilities | C19: =SB18a!C100 -> 0 | D19: =SB18a!D100 -> 0 | E19: =SB18a!E100 -> 0 | F19: =SB18a!F100 -> 0 | G19: =SB18a!G100 -> 0 | H19: =SB18a!H100 -> 0 | I19: =SB18a!I100 -> 0 | J19: =SB18a!J100 -> 0 | K19: =SB18a!K100 -> 0 | L19: =SB18a!L100 -> 0 | M19: =SB18a!M100 -> 0
A20: Community Assets | C20: =SUM(C18:C19) -> 854567.61 | D20: =SUM(D18:D19) -> 0 | E20: 0 | F20: 0 | G20: 0 | H20: 0 | I20: 0 | J20: 0 | K20: 854567.61 | L20: 905841.6666 | M20: 960192.1666
A21: Heritage Assets | C21: =SB18a!C105 -> 0 | D21: =SB18a!D105 -> 0 | E21: =SB18a!E105 -> 0 | F21: =SB18a!F105 -> 0 | G21: =SB18a!G105 -> 0 | H21: =SB18a!H105 -> 0 | I21: =SB18a!I105 -> 0 | J21: =SB18a!J105 -> 0 | K21: =SB18a!K105 -> 0 | L21: =SB18a!L105 -> 0 | M21: =SB18a!M105 -> 0
A22: Revenue Generating | C22: =SB18a!C113 -> 0 | D22: =SB18a!D113 -> 0 | E22: =SB18a!E113 -> 0 | F22: =SB18a!F113 -> 0 | G22: =SB18a!G113 -> 0 | H22: =SB18a!H113 -> 0 | I22: =SB18a!I113 -> 0 | J22: =SB18a!J113 -> 0 | K22: =SB18a!K113 -> 0 | L22: =SB18a!L113 -> 0 | M22: =SB18a!M113 -> 0
A23: Non-revenue Generating | C23: =SB18a!C116 -> 0 | D23: =SB18a!D116 -> 0 | E23: =SB18a!E116 -> 0 | F23: =SB18a!F116 -> 0 | G23: =SB18a!G116 -> 0 | H23: =SB18a!H116 -> 0 | I23: =SB18a!I116 -> 0 | J23: =SB18a!J116 -> 0 | K23: =SB18a!K116 -> 0 | L23: =SB18a!L116 -> 0 | M23: =SB18a!M116 -> 0
A24: Investment properties | C24: =SUM(C22:C23) -> 0 | D24: =SUM(D22:D23) -> 0 | E24: 0 | F24: 0 | G24: 0 | H24: 0 | I24: 0 | J24: 0 | K24: 0 | L24: 0 | M24: 0
A25: Operational Buildings | C25: =SB18a!C121 -> 0 | D25: =SB18a!D121 -> 0 | E25: =SB18a!E121 -> 0 | F25: =SB18a!F121 -> 0 | G25: =SB18a!G121 -> 0 | H25: =SB18a!H121 -> 0 | I25: =SB18a!I121 -> 0 | J25: =SB18a!J121 -> 0 | K25: =SB18a!K121 -> 0 | L25: =SB18a!L121 -> 0 | M25: =SB18a!M121 -> 0
A26: Housing | C26: =SB18a!C133 -> 0 | D26: =SB18a!D133 -> 0 | E26: =SB18a!E133 -> 0 | F26: =SB18a!F133 -> 0 | G26: =SB18a!G133 -> 0 | H26: =SB18a!H133 -> 0 | I26: =SB18a!I133 -> 0 | J26: =SB18a!J133 -> 0 | K26: =SB18a!K133 -> 0 | L26: =SB18a!L133 -> 0 | M26: =SB18a!M133 -> 0
A27: Other Assets | B27: 6 | C27: =SUM(C25:C26) -> 0 | D27: =SUM(D25:D26) -> 0 | E27: 0 | F27: 0 | G27: 0 | H27: 0 | I27: 0 | J27: 0 | K27: 0 | L27: 0 | M27: 0
A28: Biological or Cultivated Assets | C28: =SB18a!C138 -> 0 | D28: =SB18a!D138 -> 0 | E28: =SB18a!E138 -> 0 | F28: =SB18a!F138 -> 0 | G28: =SB18a!G138 -> 0 | H28: =SB18a!H138 -> 0 | I28: =SB18a!I138 -> 0 | J28: =SB18a!J138 -> 0 | K28: =SB18a!K138 -> 0 | L28: =SB18a!L138 -> 0 | M28: =SB18a!M138 -> 0
A29: Servitudes | C29: =SB18a!C142 -> 0 | D29: =SB18a!D142 -> 0 | E29: =SB18a!E142 -> 0 | F29: =SB18a!F142 -> 0 | G29: =SB18a!G142 -> 0 | H29: =SB18a!H142 -> 0 | I29: =SB18a!I142 -> 0 | J29: =SB18a!J142 -> 0 | K29: =SB18a!K142 -> 0 | L29: =SB18a!L142 -> 0 | M29: =SB18a!M142 -> 0
A30: Licences and Rights | C30: =SB18a!C143 -> 0 | D30: =SB18a!D143 -> 0 | E30: =SB18a!E143 -> 0 | F30: =SB18a!F143 -> 0 | G30: =SB18a!G143 -> 0 | H30: =SB18a!H143 -> 0 | I30: =SB18a!I143 -> 0 | J30: =SB18a!J143 -> 0 | K30: =SB18a!K143 -> 0 | L30: =SB18a!L143 -> 0 | M30: =SB18a!M143 -> 0
A31: Intangible Assets | C31: =SUM(C29:C30) -> 0 | D31: =SUM(D29:D30) -> 0 | E31: 0 | F31: 0 | G31: 0 | H31: 0 | I31: 0 | J31: 0 | K31: 0 | L31: 0 | M31: 0
A32: Computer Equipment | C32: =SB18a!C151 -> 0 | D32: =SB18a!D151 -> 0 | E32: =SB18a!E151 -> 0 | F32: =SB18a!F151 -> 0 | G32: =SB18a!G151 -> 0 | H32: =SB18a!H151 -> 0 | I32: =SB18a!I151 -> 0 | J32: =SB18a!J151 -> 0 | K32: =SB18a!K151 -> 0 | L32: =SB18a!L151 -> 0 | M32: =SB18a!M151 -> 0
A33: Furniture and Office Equipment | C33: =SB18a!C154 -> 0 | D33: =SB18a!D154 -> 0 | E33: =SB18a!E154 -> 0 | F33: =SB18a!F154 -> 0 | G33: =SB18a!G154 -> 0 | H33: =SB18a!H154 -> 0 | I33: =SB18a!I154 -> 0 | J33: =SB18a!J154 -> 0 | K33: =SB18a!K154 -> 0 | L33: =SB18a!L154 -> 0 | M33: =SB18a!M154 -> 0
A34: Machinery and Equipment | C34: =SB18a!C157 -> 0 | D34: =SB18a!D157 -> 0 | E34: =SB18a!E157 -> 0 | F34: =SB18a!F157 -> 0 | G34: =SB18a!G157 -> 0 | H34: =SB18a!H157 -> 0 | I34: =SB18a!I157 -> 0 | J34: =SB18a!J157 -> 0 | K34: =SB18a!K157 -> 0 | L34: =SB18a!L157 -> 0 | M34: =SB18a!M157 -> 0
A35: Transport Assets | C35: =SB18a!C160 -> 0 | D35: =SB18a!D160 -> 0 | E35: =SB18a!E160 -> 0 | F35: =SB18a!F160 -> 0 | G35: =SB18a!G160 -> 0 | H35: =SB18a!H160 -> 0 | I35: =SB18a!I160 -> 0 | J35: =SB18a!J160 -> 0 | K35: =SB18a!K160 -> 0 | L35: =SB18a!L160 -> 0 | M35: =SB18a!M160 -> 0
A36: Libraries | C36: =SB18a!C163 -> 0 | D36: =SB18a!D163 -> 0 | E36: =SB18a!E163 -> 0 | F36: =SB18a!F163 -> 0 | G36: =SB18a!G163 -> 0 | H36: =SB18a!H163 -> 0 | I36: =SB18a!I163 -> 0 | J36: =SB18a!J163 -> 0 | K36: =SB18a!K163 -> 0 | L36: =SB18a!L163 -> 0 | M36: =SB18a!M163 -> 0
A37: Zoo's, Marine and Non-biological Animals | C37: =SB18a!C166 -> 0 | D37: =SB18a!D166 -> 0 | E37: =SB18a!E166 -> 0 | F37: =SB18a!F166 -> 0 | G37: =SB18a!G166 -> 0 | H37: =SB18a!H166 -> 0 | I37: =SB18a!I166 -> 0 | J37: =SB18a!J166 -> 0 | K37: =SB18a!K166 -> 0 | L37: =SB18a!L166 -> 0 | M37: =SB18a!M166 -> 0
A39: Total Renewal of Existing Assets to be adjusted | B39: 2 | C39: =C49+C52+C53+C56+C59+C60+SUM(C63:C69) -> 46675138.24 | D39: =D49+D52+D53+D56+D59+D60+SUM(D63:D69) -> 0 | E39: 0 | F39: 0 | G39: 0 | H39: 0 | I39: 7303785 | J39: 7303785 | K39: 53978923.24 | L39: 49475646.53 | M39: 52444185.33
A40: Roads Infrastructure | C40: =SB18b!C9 -> 12545315.62 | D40: =SB18b!D9 -> 0 | E40: =SB18b!E9 -> 0 | F40: =SB18b!F9 -> 0 | G40: =SB18b!G9 -> 0 | H40: =SB18b!H9 -> 0 | I40: =SB18b!I9 -> 3325075.86 | J40: =SB18b!J9 -> 3325075.86 | K40: =SB18b!K9 -> 15870391.48 | L40: =SB18b!L9 -> 13298034.56 | M40: =SB18b!M9 -> 14095916.63
A41: Storm water Infrastructure | C41: =SB18b!C14 -> 0 | D41: =SB18b!D14 -> 0 | E41: =SB18b!E14 -> 0 | F41: =SB18b!F14 -> 0 | G41: =SB18b!G14 -> 0 | H41: =SB18b!H14 -> 0 | I41: =SB18b!I14 -> 0 | J41: =SB18b!J14 -> 0 | K41: =SB18b!K14 -> 0 | L41: =SB18b!L14 -> 0 | M41: =SB18b!M14 -> 0
A42: Electrical Infrastructure | C42: =SB18b!C18 -> 5000000 | D42: =SB18b!D18 -> 0 | E42: =SB18b!E18 -> 0 | F42: =SB18b!F18 -> 0 | G42: =SB18b!G18 -> 0 | H42: =SB18b!H18 -> 0 | I42: =SB18b!I18 -> 0 | J42: =SB18b!J18 -> 0 | K42: =SB18b!K18 -> 5000000 | L42: =SB18b!L18 -> 5300000 | M42: =SB18b!M18 -> 5618000
A43: Water Supply Infrastructure | C43: =SB18b!C28 -> 5596096.59 | D43: =SB18b!D28 -> 0 | E43: =SB18b!E28 -> 0 | F43: =SB18b!F28 -> 0 | G43: =SB18b!G28 -> 0 | H43: =SB18b!H28 -> 0 | I43: =SB18b!I28 -> 0 | J43: =SB18b!J28 -> 0 | K43: =SB18b!K28 -> 5596096.59 | L43: =SB18b!L28 -> 5931862.385 | M43: =SB18b!M28 -> 6287774.129
A44: Sanitation Infrastructure | C44: =SB18b!C39 -> 20279103.04 | D44: =SB18b!D39 -> 0 | E44: =SB18b!E39 -> 0 | F44: =SB18b!F39 -> 0 | G44: =SB18b!G39 -> 0 | H44: =SB18b!H39 -> 0 | I44: =SB18b!I39 -> 2223124.51 | J44: =SB18b!J39 -> 2223124.51 | K44: =SB18b!K39 -> 22502227.55 | L44: =SB18b!L39 -> 21495849.22 | M44: =SB18b!M39 -> 22785600.18
A45: Solid Waste Infrastructure | C45: =SB18b!C46 -> 0 | D45: =SB18b!D46 -> 0 | E45: =SB18b!E46 -> 0 | F45: =SB18b!F46 -> 0 | G45: =SB18b!G46 -> 0 | H45: =SB18b!H46 -> 0 | I45: =SB18b!I46 -> 0 | J45: =SB18b!J46 -> 0 | K45: =SB18b!K46 -> 0 | L45: =SB18b!L46 -> 0 | M45: =SB18b!M46 -> 0
A46: Rail Infrastructure | C46: =SB18b!C54 -> 0 | D46: =SB18b!D54 -> 0 | E46: =SB18b!E54 -> 0 | F46: =SB18b!F54 -> 0 | G46: =SB18b!G54 -> 0 | H46: =SB18b!H54 -> 0 | I46: =SB18b!I54 -> 0 | J46: =SB18b!J54 -> 0 | K46: =SB18b!K54 -> 0 | L46: =SB18b!L54 -> 0 | M46: =SB18b!M54 -> 0
A47: Coastal Infrastructure | C47: =SB18b!C64 -> 0 | D47: =SB18b!D64 -> 0 | E47: =SB18b!E64 -> 0 | F47: =SB18b!F64 -> 0 | G47: =SB18b!G64 -> 0 | H47: =SB18b!H64 -> 0 | I47: =SB18b!I64 -> 0 | J47: =SB18b!J64 -> 0 | K47: =SB18b!K64 -> 0 | L47: =SB18b!L64 -> 0 | M47: =SB18b!M64 -> 0
A48: Information and Communication Infrastructure | C48: =SB18b!C70 -> 0 | D48: =SB18b!D70 -> 0 | E48: =SB18b!E70 -> 0 | F48: =SB18b!F70 -> 0 | G48: =SB18b!G70 -> 0 | H48: =SB18b!H70 -> 0 | I48: =SB18b!I70 -> 0 | J48: =SB18b!J70 -> 0 | K48: =SB18b!K70 -> 0 | L48: =SB18b!L70 -> 0 | M48: =SB18b!M70 -> 0
A49: Infrastructure | C49: =SUM(C40:C48) -> 43420515.25 | D49: =SUM(D40:D48) -> 0 | E49: 0 | F49: 0 | G49: 0 | H49: 0 | I49: 5548200.37 | J49: 5548200.37 | K49: 48968715.62 | L49: 46025746.16 | M49: 48787290.93
A50: Community Facilities | C50: =SB18b!C77 -> 0 | D50: =SB18b!D77 -> 0 | E50: =SB18b!E77 -> 0 | F50: =SB18b!F77 -> 0 | G50: =SB18b!G77 -> 0 | H50: =SB18b!H77 -> 0 | I50: =SB18b!I77 -> 0 | J50: =SB18b!J77 -> 0 | K50: =SB18b!K77 -> 0 | L50: =SB18b!L77 -> 0 | M50: =SB18b!M77 -> 0
A51: Sport and Recreation Facilities | C51: =SB18b!C100 -> 3254622.99 | D51: =SB18b!D100 -> 0 | E51: =SB18b!E100 -> 0 | F51: =SB18b!F100 -> 0 | G51: =SB18b!G100 -> 0 | H51: =SB18b!H100 -> 0 | I51: =SB18b!I100 -> 1755584.63 | J51: =SB18b!J100 -> 1755584.63 | K51: =SB18b!K100 -> 5010207.62 | L51: =SB18b!L100 -> 3449900.369 | M51: =SB18b!M100 -> 3656894.392
A52: Community Assets | C52: =SUM(C50:C51) -> 3254622.99 | D52: =SUM(D50:D51) -> 0 | E52: 0 | F52: 0 | G52: 0 | H52: 0 | I52: 1755584.63 | J52: 1755584.63 | K52: 5010207.62 | L52: 3449900.369 | M52: 3656894.392
A53: Heritage Assets | C53: =SB18b!C105 -> 0 | D53: =SB18b!D105 -> 0 | E53: =SB18b!E105 -> 0 | F53: =SB18b!F105 -> 0 | G53: =SB18b!G105 -> 0 | H53: =SB18b!H105 -> 0 | I53: =SB18b!I105 -> 0 | J53: =SB18b!J105 -> 0 | K53: =SB18b!K105 -> 0 | L53: =SB18b!L105 -> 0 | M53: =SB18b!M105 -> 0
A54: Revenue Generating | C54: =SB18b!C113 -> 0 | D54: =SB18b!D113 -> 0 | E54: =SB18b!E113 -> 0 | F54: =SB18b!F113 -> 0 | G54: =SB18b!G113 -> 0 | H54: =SB18b!H113 -> 0 | I54: =SB18b!I113 -> 0 | J54: =SB18b!J113 -> 0 | K54: =SB18b!K113 -> 0 | L54: =SB18b!L113 -> 0 | M54: =SB18b!M113 -> 0
A55: Non-revenue Generating | C55: =SB18b!C116 -> 0 | D55: =SB18b!D116 -> 0 | E55: =SB18b!E116 -> 0 | F55: =SB18b!F116 -> 0 | G55: =SB18b!G116 -> 0 | H55: =SB18b!H116 -> 0 | I55: =SB18b!I116 -> 0 | J55: =SB18b!J116 -> 0 | K55: =SB18b!K116 -> 0 | L55: =SB18b!L116 -> 0 | M55: =SB18b!M116 -> 0
A56: Investment properties | C56: =SUM(C54:C55) -> 0 | D56: =SUM(D54:D55) -> 0 | E56: 0 | F56: 0 | G56: 0 | H56: 0 | I56: 0 | J56: 0 | K56: 0 | L56: 0 | M56: 0
A57: Operational Buildings | C57: =SB18b!C121 -> 0 | D57: =SB18b!D121 -> 0 | E57: =SB18b!E121 -> 0 | F57: =SB18b!F121 -> 0 | G57: =SB18b!G121 -> 0 | H57: =SB18b!H121 -> 0 | I57: =SB18b!I121 -> 0 | J57: =SB18b!J121 -> 0 | K57: =SB18b!K121 -> 0 | L57: =SB18b!L121 -> 0 | M57: =SB18b!M121 -> 0
A58: Housing | C58: =SB18b!C133 -> 0 | D58: =SB18b!D133 -> 0 | E58: =SB18b!E133 -> 0 | F58: =SB18b!F133 -> 0 | G58: =SB18b!G133 -> 0 | H58: =SB18b!H133 -> 0 | I58: =SB18b!I133 -> 0 | J58: =SB18b!J133 -> 0 | K58: =SB18b!K133 -> 0 | L58: =SB18b!L133 -> 0 | M58: =SB18b!M133 -> 0
A59: Other Assets | B59: 6 | C59: =SUM(C57:C58) -> 0 | D59: =SUM(D57:D58) -> 0 | E59: 0 | F59: 0 | G59: 0 | H59: 0 | I59: 0 | J59: 0 | K59: 0 | L59: 0 | M59: 0
A60: Biological or Cultivated Assets | C60: =SB18b!C138 -> 0 | D60: =SB18b!D138 -> 0 | E60: =SB18b!E138 -> 0 | F60: =SB18b!F138 -> 0 | G60: =SB18b!G138 -> 0 | H60: =SB18b!H138 -> 0 | I60: =SB18b!I138 -> 0 | J60: =SB18b!J138 -> 0 | K60: =SB18b!K138 -> 0 | L60: =SB18b!L138 -> 0 | M60: =SB18b!M138 -> 0
A61: Servitudes | C61: =SB18b!C142 -> 0 | D61: =SB18b!D142 -> 0 | E61: =SB18b!E142 -> 0 | F61: =SB18b!F142 -> 0 | G61: =SB18b!G142 -> 0 | H61: =SB18b!H142 -> 0 | I61: =SB18b!I142 -> 0 | J61: =SB18b!J142 -> 0 | K61: =SB18b!K142 -> 0 | L61: =SB18b!L142 -> 0 | M61: =SB18b!M142 -> 0
A62: Licences and Rights | C62: =SB18b!C143 -> 0 | D62: =SB18b!D143 -> 0 | E62: =SB18b!E143 -> 0 | F62: =SB18b!F143 -> 0 | G62: =SB18b!G143 -> 0 | H62: =SB18b!H143 -> 0 | I62: =SB18b!I143 -> 0 | J62: =SB18b!J143 -> 0 | K62: =SB18b!K143 -> 0 | L62: =SB18b!L143 -> 0 | M62: =SB18b!M143 -> 0
A63: Intangible Assets | C63: =SUM(C61:C62) -> 0 | D63: =SUM(D61:D62) -> 0 | E63: 0 | F63: 0 | G63: 0 | H63: 0 | I63: 0 | J63: 0 | K63: 0 | L63: 0 | M63: 0
A64: Computer Equipment | C64: =SB18b!C151 -> 0 | D64: =SB18b!D151 -> 0 | E64: =SB18b!E151 -> 0 | F64: =SB18b!F151 -> 0 | G64: =SB18b!G151 -> 0 | H64: =SB18b!H151 -> 0 | I64: =SB18b!I151 -> 0 | J64: =SB18b!J151 -> 0 | K64: =SB18b!K151 -> 0 | L64: =SB18b!L151 -> 0 | M64: =SB18b!M151 -> 0
A65: Furniture and Office Equipment | C65: =SB18b!C154 -> 0 | D65: =SB18b!D154 -> 0 | E65: =SB18b!E154 -> 0 | F65: =SB18b!F154 -> 0 | G65: =SB18b!G154 -> 0 | H65: =SB18b!H154 -> 0 | I65: =SB18b!I154 -> 0 | J65: =SB18b!J154 -> 0 | K65: =SB18b!K154 -> 0 | L65: =SB18b!L154 -> 0 | M65: =SB18b!M154 -> 0
A66: Machinery and Equipment | C66: =SB18b!C157 -> 0 | D66: =SB18b!D157 -> 0 | E66: =SB18b!E157 -> 0 | F66: =SB18b!F157 -> 0 | G66: =SB18b!G157 -> 0 | H66: =SB18b!H157 -> 0 | I66: =SB18b!I157 -> 0 | J66: =SB18b!J157 -> 0 | K66: =SB18b!K157 -> 0 | L66: =SB18b!L157 -> 0 | M66: =SB18b!M157 -> 0
A67: Transport Assets | C67: =SB18b!C160 -> 0 | D67: =SB18b!D160 -> 0 | E67: =SB18b!E160 -> 0 | F67: =SB18b!F160 -> 0 | G67: =SB18b!G160 -> 0 | H67: =SB18b!H160 -> 0 | I67: =SB18b!I160 -> 0 | J67: =SB18b!J160 -> 0 | K67: =SB18b!K160 -> 0 | L67: =SB18b!L160 -> 0 | M67: =SB18b!M160 -> 0
A68: Libraries | C68: =SB18b!C163 -> 0 | D68: =SB18b!D163 -> 0 | E68: =SB18b!E163 -> 0 | F68: =SB18b!F163 -> 0 | G68: =SB18b!G163 -> 0 | H68: =SB18b!H163 -> 0 | I68: =SB18b!I163 -> 0 | J68: =SB18b!J163 -> 0 | K68: =SB18b!K163 -> 0 | L68: =SB18b!L163 -> 0 | M68: =SB18b!M163 -> 0
A69: Zoo's, Marine and Non-biological Animals | C69: =SB18b!C166 -> 0 | D69: =SB18b!D166 -> 0 | E69: =SB18b!E166 -> 0 | F69: =SB18b!F166 -> 0 | G69: =SB18b!G166 -> 0 | H69: =SB18b!H166 -> 0 | I69: =SB18b!I166 -> 0 | J69: =SB18b!J166 -> 0 | K69: =SB18b!K166 -> 0 | L69: =SB18b!L166 -> 0 | M69: =SB18b!M166 -> 0
A71: Total Upgrading of Existing Assets to be adjusted | B71: 2a | C71: =C81+C84+C85+C88+C91+C92+SUM(C95:C101) -> 0 | D71: =D81+D84+D85+D88+D91+D92+SUM(D95:D101) -> 0 | E71: 0 | F71: 0 | G71: 0 | H71: 0 | I71: 0 | J71: 0 | K71: 0 | L71: 0 | M71: 0
A72: Roads Infrastructure | C72: =SB18e!C9 -> 0 | D72: =SB18e!D9 -> 0 | E72: =SB18e!E9 -> 0 | F72: =SB18e!F9 -> 0 | G72: =SB18e!G9 -> 0 | H72: =SB18e!H9 -> 0 | I72: =SB18e!I9 -> 0 | J72: =SB18e!J9 -> 0 | K72: =SB18e!K9 -> 0 | L72: =SB18e!L9 -> 0 | M72: =SB18e!M9 -> 0
A73: Storm water Infrastructure | C73: =SB18e!C14 -> 0 | D73: =SB18e!D14 -> 0 | E73: =SB18e!E14 -> 0 | F73: =SB18e!F14 -> 0 | G73: =SB18e!G14 -> 0 | H73: =SB18e!H14 -> 0 | I73: =SB18e!I14 -> 0 | J73: =SB18e!J14 -> 0 | K73: =SB18e!K14 -> 0 | L73: =SB18e!L14 -> 0 | M73: =SB18e!M14 -> 0
A74: Electrical Infrastructure | C74: =SB18e!C18 -> 0 | D74: =SB18e!D18 -> 0 | E74: =SB18e!E18 -> 0 | F74: =SB18e!F18 -> 0 | G74: =SB18e!G18 -> 0 | H74: =SB18e!H18 -> 0 | I74: =SB18e!I18 -> 0 | J74: =SB18e!J18 -> 0 | K74: =SB18e!K18 -> 0 | L74: =SB18e!L18 -> 0 | M74: =SB18e!M18 -> 0
A75: Water Supply Infrastructure | C75: =SB18e!C28 -> 0 | D75: =SB18e!D28 -> 0 | E75: =SB18e!E28 -> 0 | F75: =SB18e!F28 -> 0 | G75: =SB18e!G28 -> 0 | H75: =SB18e!H28 -> 0 | I75: =SB18e!I28 -> 0 | J75: =SB18e!J28 -> 0 | K75: =SB18e!K28 -> 0 | L75: =SB18e!L28 -> 0 | M75: =SB18e!M28 -> 0
A76: Sanitation Infrastructure | C76: =SB18e!C39 -> 0 | D76: =SB18e!D39 -> 0 | E76: =SB18e!E39 -> 0 | F76: =SB18e!F39 -> 0 | G76: =SB18e!G39 -> 0 | H76: =SB18e!H39 -> 0 | I76: =SB18e!I39 -> 0 | J76: =SB18e!J39 -> 0 | K76: =SB18e!K39 -> 0 | L76: =SB18e!L39 -> 0 | M76: =SB18e!M39 -> 0
A77: Solid Waste Infrastructure | C77: =SB18e!C46 -> 0 | D77: =SB18e!D46 -> 0 | E77: =SB18e!E46 -> 0 | F77: =SB18e!F46 -> 0 | G77: =SB18e!G46 -> 0 | H77: =SB18e!H46 -> 0 | I77: =SB18e!I46 -> 0 | J77: =SB18e!J46 -> 0 | K77: =SB18e!K46 -> 0 | L77: =SB18e!L46 -> 0 | M77: =SB18e!M46 -> 0
A78: Rail Infrastructure | C78: =SB18e!C54 -> 0 | D78: =SB18e!D54 -> 0 | E78: =SB18e!E54 -> 0 | F78: =SB18e!F54 -> 0 | G78: =SB18e!G54 -> 0 | H78: =SB18e!H54 -> 0 | I78: =SB18e!I54 -> 0 | J78: =SB18e!J54 -> 0 | K78: =SB18e!K54 -> 0 | L78: =SB18e!L54 -> 0 | M78: =SB18e!M54 -> 0
A79: Coastal Infrastructure | C79: =SB18e!C64 -> 0 | D79: =SB18e!D64 -> 0 | E79: =SB18e!E64 -> 0 | F79: =SB18e!F64 -> 0 | G79: =SB18e!G64 -> 0 | H79: =SB18e!H64 -> 0 | I79: =SB18e!I64 -> 0 | J79: =SB18e!J64 -> 0 | K79: =SB18e!K64 -> 0 | L79: =SB18e!L64 -> 0 | M79: =SB18e!M64 -> 0
A80: Information and Communication Infrastructure | C80: =SB18e!C70 -> 0 | D80: =SB18e!D70 -> 0 | E80: =SB18e!E70 -> 0 | F80: =SB18e!F70 -> 0 | G80: =SB18e!G70 -> 0 | H80: =SB18e!H70 -> 0 | I80: =SB18e!I70 -> 0 | J80: =SB18e!J70 -> 0 | K80: =SB18e!K70 -> 0 | L80: =SB18e!L70 -> 0 | M80: =SB18e!M70 -> 0
A81: Infrastructure | C81: =SUM(C72:C80) -> 0 | D81: =SUM(D72:D80) -> 0 | E81: 0 | F81: 0 | G81: 0 | H81: 0 | I81: 0 | J81: 0 | K81: 0 | L81: 0 | M81: 0
A82: Community Facilities | C82: =SB18e!C77 -> 0 | D82: =SB18e!D77 -> 0 | E82: =SB18e!E77 -> 0 | F82: =SB18e!F77 -> 0 | G82: =SB18e!G77 -> 0 | H82: =SB18e!H77 -> 0 | I82: =SB18e!I77 -> 0 | J82: =SB18e!J77 -> 0 | K82: =SB18e!K77 -> 0 | L82: =SB18e!L77 -> 0 | M82: =SB18e!M77 -> 0
A83: Sport and Recreation Facilities | C83: =SB18e!C100 -> 0 | D83: =SB18e!D100 -> 0 | E83: =SB18e!E100 -> 0 | F83: =SB18e!F100 -> 0 | G83: =SB18e!G100 -> 0 | H83: =SB18e!H100 -> 0 | I83: =SB18e!I100 -> 0 | J83: =SB18e!J100 -> 0 | K83: =SB18e!K100 -> 0 | L83: =SB18e!L100 -> 0 | M83: =SB18e!M100 -> 0
A84: Community Assets | C84: =SUM(C82:C83) -> 0 | D84: =SUM(D82:D83) -> 0 | E84: 0 | F84: 0 | G84: 0 | H84: 0 | I84: 0 | J84: 0 | K84: 0 | L84: 0 | M84: 0
A85: Heritage Assets | C85: =SB18e!C105 -> 0 | D85: =SB18e!D105 -> 0 | E85: =SB18e!E105 -> 0 | F85: =SB18e!F105 -> 0 | G85: =SB18e!G105 -> 0 | H85: =SB18e!H105 -> 0 | I85: =SB18e!I105 -> 0 | J85: =SB18e!J105 -> 0 | K85: =SB18e!K105 -> 0 | L85: =SB18e!L105 -> 0 | M85: =SB18e!M105 -> 0
A86: Revenue Generating | C86: =SB18e!C113 -> 0 | D86: =SB18e!D113 -> 0 | E86: =SB18e!E113 -> 0 | F86: =SB18e!F113 -> 0 | G86: =SB18e!G113 -> 0 | H86: =SB18e!H113 -> 0 | I86: =SB18e!I113 -> 0 | J86: =SB18e!J113 -> 0 | K86: =SB18e!K113 -> 0 | L86: =SB18e!L113 -> 0 | M86: =SB18e!M113 -> 0
A87: Non-revenue Generating | C87: =SB18e!C116 -> 0 | D87: =SB18e!D116 -> 0 | E87: =SB18e!E116 -> 0 | F87: =SB18e!F116 -> 0 | G87: =SB18e!G116 -> 0 | H87: =SB18e!H116 -> 0 | I87: =SB18e!I116 -> 0 | J87: =SB18e!J116 -> 0 | K87: =SB18e!K116 -> 0 | L87: =SB18e!L116 -> 0 | M87: =SB18e!M116 -> 0
A88: Investment properties | C88: =SUM(C86:C87) -> 0 | D88: =SUM(D86:D87) -> 0 | E88: 0 | F88: 0 | G88: 0 | H88: 0 | I88: 0 | J88: 0 | K88: 0 | L88: 0 | M88: 0
A89: Operational Buildings | C89: =SB18e!C121 -> 0 | D89: =SB18e!D121 -> 0 | E89: =SB18e!E121 -> 0 | F89: =SB18e!F121 -> 0 | G89: =SB18e!G121 -> 0 | H89: =SB18e!H121 -> 0 | I89: =SB18e!I121 -> 0 | J89: =SB18e!J121 -> 0 | K89: =SB18e!K121 -> 0 | L89: =SB18e!L121 -> 0 | M89: =SB18e!M121 -> 0
A90: Housing | C90: =SB18e!C133 -> 0 | D90: =SB18e!D133 -> 0 | E90: =SB18e!E133 -> 0 | F90: =SB18e!F133 -> 0 | G90: =SB18e!G133 -> 0 | H90: =SB18e!H133 -> 0 | I90: =SB18e!I133 -> 0 | J90: =SB18e!J133 -> 0 | K90: =SB18e!K133 -> 0 | L90: =SB18e!L133 -> 0 | M90: =SB18e!M133 -> 0
A91: Other Assets | B91: 6 | C91: =SUM(C89:C90) -> 0 | D91: =SUM(D89:D90) -> 0 | E91: 0 | F91: 0 | G91: 0 | H91: 0 | I91: 0 | J91: 0 | K91: 0 | L91: 0 | M91: 0
A92: Biological or Cultivated Assets | C92: =SB18e!C138 -> 0 | D92: =SB18e!D138 -> 0 | E92: =SB18e!E138 -> 0 | F92: =SB18e!F138 -> 0 | G92: =SB18e!G138 -> 0 | H92: =SB18e!H138 -> 0 | I92: =SB18e!I138 -> 0 | J92: =SB18e!J138 -> 0 | K92: =SB18e!K138 -> 0 | L92: =SB18e!L138 -> 0 | M92: =SB18e!M138 -> 0
A93: Servitudes | C93: =SB18e!C142 -> 0 | D93: =SB18e!D142 -> 0 | E93: =SB18e!E142 -> 0 | F93: =SB18e!F142 -> 0 | G93: =SB18e!G142 -> 0 | H93: =SB18e!H142 -> 0 | I93: =SB18e!I142 -> 0 | J93: =SB18e!J142 -> 0 | K93: =SB18e!K142 -> 0 | L93: =SB18e!L142 -> 0 | M93: =SB18e!M142 -> 0
A94: Licences and Rights | C94: =SB18e!C143 -> 0 | D94: =SB18e!D143 -> 0 | E94: =SB18e!E143 -> 0 | F94: =SB18e!F143 -> 0 | G94: =SB18e!G143 -> 0 | H94: =SB18e!H143 -> 0 | I94: =SB18e!I143 -> 0 | J94: =SB18e!J143 -> 0 | K94: =SB18e!K143 -> 0 | L94: =SB18e!L143 -> 0 | M94: =SB18e!M143 -> 0
A95: Intangible Assets | C95: =SUM(C93:C94) -> 0 | D95: =SUM(D93:D94) -> 0 | E95: 0 | F95: 0 | G95: 0 | H95: 0 | I95: 0 | J95: 0 | K95: 0 | L95: 0 | M95: 0
A96: Computer Equipment | C96: =SB18e!C151 -> 0 | D96: =SB18e!D151 -> 0 | E96: =SB18e!E151 -> 0 | F96: =SB18e!F151 -> 0 | G96: =SB18e!G151 -> 0 | H96: =SB18e!H151 -> 0 | I96: =SB18e!I151 -> 0 | J96: =SB18e!J151 -> 0 | K96: =SB18e!K151 -> 0 | L96: =SB18e!L151 -> 0 | M96: =SB18e!M151 -> 0
A97: Furniture and Office Equipment | C97: =SB18e!C154 -> 0 | D97: =SB18e!D154 -> 0 | E97: =SB18e!E154 -> 0 | F97: =SB18e!F154 -> 0 | G97: =SB18e!G154 -> 0 | H97: =SB18e!H154 -> 0 | I97: =SB18e!I154 -> 0 | J97: =SB18e!J154 -> 0 | K97: =SB18e!K154 -> 0 | L97: =SB18e!L154 -> 0 | M97: =SB18e!M154 -> 0
A98: Machinery and Equipment | C98: =SB18e!C157 -> 0 | D98: =SB18e!D157 -> 0 | E98: =SB18e!E157 -> 0 | F98: =SB18e!F157 -> 0 | G98: =SB18e!G157 -> 0 | H98: =SB18e!H157 -> 0 | I98: =SB18e!I157 -> 0 | J98: =SB18e!J157 -> 0 | K98: =SB18e!K157 -> 0 | L98: =SB18e!L157 -> 0 | M98: =SB18e!M157 -> 0
A99: Transport Assets | C99: =SB18e!C160 -> 0 | D99: =SB18e!D160 -> 0 | E99: =SB18e!E160 -> 0 | F99: =SB18e!F160 -> 0 | G99: =SB18e!G160 -> 0 | H99: =SB18e!H160 -> 0 | I99: =SB18e!I160 -> 0 | J99: =SB18e!J160 -> 0 | K99: =SB18e!K160 -> 0 | L99: =SB18e!L160 -> 0 | M99: =SB18e!M160 -> 0
A100: Libraries | C100: =SB18e!C163 -> 0 | D100: =SB18e!D163 -> 0 | E100: =SB18e!E163 -> 0 | F100: =SB18e!F163 -> 0 | G100: =SB18e!G163 -> 0 | H100: =SB18e!H163 -> 0 | I100: =SB18e!I163 -> 0 | J100: =SB18e!J163 -> 0 | K100: =SB18e!K163 -> 0 | L100: =SB18e!L163 -> 0 | M100: =SB18e!M163 -> 0
A101: Zoo's, Marine and Non-biological Animals | C101: =SB18e!C166 -> 0 | D101: =SB18e!D166 -> 0 | E101: =SB18e!E166 -> 0 | F101: =SB18e!F166 -> 0 | G101: =SB18e!G166 -> 0 | H101: =SB18e!H166 -> 0 | I101: =SB18e!I166 -> 0 | J101: =SB18e!J166 -> 0 | K101: =SB18e!K166 -> 0 | L101: =SB18e!L166 -> 0 | M101: =SB18e!M166 -> 0
A103: Total Capital Expenditure to be adjusted | B103: 4
A104: Roads Infrastructure | C104: =C8+C40+C72 -> 13833065.62 | D104: =D8+D40+D72 -> 0 | E104: 0 | F104: 0 | G104: 0 | H104: 0 | I104: 3325075.86 | J104: 3325075.86 | K104: 17158141.48 | L104: 14663049.56 | M104: 15542832.53
A105: Storm water Infrastructure | C105: 0 | D105: 0 | E105: 0 | F105: 0 | G105: 0 | H105: 0 | I105: 0 | J105: 0 | K105: 0 | L105: 0 | M105: 0
A106: Electrical Infrastructure | C106: 5000000 | D106: 0 | E106: 0 | F106: 0 | G106: 0 | H106: 0 | I106: 0 | J106: 0 | K106: 5000000 | L106: 5300000 | M106: 5618000
A107: Water Supply Infrastructure | C107: 47849485.74 | D107: =D11+D43+D75 -> 0 | E107: 0 | F107: 0 | G107: 0 | H107: 0 | I107: 0 | J107: 0 | K107: 47849485.74 | L107: 43075794.88 | M107: 16195822.58
A108: Sanitation Infrastructure | C108: 20279103.04 | D108: =D12+D44+D76 -> 0 | E108: 0 | F108: 0 | G108: 0 | H108: 0 | I108: 2223124.51 | J108: 2223124.51 | K108: 22502227.55 | L108: 21495849.22 | M108: 22785600.18
A109: Solid Waste Infrastructure | C109: 7690155 | D109: =D13+D45+D77 -> 0 | E109: 0 | F109: 0 | G109: 0 | H109: 0 | I109: -7303784.99 | J109: -7303784.99 | K109: 386370.01 | L109: 8151564.3 | M109: 8640658.158
A110: Rail Infrastructure | C110: 0 | D110: =D14+D46+D78 -> 0 | E110: 0 | F110: 0 | G110: 0 | H110: 0 | I110: 0 | J110: 0 | K110: 0 | L110: 0 | M110: 0
A111: Coastal Infrastructure | C111: 0 | D111: =D15+D47+D79 -> 0 | E111: 0 | F111: 0 | G111: 0 | H111: 0 | I111: 0 | J111: 0 | K111: 0 | L111: 0 | M111: 0
A112: Information and Communication Infrastructure | C112: 0 | D112: =D16+D48+D80 -> 0 | E112: 0 | F112: 0 | G112: 0 | H112: 0 | I112: 0 | J112: 0 | K112: 0 | L112: 0 | M112: 0
A113: Infrastructure | C113: 94651809.4 | D113: =D17+D49+D81 -> 0 | E113: 0 | F113: 0 | G113: 0 | H113: 0 | I113: -1755584.62 | J113: -1755584.62 | K113: 92896224.78 | L113: 92686257.96 | M113: 68782913.44
A114: Community Facilities | C114: 854567.61 | D114: =D18+D50+D82 -> 0 | E114: 0 | F114: 0 | G114: 0 | H114: 0 | I114: 0 | J114: 0 | K114: 854567.61 | L114: 905841.6666 | M114: 960192.1666
A115: Sport and Recreation Facilities | C115: 3254622.99 | D115: =D19+D51+D83 -> 0 | E115: 0 | F115: 0 | G115: 0 | H115: 0 | I115: 1755584.63 | J115: 1755584.63 | K115: 5010207.62 | L115: 3449900.369 | M115: 3656894.392
A116: Community Assets | C116: 4109190.6 | D116: =D20+D52+D84 -> 0 | E116: 0 | F116: 0 | G116: 0 | H116: 0 | I116: 1755584.63 | J116: 1755584.63 | K116: 5864775.23 | L116: 4355742.036 | M116: 4617086.558
A117: Heritage Assets | C117: 0 | D117: =D21+D53+D85 -> 0 | E117: 0 | F117: 0 | G117: 0 | H117: 0 | I117: 0 | J117: 0 | K117: 0 | L117: 0 | M117: 0
A118: Revenue Generating | C118: 0 | D118: =D22+D54+D86 -> 0 | E118: 0 | F118: 0 | G118: 0 | H118: 0 | I118: 0 | J118: 0 | K118: 0 | L118: 0 | M118: 0
A119: Non-revenue Generating | C119: 0 | D119: =D23+D55+D87 -> 0 | E119: 0 | F119: 0 | G119: 0 | H119: 0 | I119: 0 | J119: 0 | K119: 0 | L119: 0 | M119: 0
A120: Investment properties | C120: 0 | D120: =D24+D56+D88 -> 0 | E120: 0 | F120: 0 | G120: 0 | H120: 0 | I120: 0 | J120: 0 | K120: 0 | L120: 0 | M120: 0
A121: Operational Buildings | C121: 0 | D121: =D25+D57+D89 -> 0 | E121: 0 | F121: 0 | G121: 0 | H121: 0 | I121: 0 | J121: 0 | K121: 0 | L121: 0 | M121: 0
A122: Housing | C122: 0 | D122: =D26+D58+D90 -> 0 | E122: 0 | F122: 0 | G122: 0 | H122: 0 | I122: 0 | J122: 0 | K122: 0 | L122: 0 | M122: 0
A123: Other Assets | C123: 0 | D123: =D27+D59+D91 -> 0 | E123: 0 | F123: 0 | G123: 0 | H123: 0 | I123: 0 | J123: 0 | K123: 0 | L123: 0 | M123: 0
A124: Biological or Cultivated Assets | C124: 0 | D124: =D28+D60+D92 -> 0 | E124: 0 | F124: 0 | G124: 0 | H124: 0 | I124: 0 | J124: 0 | K124: 0 | L124: 0 | M124: 0
A125: Servitudes | C125: 0 | D125: =D29+D61+D93 -> 0 | E125: 0 | F125: 0 | G125: 0 | H125: 0 | I125: 0 | J125: 0 | K125: 0 | L125: 0 | M125: 0
A126: Licences and Rights | C126: 0 | D126: =D30+D62+D94 -> 0 | E126: 0 | F126: 0 | G126: 0 | H126: 0 | I126: 0 | J126: 0 | K126: 0 | L126: 0 | M126: 0
A127: Intangible Assets | C127: 0 | D127: =D31+D63+D95 -> 0 | E127: 0 | F127: 0 | G127: 0 | H127: 0 | I127: 0 | J127: 0 | K127: 0 | L127: 0 | M127: 0
A128: Computer Equipment | C128: 0 | D128: =D32+D64+D96 -> 0 | E128: 0 | F128: 0 | G128: 0 | H128: 0 | I128: 0 | J128: 0 | K128: 0 | L128: 0 | M128: 0
A129: Furniture and Office Equipment | C129: 0 | D129: =D33+D65+D97 -> 0 | E129: 0 | F129: 0 | G129: 0 | H129: 0 | I129: 0 | J129: 0 | K129: 0 | L129: 0 | M129: 0
A130: Machinery and Equipment | C130: 0 | D130: =D34+D66+D98 -> 0 | E130: 0 | F130: 0 | G130: 0 | H130: 0 | I130: 0 | J130: 0 | K130: 0 | L130: 0 | M130: 0
A131: Transport Assets | C131: 0 | D131: =D35+D67+D99 -> 0 | E131: 0 | F131: 0 | G131: 0 | H131: 0 | I131: 0 | J131: 0 | K131: 0 | L131: 0 | M131: 0
A132: Libraries | C132: 0 | D132: =D36+D68+D100 -> 0 | E132: 0 | F132: 0 | G132: 0 | H132: 0 | I132: 0 | J132: 0 | K132: 0 | L132: 0 | M132: 0
A133: Zoo's, Marine and Non-biological Animals | C133: 0 | D133: =D37+D69+D101 -> 0 | E133: 0 | F133: 0 | G133: 0 | H133: 0 | I133: 0 | J133: 0 | K133: 0 | L133: 0 | M133: 0
A134: TOTAL CAPITAL EXPENDITURE to be adjusted | B134: 4 | C134: =C7+C39+C71 -> 98761000 | D134: =D7+D39+D71 -> 0 | E134: 0 | F134: 0 | G134: 0 | H134: 0 | I134: 0.00999999512 | J134: 0.00999999512 | K134: 98761000.01 | L134: 97042000 | M134: 73400000
A136: ASSET REGISTER SUMMARY - PPE (WDV) | B136: 5
A137: =+A8 -> Roads Infrastructure | C137: 368448574.9 | J137: =SUM(E137:I137) -> 0 | K137: =IF(D137=0,C137+J137,D137+J137) -> 368448574.9 | L137: 375817546.4 | M137: 383333897.3
A138: =+A9 -> Storm water Infrastructure | C138: 0 | J138: 0 | K138: =IF(D138=0,C138+J138,D138+J138) -> 0 | L138: 0 | M138: 0
A139: Electrical Infrastructure | C139: 68087659.14 | J139: 0 | K139: =IF(D139=0,C139+J139,D139+J139) -> 68087659.14 | L139: 69449412.32 | M139: 70838400.57
A140: Water Supply Infrastructure | C140: 225105199.4 | J140: 0 | K140: =IF(D140=0,C140+J140,D140+J140) -> 225105199.4 | L140: 229607303.4 | M140: 234199449.5
A141: Sanitation Infrastructure | C141: 196125007.4 | J141: 0 | K141: =IF(D141=0,C141+J141,D141+J141) -> 196125007.4 | L141: 200047507.5 | M141: 204048457.7
A142: Solid Waste Infrastructure | C142: 15422194.7 | J142: 0 | K142: 15422194.7 | L142: 15730638.6 | M142: 16045251.37
A143: Rail Infrastructure | J143: 0 | K143: 0
A144: Coastal Infrastructure | J144: 0 | K144: 0
A145: Information and Communication Infrastructure | J145: 0 | K145: 0
A146: Infrastructure | C146: =SUM(C137:C145) -> 873188635.5 | D146: 0 | E146: 0 | F146: 0 | G146: 0 | H146: 0 | I146: 0 | J146: 0 | K146: 873188635.5 | L146: =SUM(L137:L145) -> 890652408.2 | M146: =SUM(M137:M145) -> 908465456.4
A147: Community Facilities | C147: 20507113.26 | J147: =SUM(E147:I147) -> 0 | K147: =IF(D147=0,C147+J147,D147+J147) -> 20507113.26 | L147: 20917255.53 | M147: 21335600.64
A148: Sport and Recreation Facilities | J148: =SUM(E148:I148) -> 0 | K148: =IF(D148=0,C148+J148,D148+J148) -> 0
A149: Community Assets | C149: =SUM(C147:C148) -> 20507113.26 | D149: =SUM(D147:D148) -> 0 | E149: 0 | F149: 0 | G149: 0 | H149: 0 | I149: 0 | J149: 0 | K149: 20507113.26 | L149: 20917255.53 | M149: 21335600.64
A150: Heritage Assets | J150: =SUM(E150:I150) -> 0 | K150: 0
A151: Revenue Generating | J151: =SUM(E151:I151) -> 0 | K151: 0
A152: Non-revenue Generating | J152: =SUM(E152:I152) -> 0 | K152: 0
A153: Investment properties | C153: =SUM(C151:C152) -> 0 | D153: 0 | E153: 0 | F153: 0 | G153: 0 | H153: 0 | I153: 0 | J153: 0 | K153: 0 | L153: 0 | M153: 0
A154: Operational Buildings | C154: 14155462.08 | J154: =SUM(E154:I154) -> 0 | K154: =IF(D154=0,C154+J154,D154+J154) -> 14155462.08 | L154: 14438571.32 | M154: 14727342.75
A155: Housing | J155: =SUM(E155:I155) -> 0 | K155: =IF(D155=0,C155+J155,D155+J155) -> 0
A156: Other Assets | C156: =SUM(C154:C155) -> 14155462.08 | D156: 0 | E156: 0 | F156: 0 | G156: 0 | H156: 0 | I156: 0 | J156: 0 | K156: 14155462.08 | L156: 14438571.32 | M156: 14727342.75
A157: Biological or Cultivated Assets | C157: 24513 | J157: =SUM(E157:I157) -> 0 | K157: =IF(D157=0,C157+J157,D157+J157) -> 24513 | L157: 24513 | M157: 24513
A158: Servitudes | C158: 65598 | J158: =SUM(E158:I158) -> 0 | K158: 65598 | L158: 65598 | M158: 65598
A159: Licences and Rights | J159: =SUM(E159:I159) -> 0 | K159: 0
A160: Intangible Assets | C160: =SUM(C158:C159) -> 65598 | D160: 0 | E160: 0 | F160: 0 | G160: 0 | H160: 0 | I160: 0 | J160: 0 | K160: 65598 | L160: 65598 | M160: 65598
A161: Computer Equipment | C161: 132528074.7 | J161: =SUM(E161:I161) -> 0 | K161: =IF(D161=0,C161+J161,D161+J161) -> 132528074.7 | L161: 135178636.2 | M161: 137882208.9
A162: Furniture and Office Equipment | J162: 0 | K162: 0
A163: Machinery and Equipment | J163: 0 | K163: 0
A164: Transport Assets | J164: 0 | K164: 0
A165: Libraries | J165: 0 | K165: 0
A166: Zoo's, Marine and Non-biological Animals | J166: 0 | K166: 0
A167: TOTAL ASSET REGISTER SUMMARY - PPE (WDV) | B167: 5 | C167: =C146+C149+C150+C153+C156+C157+SUM(C160:C166) -> 1040469397 | D167: =D146+D149+D150+D153+D156+D157+SUM(D160:D166) -> 0 | E167: 0 | F167: 0 | G167: 0 | H167: 0 | I167: 0 | J167: 0 | K167: 1040469397 | L167: 1061276982 | M167: 1082500720
A169: EXPENDITURE OTHER ITEMS
A170: Depreciation & asset impairment | C170: =SB18d!C169 -> 59672591.82 | D170: =SB18d!D169 -> 0 | E170: =SB18d!E169 -> 0 | F170: =SB18d!F169 -> 0 | G170: =SB18d!G169 -> 0 | H170: =SB18d!H169 -> 0 | I170: =SB18d!I169 -> -800000 | J170: =SB18d!J169 -> -800000 | K170: =SB18d!K169 -> 58872591.82 | L170: =SB18d!L169 -> 63252947.33 | M170: =SB18d!M169 -> 67048124.17
A171: Repairs and Maintenance by asset class | B171: 3 | C171: =C181+C184+C185+C188+C191+C192+SUM(C195:C201) -> 10187870 | D171: =D181+D184+D185+D188+D191+D192+SUM(D195:D201) -> 0 | E171: =E181+E184+E185+E188+E191+E192+SUM(E195:E201) -> 0 | F171: =F181+F184+F185+F188+F191+F192+SUM(F195:F201) -> 0 | G171: 0 | H171: 0 | I171: -1433114.561 | J171: -1433114.561 | K171: 8754755.439 | L171: =L181+L184+L185+L188+L191+L192+SUM(L195:L201) -> 10799142.2 | M171: =M181+M184+M185+M188+M191+M192+SUM(M195:M201) -> 11447090.73
A172: =+A8 -> Roads Infrastructure | C172: =SB18c!C9 -> 2541000 | D172: =SB18c!D9 -> 0 | E172: =SB18c!E9 -> 0 | F172: =SB18c!F9 -> 0 | G172: =SB18c!G9 -> 0 | H172: =SB18c!H9 -> 0 | I172: =SB18c!I9 -> -1168566.62 | J172: =SB18c!J9 -> -1168566.62 | K172: =SB18c!K9 -> 1372433.38 | L172: =SB18c!L9 -> 2693460 | M172: =SB18c!M9 -> 2855067.6
A173: =+A9 -> Storm water Infrastructure | C173: =SB18c!C14 -> 0 | D173: =SB18c!D14 -> 0 | E173: =SB18c!E14 -> 0 | F173: =SB18c!F14 -> 0 | G173: =SB18c!G14 -> 0 | H173: =SB18c!H14 -> 0 | I173: =SB18c!I14 -> 0 | J173: =SB18c!J14 -> 0 | K173: =SB18c!K14 -> 0 | L173: =SB18c!L14 -> 0 | M173: =SB18c!M14 -> 0
A174: Electrical Infrastructure | C174: =SB18c!C18 -> 1851850 | D174: =SB18c!D18 -> 0 | E174: =SB18c!E18 -> 0 | F174: =SB18c!F18 -> 0 | G174: =SB18c!G18 -> 0 | H174: =SB18c!H18 -> 0 | I174: =SB18c!I18 -> -96246.8 | J174: =SB18c!J18 -> -96246.8 | K174: =SB18c!K18 -> 1755603.2 | L174: =SB18c!L18 -> 1962961 | M174: =SB18c!M18 -> 2080738.66
A175: Water Supply Infrastructure | C175: =SB18c!C28 -> 3430350 | D175: =SB18c!D28 -> 0 | E175: =SB18c!E28 -> 0 | F175: =SB18c!F28 -> 0 | G175: =SB18c!G28 -> 0 | H175: =SB18c!H28 -> 0 | I175: =SB18c!I28 -> -1180386.25 | J175: =SB18c!J28 -> -1180386.25 | K175: =SB18c!K28 -> 2249963.75 | L175: =SB18c!L28 -> 3636171 | M175: =SB18c!M28 -> 3854341.26
A176: Sanitation Infrastructure | C176: =SB18c!C39 -> 311850 | D176: =SB18c!D39 -> 0 | E176: =SB18c!E39 -> 0 | F176: =SB18c!F39 -> 0 | G176: =SB18c!G39 -> 0 | H176: =SB18c!H39 -> 0 | I176: =SB18c!I39 -> 164084.46 | J176: =SB18c!J39 -> 164084.46 | K176: =SB18c!K39 -> 475934.46 | L176: =SB18c!L39 -> 330561 | M176: =SB18c!M39 -> 350394.66
A177: Solid Waste Infrastructure | C177: =SB18c!C46 -> 269500 | D177: =SB18c!D46 -> 0 | E177: =SB18c!E46 -> 0 | F177: =SB18c!F46 -> 0 | G177: =SB18c!G46 -> 0 | H177: =SB18c!H46 -> 0 | I177: =SB18c!I46 -> -68500 | J177: =SB18c!J46 -> -68500 | K177: =SB18c!K46 -> 201000 | L177: =SB18c!L46 -> 285670 | M177: =SB18c!M46 -> 302810.2
A178: Rail Infrastructure | C178: =SB18c!C54 -> 0 | D178: =SB18c!D54 -> 0 | E178: =SB18c!E54 -> 0 | F178: =SB18c!F54 -> 0 | G178: =SB18c!G54 -> 0 | H178: =SB18c!H54 -> 0 | I178: =SB18c!I54 -> 0 | J178: =SB18c!J54 -> 0 | K178: =SB18c!K54 -> 0 | L178: =SB18c!L54 -> 0 | M178: =SB18c!M54 -> 0
A179: Coastal Infrastructure | C179: =SB18c!C64 -> 0 | D179: =SB18c!D64 -> 0 | E179: =SB18c!E64 -> 0 | F179: =SB18c!F64 -> 0 | G179: =SB18c!G64 -> 0 | H179: =SB18c!H64 -> 0 | I179: =SB18c!I64 -> 0 | J179: =SB18c!J64 -> 0 | K179: =SB18c!K64 -> 0 | L179: =SB18c!L64 -> 0 | M179: =SB18c!M64 -> 0
A180: Information and Communication Infrastructure | C180: =SB18c!C70 -> 0 | D180: =SB18c!D70 -> 0 | E180: =SB18c!E70 -> 0 | F180: =SB18c!F70 -> 0 | G180: =SB18c!G70 -> 0 | H180: =SB18c!H70 -> 0 | I180: =SB18c!I70 -> 0 | J180: =SB18c!J70 -> 0 | K180: =SB18c!K70 -> 0 | L180: =SB18c!L70 -> 0 | M180: =SB18c!M70 -> 0
A181: Infrastructure | C181: =SUM(C172:C180) -> 8404550 | D181: =SUM(D172:D180) -> 0 | E181: 0 | F181: 0 | G181: 0 | H181: 0 | I181: -2349615.21 | J181: -2349615.21 | K181: 6054934.79 | L181: 8908823 | M181: 9443352.38
A182: Community Facilities | C182: =SB18c!C77 -> 836220 | D182: =SB18c!D77 -> 0 | E182: =SB18c!E77 -> 0 | F182: =SB18c!F77 -> 0 | G182: =SB18c!G77 -> 0 | H182: =SB18c!H77 -> 0 | I182: =SB18c!I77 -> 1601757.96 | J182: =SB18c!J77 -> 1601757.96 | K182: =SB18c!K77 -> 2437977.96 | L182: =SB18c!L77 -> 886393.2 | M182: =SB18c!M77 -> 939576.792
A183: Sport and Recreation Facilities | C183: =SB18c!C100 -> 84700 | D183: =SB18c!D100 -> 0 | E183: =SB18c!E100 -> 0 | F183: =SB18c!F100 -> 0 | G183: =SB18c!G100 -> 0 | H183: =SB18c!H100 -> 0 | I183: =SB18c!I100 -> -83478.93143 | J183: =SB18c!J100 -> -83478.93143 | K183: =SB18c!K100 -> 1221.068571 | L183: =SB18c!L100 -> 89782 | M183: =SB18c!M100 -> 95168.92
A184: Community Assets | C184: =SUM(C182:C183) -> 920920 | D184: =SUM(D182:D183) -> 0 | E184: 0 | F184: 0 | G184: 0 | H184: 0 | I184: 1518279.029 | J184: 1518279.029 | K184: 2439199.029 | L184: 976175.2 | M184: 1034745.712
A185: Heritage Assets | C185: =SB18c!C105 -> 800800 | D185: =SB18c!D105 -> 0 | E185: =SB18c!E105 -> 0 | F185: =SB18c!F105 -> 0 | G185: =SB18c!G105 -> 0 | H185: =SB18c!H105 -> 0 | I185: =SB18c!I105 -> -557549.81 | J185: =SB18c!J105 -> -557549.81 | K185: =SB18c!K105 -> 243250.19 | L185: =SB18c!L105 -> 848848 | M185: =SB18c!M105 -> 899778.88
A186: Revenue Generating | C186: =SB18c!C113 -> 0 | D186: =SB18c!D113 -> 0 | E186: =SB18c!E113 -> 0 | F186: =SB18c!F113 -> 0 | G186: =SB18c!G113 -> 0 | H186: =SB18c!H113 -> 0 | I186: =SB18c!I113 -> 0 | J186: =SB18c!J113 -> 0 | K186: =SB18c!K113 -> 0 | L186: =SB18c!L113 -> 0 | M186: =SB18c!M113 -> 0
A187: Non-revenue Generating | C187: =SB18c!C116 -> 0 | D187: =SB18c!D116 -> 0 | E187: =SB18c!E116 -> 0 | F187: =SB18c!F116 -> 0 | G187: =SB18c!G116 -> 0 | H187: =SB18c!H116 -> 0 | I187: =SB18c!I116 -> 0 | J187: =SB18c!J116 -> 0 | K187: =SB18c!K116 -> 0 | L187: =SB18c!L116 -> 0 | M187: =SB18c!M116 -> 0
A188: Investment properties | C188: =SUM(C186:C187) -> 0 | D188: =SUM(D186:D187) -> 0 | E188: 0 | F188: 0 | G188: 0 | H188: 0 | I188: 0 | J188: 0 | K188: 0 | L188: 0 | M188: 0
A189: Operational Buildings | C189: =SB18c!C121 -> 0 | D189: =SB18c!D121 -> 0 | E189: =SB18c!E121 -> 0 | F189: =SB18c!F121 -> 0 | G189: =SB18c!G121 -> 0 | H189: =SB18c!H121 -> 0 | I189: =SB18c!I121 -> 0 | J189: =SB18c!J121 -> 0 | K189: =SB18c!K121 -> 0 | L189: =SB18c!L121 -> 0 | M189: =SB18c!M121 -> 0
A190: Housing | C190: =SB18c!C133 -> 0 | D190: =SB18c!D133 -> 0 | E190: =SB18c!E133 -> 0 | F190: =SB18c!F133 -> 0 | G190: =SB18c!G133 -> 0 | H190: =SB18c!H133 -> 0 | I190: =SB18c!I133 -> 0 | J190: =SB18c!J133 -> 0 | K190: =SB18c!K133 -> 0 | L190: =SB18c!L133 -> 0 | M190: =SB18c!M133 -> 0
A191: Other Assets | C191: =SUM(C189:C190) -> 0 | D191: =SUM(D189:D190) -> 0 | E191: 0 | F191: 0 | G191: 0 | H191: 0 | I191: 0 | J191: 0 | K191: 0 | L191: 0 | M191: 0
A192: Biological or Cultivated Assets | C192: =SB18c!C138 -> 0 | D192: =SB18c!D138 -> 0 | E192: =SB18c!E138 -> 0 | F192: =SB18c!F138 -> 0 | G192: =SB18c!G138 -> 0 | H192: =SB18c!H138 -> 0 | I192: =SB18c!I138 -> 0 | J192: =SB18c!J138 -> 0 | K192: =SB18c!K138 -> 0 | L192: =SB18c!L138 -> 0 | M192: =SB18c!M138 -> 0
A193: Servitudes | C193: =SB18c!C142 -> 0 | D193: =SB18c!D142 -> 0 | E193: =SB18c!E142 -> 0 | F193: =SB18c!F142 -> 0 | G193: =SB18c!G142 -> 0 | H193: =SB18c!H142 -> 0 | I193: =SB18c!I142 -> 0 | J193: =SB18c!J142 -> 0 | K193: =SB18c!K142 -> 0 | L193: =SB18c!L142 -> 0 | M193: =SB18c!M142 -> 0
A194: Licences and Rights | C194: =SB18c!C143 -> 0 | D194: =SB18c!D143 -> 0 | E194: =SB18c!E143 -> 0 | F194: =SB18c!F143 -> 0 | G194: =SB18c!G143 -> 0 | H194: =SB18c!H143 -> 0 | I194: =SB18c!I143 -> 0 | J194: =SB18c!J143 -> 0 | K194: =SB18c!K143 -> 0 | L194: =SB18c!L143 -> 0 | M194: =SB18c!M143 -> 0
A195: Intangible Assets | C195: =SUM(C193:C194) -> 0 | D195: =SUM(D193:D194) -> 0 | E195: 0 | F195: 0 | G195: 0 | H195: 0 | I195: 0 | J195: 0 | K195: 0 | L195: 0 | M195: 0
A196: Computer Equipment | C196: =SB18c!C151 -> 0 | D196: =SB18c!D151 -> 0 | E196: =SB18c!E151 -> 0 | F196: =SB18c!F151 -> 0 | G196: =SB18c!G151 -> 0 | H196: =SB18c!H151 -> 0 | I196: =SB18c!I151 -> 0 | J196: =SB18c!J151 -> 0 | K196: =SB18c!K151 -> 0 | L196: =SB18c!L151 -> 0 | M196: =SB18c!M151 -> 0
A197: Furniture and Office Equipment | C197: =SB18c!C154 -> 61600 | D197: =SB18c!D154 -> 0 | E197: =SB18c!E154 -> 0 | F197: =SB18c!F154 -> 0 | G197: =SB18c!G154 -> 0 | H197: =SB18c!H154 -> 0 | I197: =SB18c!I154 -> -44228.57 | J197: =SB18c!J154 -> -44228.57 | K197: =SB18c!K154 -> 17371.43 | L197: =SB18c!L154 -> 65296 | M197: =SB18c!M154 -> 69213.76
A198: Machinery and Equipment | C198: =SB18c!C157 -> 0 | D198: =SB18c!D157 -> 0 | E198: =SB18c!E157 -> 0 | F198: =SB18c!F157 -> 0 | G198: =SB18c!G157 -> 0 | H198: =SB18c!H157 -> 0 | I198: =SB18c!I157 -> 0 | J198: =SB18c!J157 -> 0 | K198: =SB18c!K157 -> 0 | L198: =SB18c!L157 -> 0 | M198: =SB18c!M157 -> 0
A199: Transport Assets | C199: =SB18c!C160 -> 0 | D199: =SB18c!D160 -> 0 | E199: =SB18c!E160 -> 0 | F199: =SB18c!F160 -> 0 | G199: =SB18c!G160 -> 0 | H199: =SB18c!H160 -> 0 | I199: =SB18c!I160 -> 0 | J199: =SB18c!J160 -> 0 | K199: =SB18c!K160 -> 0 | L199: =SB18c!L160 -> 0 | M199: =SB18c!M160 -> 0
A200: Libraries | C200: =SB18c!C163 -> 0 | D200: =SB18c!D163 -> 0 | E200: =SB18c!E163 -> 0 | F200: =SB18c!F163 -> 0 | G200: =SB18c!G163 -> 0 | H200: =SB18c!H163 -> 0 | I200: =SB18c!I163 -> 0 | J200: =SB18c!J163 -> 0 | K200: =SB18c!K163 -> 0 | L200: =SB18c!L163 -> 0 | M200: =SB18c!M163 -> 0
A201: Zoo's, Marine and Non-biological Animals | B201: 6 | C201: =SB18c!C166 -> 0 | D201: =SB18c!D166 -> 0 | E201: =SB18c!E166 -> 0 | F201: =SB18c!F166 -> 0 | G201: =SB18c!G166 -> 0 | H201: =SB18c!H166 -> 0 | I201: =SB18c!I166 -> 0 | J201: =SB18c!J166 -> 0 | K201: =SB18c!K166 -> 0 | L201: =SB18c!L166 -> 0 | M201: =SB18c!M166 -> 0
A202: TOTAL EXPENDITURE OTHER ITEMS to be adjusted | C202: =+C170+C171 -> 69860461.82 | D202: =+D170+D171 -> 0 | E202: 0 | F202: 0 | G202: 0 | H202: 0 | I202: -2233114.561 | J202: -2233114.561 | K202: 67627347.26 | L202: 74052089.53 | M202: 78495214.9
A204: Renewal and upgrading of Existing Assets as % of total capex | C204: =IF(ISERROR((C39+C71)/C134),0,((C39+C71)/C134)) -> 0.4726069829 | D204: =IF(ISERROR((D39+D71)/D134),0,((D39+D71)/D134)) -> 0 | K204: =IF(ISERROR((K39+K71)/K134),0,((K39+K71)/K134)) -> 0.5465611247 | L204: =IF(ISERROR((L39+L71)/L134),0,((L39+L71)/L134)) -> 0.5098374573 | M204: =IF(ISERROR((M39+M71)/M134),0,((M39+M71)/M134)) -> 0.7144984377
A205: Renewal and upgrading of Existing Assets as % of deprecn" | C205: =IF(ISERROR((C39+C71)/C170),0,((C39+C71)/C170)) -> 0.7821872122 | D205: =IF(ISERROR((D39+D71)/D170),0,((D39+D71)/D170)) -> 0 | K205: =IF(ISERROR((K39+K71)/K170),0,((K39+K71)/K170)) -> 0.9168769638 | L205: =IF(ISERROR((L39+L71)/L170),0,((L39+L71)/L170)) -> 0.7821872122 | M205: =IF(ISERROR((M39+M71)/M170),0,((M39+M71)/M170)) -> 0.7821872122
A206: R&M as a % of PPE | C206: =IF(ISERROR(C171/C167),0,(C171/C167)) -> 0.009791609473 | D206: =IF(ISERROR(D171/D167),0,(D171/D167)) -> 0 | K206: =IF(ISERROR(K171/K167),0,(K171/K167)) -> 0.00841423637 | L206: =IF(ISERROR(L171/L167),0,(L171/L167)) -> 0.01017561144 | M206: =IF(ISERROR(M171/M167),0,(M171/M167)) -> 0.01057467263
... 18 more rows

Sheet B10-SerDel
A1: =muni&" - "&_ADJ10&" - "&Date -> FS193 Nketoana - Table B10 Basic service delivery measurement - 28/02/2018
A2: =desc -> Description | B2: =head27 -> Ref | C2: =Head2 -> Budget Year 2017/18 | L2: =Head10 -> Budget Year +1 2018/19 | M2: =Head11 -> Budget Year +2 2019/20
C3: =Head6 -> Original Budget | D3: =Head54 -> Prior Adjusted | E3: =Head51 -> Accum. Funds | F3: =Head52 -> Multi-year capital | G3: =Head53 -> Unfore. Unavoid. | H3: =Head55 -> Nat. or Prov. Govt | I3: =Head50 -> Other Adjusts. | J3: =Head56 -> Total Adjusts. | K3: =Head7 -> Adjusted Budget | L3: =Head7 -> Adjusted Budget | M3: =Head7 -> Adjusted Budget
D4: 7 | E4: 8 | F4: 9 | G4: 10 | H4: 11 | I4: 12 | J4: 13 | K4: 14
C5: A | D5: A1 | E5: B | F5: C | G5: D | H5: E | I5: F | J5: G | K5: H
A6: Household service targets | B6: 1
A7: Water:
A8: Piped water inside dwelling | C8: 8533.3608 | J8: =SUM(E8:I8) -> 0 | K8: =IF(D8=0,C8+J8,D8+J8) -> 8533.3608 | L8: 8704.028016 | M8: 8878.108576
A9: Piped water inside yard (but not in dwelling) | C9: 2299.4064 | J9: 0 | K9: 2299.4064 | L9: 2345.394528 | M9: 2392.302419
A10: Using public tap (at least min.service level) | B10: 2 | C10: 1115.7066 | J10: 0 | K10: 1115.7066 | L10: 1138.020732 | M10: 1160.781147
A11: Other water supply (at least min.service level) | J11: 0 | K11: 0 | L11: 0 | M11: 0
A12: Minimum Service Level and Above sub-total | C12: =SUM(C8:C11) -> 11948.4738 | D12: 0 | E12: 0 | F12: 0 | G12: 0 | H12: 0 | I12: 0 | J12: 0 | K12: 11948.4738 | L12: 12187.44328 | M12: 12431.19214
A13: Using public tap (< min.service level) | B13: 3 | C13: 0 | J13: 0 | K13: 0 | L13: 0 | M13: 0
A14: Other water supply (< min.service level) | B14: 3,4 | C14: 0 | J14: 0 | K14: 0 | L14: 0 | M14: 0
A15: No water supply | C15: 7145.1 | J15: 0 | K15: 7145.1 | L15: 7288.002 | M15: 7433.76204
A16: Below Minimum Servic Level sub-total | C16: =SUM(C13:C15) -> 7145.1 | D16: 0 | E16: 0 | F16: 0 | G16: 0 | H16: 0 | I16: 0 | J16: 0 | K16: 7145.1 | L16: 7288.002 | M16: 7433.76204
A17: Total number of households | B17: 5 | C17: =C12+C16 -> 19093.5738 | D17: 0 | E17: 0 | F17: 0 | G17: 0 | H17: 0 | I17: 0 | J17: 0 | K17: 19093.5738 | L17: 19475.44528 | M17: 19864.95418
A18: Sanitation/sewerage:
A19: Flush toilet (connected to sewerage) | C19: 15908.94 | J19: =SUM(E19:I19) -> 0 | K19: =IF(D19=0,C19+J19,D19+J19) -> 15908.94 | L19: 16227.1188 | M19: 16551.66118
A20: Flush toilet (with septic tank) | C20: 0 | J20: 0 | K20: 0 | L20: 0 | M20: 0
A21: Chemical toilet | C21: 0 | J21: 0 | K21: 0 | L21: 0 | M21: 0
A22: Pit toilet (ventilated) | C22: 0 | J22: 0 | K22: 0 | L22: 0 | M22: 0
A23: Other toilet provisions (> min.service level) | C23: 0 | J23: 0 | K23: 0 | L23: 0 | M23: 0
A24: =$A$12 -> Minimum Service Level and Above sub-total | C24: =SUM(C19:C23) -> 15908.94 | D24: 0 | E24: 0 | F24: 0 | G24: 0 | H24: 0 | I24: 0 | J24: 0 | K24: 15908.94 | L24: 16227.1188 | M24: 16551.66118
A25: Bucket toilet | C25: 0 | J25: 0 | K25: 0 | L25: 0 | M25: 0
A26: Other toilet provisions (< min.service level) | C26: 0 | J26: 0 | K26: 0 | L26: 0 | M26: 0
A27: No toilet provisions | C27: 4274.82 | J27: 0 | K27: 4274.82 | L27: 4360.3164 | M27: 4447.522728
A28: =$A$16 -> Below Minimum Servic Level sub-total | C28: =SUM(C25:C27) -> 4274.82 | D28: 0 | E28: 0 | F28: 0 | G28: 0 | H28: 0 | I28: 0 | J28: 0 | K28: 4274.82 | L28: 4360.3164 | M28: 4447.522728
A29: =$A$17 -> Total number of households | B29: =$B$17 -> 5 | C29: =C24+C28 -> 20183.76 | D29: 0 | E29: 0 | F29: 0 | G29: 0 | H29: 0 | I29: 0 | J29: 0 | K29: 20183.76 | L29: 20587.4352 | M29: 20999.1839
A30: Energy:
A31: Electricity (at least min. service level) | C31: 3710.6784 | J31: =SUM(E31:I31) -> 0 | K31: =IF(D31=0,C31+J31,D31+J31) -> 3710.6784 | L31: 3784.891968 | M31: 3860.589807
A32: Electricity - prepaid (> min.service level) | C32: 2637.1488 | J32: 0 | K32: 2637.1488 | L32: 2689.891776 | M32: 2743.689612
A33: =$A$12 -> Minimum Service Level and Above sub-total | C33: =SUM(C31:C32) -> 6347.8272 | D33: 0 | E33: 0 | F33: 0 | G33: 0 | H33: 0 | I33: 0 | J33: 0 | K33: 6347.8272 | L33: 6474.783744 | M33: 6604.279419
A34: Electricity (< min.service level) | C34: 0 | J34: 0 | K34: 0 | L34: 0 | M34: 0
A35: Electricity - prepaid (< min. service level) | C35: 0 | J35: 0 | K35: 0 | L35: 0 | M35: 0
A36: Other energy sources | C36: 13091.7 | J36: 0 | K36: 13091.7 | L36: 13353.534 | M36: 13620.60468
A37: =$A$16 -> Below Minimum Servic Level sub-total | C37: =SUM(C34:C36) -> 13091.7 | D37: 0 | E37: 0 | F37: 0 | G37: 0 | H37: 0 | I37: 0 | J37: 0 | K37: 13091.7 | L37: 13353.534 | M37: 13620.60468
A38: =$A$17 -> Total number of households | B38: =$B$17 -> 5 | C38: =C33+C37 -> 19439.5272 | D38: 0 | E38: 0 | F38: 0 | G38: 0 | H38: 0 | I38: 0 | J38: 0 | K38: 19439.5272 | L38: 19828.31774 | M38: 20224.8841
A39: Refuse:
A40: Removed at least once a week (min.service) | C40: 15274.5 | J40: =SUM(E40:I40) -> 0 | K40: =IF(D40=0,C40+J40,D40+J40) -> 15274.5 | L40: 15579.99 | M40: 15891.5898
A41: =$A$12 -> Minimum Service Level and Above sub-total | C41: =SUM(C40) -> 15274.5 | D41: 0 | E41: 0 | F41: 0 | G41: 0 | H41: 0 | I41: 0 | J41: =SUM(E41:I41) -> 0 | K41: 15274.5 | L41: =SUM(L40) -> 15579.99 | M41: =SUM(M40) -> 15891.5898
A42: Removed less frequently than once a week | C42: 0 | J42: 0 | K42: 0 | L42: 0 | M42: 0
A43: Using communal refuse dump | C43: 0 | J43: 0 | K43: 0 | L43: 0 | M43: 0
A44: Using own refuse dump | C44: 0 | J44: 0 | K44: 0 | L44: 0 | M44: 0
A45: Other rubbish disposal | C45: 0 | J45: 0 | K45: 0 | L45: 0 | M45: 0
A46: No rubbish disposal | C46: 4795.02 | J46: 0 | K46: 4795.02 | L46: 4890.9204 | M46: 4988.738808
A47: =$A$16 -> Below Minimum Servic Level sub-total | C47: =SUM(C42:C46) -> 4795.02 | D47: 0 | E47: 0 | F47: 0 | G47: 0 | H47: 0 | I47: 0 | J47: 0 | K47: 4795.02 | L47: 4890.9204 | M47: 4988.738808
A48: =$A$17 -> Total number of households | B48: =$B$17 -> 5 | C48: =C41+C47 -> 20069.52 | D48: 0 | E48: 0 | F48: 0 | G48: 0 | H48: 0 | I48: 0 | J48: =J40+J47 -> 0 | K48: =K40+K47 -> 20069.52 | L48: =L41+L47 -> 20470.9104 | M48: =M41+M47 -> 20880.32861
A50: Households receiving Free Basic Service | B50: 15
A51: Water (6 kilolitres per household per month) | C51: 6500 | J51: =SUM(E51:I51) -> 0 | K51: =IF(D51=0,C51+J51,D51+J51) -> 6500 | L51: 6890 | M51: 7303.4
A52: Sanitation (free minimum level service) | C52: 6500 | J52: =SUM(E52:I52) -> 0 | K52: =IF(D52=0,C52+J52,D52+J52) -> 6500 | L52: 6890 | M52: 7303.4
A53: Electricity/other energy (50kwh per household per month) | C53: 6500 | J53: =SUM(E53:I53) -> 0 | K53: =IF(D53=0,C53+J53,D53+J53) -> 6500 | L53: 6890 | M53: 7303.4
A54: Refuse (removed at least once a week) | C54: 6500 | J54: =SUM(E54:I54) -> 0 | K54: =IF(D54=0,C54+J54,D54+J54) -> 6500 | L54: 6890 | M54: 7303.4
A56: Cost of Free Basic Services provided (R'000) | B56: 16
A57: Water (6 kilolitres per household per month) | C57: 31143728.61 | J57: =SUM(E57:I57) -> 0 | K57: =IF(D57=0,C57+J57,D57+J57) -> 31143728.61 | L57: 33012352.32 | M57: 34993093.46
A58: Sanitation (free sanitation service) | C58: 6815403.901 | J58: =SUM(E58:I58) -> 0 | K58: =IF(D58=0,C58+J58,D58+J58) -> 6815403.901 | L58: 7224328.135 | M58: 7657787.823
A59: Electricity/other energy (50kwh per household per month) | C59: 2329143.422 | J59: =SUM(E59:I59) -> 0 | K59: =IF(D59=0,C59+J59,D59+J59) -> 2329143.422 | L59: 2468892.028 | M59: 2617025.549
A60: Refuse (removed once a week) | C60: 7931405.765 | J60: =SUM(E60:I60) -> 0 | K60: =IF(D60=0,C60+J60,D60+J60) -> 7931405.765 | L60: 8407290.111 | M60: 8911727.518
A61: Total cost of FBS provided (minimum social package) | C61: =SUM(C56:C60) -> 48219681.7 | D61: 0 | E61: 0 | F61: 0 | G61: 0 | H61: 0 | I61: 0 | J61: 0 | K61: 48219681.7 | L61: 51112862.6 | M61: 54179634.35
A63: Highest level of free service provided
A64: Property rates (R'000 value threshold) | C64: 15000 | J64: =SUM(E64:I64) -> 0 | K64: =IF(D64=0,C64+J64,D64+J64) -> 15000 | L64: 15000 | M64: 15000
A65: Water (kilolitres per household per month) | C65: 6 | J65: 0 | K65: 6 | L65: 6 | M65: 6
A66: Sanitation (kilolitres per household per month) | J66: 0 | K66: 0
A67: Sanitation (Rand per household per month) | C67: 0 | J67: 0 | K67: 0 | L67: 0 | M67: 0
A68: Electricity (kw per household per month) | C68: 0 | J68: 0 | K68: 0 | L68: 0 | M68: 0
A69: Refuse (average litres per week) | C69: 0 | J69: 0 | K69: 0 | L69: 0 | M69: 0
A70: Revenue cost of free services provided (R'000) | B70: 17
A71: Property rates (R15 000 threshold rebate) | J71: =SUM(E71:I71) -> 0 | K71: =IF(D71=0,C71+J71,D71+J71) -> 0
A72: Property rates (other exemptions, reductions and rebates) | C72: 22608224.16 | J72: 0 | K72: 22608224.16 | L72: 23964717.61 | M72: 25402600.67
A73: Water | J73: 0 | K73: 0
A74: Sanitation | J74: 0 | K74: 0
A75: Electricity/other energy | J75: 0 | K75: 0
A76: Refuse | J76: 0 | K76: 0
A77: Municipal Housing - rental rebates | J77: 0 | K77: 0
A78: Housing - top structure subsidies | B78: 6 | J78: 0 | K78: 0
A79: Other | J79: 0 | K79: 0
A80: Total revenue cost of free services provided (total social package) | C80: =SUM(C71:C79) -> 22608224.16 | D80: 0 | E80: 0 | F80: 0 | G80: 0 | H80: 0 | I80: 0 | J80: 0 | K80: 22608224.16 | L80: 23964717.61 | M80: 25402600.67
A81: =head27a -> References
A82: 1. Include services provided by another entity; e.g. Eskom
A83: 2. Stand distance > 200m from dwelling
A84: 3. Stand distance <= 200m from dwelling
A85: 4. Borehole, spring, rain-water tank etc.
A86: 5. Must agree to total number of households in municipal area
A87: 6. Include value of subsidy provided by municipality above provincial subsidy level
A88: 7. Only complete if a previous adjusted budget has been approved in the same financial year. Reflect most recent adjusted budget.
A89: 8. Additional cash-backed accumulated funds/unspent funds (MFMA section 18(1)(b) and section 28(2)(e)) identified after the Original Budget approved and after annual financial statements audited (note: only where underspending could not reasonably have been foreseen)
A90: 9. Increases of funds approved under MFMA section 31
A91: 10. Adjustments approved in accordance with MFMA section 29
A92: 11. Adjustments to transfers from National or Provincial Government
A93: 12. Adjusts. = 'Other' Adjustments proposed to be approved; including revenue under-collection (MFMA section 28(2)(a)); additional revenue appropriation on existing programmes (section 28(2))(b); projected savings (section 28(2)(d)); error correction (section 28(2)(f))
A94: 13. G = B + C + D + E + F
A95: 14. Adjusted Budget H = (A or A1/2 etc) + G
A96: 15. Show number of households receiving at least these levels of services completely free
A97: 16. Must reflect the cost to the municipality of providing the Free Basic Service
A98: 17. Reflect the cost to the municipality in terms of 'revenue foregone' of providing free services (note this will not equal 'Revenue Foregone' on SA1)

Sheet SB1
A1: =muni&" - "&ADJB1&" - "&Date -> FS193 Nketoana - Supporting Table SB1 Supporting detail to 'Budgeted Financial Performance' - 28/02/2018
A2: =desc -> Description | B2: =head27 -> Ref | C2: =Head2 -> Budget Year 2017/18 | L2: =Head10 -> Budget Year +1 2018/19 | M2: =Head11 -> Budget Year +2 2019/20
C3: =Head6 -> Original Budget | D3: =Head54 -> Prior Adjusted | E3: =Head51 -> Accum. Funds | F3: =Head52 -> Multi-year capital | G3: =Head53 -> Unfore. Unavoid. | H3: =Head55 -> Nat. or Prov. Govt | I3: =Head50 -> Other Adjusts. | J3: =Head56 -> Total Adjusts. | K3: =Head7 -> Adjusted Budget | L3: =Head7 -> Adjusted Budget | M3: =Head7 -> Adjusted Budget
D4: 6 | E4: 7 | F4: 8 | G4: 9 | H4: 10 | I4: 11 | J4: 12 | K4: 13
A5: R thousands | C5: A | D5: A1 | E5: B | F5: C | G5: D | H5: E | I5: F | J5: G | K5: H
A6: REVENUE ITEMS
A7: Property rates
A8: Total Property Rates | C8: 42948902.25 | I8: 0 | J8: =SUM(E8:I8) -> 0 | K8: =IF(D8=0,C8+J8,D8+J8) -> 42948902.25 | L8: 45525836.38 | M8: 48257386.57
A9: less Revenue Foregone | C9: 22608224.16 | I9: 464868.7029 | J9: =SUM(E9:I9) -> 464868.7029 | K9: =IF(D9=0,C9+J9,D9+J9) -> 23073092.86 | L9: 23964717.61 | M9: 25402600.67
A10: Net Property Rates | C10: =C8-C9 -> 20340678.09 | D10: =D8-D9 -> 0 | E10: 0 | F10: 0 | G10: 0 | H10: 0 | I10: -464868.7029 | J10: -464868.7029 | K10: 19875809.39 | L10: 21561118.77 | M10: 22854785.9
A12: Service charges - electricity revenue
A13: Total Service charges - electricity revenue | C13: 52269316.79 | I13: 622614.951 | J13: =SUM(E13:I13) -> 622614.951 | K13: =IF(D13=0,C13+J13,D13+J13) -> 52891931.74 | L13: 55405475.8 | M13: 58729804.35
A14: less Revenue Foregone | C14: 2329143.422 | I14: 0 | J14: =SUM(E14:I14) -> 0 | K14: =IF(D14=0,C14+J14,D14+J14) -> 2329143.422 | L14: 2468892.028 | M14: 2617025.549
A15: Net Service charges - electricity revenue | C15: =C13-C14 -> 49940173.37 | D15: =D13-D14 -> 0 | E15: 0 | F15: 0 | G15: 0 | H15: 0 | I15: 622614.951 | J15: 622614.951 | K15: 50562788.32 | L15: 52936583.77 | M15: 56112778.8
A17: Service charges - water revenue
A18: Total Service charges - water revenue | C18: 82468117.67 | I18: 2934503.273 | J18: =SUM(E18:I18) -> 2934503.273 | K18: =IF(D18=0,C18+J18,D18+J18) -> 85402620.94 | L18: 87416204.73 | M18: 92661177.01
A19: less Revenue Foregone | C19: 31143728.61 | I19: 2194708.661 | J19: =SUM(E19:I19) -> 2194708.661 | K19: =IF(D19=0,C19+J19,D19+J19) -> 33338437.27 | L19: 33012352.32 | M19: 34993093.46
A20: Net Service charges - water revenue | C20: =C18-C19 -> 51324389.06 | D20: =D18-D19 -> 0 | E20: 0 | F20: 0 | G20: 0 | H20: 0 | I20: 739794.6116 | J20: 739794.6116 | K20: 52064183.67 | L20: 54403852.41 | M20: 57668083.55
A22: Service charges - sanitation revenue
A23: Total Service charges - sanitation revenue | C23: 27950402.21 | I23: 617115.7949 | J23: =SUM(E23:I23) -> 617115.7949 | K23: =IF(D23=0,C23+J23,D23+J23) -> 28567518 | L23: 29627426.34 | M23: 31405071.92
A24: less Revenue Foregone | C24: 6815403.901 | I24: 572434.6359 | J24: =SUM(E24:I24) -> 572434.6359 | K24: =IF(D24=0,C24+J24,D24+J24) -> 7387838.537 | L24: 7224328.135 | M24: 7657787.823
A25: Net Service charges - sanitation revenue | C25: =C23-C24 -> 21134998.3 | D25: =D23-D24 -> 0 | E25: 0 | F25: 0 | G25: 0 | H25: 0 | I25: 44681.15893 | J25: 44681.15893 | K25: 21179679.46 | L25: 22403098.2 | M25: 23747284.09
C26: .
A27: Service charges - refuse revenue
A28: Total refuse removal revenue | C28: 28100891.73 | I28: 1174952.277 | J28: =SUM(E28:I28) -> 1174952.277 | K28: =IF(D28=0,C28+J28,D28+J28) -> 29275844.01 | L28: 29786945.23 | M28: 31574161.95
A29: Total landfill revenue | I29: 0 | J29: =SUM(E29:I29) -> 0 | K29: =IF(D29=0,C29+J29,D29+J29) -> 0
A30: less Revenue Foregone | C30: 7931405.765 | I30: 685616.7718 | J30: =SUM(E30:I30) -> 685616.7718 | K30: =IF(D30=0,C30+J30,D30+J30) -> 8617022.537 | L30: 8407290.111 | M30: 8911727.518
A31: Net Service charges - refuse revenue | C31: =SUM(C28:C29)-C30 -> 20169485.96 | D31: =SUM(D28:D29)-D30 -> 0 | E31: 0 | F31: 0 | G31: 0 | H31: 0 | I31: 489335.5051 | J31: 489335.5051 | K31: 20658821.47 | L31: 21379655.12 | M31: 22662434.43
A33: Other Revenue By Source
A34: Fuel Levy | J34: =SUM(E34:I34) -> 0 | K34: =IF(D34=0,C34+J34,D34+J34) -> 0
A35: Other Revenue | C35: 945227.49 | I35: 3097382.782 | J35: 3097382.782 | K35: 4042610.272 | L35: 1001941.14 | M35: 1062057.608
A36: Public donation | I36: 0 | J36: 0 | K36: 0 | L36: 0 | M36: 0
A37: Income From Old Debt (5% of R325 Mil) | C37: 14500000 | I37: 0 | J37: 0 | K37: 14500000 | L37: 15370000 | M37: 16292200
A38: Buildng Plans Applications | C38: 15000 | I38: 0 | J38: 0 | K38: 15000 | L38: 15900 | M38: 16854
A39: Discount received | I39: 0 | J39: 0 | K39: 0 | L39: 0 | M39: 0
A40: Zoning Certificates | C40: 1000 | I40: 0 | J40: 0 | K40: 1000 | L40: 1060 | M40: 1123.6
A41: Cementy Payments | C41: 547866.67 | I41: 107327.1757 | J41: 107327.1757 | K41: 655193.8457 | L41: 580738.668 | M41: 615582.988
A42: Entrance Fees | C42: 20080.96249 | I42: 4337.528942 | J42: 4337.528942 | K42: 24418.49143 | L42: 21285.82024 | M42: 22562.96945
A43: Sundries | C43: 393647.8945 | I43: -10150.80397 | J43: -10150.80397 | K43: 383497.0905 | L43: 417266.7682 | M43: 442302.7742
A44: Clearance Certificate | C44: 12961.74069 | I44: 8786.322165 | J44: 8786.322165 | K44: 21748.06286 | L44: 13739.44513 | M44: 14563.81184
A45: Connection of service | C45: 337794.5858 | I45: 121022.0542 | J45: 121022.0542 | K45: 458816.64 | L45: 358062.261 | M45: 379545.9966
A46: Total 'Other' Revenue | B46: 1 | C46: =SUM(C34:C45) -> 16773579.34 | D46: =SUM(D34:D45) -> 0 | E46: 0 | F46: 0 | G46: 0 | H46: 0 | I46: 3328705.059 | J46: 3328705.059 | K46: 20102284.4 | L46: 17779994.1 | M46: 18846793.75
A48: EXPENDITURE ITEMS
A49: Employee related costs
A50: Basic Salaries and Wages | C50: 60297518.37 | I50: 5215879.257 | J50: =SUM(E50:I50) -> 5215879.257 | K50: =IF(D50=0,C50+J50,D50+J50) -> 65513397.63 | L50: 63915369.47 | M50: 67750291.64
A51: Pension and UIF Contributions | C51: 9076000.005 | I51: 150381.3615 | J51: 150381.3615 | K51: 9226381.367 | L51: 9620560.005 | M51: 10197793.61
A52: Medical Aid Contributions | C52: 2785334.037 | I52: 69649.84243 | J52: 69649.84243 | K52: 2854983.879 | L52: 2952454.079 | M52: 3129601.323
A53: Overtime | C53: 7444570.15 | I53: -2397033.632 | J53: -2397033.632 | K53: 5047536.519 | L53: 7891244.359 | M53: 8364719.021
A54: Performance Bonus | C54: 3510208.389 | I54: -734202.1646 | J54: -734202.1646 | K54: 2776006.224 | L54: 3720820.892 | M54: 3944070.146
A55: Motor Vehicle Allowance | C55: 3107397.712 | I55: 367902.8091 | J55: =SUM(E55:I55) -> 367902.8091 | K55: =IF(D55=0,C55+J55,D55+J55) -> 3475300.521 | L55: 3293841.574 | M55: 3491472.069
A56: Cellphone Allowance | C56: 394109.9528 | I56: 586305.3604 | J56: =SUM(E56:I56) -> 586305.3604 | K56: =IF(D56=0,C56+J56,D56+J56) -> 980415.3132 | L56: 417756.55 | M56: 442821.943
A57: Housing Allowances | C57: 1010226.889 | I57: 245473.2368 | J57: =SUM(E57:I57) -> 245473.2368 | K57: =IF(D57=0,C57+J57,D57+J57) -> 1255700.126 | L57: 1070840.502 | M57: 1135090.932
A58: Other benefits and allowances | C58: 5965180.28 | I58: 867706.6836 | J58: 867706.6836 | K58: 6832886.964 | L58: 6323091.097 | M58: 6702476.563
A59: Payments in lieu of leave | J59: 0 | K59: 0
A60: Long service awards | J60: 0 | K60: 0
A61: Post-retirement benefit obligations | B61: 4 | J61: 0 | K61: 0
A62: sub-total | C62: =SUM(C50:C61) -> 93590545.79 | D62: =SUM(D50:D61) -> 0 | E62: 0 | F62: 0 | G62: 0 | H62: 0 | I62: 4372062.754 | J62: 4372062.754 | K62: 97962608.54 | L62: 99205978.53 | M62: 105158337.2
A63: Less: Employees costs capitalised to PPE | J63: =SUM(E63:I63) -> 0 | K63: =IF(D63=0,C63+J63,D63+J63) -> 0
A64: ="Total "&A49 -> Total Employee related costs | B64: 1 | C64: =C62-C63 -> 93590545.79 | D64: =D62-D63 -> 0 | E64: 0 | F64: 0 | G64: 0 | H64: 0 | I64: 4372062.754 | J64: =SUM(J62:J63) -> 4372062.754 | K64: =SUM(K62:K63) -> 97962608.54 | L64: =L62-L63 -> 99205978.53 | M64: =M62-M63 -> 105158337.2
A66: Contributions recognised - capital
A67: List contributions by contract | J67: =SUM(E67:I67) -> 0 | K67: =IF(D67=0,C67+J67,D67+J67) -> 0
J68: 0 | K68: 0
J69: 0 | K69: 0
J70: 0 | K70: 0
J71: 0 | K71: 0
J72: 0 | K72: 0
A73: ="Total "&A66 -> Total Contributions recognised - capital | C73: =SUM(C67:C72) -> 0 | D73: =SUM(D67:D72) -> 0 | E73: =SUM(E67:E72) -> 0 | F73: =SUM(F67:F72) -> 0 | G73: 0 | H73: 0 | I73: 0 | J73: 0 | K73: 0 | L73: 0 | M73: 0
A75: Depreciation & asset impairment
A76: Depreciation of Property, Plant & Equipment | C76: 59672591.82 | I76: =-800000 -> -800000 | J76: =SUM(E76:I76) -> -800000 | K76: =IF(D76=0,C76+J76,D76+J76) -> 58872591.82 | L76: 63252947.33 | M76: 67048124.17
A77: Lease amortisation | J77: =SUM(E77:I77) -> 0 | K77: =IF(D77=0,C77+J77,D77+J77) -> 0
A78: Capital asset impairment | J78: =SUM(E78:I78) -> 0 | K78: =IF(D78=0,C78+J78,D78+J78) -> 0
A79: Depreciation resulting from revaluation of PPE | J79: =SUM(E79:I79) -> 0 | K79: =IF(D79=0,C79+J79,D79+J79) -> 0
A80: ="Total "&LEFT(A75,35) -> Total Depreciation & asset impairment | B80: 1 | C80: =SUM(C76:C78)-C79 -> 59672591.82 | D80: =SUM(D76:D78)-D79 -> 0 | E80: 0 | F80: 0 | G80: 0 | H80: 0 | I80: -800000 | J80: -800000 | K80: 58872591.82 | L80: 63252947.33 | M80: 67048124.17
A82: Bulk purchases
A83: Electricity Bulk Purchases | C83: 49710997.47 | J83: =SUM(E83:I83) -> 0 | K83: =IF(D83=0,C83+J83,D83+J83) -> 49710997.47 | L83: 52693657.32 | M83: 55855276.75
A84: Water Bulk Purchases | C84: 744520 | J84: =SUM(E84:I84) -> 0 | K84: =IF(D84=0,C84+J84,D84+J84) -> 744520 | L84: 789191.2 | M84: 836542.672
A85: Total bulk purchases | B85: 1 | C85: =SUM(C83:C84) -> 50455517.47 | D85: 0 | E85: 0 | F85: 0 | G85: 0 | H85: 0 | I85: 0 | J85: 0 | K85: 50455517.47 | L85: 53482848.52 | M85: 56691819.43
A87: Transfers and grants
A88: Cash transfers and grants | J88: =SUM(E88:I88) -> 0 | K88: =IF(D88=0,C88+J88,D88+J88) -> 0
A89: Non-cash transfers and grants | J89: =SUM(E89:I89) -> 0 | K89: =IF(D89=0,C89+J89,D89+J89) -> 0
A90: Total transfers and grants | C90: =SUM(C88:C89) -> 0 | D90: 0 | E90: 0 | F90: 0 | G90: 0 | H90: 0 | I90: 0 | J90: =SUM(J88:J89) -> 0 | K90: =SUM(K88:K89) -> 0 | L90: =SUM(L88:L89) -> 0 | M90: =SUM(M88:M89) -> 0
A92: Contracted services
A93: List services provided by contract | J93: =SUM(E93:I93) -> 0 | K93: =IF(D93=0,C93+J93,D93+J93) -> 0
A94: AFS compilation | J94: 0 | K94: 0
A95: Lease of photocopying machines | C95: 1540000 | I95: 1292492.377 | J95: 1292492.377 | K95: 2832492.377 | L95: 1632400 | M95: 1730344
A96: Lease of fleet | C96: 2934622.61 | I96: -2292491.8 | J96: -2292491.8 | K96: 642130.81 | L96: 3110699.967 | M96: 3297341.965
A97: Printing and postal of Municipal water and lights acc | J97: 0 | K97: 0 | L97: 0 | M97: 0
A98: Valuation Roll | J98: 0 | K98: 0 | L98: 0 | M98: 0
A99: Support Service Management, operations and maintanance | J99: 0 | K99: 0 | L99: 0 | M99: 0
A100: Licencing software (Financial system) | C100: 2793863 | I100: -1007688.371 | J100: -1007688.371 | K100: 1786174.629 | L100: 2961494.78 | M100: 3139184.467
A101: Comprehensive of IT Audit, assessment | J101: 0 | K101: 0 | L101: 0 | M101: 0
A102: Lease of telephone | C102: 770000 | I102: 367696.8743 | J102: 367696.8743 | K102: 1137696.874 | L102: 816200 | M102: 865172
A103: Security services | J103: 0 | K103: 0 | L103: 0 | M103: 0
A104: Municipality's Assets insurance | C104: 1125000 | I104: -750000 | J104: -750000 | K104: 375000 | L104: 1192500 | M104: 1264050
J105: 0 | K105: 0
J106: 0 | K106: 0
J107: 0 | K107: 0
J108: 0 | K108: 0
J109: 0 | K109: 0
J110: 0 | K110: 0
J111: 0 | K111: 0
J112: 0 | K112: 0
J113: 0 | K113: 0
J114: 0 | K114: 0
J115: 0 | K115: 0
J116: =SUM(E116:I116) -> 0 | K116: =IF(D116=0,C116+J116,D116+J116) -> 0
J117: =SUM(E117:I117) -> 0 | K117: =IF(D117=0,C117+J117,D117+J117) -> 0
A118: sub-total | B118: 1 | C118: =SUM(C93:C117) -> 9163485.61 | D118: =SUM(D93:D117) -> 0 | E118: =SUM(E93:E117) -> 0 | F118: =SUM(F93:F117) -> 0 | G118: 0 | H118: 0 | I118: -2389990.92 | J118: -2389990.92 | K118: 6773494.69 | L118: 9713294.747 | M118: 10296092.43
A119: Allocations to organs of state:
A120: Electricity | J120: =SUM(E120:I120) -> 0 | K120: =IF(D120=0,C120+J120,D120+J120) -> 0
A121: Water | J121: =SUM(E121:I121) -> 0 | K121: =IF(D121=0,C121+J121,D121+J121) -> 0
A122: Sanitation | J122: =SUM(E122:I122) -> 0 | K122: =IF(D122=0,C122+J122,D122+J122) -> 0
A123: Other | J123: =SUM(E123:I123) -> 0 | K123: =IF(D123=0,C123+J123,D123+J123) -> 0
A124: Total contracted services?? | C124: =SUM(C118:C123) -> 9163485.61 | D124: =SUM(D118:D123) -> 0 | E124: 0 | F124: 0 | G124: 0 | H124: 0 | I124: -2389990.92 | J124: -2389990.92 | K124: 6773494.69 | L124: 9713294.747 | M124: 10296092.43
A126: Other Expenditure By Type
A127: Collection costs | J127: =SUM(E127:I127) -> 0 | K127: =IF(D127=0,C127+J127,D127+J127) -> 0
A128: Contributions to 'other' provisions | J128: =SUM(E128:I128) -> 0 | K128: =IF(D128=0,C128+J128,D128+J128) -> 0
A129: Consultant fees | J129: =SUM(E129:I129) -> 0 | K129: =IF(D129=0,C129+J129,D129+J129) -> 0
A130: Audit fees | C130: 3080000 | I130: 2420000 | J130: =SUM(E130:I130) -> 2420000 | K130: =IF(D130=0,C130+J130,D130+J130) -> 5500000 | L130: 3264800 | M130: 3460688
A131: General expenses | B131: 3,5 | C131: 14937403.65 | I131: -3679360.897 | J131: =SUM(E131:I131) -> -3679360.897 | K131: =IF(D131=0,C131+J131,D131+J131) -> 11258042.75 | L131: 15833647.86 | M131: 16783666.74
A132: List Other Expenditure by Type | J132: =SUM(E132:I132) -> 0 | K132: =IF(D132=0,C132+J132,D132+J132) -> 0 | L132: 0 | M132: 0
A133: Advertising | C133: 231000 | I133: 52825.22857 | J133: 52825.22857 | K133: 283825.2286 | L133: 244860 | M133: 259551.6
A134: Municipal Services | J134: 0 | K134: 0 | L134: 0 | M134: 0
A135: Bank Charges | C135: 539231 | I135: 161779.4457 | J135: 161779.4457 | K135: 701010.4457 | L135: 571584.86 | M135: 605879.9516
A136: Fuel and Oil | C136: 2060000 | I136: 1417894.097 | J136: 1417894.097 | K136: 3477894.097 | L136: 2183600 | M136: 2314616
A137: Printing and Stationary | C137: 1405250 | I137: -188523.7543 | J137: -188523.7543 | K137: 1216726.246 | L137: 1489565 | M137: 1578938.9
A138: Postage and Courier | C138: 15785 | I138: 483451.5486 | J138: 483451.5486 | K138: 499236.5486 | L138: 16732.1 | M138: 17736.026
A139: Promotion | C139: 200200 | I139: -137885.7143 | J139: -137885.7143 | K139: 62314.28571 | L139: 212212 | M139: 224944.72
A140: Membership Fees | C140: 61600 | I140: 727940 | J140: 727940 | K140: 789540 | L140: 65296 | M140: 69213.76
A141: Telephone and Fax | J141: 0 | K141: 0 | L141: 0 | M141: 0
A142: Skills Development | C142: 693000 | I142: 157000 | J142: 157000 | K142: 850000 | L142: 734580 | M142: 778654.8
A143: Learnerships | C143: 77000 | I143: -77000 | J143: -77000 | K143: 0 | L143: 81620 | M143: 86517.2
A144: Protective Clothing | J144: 0 | K144: 0 | L144: 0 | M144: 0
A145: Transport Services/Travel and Subsitence | C145: 1871100 | I145: -204181.92 | J145: -204181.92 | K145: 1666918.08 | L145: 1983366 | M145: 2102367.96
A146: Events and Meetings | J146: 0 | K146: 0 | L146: 0 | M146: 0
A147: Uniforms and overall | C147: 1655500 | I147: -115500 | J147: -115500 | K147: 1540000 | L147: 1754830 | M147: 1860119.8
A148: Legal Fees | C148: 2310000 | I148: 190000 | J148: 190000 | K148: 2500000 | L148: 2448600 | M148: 2595516
A149: Free Basic Charge | J149: 0 | K149: 0 | L149: 0 | M149: 0
A150: Cleaning | C150: 169400 | I150: -52752.95429 | J150: -52752.95429 | K150: 116647.0457 | L150: 179564 | M150: 190337.84
A151: Professional/Consulting fee | C151: 4697000 | I151: 3757169.629 | J151: 3757169.629 | K151: 8454169.629 | L151: 4978820 | M151: 5277549.2
A152: Chemicals | C152: 2687300 | I152: -841871.4286 | J152: -841871.4286 | K152: 1845428.571 | L152: 2848538 | M152: 3019450.28
A153: Bursaries | C153: 308000 | I153: 15400 | J153: 15400 | K153: 323400 | L153: 326480 | M153: 346068.8
A154: Total Other Expenditure | B154: 1 | C154: =SUM(C127:C153) -> 36998769.65 | D154: =SUM(D127:D153) -> 0 | E154: =SUM(E127:E153) -> 0 | F154: =SUM(F127:F153) -> 0 | G154: 0 | H154: 0 | I154: 4086383.281 | J154: 4086383.281 | K154: 41085152.93 | L154: 39218695.82 | M154: 41571817.57
A156: Repairs and Maintenance by Expenditure Item | B156: 14
A157: Employee related costs | J157: =SUM(E157:I157) -> 0 | K157: =IF(D157=0,C157+J157,D157+J157) -> 0
A158: Other materials | C158: 10187870 | I158: -1433114.56 | J158: =SUM(E158:I158) -> -1433114.56 | K158: =IF(D158=0,C158+J158,D158+J158) -> 8754755.44 | L158: 10799142.2 | M158: 11447090.73
A159: Contracted Services | J159: =SUM(E159:I159) -> 0 | K159: =IF(D159=0,C159+J159,D159+J159) -> 0
A160: Other Expenditure | J160: =SUM(E160:I160) -> 0 | K160: =IF(D160=0,C160+J160,D160+J160) -> 0
A161: Total Repairs and Maintenance Expenditure | B161: 15 | C161: =SUM(C157:C160) -> 10187870 | D161: =SUM(D157:D160) -> 0 | E161: 0 | F161: 0 | G161: 0 | H161: 0 | I161: -1433114.56 | J161: -1433114.56 | K161: 8754755.44 | L161: 10799142.2 | M161: 11447090.73
A162: =head27a -> References
A163: 1. Must reconcile with relevant line on the 'Financial Performance' budget
A164: 2. Must reconcile to supporting documentation on staff salaries
A165: 3. Insert other categories where revenue or expenditure is of a material nature
A166: 4. Expenditure to meet any unfunded obligations
A167: 5. Special consideration may have to be given to including 'goodwill arising' or 'joint venture' budgets where circumstances require this (include separately under relevant notes)
A168: 6. Only complete if a previous adjusted budget has been approved in the same financial year. Reflect most recent adjusted budget.
A169: 7. Additional cash-backed accumulated funds/unspent funds (section 18(1)(b) and section 28(2)(e) MFMA) identified after Original Budget approved and after annual financial statements audited (note: only where underspending could not reasonably be have for
A170: 8. Increases of funds approved under section 31 MFMA
A171: 9. Adjustments approved in accordance with section 29 MFMA
A172: 10. Adjustments to funding allocations from National or Provincial Government
A173: 11. Adjusts. = 'Other' Adjustments proposed to be approved; including revenue under-collection (MFMA section 28(2)(a)); additional revenue appropriation on existing programmes (section 28(2))(b); projected savings (section 28(2)(d)); error correction (sec
A174: 12. G = B + C + D + E + F
A175: 13. Adjusted Budget H = (A or A1/2 etc) + G
A176: 14. Repairs and Maintenance is not a GRAP item. However to facilitate transparency, municipalities must provide a breakdown of the amounts included in the relevant GRAP items that will be spent on Repairs and Maintenance.
A177: 15. Must reconcile with Repairs and Maintenance by Asset Class (Total Repairs and Maintenance) on Table SA34c.

Sheet SB2
A1: =muni&" - "&ADJB2&" - "&Date -> FS193 Nketoana - Supporting Table SB2 Supporting detail to 'Financial Position Budget' - 28/02/2018
A2: =desc -> Description | B2: =head27 -> Ref | C2: =Head2 -> Budget Year 2017/18 | L2: =Head10 -> Budget Year +1 2018/19 | M2: =Head11 -> Budget Year +2 2019/20
C3: =Head6 -> Original Budget | D3: =Head54 -> Prior Adjusted | E3: =Head51 -> Accum. Funds | F3: =Head52 -> Multi-year capital | G3: =Head53 -> Unfore. Unavoid. | H3: =Head55 -> Nat. or Prov. Govt | I3: =Head50 -> Other Adjusts. | J3: =Head56 -> Total Adjusts. | K3: =Head7 -> Adjusted Budget | L3: =Head7 -> Adjusted Budget | M3: =Head7 -> Adjusted Budget
D4: 4 | E4: 5 | F4: 6 | G4: 7 | H4: 8 | I4: 9 | J4: 10 | K4: 11
A5: R thousands | C5: A | D5: A1 | E5: B | F5: C | G5: D | H5: E | I5: F | J5: G | K5: H
A6: ASSETS
A7: Call investment deposits
A8: Call deposits | C8: 16167241.27 | J8: =SUM(E8:I8) -> 0 | K8: =IF(D8=0,C8+J8,D8+J8) -> 16167241.27 | L8: 18963708.44 | M8: 20101530.95
A9: Other current investments | J9: =SUM(E9:I9) -> 0 | K9: =IF(D9=0,C9+J9,D9+J9) -> 0
A10: ="Total "&A7 -> Total Call investment deposits | B10: 1 | C10: =SUM(C8:C9) -> 16167241.27 | D10: 0 | E10: 0 | F10: 0 | G10: 0 | H10: 0 | I10: 0 | J10: 0 | K10: 16167241.27 | L10: 18963708.44 | M10: 20101530.95
A11: Consumer debtors
A12: =A11 -> Consumer debtors | C12: =367202193.84-49930820.3592-49930820.3592 -> 267340553.1 | J12: =SUM(E12:I12) -> 0 | K12: =IF(D12=0,C12+J12,D12+J12) -> 267340553.1 | L12: =389234325.4704+45326426.28+45326426.282508 -> 479887178 | M12: =412588384.998624+48046011.86+48046011.86 -> 508680408.7
A13: Less: provision for debt impairment | C13: =C19 -> -49930820.36 | D13: 0 | E13: 0 | F13: 0 | G13: 0 | H13: 0 | I13: 0 | J13: =SUM(E13:I13) -> 0 | K13: =IF(D13=0,C13+J13,D13+J13) -> -49930820.36 | L13: =L19 -> 45326426.28 | M13: =M19 -> 48046011.86
A14: ="Total "&A11 -> Total Consumer debtors | B14: 1 | C14: =C12-C13 -> 317271373.5 | D14: =D12-D13 -> 0 | E14: 0 | F14: 0 | G14: 0 | H14: 0 | I14: 0 | J14: 0 | K14: 317271373.5 | L14: 434560751.8 | M14: 460634396.9
A15: Debt impairment provision
A16: Balance at the beginning of the year | J16: =SUM(E16:I16) -> 0 | K16: =IF(D16=0,C16+J16,D16+J16) -> 0 | L16: =IF(SUM(L17:L18)=0,0,K19) -> -49930820.36 | M16: =IF(SUM(M17:M18)=0,0,L19) -> 45326426.28
A17: Contributions to the provision | J17: =SUM(E17:I17) -> 0 | K17: =IF(D17=0,C17+J17,D17+J17) -> 0
A18: Bad debts written off | C18: -49930820.36 | J18: =SUM(E18:I18) -> 0 | K18: =IF(D18=0,C18+J18,D18+J18) -> -49930820.36 | L18: =45326426.282508+49930820.3592 -> 95257246.64 | M18: =48046011.8594585-45326426.282508 -> 2719585.577
A19: Balance at end of year | C19: =SUM(C16:C18) -> -49930820.36 | D19: 0 | E19: 0 | F19: 0 | G19: 0 | H19: 0 | I19: 0 | J19: =J13 -> 0 | K19: =K13 -> -49930820.36 | L19: =SUM(L16:L18) -> 45326426.28 | M19: =SUM(M16:M18) -> 48046011.86
A20: Property, plant & equipment
A21: PPE at cost/valuation (excl. finance leases) | C21: 1929850284 | J21: =SUM(E21:I21) -> 0 | K21: =IF(D21=0,C21+J21,D21+J21) -> 1929850284 | L21: 1968447290 | M21: 2007816236
A22: Leases recognised as PPE | B22: 2 | J22: =SUM(E22:I22) -> 0 | K22: =IF(D22=0,C22+J22,D22+J22) -> 0
A23: Less: Accumulated depreciation | C23: 903626461 | J23: =SUM(E23:I23) -> 0 | K23: =IF(D23=0,C23+J23,D23+J23) -> 903626461 | L23: 921698990.2 | M23: 940132970
A24: ="Total "&A20 -> Total Property, plant & equipment | B24: 1 | C24: =SUM(C21:C22)-C23 -> 1026223823 | D24: =SUM(D21:D22)-D23 -> 0 | E24: 0 | F24: 0 | G24: 0 | H24: 0 | I24: 0 | J24: 0 | K24: 1026223823 | L24: =SUM(L21:L22)-L23 -> 1046748300 | M24: =SUM(M21:M22)-M23 -> 1067683266
A26: LIABILITIES
A27: Current liabilities - Borrowing
A28: Short term loans (other than bank overdraft) | J28: =SUM(E28:I28) -> 0 | K28: =IF(D28=0,C28+J28,D28+J28) -> 0
A29: Current portion of long-term liabilities | C29: 7986021.66 | J29: =SUM(E29:I29) -> 0 | K29: =IF(D29=0,C29+J29,D29+J29) -> 7986021.66 | L29: 8145742.093 | M29: 8308656.935
A30: ="Total "&A27 -> Total Current liabilities - Borrowing | C30: =SUM(C28:C29) -> 7986021.66 | D30: 0 | E30: 0 | F30: 0 | G30: 0 | H30: 0 | I30: 0 | J30: 0 | K30: 7986021.66 | L30: 8145742.093 | M30: 8308656.935
A31: Trade and other payables
A32: Creditors | C32: 146095738.1 | J32: =SUM(E32:I32) -> 0 | K32: =IF(D32=0,C32+J32,D32+J32) -> 146095738.1 | L32: 154861482.4 | M32: 164153171.3
A33: Unspent conditional grants and receipts | J33: =SUM(E33:I33) -> 0 | K33: =IF(D33=0,C33+J33,D33+J33) -> 0
A34: VAT | C34: 17556981.4 | J34: =SUM(E34:I34) -> 0 | K34: =IF(D34=0,C34+J34,D34+J34) -> 17556981.4 | L34: 18610400.28 | M34: 19727024.3
A35: ="Total "&A31 -> Total Trade and other payables | B35: 1 | C35: =SUM(C32:C34) -> 163652719.5 | D35: 0 | E35: 0 | F35: 0 | G35: 0 | H35: 0 | I35: 0 | J35: 0 | K35: 163652719.5 | L35: 173471882.6 | M35: 183880195.6
A36: Non current liabilities - Borrowing
A37: Borrowing | B37: 3 | C37: 7986021.66 | J37: =SUM(E37:I37) -> 0 | K37: =IF(D37=0,C37+J37,D37+J37) -> 7986021.66 | L37: 7500000 | M37: 7200000
A38: Finance leases (including PPP asset element) | J38: =SUM(E38:I38) -> 0 | K38: =IF(D38=0,C38+J38,D38+J38) -> 0
A39: ="Total "&A36 -> Total Non current liabilities - Borrowing | C39: =SUM(C37:C38) -> 7986021.66 | D39: 0 | E39: 0 | F39: 0 | G39: 0 | H39: 0 | I39: 0 | J39: 0 | K39: 7986021.66 | L39: 7500000 | M39: 7200000
A40: Provisions - non current
A41: Retirement benefits | C41: 11264635.2 | J41: =SUM(E41:I41) -> 0 | K41: =IF(D41=0,C41+J41,D41+J41) -> 11264635.2 | L41: 11489927.9 | M41: 11719726.46
A42: List other major items | J42: =SUM(E42:I42) -> 0 | K42: =IF(D42=0,C42+J42,D42+J42) -> 0
A43: Refuse landfill site rehabilitation | C43: 296184629.8 | J43: =SUM(E43:I43) -> 0 | K43: =IF(D43=0,C43+J43,D43+J43) -> 296184629.8 | L43: 302108322.4 | M43: 308150488.8
A44: Other | J44: =SUM(E44:I44) -> 0 | K44: =IF(D44=0,C44+J44,D44+J44) -> 0
A45: ="Total "&A40 -> Total Provisions - non current | C45: =SUM(C41:C44) -> 307449265 | D45: =SUM(D41:D44) -> 0 | E45: 0 | F45: 0 | G45: 0 | H45: 0 | I45: 0 | J45: 0 | K45: 307449265 | L45: 313598250.3 | M45: 319870215.3
A47: CHANGES IN NET ASSETS
A48: Accumulated surplus/(Deficit)
A49: =A48&" - opening balance" -> Accumulated surplus/(Deficit) - opening balance | C49: 928658886.5 | J49: =SUM(E49:I49) -> 0 | K49: =IF(D49=0,C49+J49,D49+J49) -> 928658886.5 | L49: 1056230653 | M49: 1090578273
A50: Appropriations to Reserves | J50: =SUM(E50:I50) -> 0 | K50: =IF(D50=0,C50+J50,D50+J50) -> 0
A51: Transfers from Reserves | J51: =SUM(E51:I51) -> 0 | K51: =IF(D51=0,C51+J51,D51+J51) -> 0
A52: Depreciation offsets | J52: =SUM(E52:I52) -> 0 | K52: =IF(D52=0,C52+J52,D52+J52) -> 0
A53: Other adjustments | C53: 0 | J53: =SUM(E53:I53) -> 0 | K53: =IF(D53=0,C53+J53,D53+J53) -> 0
A54: Accumulated Surplus/(Deficit) | B54: 1 | C54: =SUM(C49:C53) -> 928658886.5 | D54: =SUM(D49:D53) -> 0 | E54: 0 | F54: 0 | G54: 0 | H54: 0 | I54: =SUM(I49:I53) -> 0 | J54: 0 | K54: 928658886.5 | L54: 1056230653 | M54: 1090578273
A55: Reserves
A56: Housing Development Fund | J56: =SUM(E56:I56) -> 0 | K56: =IF(D56=0,C56+J56,D56+J56) -> 0
A57: Capital replacement | J57: =SUM(E57:I57) -> 0 | K57: =IF(D57=0,C57+J57,D57+J57) -> 0
A58: Self-insurance | J58: =SUM(E58:I58) -> 0 | K58: =IF(D58=0,C58+J58,D58+J58) -> 0
A59: Other reserves (list) | J59: =SUM(E59:I59) -> 0 | K59: =IF(D59=0,C59+J59,D59+J59) -> 0
A60: Revaluation | J60: =SUM(E60:I60) -> 0 | K60: =IF(D60=0,C60+J60,D60+J60) -> 0
A61: Total Reserves | B61: 2 | C61: =SUM(C56:C60) -> 0 | D61: 0 | E61: 0 | F61: 0 | G61: 0 | H61: 0 | I61: 0 | J61: 0 | K61: 0 | L61: 0 | M61: 0
A62: TOTAL COMMUNITY WEALTH/EQUITY | B62: 2 | C62: =C54+C61 -> 928658886.5 | D62: 0 | E62: 0 | F62: 0 | G62: 0 | H62: 0 | I62: 0 | J62: 0 | K62: 928658886.5 | L62: 1056230653 | M62: 1090578273
A64: Total capital expenditure includes expenditure on nationally significant priorities:
A65: Provision of basic services | J65: =SUM(E65:I65) -> 0 | K65: =IF(D65=0,C65+J65,D65+J65) -> 0
A66: 2010 World Cup | J66: =SUM(E66:I66) -> 0 | K66: =IF(D66=0,C66+J66,D66+J66) -> 0
J67: =SUM(E67:I67) -> 0 | K67: =IF(D67=0,C67+J67,D67+J67) -> 0
A68: =head27a -> References
A69: 1. Must reconcile with 'Financial Position' budget
A70: 2. Leases treated as assets to be depreciated as the same as purchased/constructed assets. Includes PPP asset element accounted for as finance leases
A71: 3. Borrowing (original budget) must reconcile to Budget Table A16
A72: 4. Only complete if a previous adjusted budget has been approved in the same financial year. Reflect most recent adjusted budget.
A73: 5. Additional cash-backed accumulated funds/unspent funds (section 18(1)(b) and section 28(2)(e) MFMA) identified after Original Budget approved and after annual financial statements audited (note: only where underspending could not reasonably be have for
A74: 6. Increases of funds approved under section 31 MFMA
A75: 7. Adjustments approved in accordance with section 29 MFMA
A76: 8. Adjustments to funding allocations from National or Provincial Government
A77: 9. Adjusts. = 'Other' Adjustments proposed to be approved; including revenue under-collection (MFMA section 28(2)(a)); additional revenue appropriation on existing programmes (section 28(2))(b); projected savings (section 28(2)(d)); error correction (sect
A78: 10. G = B + C + D + E + F
A79: 11. Adjusted Budget H = (A or A1/2 etc) + G
A80: check | C80: =C62-'B6-FinPos'!C50 -> 0 | M80: =K62-'B6-FinPos'!K50 -> 0

Sheet SB3
A1: =muni&" - "&ADJB3&" - "&Date -> FS193 Nketoana - Supporting Table SB3 Adjustments to the SDBIP - performance objectives - 28/02/2018
A2: =desc -> Description | B2: Unit of measurement | C2: =Head2 -> Budget Year 2017/18 | L2: =Head10 -> Budget Year +1 2018/19 | M2: =Head11 -> Budget Year +2 2019/20
C3: =Head6 -> Original Budget | D3: =Head54 -> Prior Adjusted | E3: =Head51 -> Accum. Funds | F3: =Head52 -> Multi-year capital | G3: =Head53 -> Unfore. Unavoid. | H3: =Head55 -> Nat. or Prov. Govt | I3: =Head50 -> Other Adjusts. | J3: =Head56 -> Total Adjusts. | K3: =Head7 -> Adjusted Budget | L3: =Head7 -> Adjusted Budget | M3: =Head7 -> Adjusted Budget
C4: A | D4: A1 | E4: B | F4: C | G4: D | H4: E | I4: F | J4: G | K4: H
A5: Vote 1 - vote name
A6: Function 1 - (name)
A7: Sub-function 1 - (name)
A8: Insert measure/s description | J8: =SUM(E8:I8) -> 0 | K8: =IF(D8=0,C8+J8,D8+J8) -> 0 | L8: =IF(E8=0,D8+K8,E8+K8) -> 0 | M8: =IF(F8=0,E8+L8,F8+L8) -> 0
A10: Sub-function 2 - (name)
A11: Insert measure/s description | J11: =SUM(E11:I11) -> 0 | K11: =IF(D11=0,C11+J11,D11+J11) -> 0 | L11: =IF(E11=0,D11+K11,E11+K11) -> 0 | M11: =IF(F11=0,E11+L11,F11+L11) -> 0
A13: Sub-function 3 - (name)
A14: Insert measure/s description
J15: =SUM(E15:I15) -> 0 | K15: =IF(D15=0,C15+J15,D15+J15) -> 0 | L15: =IF(E15=0,D15+K15,E15+K15) -> 0 | M15: =IF(F15=0,E15+L15,F15+L15) -> 0
A16: Function 2 - (name)
A17: Sub-function 1 - (name)
A18: Insert measure/s description
J19: =SUM(E19:I19) -> 0 | K19: =IF(D19=0,C19+J19,D19+J19) -> 0 | L19: =IF(E19=0,D19+K19,E19+K19) -> 0 | M19: =IF(F19=0,E19+L19,F19+L19) -> 0
A20: Sub-function 2 - (name)
A21: Insert measure/s description | J21: =SUM(E21:I21) -> 0 | K21: =IF(D21=0,C21+J21,D21+J21) -> 0 | L21: =IF(E21=0,D21+K21,E21+K21) -> 0 | M21: =IF(F21=0,E21+L21,F21+L21) -> 0
A23: Sub-function 3 - (name) | J23: =SUM(E23:I23) -> 0 | K23: =IF(D23=0,C23+J23,D23+J23) -> 0 | L23: =IF(E23=0,D23+K23,E23+K23) -> 0 | M23: =IF(F23=0,E23+L23,F23+L23) -> 0
A24: Insert measure/s description
J25: =SUM(E25:I25) -> 0 | K25: =IF(D25=0,C25+J25,D25+J25) -> 0 | L25: =IF(E25=0,D25+K25,E25+K25) -> 0 | M25: =IF(F25=0,E25+L25,F25+L25) -> 0
A26: Vote 2 - vote name
A27: Function 1 - (name)
A28: Sub-function 1 - (name)
A29: Insert measure/s description | J29: =SUM(E29:I29) -> 0 | K29: =IF(D29=0,C29+J29,D29+J29) -> 0 | L29: =IF(E29=0,D29+K29,E29+K29) -> 0 | M29: =IF(F29=0,E29+L29,F29+L29) -> 0
A31: Sub-function 2 - (name) | J31: =SUM(E31:I31) -> 0 | K31: =IF(D31=0,C31+J31,D31+J31) -> 0 | L31: =IF(E31=0,D31+K31,E31+K31) -> 0 | M31: =IF(F31=0,E31+L31,F31+L31) -> 0
A32: Insert measure/s description
J33: =SUM(E33:I33) -> 0 | K33: =IF(D33=0,C33+J33,D33+J33) -> 0 | L33: =IF(E33=0,D33+K33,E33+K33) -> 0 | M33: =IF(F33=0,E33+L33,F33+L33) -> 0
A34: Sub-function 3 - (name)
A35: Insert measure/s description | J35: =SUM(E35:I35) -> 0 | K35: =IF(D35=0,C35+J35,D35+J35) -> 0 | L35: =IF(E35=0,D35+K35,E35+K35) -> 0 | M35: =IF(F35=0,E35+L35,F35+L35) -> 0
A37: Function 2 - (name)
A38: Sub-function 1 - (name) | J38: =SUM(E38:I38) -> 0 | K38: =IF(D38=0,C38+J38,D38+J38) -> 0 | L38: =IF(E38=0,D38+K38,E38+K38) -> 0 | M38: =IF(F38=0,E38+L38,F38+L38) -> 0
A39: Insert measure/s description
J40: =SUM(E40:I40) -> 0 | K40: =IF(D40=0,C40+J40,D40+J40) -> 0 | L40: =IF(E40=0,D40+K40,E40+K40) -> 0 | M40: =IF(F40=0,E40+L40,F40+L40) -> 0
A41: Sub-function 2 - (name)
A42: Insert measure/s description | J42: =SUM(E42:I42) -> 0 | K42: =IF(D42=0,C42+J42,D42+J42) -> 0 | L42: =IF(E42=0,D42+K42,E42+K42) -> 0 | M42: =IF(F42=0,E42+L42,F42+L42) -> 0
A44: Sub-function 3 - (name)
A45: Insert measure/s description
J46: =SUM(E46:I46) -> 0 | K46: =IF(D46=0,C46+J46,D46+J46) -> 0 | L46: =IF(E46=0,D46+K46,E46+K46) -> 0 | M46: =IF(F46=0,E46+L46,F46+L46) -> 0
A47: Vote 3 - vote name
A48: Function 1 - (name) | J48: =SUM(E48:I48) -> 0 | K48: =IF(D48=0,C48+J48,D48+J48) -> 0 | L48: =IF(E48=0,D48+K48,E48+K48) -> 0 | M48: =IF(F48=0,E48+L48,F48+L48) -> 0
A49: Sub-function 1 - (name)
A50: Insert measure/s description
J51: =SUM(E51:I51) -> 0 | K51: =IF(D51=0,C51+J51,D51+J51) -> 0 | L51: =IF(E51=0,D51+K51,E51+K51) -> 0 | M51: =IF(F51=0,E51+L51,F51+L51) -> 0
A52: Sub-function 2 - (name)
A53: Insert measure/s description | J53: =SUM(E53:I53) -> 0 | K53: =IF(D53=0,C53+J53,D53+J53) -> 0 | L53: =IF(E53=0,D53+K53,E53+K53) -> 0 | M53: =IF(F53=0,E53+L53,F53+L53) -> 0
A55: Sub-function 3 - (name) | J55: =SUM(E55:I55) -> 0 | K55: =IF(D55=0,C55+J55,D55+J55) -> 0 | L55: =IF(E55=0,D55+K55,E55+K55) -> 0 | M55: =IF(F55=0,E55+L55,F55+L55) -> 0
A56: Insert measure/s description
A58: Function 2 - (name) | J58: =SUM(E58:I58) -> 0 | K58: =IF(D58=0,C58+J58,D58+J58) -> 0 | L58: =IF(E58=0,D58+K58,E58+K58) -> 0 | M58: =IF(F58=0,E58+L58,F58+L58) -> 0
A59: Sub-function 1 - (name)
A60: Insert measure/s description | J60: =SUM(E60:I60) -> 0 | K60: =IF(D60=0,C60+J60,D60+J60) -> 0 | L60: =IF(E60=0,D60+K60,E60+K60) -> 0 | M60: =IF(F60=0,E60+L60,F60+L60) -> 0
A62: Sub-function 2 - (name) | J62: =SUM(E62:I62) -> 0 | K62: =IF(D62=0,C62+J62,D62+J62) -> 0 | L62: =IF(E62=0,D62+K62,E62+K62) -> 0 | M62: =IF(F62=0,E62+L62,F62+L62) -> 0
A63: Insert measure/s description
J64: =SUM(E64:I64) -> 0 | K64: =IF(D64=0,C64+J64,D64+J64) -> 0 | L64: =IF(E64=0,D64+K64,E64+K64) -> 0 | M64: =IF(F64=0,E64+L64,F64+L64) -> 0
A65: Sub-function 3 - (name)
A66: Insert measure/s description | J66: =SUM(E66:I66) -> 0 | K66: =IF(D66=0,C66+J66,D66+J66) -> 0 | L66: =IF(E66=0,D66+K66,E66+K66) -> 0 | M66: =IF(F66=0,E66+L66,F66+L66) -> 0
A68: And so on for the rest of the Votes | J68: =SUM(E68:I68) -> 0 | K68: =IF(D68=0,C68+J68,D68+J68) -> 0 | L68: =IF(E68=0,D68+K68,E68+K68) -> 0 | M68: =IF(F68=0,E68+L68,F68+L68) -> 0
A69: =head27a -> References
A70: 1. Include a measurable performance objective for each revenue source (within a relevant function) and each vote (MFMA s17(3)(b))
A71: 2. Include the estimated effect on the target of each component of an adjustment budget (B to G)
A72: 3. Include all Basic Services performance targets from Table A10 to ensure Table SA7 represents all strategic responsibilities
A73: 4. Total target adjustments G = B + C + D + E + F
A74: 5. Total Adjusted Budget targets H = (A or A1/2 etc) + G
A75: 6. NOTE - include adjustsment by 'exception' (only where amended)

Sheet SB4
A1: =muni&" - "&ADJB4&" - "&Date -> FS193 Nketoana - Supporting Table SB4 Adjustments to budgeted performance indicators and benchmarks - 28/02/2018
A2: =desc&" of financial indicator" -> Description of financial indicator | B2: Basis of calculation | C2: =Head1B -> 2014/15 | D2: =Head1A -> 2015/16 | E2: =Head1 -> 2016/17 | F2: =Head2 -> Budget Year 2017/18 | I2: =Head10 -> Budget Year +1 2018/19 | J2: =Head11 -> Budget Year +2 2019/20
C3: =Head5 -> Audited Outcome | D3: =Head5 -> Audited Outcome | E3: =Head5 -> Audited Outcome | F3: =Head6 -> Original Budget | G3: =Head54 -> Prior Adjusted | H3: =Head7 -> Adjusted Budget | I3: =Head7 -> Adjusted Budget | J3: =Head7 -> Adjusted Budget
A4: Borrowing Management
A6: Credit Rating | B6: Short term/long term rating
A7: Capital Charges to Operating Expenditure | B7: Interest & Principal Paid /Operating Expenditure | F7: =IF(ISERROR(('B4-FinPerf RE'!C30-'B7-CFlow'!C37)/'B4-FinPerf RE'!C37),0,(('B4-FinPerf RE'!C30-'B7-CFlow'!C37)/'B4-FinPerf RE'!C37)) -> 0.05438052057 | G7: =IF(ISERROR(('B4-FinPerf RE'!D30-'B7-CFlow'!D37)/'B4-FinPerf RE'!D37),0,(('B4-FinPerf RE'!D30-'B7-CFlow'!D37)/'B4-FinPerf RE'!D37)) -> 0 | H7: =IF(ISERROR(('B4-FinPerf RE'!K30-'B7-CFlow'!K37)/'B4-FinPerf RE'!K37),0,(('B4-FinPerf RE'!K30-'B7-CFlow'!K37)/'B4-FinPerf RE'!K37)) -> 0.06307141922 | I7: =IF(ISERROR(('B4-FinPerf RE'!L30-'B7-CFlow'!L37)/'B4-FinPerf RE'!L37),0,(('B4-FinPerf RE'!L30-'B7-CFlow'!L37)/'B4-FinPerf RE'!L37)) -> 0.05377805695 | J7: =IF(ISERROR(('B4-FinPerf RE'!M30-'B7-CFlow'!M37)/'B4-FinPerf RE'!M37),0,(('B4-FinPerf RE'!M30-'B7-CFlow'!M37)/'B4-FinPerf RE'!M37)) -> 0.0719573962
A8: Capital Charges to Own Revenue | B8: Finance charges & Repayment of borrowing /Own Revenue | F8: =IF(ISERROR(('B4-FinPerf RE'!C31-'B7-CFlow'!C38)/'B4-FinPerf RE'!C38),0,(('B4-FinPerf RE'!C31-'B7-CFlow'!C38)/'B4-FinPerf RE'!C38)) -> 0 | G8: =IF(ISERROR(('B4-FinPerf RE'!D31-'B7-CFlow'!D38)/'B4-FinPerf RE'!D38),0,(('B4-FinPerf RE'!D31-'B7-CFlow'!D38)/'B4-FinPerf RE'!D38)) -> 0 | H8: =IF(ISERROR(('B4-FinPerf RE'!K31-'B7-CFlow'!K38)/'B4-FinPerf RE'!K38),0,(('B4-FinPerf RE'!K31-'B7-CFlow'!K38)/'B4-FinPerf RE'!K38)) -> 0 | I8: =IF(ISERROR(('B4-FinPerf RE'!L31-'B7-CFlow'!L38)/'B4-FinPerf RE'!L38),0,(('B4-FinPerf RE'!L31-'B7-CFlow'!L38)/'B4-FinPerf RE'!L38)) -> 0 | J8: =IF(ISERROR(('B4-FinPerf RE'!M31-'B7-CFlow'!M38)/'B4-FinPerf RE'!M38),0,(('B4-FinPerf RE'!M31-'B7-CFlow'!M38)/'B4-FinPerf RE'!M38)) -> 0
A9: Borrowed funding of 'own' capital expenditure | B9: Borrowing/Capital expenditure excl. transfers and grants | F9: =IF(ISERROR('B5-Capex'!C74/('B5-Capex'!C65-'B5-Capex'!C72)),0,('B5-Capex'!C74/('B5-Capex'!C65-'B5-Capex'!C72))) -> 0 | G9: =IF(ISERROR('B5-Capex'!D74/('B5-Capex'!D65-'B5-Capex'!D72)),0,('B5-Capex'!D74/('B5-Capex'!D65-'B5-Capex'!D72))) -> 0 | H9: =IF(ISERROR('B5-Capex'!K74/('B5-Capex'!K65-'B5-Capex'!L72)),0,('B5-Capex'!K74/('B5-Capex'!K65-'B5-Capex'!L72))) -> 0 | I9: =IF(ISERROR('B5-Capex'!L74/('B5-Capex'!L65-'B5-Capex'!M72)),0,('B5-Capex'!L74/('B5-Capex'!L65-'B5-Capex'!M72))) -> 0 | J9: =IF(ISERROR('B5-Capex'!M74/('B5-Capex'!M65-'B5-Capex'!N72)),0,('B5-Capex'!M74/('B5-Capex'!M65-'B5-Capex'!N72))) -> 0
A10: Safety of Capital
A11: Gearing | B11: Long Term Borrowing/ Funds & Reserves | F11: =IF(ISERROR('B6-FinPos'!C39/'B6-FinPos'!C48),0,('B6-FinPos'!C39/'B6-FinPos'!C48)) -> 0 | G11: =IF(ISERROR('B6-FinPos'!D39/'B6-FinPos'!D48),0,('B6-FinPos'!D39/'B6-FinPos'!D48)) -> 0 | H11: =IF(ISERROR('B6-FinPos'!K39/'B6-FinPos'!K48),0,('B6-FinPos'!K39/'B6-FinPos'!K48)) -> 0 | I11: =IF(ISERROR('B6-FinPos'!L39/'B6-FinPos'!L48),0,('B6-FinPos'!L39/'B6-FinPos'!L48)) -> 0 | J11: =IF(ISERROR('B6-FinPos'!M39/'B6-FinPos'!M48),0,('B6-FinPos'!M39/'B6-FinPos'!M48)) -> 0
A12: Liquidity
A13: Current Ratio | B13: Current assets/current liabilities | F13: =IF(ISERROR('B6-FinPos'!C14/'B6-FinPos'!C36),0,('B6-FinPos'!C14/'B6-FinPos'!C36)) -> 2.135834248 | G13: =IF(ISERROR('B6-FinPos'!D14/'B6-FinPos'!D36),0,('B6-FinPos'!D14/'B6-FinPos'!D36)) -> 0 | H13: =IF(ISERROR('B6-FinPos'!K14/'B6-FinPos'!K36),0,('B6-FinPos'!K14/'B6-FinPos'!K36)) -> 2.135834248 | I13: =IF(ISERROR('B6-FinPos'!L14/'B6-FinPos'!L36),0,('B6-FinPos'!L14/'B6-FinPos'!L36)) -> 2.68579348 | J13: =IF(ISERROR('B6-FinPos'!M14/'B6-FinPos'!M36),0,('B6-FinPos'!M14/'B6-FinPos'!M36)) -> 2.690307061
A14: Current Ratio adjusted for aged debtors | B14: Current assets/current liabilities less debtors > 90 days/current liabilities | F14: =IF(ISERROR(('B6-FinPos'!C14-'SB4'!F44)/'B6-FinPos'!C36),0,(('B6-FinPos'!C14-'SB4'!F44)/'B6-FinPos'!C36)) -> 2.135834248 | G14: =IF(ISERROR(('B6-FinPos'!D14-'SB4'!G44)/'B6-FinPos'!D36),0,(('B6-FinPos'!D14-'SB4'!G44)/'B6-FinPos'!D36)) -> 0 | H14: =IF(ISERROR(('B6-FinPos'!E14-'SB4'!H44)/'B6-FinPos'!E36),0,(('B6-FinPos'!E14-'SB4'!H44)/'B6-FinPos'!E36)) -> 0 | I14: =IF(ISERROR(('B6-FinPos'!F14-'SB4'!I44)/'B6-FinPos'!F36),0,(('B6-FinPos'!F14-'SB4'!I44)/'B6-FinPos'!F36)) -> 0 | J14: =IF(ISERROR(('B6-FinPos'!G14-'SB4'!J44)/'B6-FinPos'!G36),0,(('B6-FinPos'!G14-'SB4'!J44)/'B6-FinPos'!G36)) -> 0
